Workbook

Sheet Sign Off
B2: Sign Off's
B4: Accounting
C6: Name | D6: Title | E6: Date
B7: Preparer | C7: Belen Villalba | D7: Temp Analyst | E7: 2019-12-17
B8: Reviewer | C8: William Adams | D8: Financial Analysis Manager | E8: 2020-01-14
B9: Approver | C9: N/A | D9: N/A | E9: N/A
B11: Audit Services
C13: Name | D13: Title | E13: Date
B14: Preparer
B16: Energy Delivery
C18: Name | D18: Title | E18: Date
B19: Final Reviewer

Sheet A - Contractor Summary
B2: Contractor Summary
B4: Test Plan: (A) Using the drop down list, select the vendor. (B) Ensure address agrees to invoice(s). (C) Enter the distance between vendor address to Plant City, FL. (D) Determine if vendor is part of the SEE (see tab A.1 for listing). (E) Determine if other agreements exist. (F) Using the drop down list, select the Incident Base that the vendor was initially assigned. (G) If the contractor includes multiple crews with different timelines, utilize the '+' symbol at the top of columns 'H' and 'K' (if necessary) to unhide the vendor summary. (H) Click the button to populate the second (and third, if necessary) set of tabs for documentation of those expenses. (I) Complete steps (A) through (F).
F14: G | I14: G
C15: Vendor #04 | F15: Vendor #2 | I15: Vendor #3
G17: H | J17: H
B19: Contractor/Company | C19: BLUELAKE UTILITY SERVICES LLC | D19: A | G19: A | J19: A
B20: SAP Vendor# | F20: 10044004 | I20: =VLOOKUP(I19,#REF!,2,FALSE) -> 
B21: Service Type | C21: Distribution | F21: Transmission | I21: =VLOOKUP($I$19,#REF!,4,FALSE) -> 
B23: Address | C23: PO Box 824 | D23: B | G23: B | I23: =VLOOKUP($I$19,#REF!,13,FALSE) ->  | J23: B
B24: City | C24: Meridian | I24: =VLOOKUP($I$19,#REF!,14,FALSE) -> 
B25: State/Providence | C25: ID | I25: =VLOOKUP($I$19,#REF!,15,FALSE) -> 
B26: Zip | C26: 83680 | I26: =VLOOKUP($I$19,#REF!,16,FALSE) -> 
B27: Country | C27: USA | F27: US | I27: =VLOOKUP($I$19,#REF!,17,FALSE) -> 
B29: Distance from FL (in miles) | C29: Local Crews | D29: C | F29: 815 | G29: C | I29: 800 | J29: C
B30: Travel Days (500 m/per day) | C30: 0 | F30: =ROUNDUP(F29/500,0) -> 2 | I30: =ROUNDUP(I29/500,0) -> 2
B32: Member of the SEE | D32: D | F32: NO | G32: D | I32: NO | J32: D
B33: Other Agreement/Contract (Y/N) | D33: E | F33: NO | G33: E | I33: NO | J33: E
B34: Incident Base | D34: F | F34: Winter Haven | G34: F | I34: Winter Haven | J34: F
B36: Date Secured | C36: 2018-10-11 | F36: 2017-09-04 | I36: =VLOOKUP($I$19,#REF!,6,FALSE) -> 
B37: Start Travel | C37: local | F37: N/A | I37: =VLOOKUP($I$19,#REF!,7,FALSE) -> 
B38: Date Arrived | C38: 2018-10-11 | F38: 2017-09-12 | I38: =VLOOKUP($I$19,#REF!,8,FALSE) -> 
B39: Date Released | C39: 2019-03-23 | F39: 2017-09-13 | I39: =VLOOKUP($I$19,#REF!,9,FALSE) -> 
B40: Time Released | F40: 16:27 | I40: =VLOOKUP($I$19,#REF!,10,FALSE) -> 
B41: Released To | C41: home | F41: Home | I41: =VLOOKUP($I$19,#REF!,11,FALSE) -> 
B42: Arrived Home/Utility* | C42: local | F42: 2017-09-15 | I42: =IF(I41="home",SUM(IF(I29>500,I39+I30,I39)),I39) -> 
F47: C.1 - Rate Sheets (2) | I47: C.1 - Rate Sheets (3)
F48: C.2 - Timesheets - Labor (2) | I48: C.2 - Timesheets - Labor (3)
F49: C.4 - Timesheets - Equipmen (2) | I49: C.4 - Timesheets - Equipmen (3)
F50: D - Lodging (2) | I50: D - Lodging (3)
F51: E - Fuel (2) | I51: E - Fuel (3)
F52: F - Meals (2) | I52: F - Meals (3)
F53: G - Per Diem (2) | I53: G - Per Diem (3)
F54: H - Mileage (2) | I54: H - Mileage (3)
F55: I - Other (2) | I55: I - Other (3)
B59: *Estimates reasonable arrival time
B61: Tickmark Explanation:

Sheet A.1 SEE Members
A1: RMAG | B1: RESPONDING COMPANY | C1: COMPANY NAME
A2: SEE
A3: SEE
A4: SEE
A5: SEE
A6: SEE
A7: SEE
A8: SEE
A9: SEE
A10: SEE
A11: SEE
A12: SEE
A13: SEE
A14: SEE
A15: SEE
A16: SEE
A17: SEE
A18: SEE
A19: SEE
A24: SEE
A25: SEE
A26: SEE
A27: SEE
A28: SEE
A29: SEE
A31: SEE
A32: SEE
A33: SEE
A34: SEE
A35: SEE
A40: SEE
A41: SEE
A42: SEE
A43: SEE
A47: SEE
A55: SEE
A56: SEE
A57: SEE
A61: SEE
A64: SEE
A65: SEE

Sheet B - Summary Expenses
B2: Summary of Expenses
B4: Test Plan: (A) Calculate Total Amount Invoiced for each expense category. (B) Using SAP t-code FBL1N, list Vendor Invoices Paid. (C) Ensure there are no differences between the Total Expense Amount and the Total Paid Amount. (D) Ensure there are no difference between Total Invoiced Amount and Total Expense Amount. (E) If applicable, identify difference due to Foreign currency exchange rates.
C9: A
C10: Total Invoiced | D10: Total Calculated | E10: Allowable | F10: Reviewed - Allowed | G10: Reviewed - Not Allowable | H10: Not Allowable
B11: Labor Expense Total | C11: 6005484 | D11: ='C.2 - Timesheets - Labor'!GJ506 -> 6005484 | E11: ='C.2 - Timesheets - Labor'!GK506 -> 6005484 | F11: ='C.2 - Timesheets - Labor'!GN506 -> 0 | G11: ='C.2 - Timesheets - Labor'!GO506 -> 0 | H11: =D11-(E11+F11+G11) -> 0
B12: Equipment Expense Total | F12: ='C.4 - Timesheets - Equipment'!AD35 -> 0 | G12: ='C.4 - Timesheets - Equipment'!AE35 -> 0 | H12: =D12-(E12+F12+G12) -> 0
B13: Lodging Expense Total | D13: ='D - Lodging'!L93 -> 0 | E13: ='D - Lodging'!T93 -> 0 | F13: ='D - Lodging'!V93 -> 0 | G13: ='D - Lodging'!W93 -> 0 | H13: =D13-(E13+F13+G13) -> 0
B14: Fuel/Transport Expense Total | C14: 6185.55 | D14: ='E - Fuel'!J17 -> 6185.55 | E14: ='E - Fuel'!Q17 -> 0 | F14: ='E - Fuel'!S17 -> 6185.55 | G14: ='E - Fuel'!T17 -> 0 | H14: 0
B15: Meal Expense Total | D15: ='F - Meals'!K141 -> 0 | E15: ='F - Meals'!R141 -> 0 | F15: ='F - Meals'!T141 -> 0 | G15: ='F - Meals'!U141 -> 0 | H15: 0
B16: Per Diem Expense Total | C16: 140700 | D16: ='G - Per Diem'!I49 -> 140700 | E16: ='G - Per Diem'!N49 -> 0 | F16: ='G - Per Diem'!P49 -> 140700 | G16: ='G - Per Diem'!Q49 -> 0 | H16: 0
B17: Mileage Expense Total | D17: ='H - Mileage'!L36 -> 0 | E17: ='H - Mileage'!R36 -> 0 | F17: ='H - Mileage'!T36 -> 0 | G17: ='H - Mileage'!U36 -> 0 | H17: 0
B18: Other Expense | C18: 58516.66 | D18: ='I - Other'!K31 -> 58516.66 | E18: ='I - Other'!R31 -> 0 | F18: ='I - Other'!T31 -> 58516.66 | G18: ='I - Other'!U31 -> 0 | H18: =D18-(E18+F18+G18) -> 0
B20: Total Expense per tabs | C20: =SUM(C11:C18) -> 6210886.21 | D20: =SUM(D11:D18) -> 6210886.21 | E20: =SUM(E11:E18) -> 6005484 | F20: =SUM(F11:F18) -> 205402.21 | G20: =SUM(G11:G18) -> 0 | H20: 0
B21: Difference | C21: =IF(D21=0,"","1") ->  | D21: =C20-D20 -> 0 | E21: D
B23: Total Expense | D23: =+D20 -> 6210886.21 | E23: (from Total SAP Summary)
B24: Total Paid | D24: =-D60 -> -6210886.21 | E24: (from FBL1N in SAP)
B25: Difference | C25: =IF(D25=0,"",SUM(C21,1)) ->  | D25: =+D23+D24 -> 0 | E25: C
B27: Exchange Rate
B28: Fx Adjusted to USD
B29: Difference | C29: =IF(D29=0,"","3") ->  | E29: E
B31: B
B33: Document No | C33: Doc Date | D33: Amount | E33: Reference
B34: 1242 | C34: 2018-10-13 | D34: 226200 | E34: 668443
B35: 1248 | C35: 2018-10-20 | D35: 956000 | E35: 668444
B36: 1249 | C36: 2018-10-27 | D36: 1766100 | E36: 672077
B37: 1253 | C37: 2018-11-08 | D37: 1231400 | E37: 672090
B38: 1258 | C38: 2018-11-10 | D38: 317969.55 | E38: 678996
B39: 1267 | C39: 2018-11-17 | D39: 152004.33 | E39: 675928
B40: 1269 | C40: 2018-11-24 | D40: 51000 | E40: 679041
B41: 1299 | C41: 2018-12-12 | D41: 70000 | E41: 681004
B42: 1300 | C42: 2018-12-08 | D42: 70000 | E42: 681005
B43: 1322 | C43: 2018-12-15 | D43: 71300 | E43: 694167
B44: 1352 | C44: 2018-12-29 | D44: 42500 | E44: 692457
B45: 1355 | C45: 2019-01-05 | D45: 68000 | E45: 685750
B46: 1365 | C46: 2019-01-12 | D46: 83300 | E46: 686816
B47: 1377 | C47: 2018-12-22 | D47: 75900 | E47: 694169
B48: 1380 | C48: 2019-01-19 | D48: 85350 | E48: 692464
B49: 1389 | C49: 2019-01-26 | D49: 119570.8 | E49: 692466
B50: 1400 | C50: 2019-02-02 | D50: 102050 | E50: 694170
B51: 1419 | C51: 2019-02-09 | D51: 116935 | E51: 698357
B52: 1436 | C52: 2019-02-16 | D52: 100720 | E52: 698358
B53: 1438 | C53: 2019-02-23 | D53: 126325 | E53: 698359
B54: 1463 | C54: 2019-03-02 | D54: 83340 | E54: 702027
B55: 1476 | C55: 2019-03-09 | D55: 101050 | E55: 702029
B56: 1490 | C56: 2019-03-16 | D56: 102750 | E56: 702327
B57: 1498 | C57: 2019-03-23 | D57: 78500 | E57: 704588
B58: 1503 | C58: 2019-02-23 | D58: 12621.53 | E58: 704589
D60: =SUM(D34:D59) -> 6210886.21
B62: Tickmark Explanation:
B63: =IFERROR(C21,"") -> 
B65: =IFERROR(C25,"") -> 

Sheet C.1 - Rate Sheets
B2: Labor Charges - Rate Sheet
B4: Test Plan: (A) Using the vendor rate sheet, ensure that a rate was provided for all Positions and Equipment types.
B6: Labor Types:
B7: ST | C7: Straight Time
B8: OT | C8: Over Time
B9: DT | C9: Double Time
B10: MOB/DMOB | C10: Mobilization/Demobilization Time
B13: Labor per Man Hour | H13: Labor per Equipment Hour
B14: A | H14: A
B15: POSITION | C15: ST | D15: OT | E15: DT | F15: MOB/DMOB | H15: Type | I15: $/HOUR
B16: MOT CREW | D16: 150 | J16: 1
B17: CLEAR CREW | D17: 200
B18: EXCAVATION CREW | D18: 300
B19: MAT CREW | D19: 300
B20: MOT CREW (a) | D20: 128
B21: CLEAN CREW | D21: 170
B22: Additional Laborer | D22: 45
B54: Tickmark Explanation:
B55: 1

Sheet C.2 - Timesheets - Labor
B2: Labor Charges - Time Card
B4: Test Plan: | C4: Obtain the time cards. (A) Using the Asset by Company tab (C.3), populate the crew members names and positions (if provided). Find additional information regarding individual crew member from related invoice. (B) Enter hours worked from time card(s). (C) Confirm that the dates per the time cards fall between dates provided per 'A - Contractor Summary' tab. (D) Confirm the labor type charged agrees to the rate sheet. (E) Identify any labor charges to be reviewed (manually enter amounts based on reasonability of time period labor was charged, discrepancies between timecards and invoice, etc. (F) For charges which required further review, document review (include why it was determined to be allowed/disallowed via a tickmark).
B10: Rx | C10: Recalculated.
B11: a | C11: Provided from tab 'C.1 - Rate Sheets'.
B12: b | C12: Check figure should equal $0. Cell will appear yellow if discrepancies are noted.
C14: A | H14: Rx | J14: C | K14: a | O14: B | V14: B | AC14: B | AJ14: B | GA14: Rx | GF14: Rx | GK14: Rx | GM14: E | GN14: F
B15: # | C15: Name | D15: Position | E15: Company | F15: Crew# | G15: Invoice# | H15: Start Date | I15: End Date | J15: Dates Worked Reasonable? | K15: Rates | O15: 2018-10-07 | P15: 2018-10-08 | Q15: 2018-10-09 | R15: 2018-10-10 | S15: 2018-10-11 | T15: 2018-10-12 | U15: 2018-10-13 | V15: 2018-10-14 | W15: 2018-10-15 | X15: 2018-10-16 | Y15: 2018-10-17 | Z15: 2018-10-18 | AA15: 2018-10-19 | AB15: 2018-10-20 | AC15: 2018-10-21 | AD15: 2018-10-22 | AE15: 2018-10-23 | AF15: 2018-10-24 | AG15: 2018-10-25 | AH15: 2018-10-26 | AI15: 2018-10-27 | AJ15: 2018-10-28 | AK15: 2018-10-29 | AL15: 2018-10-30 | AM15: 2018-10-31 | AN15: 2018-11-01 | AO15: 2018-11-02 | AP15: 2018-11-03 | AQ15: 2018-11-04 | AR15: 2018-11-05 | AS15: 2018-11-06 | AT15: 2018-11-07 | AU15: 2018-11-08 | AV15: 2018-11-09 | AW15: 2018-11-10 | AX15: 2018-11-11 | AY15: 2018-11-12 | AZ15: 2018-11-13 | BA15: 2018-11-14 | BB15: 2018-11-15 | BC15: 2018-11-16 | BD15: 2018-11-17 | BE15: 2018-11-18 | BF15: 2018-11-19 | BG15: 2018-11-20 | BH15: 2018-11-21 | BI15: 2018-11-22 | BJ15: 2018-11-23 | BK15: 2018-11-24 | BL15: 2018-11-25 | BM15: 2018-11-26 | BN15: 2018-11-27 | BO15: 2018-11-28 | BP15: 2018-11-29 | BQ15: 2018-11-30 | BR15: 2018-12-01 | BS15: 2018-12-02 | BT15: 2018-12-03 | BU15: 2018-12-04 | BV15: 2018-12-05 | BW15: 2018-12-06 | BX15: 2018-12-07 | BY15: 2018-12-08 | BZ15: 2018-12-09 | CA15: 2018-12-10 | CB15: 2018-12-11 | CC15: 2018-12-12 | CD15: 2018-12-13 | CE15: 2018-12-14 | CF15: 2018-12-15 | CG15: 2018-12-16 | CH15: 2018-12-17 | CI15: 2018-12-18 | CJ15: 2018-12-19 | CK15: 2018-12-20 | CL15: 2018-12-21 | CM15: 2018-12-22 | CN15: 2018-12-23 | CO15: 2018-12-24 | CP15: 2018-12-25 | CQ15: 2018-12-26 | CR15: 2018-12-27 | CS15: 2018-12-28 | CT15: 2018-12-29 | CU15: 2018-12-30 | CV15: 2018-12-31 | CW15: 2019-01-01 | CX15: 2019-01-02 | CY15: 2019-01-03 | CZ15: 2019-01-04 | DA15: 2019-01-05 | DB15: 2019-01-06 | DC15: 2019-01-07 | DD15: 2019-01-08 | DE15: 2019-01-09 | DF15: 2019-01-10 | DG15: 2019-01-11 | DH15: 2019-01-12 | DI15: 2019-01-13 | DJ15: 2019-01-14 | DK15: 2019-01-15 | DL15: 2019-01-16 | DM15: 2019-01-17 | DN15: 2019-01-18 | DO15: 2019-01-19 | DP15: 2019-01-20 | DQ15: 2019-01-21 | DR15: 2019-01-22 | DS15: 2019-01-23 | DT15: 2019-01-24 | DU15: 2019-01-25 | DV15: 2019-01-26 | DW15: 2019-01-27 | DX15: 2019-01-28 | DY15: 2019-01-29 | DZ15: 2019-01-30 | EA15: 2019-01-31 | EB15: 2019-02-01 | EC15: 2019-02-02 | ED15: 2019-02-03 | EE15: 2019-02-04 | EF15: 2019-02-05 | EG15: 2019-02-06 | EH15: 2019-02-07 | EI15: 2019-02-08 | EJ15: 2019-02-09 | EK15: 2019-02-10 | EL15: 2019-02-11 | EM15: 2019-02-12 | EN15: 2019-02-13 | EO15: 2019-02-14 | EP15: 2019-02-15 | EQ15: 2019-02-16 | ER15: 2019-02-17 | ES15: 2019-02-18 | ET15: 2019-02-19 | EU15: 2019-02-20 | EV15: 2019-02-21 | EW15: 2019-02-22 | EX15: 2019-02-23 | EY15: 2019-02-24 | EZ15: 2019-02-25 | FA15: 2019-02-26 | FB15: 2019-02-27 | FC15: 2019-02-28 | FD15: 2019-03-01 | FE15: 2019-03-02 | FF15: 2019-03-03 | FG15: 2019-03-04 | FH15: 2019-03-05 | FI15: 2019-03-06 | FJ15: 2019-03-07 | FK15: 2019-03-08 | FL15: 2019-03-09 | FM15: 2019-03-10 | FN15: 2019-03-11 | FO15: 2019-03-12 | FP15: 2019-03-13 | FQ15: 2019-03-14 | FR15: 2019-03-15 | FS15: 2019-03-16 | FT15: 2019-03-17 | FU15: 2019-03-18 | FV15: 2019-03-19 | FW15: 2019-03-20 | FX15: 2019-03-21 | FY15: 2019-03-22 | FZ15: 2019-03-23 | GA15: Total Labor Hours | GF15: Total Labor $ | GK15: Allowable Charges | GL15: Labor Type Appropriate? | GM15: To Be Reviewed | GN15: Reviewed - Allowable Charge | GO15: Reviewed - Unallowable Charge | GP15: Tickmarks
O16: 2018-10-07 | P16: 2018-10-08 | Q16: 2018-10-09 | R16: 2018-10-10 | S16: 2018-10-11 | T16: 2018-10-12 | U16: 2018-10-13 | V16: 2018-10-14 | W16: 2018-10-15 | X16: 2018-10-16 | Y16: 2018-10-17 | Z16: 2018-10-18 | AA16: 2018-10-19 | AB16: 2018-10-20 | AC16: 2018-10-21 | AD16: 2018-10-22 | AE16: 2018-10-23 | AF16: 2018-10-24 | AG16: 2018-10-25 | AH16: 2018-10-26 | AI16: 2018-10-27 | AJ16: 2018-10-28 | AK16: 2018-10-29 | AL16: 2018-10-30 | AM16: 2018-10-31 | AN16: 2018-11-01 | AO16: 2018-11-02 | AP16: 2018-11-03 | AQ16: 2018-11-04 | AR16: 2018-11-05 | AS16: 2018-11-06 | AT16: 2018-11-07 | AU16: 2018-11-08 | AV16: 2018-11-09 | AW16: 2018-11-10 | AX16: 2018-11-11 | AY16: 2018-11-12 | AZ16: 2018-11-13 | BA16: 2018-11-14 | BB16: 2018-11-15 | BC16: 2018-11-16 | BD16: 2018-11-17 | BE16: 2018-11-18 | BF16: 2018-11-19 | BG16: 2018-11-20 | BH16: 2018-11-21 | BI16: 2018-11-22 | BJ16: 2018-11-23 | BK16: 2018-11-24 | BL16: 2018-11-25 | BM16: 2018-11-26 | BN16: 2018-11-27 | BO16: 2018-11-28 | BP16: 2018-11-29 | BQ16: 2018-11-30 | BR16: 2018-12-01 | BS16: 2018-12-02 | BT16: 2018-12-03 | BU16: 2018-12-04 | BV16: 2018-12-05 | BW16: 2018-12-06 | BX16: 2018-12-07 | BY16: 2018-12-08 | BZ16: 2018-12-09 | CA16: 2018-12-10 | CB16: 2018-12-11 | CC16: 2018-12-12 | CD16: 2018-12-13 | CE16: 2018-12-14 | CF16: 2018-12-15 | CG16: 2018-12-16 | CH16: 2018-12-17 | CI16: 2018-12-18 | CJ16: 2018-12-19 | CK16: 2018-12-20 | CL16: 2018-12-21 | CM16: 2018-12-22 | CN16: 2018-12-23 | CO16: 2018-12-24 | CP16: 2018-12-25 | CQ16: 2018-12-26 | CR16: 2018-12-27 | CS16: 2018-12-28 | CT16: 2018-12-29 | CU16: 2018-12-30 | CV16: 2018-12-31 | CW16: 2019-01-01 | CX16: 2019-01-02 | CY16: 2019-01-03 | CZ16: 2019-01-04 | DA16: 2019-01-05 | DB16: 2019-01-06 | DC16: 2019-01-07 | DD16: 2019-01-08 | DE16: 2019-01-09 | DF16: 2019-01-10 | DG16: 2019-01-11 | DH16: 2019-01-12 | DI16: 2019-01-13 | DJ16: 2019-01-14 | DK16: 2019-01-15 | DL16: 2019-01-16 | DM16: 2019-01-17 | DN16: 2019-01-18 | DO16: 2019-01-19 | DP16: 2019-01-20 | DQ16: 2019-01-21 | DR16: 2019-01-22 | DS16: 2019-01-23 | DT16: 2019-01-24 | DU16: 2019-01-25 | DV16: 2019-01-26 | DW16: 2019-01-27 | DX16: 2019-01-28 | DY16: 2019-01-29 | DZ16: 2019-01-30 | EA16: 2019-01-31 | EB16: 2019-02-01 | EC16: 2019-02-02 | ED16: 2019-02-03 | EE16: 2019-02-04 | EF16: 2019-02-05 | EG16: 2019-02-06 | EH16: 2019-02-07 | EI16: 2019-02-08 | EJ16: 2019-02-09 | EK16: 2019-02-10 | EL16: 2019-02-11 | EM16: 2019-02-12 | EN16: 2019-02-13 | EO16: 2019-02-14 | EP16: 2019-02-15 | EQ16: 2019-02-16 | ER16: 2019-02-17 | ES16: 2019-02-18 | ET16: 2019-02-19 | EU16: 2019-02-20 | EV16: 2019-02-21 | EW16: 2019-02-22 | EX16: 2019-02-23 | EY16: 2019-02-24 | EZ16: 2019-02-25 | FA16: 2019-02-26 | FB16: 2019-02-27 | FC16: 2019-02-28 | FD16: 2019-03-01 | FE16: 2019-03-02 | FF16: 2019-03-03 | FG16: 2019-03-04 | FH16: 2019-03-05 | FI16: 2019-03-06 | FJ16: 2019-03-07 | FK16: 2019-03-08 | FL16: 2019-03-09 | FM16: 2019-03-10 | FN16: 2019-03-11 | FO16: 2019-03-12 | FP16: 2019-03-13 | FQ16: 2019-03-14 | FR16: 2019-03-15 | FS16: 2019-03-16 | FT16: 2019-03-17 | FU16: 2019-03-18 | FV16: 2019-03-19 | FW16: 2019-03-20 | FX16: 2019-03-21 | FY16: 2019-03-22 | FZ16: 2019-03-23 | GA16: ST | GB16: OT | GC16: FLAT | GD16: MOB/DMOB | GE16: Total Hours | GF16: Total ST $ | GG16: Total OT $ | GH16: Total DT $ | GI16: Total MOB/DMOB $ | GJ16: Total Labor $
O17: Sunday | P17: Monday | Q17: Tuesday | R17: Wednesday | S17: Thursday | T17: Friday | U17: Saturday | V17: Sunday | W17: Monday | X17: Tuesday | Y17: Wednesday | Z17: Thursday | AA17: Friday | AB17: Saturday | AC17: Sunday | AD17: Monday | AE17: Tuesday | AF17: Wednesday | AG17: Thursday | AH17: Friday | AI17: Saturday | AJ17: Sunday | AK17: Monday | AL17: Tuesday | AM17: Wednesday | AN17: Thursday | AO17: Friday | AP17: Saturday | AQ17: Sunday | AR17: Monday | AS17: Tuesday | AT17: Wednesday | AU17: Thursday | AV17: Friday | AW17: Saturday | AX17: Sunday | AY17: Monday | AZ17: Tuesday | BA17: Wednesday | BB17: Thursday | BC17: Friday | BD17: Saturday | BE17: Sunday | BF17: Monday | BG17: Tuesday | BH17: Wednesday | BI17: Thursday | BJ17: Friday | BK17: Saturday | BL17: Sunday | BM17: Monday | BN17: Tuesday | BO17: Wednesday | BP17: Thursday | BQ17: Friday | BR17: Saturday | BS17: Sunday | BT17: Monday | BU17: Tuesday | BV17: Wednesday | BW17: Thursday | BX17: Friday | BY17: Saturday | BZ17: Sunday | CA17: Monday | CB17: Tuesday | CC17: Wednesday | CD17: Thursday | CE17: Friday | CF17: Saturday | CG17: Sunday | CH17: Monday | CI17: Tuesday | CJ17: Wednesday | CK17: Thursday | CL17: Friday | CM17: Saturday | CN17: Sunday | CO17: Monday | CP17: Tuesday | CQ17: Wednesday | CR17: Thursday | CS17: Friday | CT17: Saturday | CU17: Sunday | CV17: Monday | CW17: Tuesday | CX17: Wednesday | CY17: Thursday | CZ17: Friday | DA17: Saturday | DB17: Sunday | DC17: Monday | DD17: Tuesday | DE17: Wednesday | DF17: Thursday | DG17: Friday | DH17: Saturday | DI17: Sunday | DJ17: Monday | DK17: Tuesday | DL17: Wednesday | DM17: Thursday | DN17: Friday | DO17: Saturday | DP17: Sunday | DQ17: Monday | DR17: Tuesday | DS17: Wednesday | DT17: Thursday | DU17: Friday | DV17: Saturday | DW17: Sunday | DX17: Monday | DY17: Tuesday | DZ17: Wednesday | EA17: Thursday | EB17: Friday | EC17: Saturday | ED17: Sunday | EE17: Monday | EF17: Tuesday | EG17: Wednesday | EH17: Thursday | EI17: Friday | EJ17: Saturday | EK17: Sunday | EL17: Monday | EM17: Tuesday | EN17: Wednesday | EO17: Thursday | EP17: Friday | EQ17: Saturday | ER17: Sunday | ES17: Monday | ET17: Tuesday | EU17: Wednesday | EV17: Thursday | EW17: Friday | EX17: Saturday | EY17: Sunday | EZ17: Monday | FA17: Tuesday | FB17: Wednesday | FC17: Thursday | FD17: Friday | FE17: Saturday | FF17: Sunday | FG17: Monday | FH17: Tuesday | FI17: Wednesday | FJ17: Thursday | FK17: Friday | FL17: Saturday | FM17: Sunday | FN17: Monday | FO17: Tuesday | FP17: Wednesday | FQ17: Thursday | FR17: Friday | FS17: Saturday | FT17: Sunday | FU17: Monday | FV17: Tuesday | FW17: Wednesday | FX17: Thursday | FY17: Friday | FZ17: Saturday
K18: ST | L18: OT | M18: DT | N18: MOB/DMOB | O18: Total | P18: Total | Q18: Total | R18: Total | S18: Total | T18: Total | U18: Total | V18: Total | W18: Total | X18: Total | Y18: Total | Z18: Total | AA18: Total | AB18: Total | AC18: Total | AD18: Total | AE18: Total | AF18: Total | AG18: Total | AH18: Total | AI18: Total | AJ18: Total | AK18: Total | AL18: Total | AM18: Total | AN18: Total | AO18: Total | AP18: Total | AQ18: Total | AR18: Total | AS18: Total | AT18: Total | AU18: Total | AV18: Total | AW18: Total | AX18: Total | AY18: Total | AZ18: Total | BA18: Total | BB18: Total | BC18: Total | BD18: Total | BE18: Total | BF18: Total | BG18: Total | BH18: Total | BI18: Total | BJ18: Total | BK18: Total | BL18: Total | BM18: Total | BN18: Total | BO18: Total | BP18: Total | BQ18: Total | BR18: Total | BS18: Total | BT18: Total | BU18: Total | BV18: Total | BW18: Total | BX18: Total | BY18: Total | BZ18: Total | CA18: Total | CB18: Total | CC18: Total | CD18: Total | CE18: Total | CF18: Total | CG18: Total | CH18: Total | CI18: Total | CJ18: Total | CK18: Total | CL18: Total | CM18: Total | CN18: Total | CO18: Total | CP18: Total | CQ18: Total | CR18: Total | CS18: Total | CT18: Total | CU18: Total | CV18: Total | CW18: Total | CX18: Total | CY18: Total | CZ18: Total | DA18: Total | DB18: Total | DC18: Total | DD18: Total | DE18: Total | DF18: Total | DG18: Total | DH18: Total | DI18: Total | DJ18: Total | DK18: Total | DL18: Total | DM18: Total | DN18: Total | DO18: Total | DP18: Total | DQ18: Total | DR18: Total | DS18: Total | DT18: Total | DU18: Total | DV18: Total | DW18: Total | DX18: Total | DY18: Total | DZ18: Total | EA18: Total | EB18: Total | EC18: Total | ED18: Total | EE18: Total | EF18: Total | EG18: Total | EH18: Total | EI18: Total | EJ18: Total | EK18: Total | EL18: Total | EM18: Total | EN18: Total | EO18: Total | EP18: Total | EQ18: Total | ER18: Total | ES18: Total | ET18: Total | EU18: Total | EV18: Total | EW18: Total | EX18: Total | EY18: Total | EZ18: Total | FA18: Total | FB18: Total | FC18: Total | FD18: Total | FE18: Total | FF18: Total | FG18: Total | FH18: Total | FI18: Total | FJ18: Total | FK18: Total | FL18: Total | FM18: Total | FN18: Total | FO18: Total | FP18: Total | FQ18: Total | FR18: Total | FS18: Total | FT18: Total | FU18: Total | FV18: Total | FW18: Total | FX18: Total | FY18: Total | FZ18: Total
B19: 1 | D19: MOT CREW | E19: Vendor No.04 | F19: Mot 1 | G19: 1242 | H19: =INDEX($O$16:$BK$16,MATCH(TRUE,INDEX((O19:BK19>0),0),0)) -> 2018-10-11 | I19: =LOOKUP(2,1/(1-(O19:BK19<=0)),$O$16:$BK$16) -> 2018-10-13 | J19: =IF(AND(H19>='A - Contractor Summary'!$C$36,I19<='A - Contractor Summary'!$C$42),"Yes","No") -> Yes | K19: =VLOOKUP($D19,'C.1 - Rate Sheets'!B:F,2,FALSE) -> 0 | L19: =VLOOKUP($D19,'C.1 - Rate Sheets'!B:F,3,FALSE) -> 150 | M19: =VLOOKUP($D19,'C.1 - Rate Sheets'!B:F,4,FALSE) -> 0 | N19: =VLOOKUP($D19,'C.1 - Rate Sheets'!B:F,5,FALSE) -> 0 | S19: 16 | T19: 16 | U19: 16 | GB19: =SUM(O19:FZ19) -> 48 | GE19: =SUM(GA19:GD19) -> 48 | GF19: =GA19*K19 -> 0 | GG19: =GB19*L19 -> 7200 | GH19: =GC19*M19 -> 0 | GI19: =GD19*N19 -> 0 | GJ19: =SUM(GF19:GI19) -> 7200 | GK19: =GJ19-GM19 -> 7200 | GL19: Yes | GM19: 0 | GN19: 0 | GO19: 0
B20: 2 | D20: MOT CREW | E20: Vendor No.04 | F20: Mot 2 | G20: 1242 | H20: =INDEX($O$16:$BK$16,MATCH(TRUE,INDEX((O20:BK20>0),0),0)) -> 2018-10-11 | I20: =LOOKUP(2,1/(1-(O20:BK20<=0)),$O$16:$BK$16) -> 2018-10-13 | J20: =IF(AND(H20>='A - Contractor Summary'!$C$36,I20<='A - Contractor Summary'!$C$42),"Yes","No") -> Yes | K20: =VLOOKUP($D20,'C.1 - Rate Sheets'!B:F,2,FALSE) -> 0 | L20: =VLOOKUP($D20,'C.1 - Rate Sheets'!B:F,3,FALSE) -> 150 | M20: =VLOOKUP($D20,'C.1 - Rate Sheets'!B:F,4,FALSE) -> 0 | N20: =VLOOKUP($D20,'C.1 - Rate Sheets'!B:F,5,FALSE) -> 0 | S20: 16 | T20: 16 | U20: 16 | GB20: 48 | GE20: =SUM(GA20:GD20) -> 48 | GF20: 0 | GG20: 7200 | GH20: 0 | GI20: 0 | GJ20: 7200 | GK20: 7200 | GL20: Yes | GM20: 0 | GN20: 0 | GO20: 0
B21: 3 | D21: MOT CREW | E21: Vendor No.04 | F21: Mot 3 | G21: 1242 | H21: 2018-10-11 | I21: 2018-10-13 | J21: =IF(AND(H21>='A - Contractor Summary'!$C$36,I21<='A - Contractor Summary'!$C$42),"Yes","No") -> Yes | K21: =VLOOKUP($D21,'C.1 - Rate Sheets'!B:F,2,FALSE) -> 0 | L21: =VLOOKUP($D21,'C.1 - Rate Sheets'!B:F,3,FALSE) -> 150 | M21: =VLOOKUP($D21,'C.1 - Rate Sheets'!B:F,4,FALSE) -> 0 | N21: =VLOOKUP($D21,'C.1 - Rate Sheets'!B:F,5,FALSE) -> 0 | S21: 16 | T21: 16 | U21: 16 | GB21: 48 | GE21: 48 | GF21: 0 | GG21: 7200 | GH21: 0 | GI21: 0 | GJ21: 7200 | GK21: 7200 | GL21: Yes | GM21: 0 | GN21: 0 | GO21: 0
B22: 4 | D22: MOT CREW | E22: Vendor No.04 | F22: Mot 4 | G22: 1242 | H22: 2018-10-11 | I22: 2018-10-13 | J22: =IF(AND(H22>='A - Contractor Summary'!$C$36,I22<='A - Contractor Summary'!$C$42),"Yes","No") -> Yes | K22: =VLOOKUP($D22,'C.1 - Rate Sheets'!B:F,2,FALSE) -> 0 | L22: =VLOOKUP($D22,'C.1 - Rate Sheets'!B:F,3,FALSE) -> 150 | M22: =VLOOKUP($D22,'C.1 - Rate Sheets'!B:F,4,FALSE) -> 0 | N22: =VLOOKUP($D22,'C.1 - Rate Sheets'!B:F,5,FALSE) -> 0 | S22: 16 | T22: 16 | U22: 16 | GB22: 48 | GE22: 48 | GF22: 0 | GG22: 7200 | GH22: 0 | GI22: 0 | GJ22: 7200 | GK22: 7200 | GL22: Yes | GM22: 0 | GN22: 0 | GO22: 0
B23: 5 | D23: MOT CREW | E23: Vendor No.04 | F23: Mot 5 | G23: 1242 | H23: 2018-10-11 | I23: 2018-10-13 | J23: =IF(AND(H23>='A - Contractor Summary'!$C$36,I23<='A - Contractor Summary'!$C$42),"Yes","No") -> Yes | K23: =VLOOKUP($D23,'C.1 - Rate Sheets'!B:F,2,FALSE) -> 0 | L23: =VLOOKUP($D23,'C.1 - Rate Sheets'!B:F,3,FALSE) -> 150 | M23: =VLOOKUP($D23,'C.1 - Rate Sheets'!B:F,4,FALSE) -> 0 | N23: =VLOOKUP($D23,'C.1 - Rate Sheets'!B:F,5,FALSE) -> 0 | S23: 16 | T23: 16 | U23: 16 | GB23: 48 | GE23: 48 | GF23: 0 | GG23: 7200 | GH23: 0 | GI23: 0 | GJ23: 7200 | GK23: 7200 | GL23: Yes | GM23: 0 | GN23: 0 | GO23: 0
B24: 6 | D24: MOT CREW | E24: Vendor No.04 | F24: Mot 6 | G24: 1242 | H24: 2018-10-11 | I24: 2018-10-13 | J24: =IF(AND(H24>='A - Contractor Summary'!$C$36,I24<='A - Contractor Summary'!$C$42),"Yes","No") -> Yes | K24: =VLOOKUP($D24,'C.1 - Rate Sheets'!B:F,2,FALSE) -> 0 | L24: =VLOOKUP($D24,'C.1 - Rate Sheets'!B:F,3,FALSE) -> 150 | M24: =VLOOKUP($D24,'C.1 - Rate Sheets'!B:F,4,FALSE) -> 0 | N24: =VLOOKUP($D24,'C.1 - Rate Sheets'!B:F,5,FALSE) -> 0 | S24: 16 | T24: 16 | U24: 16 | GB24: 48 | GE24: 48 | GF24: 0 | GG24: 7200 | GH24: 0 | GI24: 0 | GJ24: 7200 | GK24: 7200 | GL24: Yes | GM24: 0 | GN24: 0 | GO24: 0
B25: 7 | D25: MOT CREW | E25: Vendor No.04 | F25: Mot 7 | G25: 1242 | H25: 2018-10-11 | I25: 2018-10-13 | J25: =IF(AND(H25>='A - Contractor Summary'!$C$36,I25<='A - Contractor Summary'!$C$42),"Yes","No") -> Yes | K25: =VLOOKUP($D25,'C.1 - Rate Sheets'!B:F,2,FALSE) -> 0 | L25: =VLOOKUP($D25,'C.1 - Rate Sheets'!B:F,3,FALSE) -> 150 | M25: =VLOOKUP($D25,'C.1 - Rate Sheets'!B:F,4,FALSE) -> 0 | N25: =VLOOKUP($D25,'C.1 - Rate Sheets'!B:F,5,FALSE) -> 0 | S25: 16 | T25: 16 | U25: 16 | GB25: 48 | GE25: 48 | GF25: 0 | GG25: 7200 | GH25: 0 | GI25: 0 | GJ25: 7200 | GK25: 7200 | GL25: Yes | GM25: 0 | GN25: 0 | GO25: 0
B26: 8 | D26: MOT CREW | E26: Vendor No.04 | F26: Mot 8 | G26: 1242 | H26: 2018-10-11 | I26: 2018-10-13 | J26: =IF(AND(H26>='A - Contractor Summary'!$C$36,I26<='A - Contractor Summary'!$C$42),"Yes","No") -> Yes | K26: =VLOOKUP($D26,'C.1 - Rate Sheets'!B:F,2,FALSE) -> 0 | L26: =VLOOKUP($D26,'C.1 - Rate Sheets'!B:F,3,FALSE) -> 150 | M26: =VLOOKUP($D26,'C.1 - Rate Sheets'!B:F,4,FALSE) -> 0 | N26: =VLOOKUP($D26,'C.1 - Rate Sheets'!B:F,5,FALSE) -> 0 | S26: 16 | T26: 16 | U26: 16 | GB26: 48 | GE26: 48 | GF26: 0 | GG26: 7200 | GH26: 0 | GI26: 0 | GJ26: 7200 | GK26: 7200 | GL26: Yes | GM26: 0 | GN26: 0 | GO26: 0
B27: 9 | D27: MOT CREW | E27: Vendor No.04 | F27: Mot 9 | G27: 1242 | H27: 2018-10-11 | I27: 2018-10-13 | J27: =IF(AND(H27>='A - Contractor Summary'!$C$36,I27<='A - Contractor Summary'!$C$42),"Yes","No") -> Yes | K27: =VLOOKUP($D27,'C.1 - Rate Sheets'!B:F,2,FALSE) -> 0 | L27: =VLOOKUP($D27,'C.1 - Rate Sheets'!B:F,3,FALSE) -> 150 | M27: =VLOOKUP($D27,'C.1 - Rate Sheets'!B:F,4,FALSE) -> 0 | N27: =VLOOKUP($D27,'C.1 - Rate Sheets'!B:F,5,FALSE) -> 0 | S27: 16 | T27: 16 | U27: 16 | GB27: 48 | GE27: 48 | GF27: 0 | GG27: 7200 | GH27: 0 | GI27: 0 | GJ27: 7200 | GK27: 7200 | GL27: Yes | GM27: 0 | GN27: 0 | GO27: 0
B28: 10 | D28: MOT CREW | E28: Vendor No.04 | F28: Mot 10 | G28: 1242 | H28: 2018-10-11 | I28: 2018-10-13 | J28: =IF(AND(H28>='A - Contractor Summary'!$C$36,I28<='A - Contractor Summary'!$C$42),"Yes","No") -> Yes | K28: =VLOOKUP($D28,'C.1 - Rate Sheets'!B:F,2,FALSE) -> 0 | L28: =VLOOKUP($D28,'C.1 - Rate Sheets'!B:F,3,FALSE) -> 150 | M28: =VLOOKUP($D28,'C.1 - Rate Sheets'!B:F,4,FALSE) -> 0 | N28: =VLOOKUP($D28,'C.1 - Rate Sheets'!B:F,5,FALSE) -> 0 | S28: 16 | T28: 16 | U28: 16 | GB28: 48 | GE28: 48 | GF28: 0 | GG28: 7200 | GH28: 0 | GI28: 0 | GJ28: 7200 | GK28: 7200 | GL28: Yes | GM28: 0 | GN28: 0 | GO28: 0
B29: 11 | D29: MOT CREW | E29: Vendor No.04 | F29: Mot 11 | G29: 1242 | H29: =INDEX($O$16:$BK$16,MATCH(TRUE,INDEX((O29:BK29>0),0),0)) -> 2018-10-11 | I29: =LOOKUP(2,1/(1-(O29:BK29<=0)),$O$16:$BK$16) -> 2018-10-13 | J29: =IF(AND(H29>='A - Contractor Summary'!$C$36,I29<='A - Contractor Summary'!$C$42),"Yes","No") -> Yes | K29: =VLOOKUP($D29,'C.1 - Rate Sheets'!B:F,2,FALSE) -> 0 | L29: =VLOOKUP($D29,'C.1 - Rate Sheets'!B:F,3,FALSE) -> 150 | M29: =VLOOKUP($D29,'C.1 - Rate Sheets'!B:F,4,FALSE) -> 0 | N29: =VLOOKUP($D29,'C.1 - Rate Sheets'!B:F,5,FALSE) -> 0 | S29: 16 | T29: 16 | U29: 16 | GB29: 48 | GE29: 48 | GF29: 0 | GG29: 7200 | GH29: 0 | GI29: 0 | GJ29: 7200 | GK29: 7200 | GL29: Yes
B30: 12 | D30: MOT CREW | E30: Vendor No.04 | F30: Mot 12 | G30: 1242 | H30: 2018-10-11 | I30: 2018-10-13 | J30: =IF(AND(H30>='A - Contractor Summary'!$C$36,I30<='A - Contractor Summary'!$C$42),"Yes","No") -> Yes | K30: =VLOOKUP($D30,'C.1 - Rate Sheets'!B:F,2,FALSE) -> 0 | L30: =VLOOKUP($D30,'C.1 - Rate Sheets'!B:F,3,FALSE) -> 150 | M30: =VLOOKUP($D30,'C.1 - Rate Sheets'!B:F,4,FALSE) -> 0 | N30: =VLOOKUP($D30,'C.1 - Rate Sheets'!B:F,5,FALSE) -> 0 | S30: 16 | T30: 16 | U30: 16 | GB30: 48 | GE30: =SUM(GA30:GD30) -> 48 | GF30: 0 | GG30: 7200 | GH30: 0 | GI30: 0 | GJ30: 7200 | GK30: 7200 | GL30: Yes | GM30: 0 | GN30: 0 | GO30: 0
B31: 13 | D31: MOT CREW | E31: Vendor No.04 | F31: Mot 13 | G31: 1242 | H31: 2018-10-11 | I31: 2018-10-13 | J31: =IF(AND(H31>='A - Contractor Summary'!$C$36,I31<='A - Contractor Summary'!$C$42),"Yes","No") -> Yes | K31: =VLOOKUP($D31,'C.1 - Rate Sheets'!B:F,2,FALSE) -> 0 | L31: =VLOOKUP($D31,'C.1 - Rate Sheets'!B:F,3,FALSE) -> 150 | M31: =VLOOKUP($D31,'C.1 - Rate Sheets'!B:F,4,FALSE) -> 0 | N31: =VLOOKUP($D31,'C.1 - Rate Sheets'!B:F,5,FALSE) -> 0 | S31: 16 | T31: 16 | U31: 16 | GB31: 48 | GE31: 48 | GF31: 0 | GG31: 7200 | GH31: 0 | GI31: 0 | GJ31: 7200 | GK31: 7200 | GL31: Yes | GM31: 0 | GN31: 0 | GO31: 0
B32: 14 | D32: CLEAR CREW | E32: Vendor No.04 | F32: Clear 1 | G32: 1242 | H32: 2018-10-11 | I32: 2018-10-13 | J32: =IF(AND(H32>='A - Contractor Summary'!$C$36,I32<='A - Contractor Summary'!$C$42),"Yes","No") -> Yes | K32: =VLOOKUP($D32,'C.1 - Rate Sheets'!B:F,2,FALSE) -> 0 | L32: =VLOOKUP($D32,'C.1 - Rate Sheets'!B:F,3,FALSE) -> 200 | M32: =VLOOKUP($D32,'C.1 - Rate Sheets'!B:F,4,FALSE) -> 0 | N32: =VLOOKUP($D32,'C.1 - Rate Sheets'!B:F,5,FALSE) -> 0 | S32: 16 | T32: 16 | U32: 16 | GB32: 48 | GE32: 48 | GF32: 0 | GG32: 9600 | GH32: 0 | GI32: 0 | GJ32: 9600 | GK32: 9600 | GL32: Yes | GM32: 0 | GN32: 0 | GO32: 0
B33: 15 | D33: CLEAR CREW | E33: Vendor No.04 | F33: Clear 2 | G33: 1242 | H33: 2018-10-11 | I33: 2018-10-13 | J33: =IF(AND(H33>='A - Contractor Summary'!$C$36,I33<='A - Contractor Summary'!$C$42),"Yes","No") -> Yes | K33: =VLOOKUP($D33,'C.1 - Rate Sheets'!B:F,2,FALSE) -> 0 | L33: =VLOOKUP($D33,'C.1 - Rate Sheets'!B:F,3,FALSE) -> 200 | M33: =VLOOKUP($D33,'C.1 - Rate Sheets'!B:F,4,FALSE) -> 0 | N33: =VLOOKUP($D33,'C.1 - Rate Sheets'!B:F,5,FALSE) -> 0 | S33: 16 | T33: 16 | U33: 16 | GB33: 48 | GE33: 48 | GF33: 0 | GG33: 9600 | GH33: 0 | GI33: 0 | GJ33: 9600 | GK33: 9600 | GL33: Yes | GM33: 0 | GN33: 0 | GO33: 0
B34: 16 | D34: CLEAR CREW | E34: Vendor No.04 | F34: Clear 3 | G34: 1242 | H34: 2018-10-11 | I34: 2018-10-13 | J34: =IF(AND(H34>='A - Contractor Summary'!$C$36,I34<='A - Contractor Summary'!$C$42),"Yes","No") -> Yes | K34: =VLOOKUP($D34,'C.1 - Rate Sheets'!B:F,2,FALSE) -> 0 | L34: =VLOOKUP($D34,'C.1 - Rate Sheets'!B:F,3,FALSE) -> 200 | M34: =VLOOKUP($D34,'C.1 - Rate Sheets'!B:F,4,FALSE) -> 0 | N34: =VLOOKUP($D34,'C.1 - Rate Sheets'!B:F,5,FALSE) -> 0 | S34: 16 | T34: 16 | U34: 16 | GB34: 48 | GE34: 48 | GF34: 0 | GG34: 9600 | GH34: 0 | GI34: 0 | GJ34: 9600 | GK34: 9600 | GL34: Yes | GM34: 0 | GN34: 0 | GO34: 0
B35: 17 | D35: CLEAR CREW | E35: Vendor No.04 | F35: Clear 4 | G35: 1242 | H35: 2018-10-11 | I35: 2018-10-13 | J35: =IF(AND(H35>='A - Contractor Summary'!$C$36,I35<='A - Contractor Summary'!$C$42),"Yes","No") -> Yes | K35: =VLOOKUP($D35,'C.1 - Rate Sheets'!B:F,2,FALSE) -> 0 | L35: =VLOOKUP($D35,'C.1 - Rate Sheets'!B:F,3,FALSE) -> 200 | M35: =VLOOKUP($D35,'C.1 - Rate Sheets'!B:F,4,FALSE) -> 0 | N35: =VLOOKUP($D35,'C.1 - Rate Sheets'!B:F,5,FALSE) -> 0 | S35: 16 | T35: 16 | U35: 16 | GB35: 48 | GE35: 48 | GF35: 0 | GG35: 9600 | GH35: 0 | GI35: 0 | GJ35: 9600 | GK35: 9600 | GL35: Yes | GM35: 0 | GN35: 0 | GO35: 0
B36: 18 | D36: CLEAR CREW | E36: Vendor No.04 | F36: Clear 5 | G36: 1242 | H36: 2018-10-11 | I36: 2018-10-13 | J36: =IF(AND(H36>='A - Contractor Summary'!$C$36,I36<='A - Contractor Summary'!$C$42),"Yes","No") -> Yes | K36: =VLOOKUP($D36,'C.1 - Rate Sheets'!B:F,2,FALSE) -> 0 | L36: =VLOOKUP($D36,'C.1 - Rate Sheets'!B:F,3,FALSE) -> 200 | M36: =VLOOKUP($D36,'C.1 - Rate Sheets'!B:F,4,FALSE) -> 0 | N36: =VLOOKUP($D36,'C.1 - Rate Sheets'!B:F,5,FALSE) -> 0 | S36: 16 | T36: 16 | U36: 16 | GB36: 48 | GE36: 48 | GF36: 0 | GG36: 9600 | GH36: 0 | GI36: 0 | GJ36: 9600 | GK36: 9600 | GL36: Yes | GM36: 0 | GN36: 0 | GO36: 0
B37: 19 | D37: CLEAR CREW | E37: Vendor No.04 | F37: Clear 6 | G37: 1242 | H37: 2018-10-11 | I37: 2018-10-13 | J37: =IF(AND(H37>='A - Contractor Summary'!$C$36,I37<='A - Contractor Summary'!$C$42),"Yes","No") -> Yes | K37: =VLOOKUP($D37,'C.1 - Rate Sheets'!B:F,2,FALSE) -> 0 | L37: =VLOOKUP($D37,'C.1 - Rate Sheets'!B:F,3,FALSE) -> 200 | M37: =VLOOKUP($D37,'C.1 - Rate Sheets'!B:F,4,FALSE) -> 0 | N37: =VLOOKUP($D37,'C.1 - Rate Sheets'!B:F,5,FALSE) -> 0 | S37: 16 | T37: 16 | U37: 16 | GB37: 48 | GE37: 48 | GF37: 0 | GG37: 9600 | GH37: 0 | GI37: 0 | GJ37: 9600 | GK37: 9600 | GL37: Yes | GM37: 0 | GN37: 0 | GO37: 0
B38: 20 | D38: CLEAR CREW | E38: Vendor No.04 | F38: Clear 7 | G38: 1242 | H38: 2018-10-11 | I38: 2018-10-13 | J38: =IF(AND(H38>='A - Contractor Summary'!$C$36,I38<='A - Contractor Summary'!$C$42),"Yes","No") -> Yes | K38: =VLOOKUP($D38,'C.1 - Rate Sheets'!B:F,2,FALSE) -> 0 | L38: =VLOOKUP($D38,'C.1 - Rate Sheets'!B:F,3,FALSE) -> 200 | M38: =VLOOKUP($D38,'C.1 - Rate Sheets'!B:F,4,FALSE) -> 0 | N38: =VLOOKUP($D38,'C.1 - Rate Sheets'!B:F,5,FALSE) -> 0 | S38: 16 | T38: 16 | U38: 16 | GB38: 48 | GE38: 48 | GF38: 0 | GG38: 9600 | GH38: 0 | GI38: 0 | GJ38: 9600 | GK38: 9600 | GL38: Yes | GM38: 0 | GN38: 0 | GO38: 0
B39: 21 | D39: CLEAR CREW | E39: Vendor No.04 | F39: Clear 8 | G39: 1242 | H39: 2018-10-11 | I39: 2018-10-13 | J39: =IF(AND(H39>='A - Contractor Summary'!$C$36,I39<='A - Contractor Summary'!$C$42),"Yes","No") -> Yes | K39: =VLOOKUP($D39,'C.1 - Rate Sheets'!B:F,2,FALSE) -> 0 | L39: =VLOOKUP($D39,'C.1 - Rate Sheets'!B:F,3,FALSE) -> 200 | M39: =VLOOKUP($D39,'C.1 - Rate Sheets'!B:F,4,FALSE) -> 0 | N39: =VLOOKUP($D39,'C.1 - Rate Sheets'!B:F,5,FALSE) -> 0 | S39: 16 | T39: 16 | U39: 16 | GB39: 48 | GE39: 48 | GF39: 0 | GG39: 9600 | GH39: 0 | GI39: 0 | GJ39: 9600 | GK39: 9600 | GL39: Yes | GM39: 0 | GN39: 0 | GO39: 0
B40: 22 | D40: CLEAR CREW | E40: Vendor No.04 | F40: Clear 9 | G40: 1242 | H40: 2018-10-11 | I40: 2018-10-13 | J40: =IF(AND(H40>='A - Contractor Summary'!$C$36,I40<='A - Contractor Summary'!$C$42),"Yes","No") -> Yes | K40: =VLOOKUP($D40,'C.1 - Rate Sheets'!B:F,2,FALSE) -> 0 | L40: =VLOOKUP($D40,'C.1 - Rate Sheets'!B:F,3,FALSE) -> 200 | M40: =VLOOKUP($D40,'C.1 - Rate Sheets'!B:F,4,FALSE) -> 0 | N40: =VLOOKUP($D40,'C.1 - Rate Sheets'!B:F,5,FALSE) -> 0 | S40: 16 | T40: 16 | U40: 16 | GB40: 48 | GE40: 48 | GF40: 0 | GG40: 9600 | GH40: 0 | GI40: 0 | GJ40: 9600 | GK40: 9600 | GL40: Yes | GM40: 0 | GN40: 0 | GO40: 0
B41: 23 | D41: CLEAR CREW | E41: Vendor No.04 | F41: Clear 10 | G41: 1242 | H41: 2018-10-11 | I41: 2018-10-13 | J41: =IF(AND(H41>='A - Contractor Summary'!$C$36,I41<='A - Contractor Summary'!$C$42),"Yes","No") -> Yes | K41: =VLOOKUP($D41,'C.1 - Rate Sheets'!B:F,2,FALSE) -> 0 | L41: =VLOOKUP($D41,'C.1 - Rate Sheets'!B:F,3,FALSE) -> 200 | M41: =VLOOKUP($D41,'C.1 - Rate Sheets'!B:F,4,FALSE) -> 0 | N41: =VLOOKUP($D41,'C.1 - Rate Sheets'!B:F,5,FALSE) -> 0 | S41: 16 | T41: 16 | U41: 16 | GB41: 48 | GE41: 48 | GF41: 0 | GG41: 9600 | GH41: 0 | GI41: 0 | GJ41: 9600 | GK41: 9600 | GL41: Yes | GM41: 0 | GN41: 0 | GO41: 0
B42: 24 | D42: CLEAR CREW | E42: Vendor No.04 | F42: Clear 11 | G42: 1242 | H42: 2018-10-11 | I42: 2018-10-13 | J42: =IF(AND(H42>='A - Contractor Summary'!$C$36,I42<='A - Contractor Summary'!$C$42),"Yes","No") -> Yes | K42: =VLOOKUP($D42,'C.1 - Rate Sheets'!B:F,2,FALSE) -> 0 | L42: =VLOOKUP($D42,'C.1 - Rate Sheets'!B:F,3,FALSE) -> 200 | M42: =VLOOKUP($D42,'C.1 - Rate Sheets'!B:F,4,FALSE) -> 0 | N42: =VLOOKUP($D42,'C.1 - Rate Sheets'!B:F,5,FALSE) -> 0 | S42: 16 | T42: 16 | U42: 16 | GB42: 48 | GE42: 48 | GF42: 0 | GG42: 9600 | GH42: 0 | GI42: 0 | GJ42: 9600 | GK42: 9600 | GL42: Yes | GM42: 0 | GN42: 0 | GO42: 0
B43: 25 | D43: CLEAR CREW | E43: Vendor No.04 | F43: Clear 12 | G43: 1242 | H43: 2018-10-11 | I43: 2018-10-13 | J43: =IF(AND(H43>='A - Contractor Summary'!$C$36,I43<='A - Contractor Summary'!$C$42),"Yes","No") -> Yes | K43: =VLOOKUP($D43,'C.1 - Rate Sheets'!B:F,2,FALSE) -> 0 | L43: =VLOOKUP($D43,'C.1 - Rate Sheets'!B:F,3,FALSE) -> 200 | M43: =VLOOKUP($D43,'C.1 - Rate Sheets'!B:F,4,FALSE) -> 0 | N43: =VLOOKUP($D43,'C.1 - Rate Sheets'!B:F,5,FALSE) -> 0 | S43: 16 | T43: 16 | U43: 16 | GB43: 48 | GE43: 48 | GF43: 0 | GG43: 9600 | GH43: 0 | GI43: 0 | GJ43: 9600 | GK43: 9600 | GL43: Yes | GM43: 0 | GN43: 0 | GO43: 0
B44: 26 | D44: CLEAR CREW | E44: Vendor No.04 | F44: Clear 13 | G44: 1242 | H44: 2018-10-11 | I44: 2018-10-13 | J44: =IF(AND(H44>='A - Contractor Summary'!$C$36,I44<='A - Contractor Summary'!$C$42),"Yes","No") -> Yes | K44: =VLOOKUP($D44,'C.1 - Rate Sheets'!B:F,2,FALSE) -> 0 | L44: =VLOOKUP($D44,'C.1 - Rate Sheets'!B:F,3,FALSE) -> 200 | M44: =VLOOKUP($D44,'C.1 - Rate Sheets'!B:F,4,FALSE) -> 0 | N44: =VLOOKUP($D44,'C.1 - Rate Sheets'!B:F,5,FALSE) -> 0 | S44: 16 | T44: 16 | U44: 16 | GB44: 48 | GE44: 48 | GF44: 0 | GG44: 9600 | GH44: 0 | GI44: 0 | GJ44: 9600 | GK44: 9600 | GL44: Yes | GM44: 0 | GN44: 0 | GO44: 0
B45: 27 | D45: MOT CREW | E45: Vendor No.04 | F45: Mot 1 | G45: 1248 | H45: =INDEX($O$16:$BK$16,MATCH(TRUE,INDEX((O45:BK45>0),0),0)) -> 2018-10-14 | I45: =LOOKUP(2,1/(1-(O45:BK45<=0)),$O$16:$BK$16) -> 2018-10-20 | J45: =IF(AND(H45>='A - Contractor Summary'!$C$36,I45<='A - Contractor Summary'!$C$42),"Yes","No") -> Yes | K45: =VLOOKUP($D45,'C.1 - Rate Sheets'!B:F,2,FALSE) -> 0 | L45: =VLOOKUP($D45,'C.1 - Rate Sheets'!B:F,3,FALSE) -> 150 | M45: =VLOOKUP($D45,'C.1 - Rate Sheets'!B:F,4,FALSE) -> 0 | N45: =VLOOKUP($D45,'C.1 - Rate Sheets'!B:F,5,FALSE) -> 0 | V45: 16 | W45: 16 | X45: 16 | Y45: 16 | Z45: 16 | AA45: 16 | AB45: 16 | GB45: 112 | GE45: 112 | GF45: 0 | GG45: 16800 | GH45: 0 | GI45: 0 | GJ45: 16800 | GK45: 16800 | GL45: Yes | GM45: 0 | GN45: 0 | GO45: 0
B46: 28 | D46: MOT CREW | E46: Vendor No.04 | F46: Mot 2 | G46: 1248 | H46: 2018-10-14 | I46: 2018-10-20 | J46: =IF(AND(H46>='A - Contractor Summary'!$C$36,I46<='A - Contractor Summary'!$C$42),"Yes","No") -> Yes | K46: =VLOOKUP($D46,'C.1 - Rate Sheets'!B:F,2,FALSE) -> 0 | L46: =VLOOKUP($D46,'C.1 - Rate Sheets'!B:F,3,FALSE) -> 150 | M46: =VLOOKUP($D46,'C.1 - Rate Sheets'!B:F,4,FALSE) -> 0 | N46: =VLOOKUP($D46,'C.1 - Rate Sheets'!B:F,5,FALSE) -> 0 | V46: 16 | W46: 16 | X46: 16 | Y46: 16 | Z46: 16 | AA46: 16 | AB46: 16 | GB46: 112 | GE46: 112 | GF46: 0 | GG46: 16800 | GH46: 0 | GI46: 0 | GJ46: 16800 | GK46: 16800 | GL46: Yes | GM46: 0 | GN46: 0 | GO46: 0
B47: 29 | D47: MOT CREW | E47: Vendor No.04 | F47: Mot 3 | G47: 1248 | H47: 2018-10-14 | I47: 2018-10-20 | J47: =IF(AND(H47>='A - Contractor Summary'!$C$36,I47<='A - Contractor Summary'!$C$42),"Yes","No") -> Yes | K47: =VLOOKUP($D47,'C.1 - Rate Sheets'!B:F,2,FALSE) -> 0 | L47: =VLOOKUP($D47,'C.1 - Rate Sheets'!B:F,3,FALSE) -> 150 | M47: =VLOOKUP($D47,'C.1 - Rate Sheets'!B:F,4,FALSE) -> 0 | N47: =VLOOKUP($D47,'C.1 - Rate Sheets'!B:F,5,FALSE) -> 0 | V47: 16 | W47: 16 | X47: 16 | Y47: 16 | Z47: 16 | AA47: 16 | AB47: 16 | GB47: 112 | GE47: 112 | GF47: 0 | GG47: 16800 | GH47: 0 | GI47: 0 | GJ47: 16800 | GK47: 16800 | GL47: Yes | GM47: 0 | GN47: 0 | GO47: 0
B48: 30 | D48: MOT CREW | E48: Vendor No.04 | F48: Mot 4 | G48: 1248 | H48: 2018-10-14 | I48: 2018-10-20 | J48: =IF(AND(H48>='A - Contractor Summary'!$C$36,I48<='A - Contractor Summary'!$C$42),"Yes","No") -> Yes | K48: =VLOOKUP($D48,'C.1 - Rate Sheets'!B:F,2,FALSE) -> 0 | L48: =VLOOKUP($D48,'C.1 - Rate Sheets'!B:F,3,FALSE) -> 150 | M48: =VLOOKUP($D48,'C.1 - Rate Sheets'!B:F,4,FALSE) -> 0 | N48: =VLOOKUP($D48,'C.1 - Rate Sheets'!B:F,5,FALSE) -> 0 | V48: 16 | W48: 16 | X48: 16 | Y48: 16 | Z48: 16 | AA48: 16 | AB48: 16 | GB48: 112 | GE48: 112 | GF48: 0 | GG48: 16800 | GH48: 0 | GI48: 0 | GJ48: 16800 | GK48: 16800 | GL48: Yes | GM48: 0 | GN48: 0 | GO48: 0
B49: 31 | D49: MOT CREW | E49: Vendor No.04 | F49: Mot 5 | G49: 1248 | H49: 2018-10-14 | I49: 2018-10-20 | J49: =IF(AND(H49>='A - Contractor Summary'!$C$36,I49<='A - Contractor Summary'!$C$42),"Yes","No") -> Yes | K49: =VLOOKUP($D49,'C.1 - Rate Sheets'!B:F,2,FALSE) -> 0 | L49: =VLOOKUP($D49,'C.1 - Rate Sheets'!B:F,3,FALSE) -> 150 | M49: =VLOOKUP($D49,'C.1 - Rate Sheets'!B:F,4,FALSE) -> 0 | N49: =VLOOKUP($D49,'C.1 - Rate Sheets'!B:F,5,FALSE) -> 0 | V49: 16 | W49: 16 | X49: 16 | Y49: 16 | Z49: 16 | AA49: 16 | AB49: 16 | GB49: 112 | GE49: 112 | GF49: 0 | GG49: 16800 | GH49: 0 | GI49: 0 | GJ49: 16800 | GK49: 16800 | GL49: Yes | GM49: 0 | GN49: 0 | GO49: 0
B50: 32 | D50: MOT CREW | E50: Vendor No.04 | F50: Mot 6 | G50: 1248 | H50: 2018-10-14 | I50: 2018-10-20 | J50: =IF(AND(H50>='A - Contractor Summary'!$C$36,I50<='A - Contractor Summary'!$C$42),"Yes","No") -> Yes | K50: =VLOOKUP($D50,'C.1 - Rate Sheets'!B:F,2,FALSE) -> 0 | L50: =VLOOKUP($D50,'C.1 - Rate Sheets'!B:F,3,FALSE) -> 150 | M50: =VLOOKUP($D50,'C.1 - Rate Sheets'!B:F,4,FALSE) -> 0 | N50: =VLOOKUP($D50,'C.1 - Rate Sheets'!B:F,5,FALSE) -> 0 | V50: 16 | W50: 16 | X50: 16 | Y50: 16 | Z50: 16 | AA50: 16 | AB50: 16 | GB50: 112 | GE50: 112 | GF50: 0 | GG50: 16800 | GH50: 0 | GI50: 0 | GJ50: 16800 | GK50: 16800 | GL50: Yes
B51: 33 | D51: MOT CREW | E51: Vendor No.04 | F51: Mot 7 | G51: 1248 | H51: 2018-10-14 | I51: 2018-10-20 | J51: =IF(AND(H51>='A - Contractor Summary'!$C$36,I51<='A - Contractor Summary'!$C$42),"Yes","No") -> Yes | K51: =VLOOKUP($D51,'C.1 - Rate Sheets'!B:F,2,FALSE) -> 0 | L51: =VLOOKUP($D51,'C.1 - Rate Sheets'!B:F,3,FALSE) -> 150 | M51: =VLOOKUP($D51,'C.1 - Rate Sheets'!B:F,4,FALSE) -> 0 | N51: =VLOOKUP($D51,'C.1 - Rate Sheets'!B:F,5,FALSE) -> 0 | V51: 16 | W51: 16 | X51: 16 | Y51: 16 | Z51: 16 | AA51: 16 | AB51: 16 | GB51: 112 | GE51: 112 | GF51: 0 | GG51: 16800 | GH51: 0 | GI51: 0 | GJ51: 16800 | GK51: 16800 | GL51: Yes | GM51: 0 | GN51: 0 | GO51: 0
B52: 34 | D52: MOT CREW | E52: Vendor No.04 | F52: Mot 8 | G52: 1248 | H52: 2018-10-14 | I52: 2018-10-20 | J52: =IF(AND(H52>='A - Contractor Summary'!$C$36,I52<='A - Contractor Summary'!$C$42),"Yes","No") -> Yes | K52: =VLOOKUP($D52,'C.1 - Rate Sheets'!B:F,2,FALSE) -> 0 | L52: =VLOOKUP($D52,'C.1 - Rate Sheets'!B:F,3,FALSE) -> 150 | M52: =VLOOKUP($D52,'C.1 - Rate Sheets'!B:F,4,FALSE) -> 0 | N52: =VLOOKUP($D52,'C.1 - Rate Sheets'!B:F,5,FALSE) -> 0 | V52: 16 | W52: 16 | X52: 16 | Y52: 16 | Z52: 16 | AA52: 16 | AB52: 16 | GB52: 112 | GE52: 112 | GF52: 0 | GG52: 16800 | GH52: 0 | GI52: 0 | GJ52: 16800 | GK52: 16800 | GL52: Yes | GM52: 0 | GN52: 0 | GO52: 0
B53: 35 | D53: MOT CREW | E53: Vendor No.04 | F53: Mot 9 | G53: 1248 | H53: 2018-10-14 | I53: 2018-10-20 | J53: =IF(AND(H53>='A - Contractor Summary'!$C$36,I53<='A - Contractor Summary'!$C$42),"Yes","No") -> Yes | K53: =VLOOKUP($D53,'C.1 - Rate Sheets'!B:F,2,FALSE) -> 0 | L53: =VLOOKUP($D53,'C.1 - Rate Sheets'!B:F,3,FALSE) -> 150 | M53: =VLOOKUP($D53,'C.1 - Rate Sheets'!B:F,4,FALSE) -> 0 | N53: =VLOOKUP($D53,'C.1 - Rate Sheets'!B:F,5,FALSE) -> 0 | V53: 16 | W53: 16 | X53: 16 | Y53: 16 | Z53: 16 | AA53: 16 | AB53: 16 | GB53: 112 | GE53: 112 | GF53: 0 | GG53: 16800 | GH53: 0 | GI53: 0 | GJ53: 16800 | GK53: 16800 | GL53: Yes | GM53: 0 | GN53: 0 | GO53: 0
B54: 36 | D54: MOT CREW | E54: Vendor No.04 | F54: Mot 10 | G54: 1248 | H54: 2018-10-14 | I54: 2018-10-20 | J54: =IF(AND(H54>='A - Contractor Summary'!$C$36,I54<='A - Contractor Summary'!$C$42),"Yes","No") -> Yes | K54: =VLOOKUP($D54,'C.1 - Rate Sheets'!B:F,2,FALSE) -> 0 | L54: =VLOOKUP($D54,'C.1 - Rate Sheets'!B:F,3,FALSE) -> 150 | M54: =VLOOKUP($D54,'C.1 - Rate Sheets'!B:F,4,FALSE) -> 0 | N54: =VLOOKUP($D54,'C.1 - Rate Sheets'!B:F,5,FALSE) -> 0 | V54: 16 | W54: 16 | X54: 16 | Y54: 16 | Z54: 16 | AA54: 16 | AB54: 16 | GB54: 112 | GE54: 112 | GF54: 0 | GG54: 16800 | GH54: 0 | GI54: 0 | GJ54: 16800 | GK54: 16800 | GL54: Yes | GM54: 0 | GN54: 0 | GO54: 0
B55: 37 | D55: MOT CREW | E55: Vendor No.04 | F55: Mot 11 | G55: 1248 | H55: 2018-10-14 | I55: 2018-10-20 | J55: =IF(AND(H55>='A - Contractor Summary'!$C$36,I55<='A - Contractor Summary'!$C$42),"Yes","No") -> Yes | K55: =VLOOKUP($D55,'C.1 - Rate Sheets'!B:F,2,FALSE) -> 0 | L55: =VLOOKUP($D55,'C.1 - Rate Sheets'!B:F,3,FALSE) -> 150 | M55: =VLOOKUP($D55,'C.1 - Rate Sheets'!B:F,4,FALSE) -> 0 | N55: =VLOOKUP($D55,'C.1 - Rate Sheets'!B:F,5,FALSE) -> 0 | V55: 16 | W55: 16 | X55: 16 | Y55: 16 | Z55: 16 | AA55: 16 | AB55: 16 | GB55: 112 | GE55: 112 | GF55: 0 | GG55: 16800 | GH55: 0 | GI55: 0 | GJ55: 16800 | GK55: 16800 | GL55: Yes | GM55: 0 | GN55: 0 | GO55: 0
B56: 38 | D56: MOT CREW | E56: Vendor No.04 | F56: Mot 12 | G56: 1248 | H56: 2018-10-14 | I56: 2018-10-20 | J56: =IF(AND(H56>='A - Contractor Summary'!$C$36,I56<='A - Contractor Summary'!$C$42),"Yes","No") -> Yes | K56: =VLOOKUP($D56,'C.1 - Rate Sheets'!B:F,2,FALSE) -> 0 | L56: =VLOOKUP($D56,'C.1 - Rate Sheets'!B:F,3,FALSE) -> 150 | M56: =VLOOKUP($D56,'C.1 - Rate Sheets'!B:F,4,FALSE) -> 0 | N56: =VLOOKUP($D56,'C.1 - Rate Sheets'!B:F,5,FALSE) -> 0 | V56: 16 | W56: 16 | X56: 16 | Y56: 16 | Z56: 16 | AA56: 16 | AB56: 16 | GB56: 112 | GE56: 112 | GF56: 0 | GG56: 16800 | GH56: 0 | GI56: 0 | GJ56: 16800 | GK56: 16800 | GL56: Yes | GM56: 0 | GN56: 0 | GO56: 0
B57: 39 | D57: MOT CREW | E57: Vendor No.04 | F57: Mot 13 | G57: 1248 | H57: 2018-10-14 | I57: 2018-10-20 | J57: =IF(AND(H57>='A - Contractor Summary'!$C$36,I57<='A - Contractor Summary'!$C$42),"Yes","No") -> Yes | K57: =VLOOKUP($D57,'C.1 - Rate Sheets'!B:F,2,FALSE) -> 0 | L57: =VLOOKUP($D57,'C.1 - Rate Sheets'!B:F,3,FALSE) -> 150 | M57: =VLOOKUP($D57,'C.1 - Rate Sheets'!B:F,4,FALSE) -> 0 | N57: =VLOOKUP($D57,'C.1 - Rate Sheets'!B:F,5,FALSE) -> 0 | V57: 16 | W57: 16 | X57: 16 | Y57: 16 | Z57: 16 | AA57: 16 | AB57: 16 | GB57: 112 | GE57: 112 | GF57: 0 | GG57: 16800 | GH57: 0 | GI57: 0 | GJ57: 16800 | GK57: 16800 | GL57: Yes | GM57: 0 | GN57: 0 | GO57: 0
B58: 40 | D58: MOT CREW | E58: Vendor No.04 | F58: Mot 14 | G58: 1248 | H58: 2018-10-14 | I58: 2018-10-20 | J58: =IF(AND(H58>='A - Contractor Summary'!$C$36,I58<='A - Contractor Summary'!$C$42),"Yes","No") -> Yes | K58: =VLOOKUP($D58,'C.1 - Rate Sheets'!B:F,2,FALSE) -> 0 | L58: =VLOOKUP($D58,'C.1 - Rate Sheets'!B:F,3,FALSE) -> 150 | M58: =VLOOKUP($D58,'C.1 - Rate Sheets'!B:F,4,FALSE) -> 0 | N58: =VLOOKUP($D58,'C.1 - Rate Sheets'!B:F,5,FALSE) -> 0 | V58: 16 | W58: 16 | Y58: 16 | Z58: 16 | AA58: 16 | AB58: 16 | GB58: 96 | GE58: 96 | GF58: 0 | GG58: 14400 | GH58: 0 | GI58: 0 | GJ58: 14400 | GK58: 14400 | GL58: Yes | GM58: 0 | GN58: 0 | GO58: 0
B59: 41 | D59: MOT CREW | E59: Vendor No.04 | F59: Mot 15 | G59: 1248 | H59: 2018-10-14 | I59: 2018-10-20 | J59: =IF(AND(H59>='A - Contractor Summary'!$C$36,I59<='A - Contractor Summary'!$C$42),"Yes","No") -> Yes | K59: =VLOOKUP($D59,'C.1 - Rate Sheets'!B:F,2,FALSE) -> 0 | L59: =VLOOKUP($D59,'C.1 - Rate Sheets'!B:F,3,FALSE) -> 150 | M59: =VLOOKUP($D59,'C.1 - Rate Sheets'!B:F,4,FALSE) -> 0 | N59: =VLOOKUP($D59,'C.1 - Rate Sheets'!B:F,5,FALSE) -> 0 | V59: 16 | W59: 16 | Y59: 16 | Z59: 16 | AA59: 16 | AB59: 16 | GB59: 96 | GE59: 96 | GF59: 0 | GG59: 14400 | GH59: 0 | GI59: 0 | GJ59: 14400 | GK59: 14400 | GL59: Yes | GM59: 0 | GN59: 0 | GO59: 0
B60: 42 | D60: MOT CREW | E60: Vendor No.04 | F60: Mot 16 | G60: 1248 | H60: 2018-10-14 | I60: 2018-10-20 | J60: =IF(AND(H60>='A - Contractor Summary'!$C$36,I60<='A - Contractor Summary'!$C$42),"Yes","No") -> Yes | K60: =VLOOKUP($D60,'C.1 - Rate Sheets'!B:F,2,FALSE) -> 0 | L60: =VLOOKUP($D60,'C.1 - Rate Sheets'!B:F,3,FALSE) -> 150 | M60: =VLOOKUP($D60,'C.1 - Rate Sheets'!B:F,4,FALSE) -> 0 | N60: =VLOOKUP($D60,'C.1 - Rate Sheets'!B:F,5,FALSE) -> 0 | V60: 16 | W60: 16 | Y60: 16 | Z60: 16 | AA60: 16 | AB60: 16 | GB60: 96 | GE60: 96 | GF60: 0 | GG60: 14400 | GH60: 0 | GI60: 0 | GJ60: 14400 | GK60: 14400 | GL60: Yes | GM60: 0 | GN60: 0 | GO60: 0
B61: 43 | D61: MOT CREW | E61: Vendor No.04 | F61: Mot 17 | G61: 1248 | H61: 2018-10-14 | I61: 2018-10-20 | J61: =IF(AND(H61>='A - Contractor Summary'!$C$36,I61<='A - Contractor Summary'!$C$42),"Yes","No") -> Yes | K61: =VLOOKUP($D61,'C.1 - Rate Sheets'!B:F,2,FALSE) -> 0 | L61: =VLOOKUP($D61,'C.1 - Rate Sheets'!B:F,3,FALSE) -> 150 | M61: =VLOOKUP($D61,'C.1 - Rate Sheets'!B:F,4,FALSE) -> 0 | N61: =VLOOKUP($D61,'C.1 - Rate Sheets'!B:F,5,FALSE) -> 0 | V61: 16 | W61: 16 | Y61: 16 | Z61: 16 | AA61: 16 | AB61: 16 | GB61: 96 | GE61: 96 | GF61: 0 | GG61: 14400 | GH61: 0 | GI61: 0 | GJ61: 14400 | GK61: 14400 | GL61: Yes | GM61: 0 | GN61: 0 | GO61: 0
B62: 44 | D62: MOT CREW | E62: Vendor No.04 | F62: Mot 18 | G62: 1248 | H62: 2018-10-14 | I62: 2018-10-20 | J62: =IF(AND(H62>='A - Contractor Summary'!$C$36,I62<='A - Contractor Summary'!$C$42),"Yes","No") -> Yes | K62: =VLOOKUP($D62,'C.1 - Rate Sheets'!B:F,2,FALSE) -> 0 | L62: =VLOOKUP($D62,'C.1 - Rate Sheets'!B:F,3,FALSE) -> 150 | M62: =VLOOKUP($D62,'C.1 - Rate Sheets'!B:F,4,FALSE) -> 0 | N62: =VLOOKUP($D62,'C.1 - Rate Sheets'!B:F,5,FALSE) -> 0 | V62: 16 | W62: 16 | Y62: 16 | Z62: 16 | AA62: 16 | AB62: 16 | GB62: 96 | GE62: 96 | GF62: 0 | GG62: 14400 | GH62: 0 | GI62: 0 | GJ62: 14400 | GK62: 14400 | GL62: Yes | GM62: 0 | GN62: 0 | GO62: 0
B63: 45 | D63: MOT CREW | E63: Vendor No.04 | F63: Mot 19 | G63: 1248 | H63: 2018-10-17 | I63: 2018-10-20 | J63: =IF(AND(H63>='A - Contractor Summary'!$C$36,I63<='A - Contractor Summary'!$C$42),"Yes","No") -> Yes | K63: =VLOOKUP($D63,'C.1 - Rate Sheets'!B:F,2,FALSE) -> 0 | L63: =VLOOKUP($D63,'C.1 - Rate Sheets'!B:F,3,FALSE) -> 150 | M63: =VLOOKUP($D63,'C.1 - Rate Sheets'!B:F,4,FALSE) -> 0 | N63: =VLOOKUP($D63,'C.1 - Rate Sheets'!B:F,5,FALSE) -> 0 | Y63: 16 | Z63: 16 | AA63: 16 | AB63: 16 | GB63: 64 | GE63: 64 | GF63: 0 | GG63: 9600 | GH63: 0 | GI63: 0 | GJ63: 9600 | GK63: 9600 | GL63: Yes | GM63: 0 | GN63: 0 | GO63: 0
B64: 46 | D64: MOT CREW | E64: Vendor No.04 | F64: Mot 20 | G64: 1248 | H64: 2018-10-17 | I64: 2018-10-20 | J64: =IF(AND(H64>='A - Contractor Summary'!$C$36,I64<='A - Contractor Summary'!$C$42),"Yes","No") -> Yes | K64: =VLOOKUP($D64,'C.1 - Rate Sheets'!B:F,2,FALSE) -> 0 | L64: =VLOOKUP($D64,'C.1 - Rate Sheets'!B:F,3,FALSE) -> 150 | M64: =VLOOKUP($D64,'C.1 - Rate Sheets'!B:F,4,FALSE) -> 0 | N64: =VLOOKUP($D64,'C.1 - Rate Sheets'!B:F,5,FALSE) -> 0 | Y64: 16 | Z64: 16 | AA64: 16 | AB64: 16 | GB64: 64 | GE64: 64 | GF64: 0 | GG64: 9600 | GH64: 0 | GI64: 0 | GJ64: 9600 | GK64: 9600 | GL64: Yes | GM64: 0 | GN64: 0 | GO64: 0
B65: 47 | D65: MOT CREW | E65: Vendor No.04 | F65: Mot 21 | G65: 1248 | H65: 2018-10-17 | I65: 2018-10-20 | J65: =IF(AND(H65>='A - Contractor Summary'!$C$36,I65<='A - Contractor Summary'!$C$42),"Yes","No") -> Yes | K65: =VLOOKUP($D65,'C.1 - Rate Sheets'!B:F,2,FALSE) -> 0 | L65: =VLOOKUP($D65,'C.1 - Rate Sheets'!B:F,3,FALSE) -> 150 | M65: =VLOOKUP($D65,'C.1 - Rate Sheets'!B:F,4,FALSE) -> 0 | N65: =VLOOKUP($D65,'C.1 - Rate Sheets'!B:F,5,FALSE) -> 0 | Y65: 16 | Z65: 16 | AA65: 16 | AB65: 16 | GB65: 64 | GE65: 64 | GF65: 0 | GG65: 9600 | GH65: 0 | GI65: 0 | GJ65: 9600 | GK65: 9600 | GL65: Yes | GM65: 0 | GN65: 0 | GO65: 0
B66: 48 | D66: MOT CREW | E66: Vendor No.04 | F66: Mot 22 | G66: 1248 | H66: 2018-10-17 | I66: 2018-10-20 | J66: =IF(AND(H66>='A - Contractor Summary'!$C$36,I66<='A - Contractor Summary'!$C$42),"Yes","No") -> Yes | K66: =VLOOKUP($D66,'C.1 - Rate Sheets'!B:F,2,FALSE) -> 0 | L66: =VLOOKUP($D66,'C.1 - Rate Sheets'!B:F,3,FALSE) -> 150 | M66: =VLOOKUP($D66,'C.1 - Rate Sheets'!B:F,4,FALSE) -> 0 | N66: =VLOOKUP($D66,'C.1 - Rate Sheets'!B:F,5,FALSE) -> 0 | Y66: 16 | Z66: 16 | AA66: 16 | AB66: 16 | GB66: 64 | GE66: 64 | GF66: 0 | GG66: 9600 | GH66: 0 | GI66: 0 | GJ66: 9600 | GK66: 9600 | GL66: Yes | GM66: 0 | GN66: 0 | GO66: 0
B67: 49 | D67: MOT CREW | E67: Vendor No.04 | F67: Mot 23 | G67: 1248 | H67: 2018-10-19 | I67: 2018-10-20 | J67: =IF(AND(H67>='A - Contractor Summary'!$C$36,I67<='A - Contractor Summary'!$C$42),"Yes","No") -> Yes | K67: =VLOOKUP($D67,'C.1 - Rate Sheets'!B:F,2,FALSE) -> 0 | L67: =VLOOKUP($D67,'C.1 - Rate Sheets'!B:F,3,FALSE) -> 150 | M67: =VLOOKUP($D67,'C.1 - Rate Sheets'!B:F,4,FALSE) -> 0 | N67: =VLOOKUP($D67,'C.1 - Rate Sheets'!B:F,5,FALSE) -> 0 | AA67: 16 | AB67: 16 | GB67: 32 | GE67: 32 | GF67: 0 | GG67: 4800 | GH67: 0 | GI67: 0 | GJ67: 4800 | GK67: 4800 | GL67: Yes | GM67: 0 | GN67: 0 | GO67: 0
B68: 50 | D68: MOT CREW | E68: Vendor No.04 | F68: Mot 24 | G68: 1248 | H68: 2018-10-19 | I68: 2018-10-20 | J68: =IF(AND(H68>='A - Contractor Summary'!$C$36,I68<='A - Contractor Summary'!$C$42),"Yes","No") -> Yes | K68: =VLOOKUP($D68,'C.1 - Rate Sheets'!B:F,2,FALSE) -> 0 | L68: =VLOOKUP($D68,'C.1 - Rate Sheets'!B:F,3,FALSE) -> 150 | M68: =VLOOKUP($D68,'C.1 - Rate Sheets'!B:F,4,FALSE) -> 0 | N68: =VLOOKUP($D68,'C.1 - Rate Sheets'!B:F,5,FALSE) -> 0 | AA68: 16 | AB68: 16 | GB68: 32 | GE68: 32 | GF68: 0 | GG68: 4800 | GH68: 0 | GI68: 0 | GJ68: 4800 | GK68: 4800 | GL68: Yes | GM68: 0 | GN68: 0 | GO68: 0
B69: 51 | D69: MOT CREW | E69: Vendor No.04 | F69: Mot 25 | G69: 1248 | H69: 2018-10-19 | I69: 2018-10-20 | J69: =IF(AND(H69>='A - Contractor Summary'!$C$36,I69<='A - Contractor Summary'!$C$42),"Yes","No") -> Yes | K69: =VLOOKUP($D69,'C.1 - Rate Sheets'!B:F,2,FALSE) -> 0 | L69: =VLOOKUP($D69,'C.1 - Rate Sheets'!B:F,3,FALSE) -> 150 | M69: =VLOOKUP($D69,'C.1 - Rate Sheets'!B:F,4,FALSE) -> 0 | N69: =VLOOKUP($D69,'C.1 - Rate Sheets'!B:F,5,FALSE) -> 0 | AA69: 16 | AB69: 16 | GB69: 32 | GE69: 32 | GF69: 0 | GG69: 4800 | GH69: 0 | GI69: 0 | GJ69: 4800 | GK69: 4800 | GL69: Yes | GM69: 0 | GN69: 0 | GO69: 0
B70: 52 | D70: MOT CREW | E70: Vendor No.04 | F70: Mot 26 | G70: 1248 | H70: 2018-10-19 | I70: 2018-10-20 | J70: =IF(AND(H70>='A - Contractor Summary'!$C$36,I70<='A - Contractor Summary'!$C$42),"Yes","No") -> Yes | K70: =VLOOKUP($D70,'C.1 - Rate Sheets'!B:F,2,FALSE) -> 0 | L70: =VLOOKUP($D70,'C.1 - Rate Sheets'!B:F,3,FALSE) -> 150 | M70: =VLOOKUP($D70,'C.1 - Rate Sheets'!B:F,4,FALSE) -> 0 | N70: =VLOOKUP($D70,'C.1 - Rate Sheets'!B:F,5,FALSE) -> 0 | AA70: 16 | AB70: 16 | GB70: 32 | GE70: 32 | GF70: 0 | GG70: 4800 | GH70: 0 | GI70: 0 | GJ70: 4800 | GK70: 4800 | GL70: Yes | GM70: 0 | GN70: 0 | GO70: 0
B71: 53 | D71: MOT CREW | E71: Vendor No.04 | F71: Mot 27 | G71: 1248 | H71: =INDEX($O$16:$BK$16,MATCH(TRUE,INDEX((O71:BK71>0),0),0)) -> 2018-10-19 | I71: =LOOKUP(2,1/(1-(O71:BK71<=0)),$O$16:$BK$16) -> 2018-10-20 | J71: =IF(AND(H71>='A - Contractor Summary'!$C$36,I71<='A - Contractor Summary'!$C$42),"Yes","No") -> Yes | K71: =VLOOKUP($D71,'C.1 - Rate Sheets'!B:F,2,FALSE) -> 0 | L71: =VLOOKUP($D71,'C.1 - Rate Sheets'!B:F,3,FALSE) -> 150 | M71: =VLOOKUP($D71,'C.1 - Rate Sheets'!B:F,4,FALSE) -> 0 | N71: =VLOOKUP($D71,'C.1 - Rate Sheets'!B:F,5,FALSE) -> 0 | AA71: 16 | AB71: 16 | GB71: 32 | GE71: 32 | GF71: 0 | GG71: 4800 | GH71: 0 | GI71: 0 | GJ71: 4800 | GK71: 4800 | GL71: Yes
B72: 54 | D72: MOT CREW | E72: Vendor No.04 | F72: Mot 28 | G72: 1248 | H72: 2018-10-19 | I72: 2018-10-20 | J72: =IF(AND(H72>='A - Contractor Summary'!$C$36,I72<='A - Contractor Summary'!$C$42),"Yes","No") -> Yes | K72: =VLOOKUP($D72,'C.1 - Rate Sheets'!B:F,2,FALSE) -> 0 | L72: =VLOOKUP($D72,'C.1 - Rate Sheets'!B:F,3,FALSE) -> 150 | M72: =VLOOKUP($D72,'C.1 - Rate Sheets'!B:F,4,FALSE) -> 0 | N72: =VLOOKUP($D72,'C.1 - Rate Sheets'!B:F,5,FALSE) -> 0 | AA72: 16 | AB72: 16 | GB72: 32 | GE72: 32 | GF72: 0 | GG72: 4800 | GH72: 0 | GI72: 0 | GJ72: 4800 | GK72: 4800 | GL72: Yes | GM72: 0 | GN72: 0 | GO72: 0
B73: 55 | D73: MOT CREW | E73: Vendor No.04 | F73: Mot 29 | G73: 1248 | H73: 2018-10-20 | I73: 2018-10-20 | J73: =IF(AND(H73>='A - Contractor Summary'!$C$36,I73<='A - Contractor Summary'!$C$42),"Yes","No") -> Yes | K73: =VLOOKUP($D73,'C.1 - Rate Sheets'!B:F,2,FALSE) -> 0 | L73: =VLOOKUP($D73,'C.1 - Rate Sheets'!B:F,3,FALSE) -> 150 | M73: =VLOOKUP($D73,'C.1 - Rate Sheets'!B:F,4,FALSE) -> 0 | N73: =VLOOKUP($D73,'C.1 - Rate Sheets'!B:F,5,FALSE) -> 0 | AB73: 16 | GB73: 16 | GE73: 16 | GF73: 0 | GG73: 2400 | GH73: 0 | GI73: 0 | GJ73: 2400 | GK73: 2400 | GL73: Yes | GM73: 0 | GN73: 0 | GO73: 0
B74: 56 | D74: MOT CREW | E74: Vendor No.04 | F74: Mot 30 | G74: 1248 | H74: 2018-10-20 | I74: 2018-10-20 | J74: =IF(AND(H74>='A - Contractor Summary'!$C$36,I74<='A - Contractor Summary'!$C$42),"Yes","No") -> Yes | K74: =VLOOKUP($D74,'C.1 - Rate Sheets'!B:F,2,FALSE) -> 0 | L74: =VLOOKUP($D74,'C.1 - Rate Sheets'!B:F,3,FALSE) -> 150 | M74: =VLOOKUP($D74,'C.1 - Rate Sheets'!B:F,4,FALSE) -> 0 | N74: =VLOOKUP($D74,'C.1 - Rate Sheets'!B:F,5,FALSE) -> 0 | AB74: 16 | GB74: 16 | GE74: 16 | GF74: 0 | GG74: 2400 | GH74: 0 | GI74: 0 | GJ74: 2400 | GK74: 2400 | GL74: Yes | GM74: 0 | GN74: 0 | GO74: 0
B75: 57 | D75: MOT CREW | E75: Vendor No.04 | F75: Mot 31 | G75: 1248 | H75: 2018-10-20 | I75: 2018-10-20 | J75: =IF(AND(H75>='A - Contractor Summary'!$C$36,I75<='A - Contractor Summary'!$C$42),"Yes","No") -> Yes | K75: =VLOOKUP($D75,'C.1 - Rate Sheets'!B:F,2,FALSE) -> 0 | L75: =VLOOKUP($D75,'C.1 - Rate Sheets'!B:F,3,FALSE) -> 150 | M75: =VLOOKUP($D75,'C.1 - Rate Sheets'!B:F,4,FALSE) -> 0 | N75: =VLOOKUP($D75,'C.1 - Rate Sheets'!B:F,5,FALSE) -> 0 | AB75: 16 | GB75: 16 | GE75: 16 | GF75: 0 | GG75: 2400 | GH75: 0 | GI75: 0 | GJ75: 2400 | GK75: 2400 | GL75: Yes | GM75: 0 | GN75: 0 | GO75: 0
B76: 58 | D76: MOT CREW | E76: Vendor No.04 | F76: Mot 32 | G76: 1248 | H76: 2018-10-20 | I76: 2018-10-20 | J76: =IF(AND(H76>='A - Contractor Summary'!$C$36,I76<='A - Contractor Summary'!$C$42),"Yes","No") -> Yes | K76: =VLOOKUP($D76,'C.1 - Rate Sheets'!B:F,2,FALSE) -> 0 | L76: =VLOOKUP($D76,'C.1 - Rate Sheets'!B:F,3,FALSE) -> 150 | M76: =VLOOKUP($D76,'C.1 - Rate Sheets'!B:F,4,FALSE) -> 0 | N76: =VLOOKUP($D76,'C.1 - Rate Sheets'!B:F,5,FALSE) -> 0 | AB76: 16 | GB76: 16 | GE76: 16 | GF76: 0 | GG76: 2400 | GH76: 0 | GI76: 0 | GJ76: 2400 | GK76: 2400 | GL76: Yes | GM76: 0 | GN76: 0 | GO76: 0
B77: 59 | D77: MOT CREW | E77: Vendor No.04 | F77: Mot 33 | G77: 1248 | H77: 2018-10-20 | I77: 2018-10-20 | J77: =IF(AND(H77>='A - Contractor Summary'!$C$36,I77<='A - Contractor Summary'!$C$42),"Yes","No") -> Yes | K77: =VLOOKUP($D77,'C.1 - Rate Sheets'!B:F,2,FALSE) -> 0 | L77: =VLOOKUP($D77,'C.1 - Rate Sheets'!B:F,3,FALSE) -> 150 | M77: =VLOOKUP($D77,'C.1 - Rate Sheets'!B:F,4,FALSE) -> 0 | N77: =VLOOKUP($D77,'C.1 - Rate Sheets'!B:F,5,FALSE) -> 0 | AB77: 16 | GB77: 16 | GE77: 16 | GF77: 0 | GG77: 2400 | GH77: 0 | GI77: 0 | GJ77: 2400 | GK77: 2400 | GL77: Yes | GM77: 0 | GN77: 0 | GO77: 0
B78: 60 | D78: MOT CREW | E78: Vendor No.04 | F78: Mot 34 | G78: 1248 | H78: 2018-10-20 | I78: 2018-10-20 | J78: =IF(AND(H78>='A - Contractor Summary'!$C$36,I78<='A - Contractor Summary'!$C$42),"Yes","No") -> Yes | K78: =VLOOKUP($D78,'C.1 - Rate Sheets'!B:F,2,FALSE) -> 0 | L78: =VLOOKUP($D78,'C.1 - Rate Sheets'!B:F,3,FALSE) -> 150 | M78: =VLOOKUP($D78,'C.1 - Rate Sheets'!B:F,4,FALSE) -> 0 | N78: =VLOOKUP($D78,'C.1 - Rate Sheets'!B:F,5,FALSE) -> 0 | AB78: 16 | GB78: 16 | GE78: 16 | GF78: 0 | GG78: 2400 | GH78: 0 | GI78: 0 | GJ78: 2400 | GK78: 2400 | GL78: Yes | GM78: 0 | GN78: 0 | GO78: 0
B79: 61 | D79: MOT CREW | E79: Vendor No.04 | F79: Mot 35 | G79: 1248 | H79: 2018-10-20 | I79: 2018-10-20 | J79: =IF(AND(H79>='A - Contractor Summary'!$C$36,I79<='A - Contractor Summary'!$C$42),"Yes","No") -> Yes | K79: =VLOOKUP($D79,'C.1 - Rate Sheets'!B:F,2,FALSE) -> 0 | L79: =VLOOKUP($D79,'C.1 - Rate Sheets'!B:F,3,FALSE) -> 150 | M79: =VLOOKUP($D79,'C.1 - Rate Sheets'!B:F,4,FALSE) -> 0 | N79: =VLOOKUP($D79,'C.1 - Rate Sheets'!B:F,5,FALSE) -> 0 | AB79: 16 | GB79: 16 | GE79: 16 | GF79: 0 | GG79: 2400 | GH79: 0 | GI79: 0 | GJ79: 2400 | GK79: 2400 | GL79: Yes | GM79: 0 | GN79: 0 | GO79: 0
B80: 62 | D80: MOT CREW | E80: Vendor No.04 | F80: Mot 36 | G80: 1248 | H80: 2018-10-20 | I80: 2018-10-20 | J80: =IF(AND(H80>='A - Contractor Summary'!$C$36,I80<='A - Contractor Summary'!$C$42),"Yes","No") -> Yes | K80: =VLOOKUP($D80,'C.1 - Rate Sheets'!B:F,2,FALSE) -> 0 | L80: =VLOOKUP($D80,'C.1 - Rate Sheets'!B:F,3,FALSE) -> 150 | M80: =VLOOKUP($D80,'C.1 - Rate Sheets'!B:F,4,FALSE) -> 0 | N80: =VLOOKUP($D80,'C.1 - Rate Sheets'!B:F,5,FALSE) -> 0 | AB80: 16 | GB80: 16 | GE80: 16 | GF80: 0 | GG80: 2400 | GH80: 0 | GI80: 0 | GJ80: 2400 | GK80: 2400 | GL80: Yes | GM80: 0 | GN80: 0 | GO80: 0
B81: 63 | D81: CLEAR CREW | E81: Vendor No.04 | F81: Clear 1 | G81: 1248 | H81: 2018-10-14 | I81: 2018-10-20 | J81: =IF(AND(H81>='A - Contractor Summary'!$C$36,I81<='A - Contractor Summary'!$C$42),"Yes","No") -> Yes | K81: =VLOOKUP($D81,'C.1 - Rate Sheets'!B:F,2,FALSE) -> 0 | L81: =VLOOKUP($D81,'C.1 - Rate Sheets'!B:F,3,FALSE) -> 200 | M81: =VLOOKUP($D81,'C.1 - Rate Sheets'!B:F,4,FALSE) -> 0 | N81: =VLOOKUP($D81,'C.1 - Rate Sheets'!B:F,5,FALSE) -> 0 | V81: 16 | W81: 16 | X81: 16 | Y81: 16 | Z81: 16 | AA81: 16 | AB81: 16 | GB81: 112 | GE81: 112 | GF81: 0 | GG81: 22400 | GH81: 0 | GI81: 0 | GJ81: 22400 | GK81: 22400 | GL81: Yes | GM81: 0 | GN81: 0 | GO81: 0
B82: 64 | D82: CLEAR CREW | E82: Vendor No.04 | F82: Clear 2 | G82: 1248 | H82: 2018-10-14 | I82: 2018-10-20 | J82: =IF(AND(H82>='A - Contractor Summary'!$C$36,I82<='A - Contractor Summary'!$C$42),"Yes","No") -> Yes | K82: =VLOOKUP($D82,'C.1 - Rate Sheets'!B:F,2,FALSE) -> 0 | L82: =VLOOKUP($D82,'C.1 - Rate Sheets'!B:F,3,FALSE) -> 200 | M82: =VLOOKUP($D82,'C.1 - Rate Sheets'!B:F,4,FALSE) -> 0 | N82: =VLOOKUP($D82,'C.1 - Rate Sheets'!B:F,5,FALSE) -> 0 | V82: 16 | W82: 16 | X82: 16 | Y82: 16 | Z82: 16 | AA82: 16 | AB82: 16 | GB82: 112 | GE82: 112 | GF82: 0 | GG82: 22400 | GH82: 0 | GI82: 0 | GJ82: 22400 | GK82: 22400 | GL82: Yes | GM82: 0 | GN82: 0 | GO82: 0
B83: 65 | D83: CLEAR CREW | E83: Vendor No.04 | F83: Clear 3 | G83: 1248 | H83: 2018-10-14 | I83: 2018-10-20 | J83: =IF(AND(H83>='A - Contractor Summary'!$C$36,I83<='A - Contractor Summary'!$C$42),"Yes","No") -> Yes | K83: =VLOOKUP($D83,'C.1 - Rate Sheets'!B:F,2,FALSE) -> 0 | L83: =VLOOKUP($D83,'C.1 - Rate Sheets'!B:F,3,FALSE) -> 200 | M83: =VLOOKUP($D83,'C.1 - Rate Sheets'!B:F,4,FALSE) -> 0 | N83: =VLOOKUP($D83,'C.1 - Rate Sheets'!B:F,5,FALSE) -> 0 | V83: 16 | W83: 16 | X83: 16 | Y83: 16 | Z83: 16 | AA83: 16 | AB83: 16 | GB83: =SUM(O83:FZ83) -> 112 | GE83: 112 | GF83: =GA83*K83 -> 0 | GG83: =GB83*L83 -> 22400 | GH83: =GC83*M83 -> 0 | GI83: =GD83*N83 -> 0 | GJ83: =SUM(GF83:GI83) -> 22400 | GK83: =GJ83-GM83 -> 22400 | GL83: Yes | GM83: 0 | GN83: 0 | GO83: 0
B84: 66 | D84: CLEAR CREW | E84: Vendor No.04 | F84: Clear 4 | G84: 1248 | H84: 2018-10-14 | I84: 2018-10-20 | J84: =IF(AND(H84>='A - Contractor Summary'!$C$36,I84<='A - Contractor Summary'!$C$42),"Yes","No") -> Yes | K84: =VLOOKUP($D84,'C.1 - Rate Sheets'!B:F,2,FALSE) -> 0 | L84: =VLOOKUP($D84,'C.1 - Rate Sheets'!B:F,3,FALSE) -> 200 | M84: =VLOOKUP($D84,'C.1 - Rate Sheets'!B:F,4,FALSE) -> 0 | N84: =VLOOKUP($D84,'C.1 - Rate Sheets'!B:F,5,FALSE) -> 0 | V84: 16 | W84: 16 | X84: 16 | Y84: 16 | Z84: 16 | AA84: 16 | AB84: 16 | GB84: 112 | GE84: 112 | GF84: 0 | GG84: 22400 | GH84: 0 | GI84: 0 | GJ84: 22400 | GK84: 22400 | GL84: Yes | GM84: 0 | GN84: 0 | GO84: 0
B85: 67 | D85: CLEAR CREW | E85: Vendor No.04 | F85: Clear 5 | G85: 1248 | H85: 2018-10-14 | I85: 2018-10-20 | J85: =IF(AND(H85>='A - Contractor Summary'!$C$36,I85<='A - Contractor Summary'!$C$42),"Yes","No") -> Yes | K85: =VLOOKUP($D85,'C.1 - Rate Sheets'!B:F,2,FALSE) -> 0 | L85: =VLOOKUP($D85,'C.1 - Rate Sheets'!B:F,3,FALSE) -> 200 | M85: =VLOOKUP($D85,'C.1 - Rate Sheets'!B:F,4,FALSE) -> 0 | N85: =VLOOKUP($D85,'C.1 - Rate Sheets'!B:F,5,FALSE) -> 0 | V85: 16 | W85: 16 | X85: 16 | Y85: 16 | Z85: 16 | AA85: 16 | AB85: 16 | GB85: 112 | GE85: 112 | GF85: 0 | GG85: 22400 | GH85: 0 | GI85: 0 | GJ85: 22400 | GK85: 22400 | GL85: Yes | GM85: 0 | GN85: 0 | GO85: 0
B86: 68 | D86: CLEAR CREW | E86: Vendor No.04 | F86: Clear 6 | G86: 1248 | H86: 2018-10-14 | I86: 2018-10-20 | J86: =IF(AND(H86>='A - Contractor Summary'!$C$36,I86<='A - Contractor Summary'!$C$42),"Yes","No") -> Yes | K86: =VLOOKUP($D86,'C.1 - Rate Sheets'!B:F,2,FALSE) -> 0 | L86: =VLOOKUP($D86,'C.1 - Rate Sheets'!B:F,3,FALSE) -> 200 | M86: =VLOOKUP($D86,'C.1 - Rate Sheets'!B:F,4,FALSE) -> 0 | N86: =VLOOKUP($D86,'C.1 - Rate Sheets'!B:F,5,FALSE) -> 0 | V86: 16 | W86: 16 | X86: 16 | Y86: 16 | Z86: 16 | AA86: 16 | AB86: 16 | GB86: 112 | GE86: 112 | GF86: 0 | GG86: 22400 | GH86: 0 | GI86: 0 | GJ86: 22400 | GK86: 22400 | GL86: Yes | GM86: 0 | GN86: 0 | GO86: 0
B87: 69 | D87: CLEAR CREW | E87: Vendor No.04 | F87: Clear 7 | G87: 1248 | H87: 2018-10-14 | I87: 2018-10-20 | J87: =IF(AND(H87>='A - Contractor Summary'!$C$36,I87<='A - Contractor Summary'!$C$42),"Yes","No") -> Yes | K87: =VLOOKUP($D87,'C.1 - Rate Sheets'!B:F,2,FALSE) -> 0 | L87: =VLOOKUP($D87,'C.1 - Rate Sheets'!B:F,3,FALSE) -> 200 | M87: =VLOOKUP($D87,'C.1 - Rate Sheets'!B:F,4,FALSE) -> 0 | N87: =VLOOKUP($D87,'C.1 - Rate Sheets'!B:F,5,FALSE) -> 0 | V87: 16 | W87: 16 | X87: 16 | Y87: 16 | Z87: 16 | AA87: 16 | AB87: 16 | GB87: 112 | GE87: 112 | GF87: 0 | GG87: 22400 | GH87: 0 | GI87: 0 | GJ87: 22400 | GK87: 22400 | GL87: Yes | GM87: 0 | GN87: 0 | GO87: 0
B88: 70 | D88: CLEAR CREW | E88: Vendor No.04 | F88: Clear 8 | G88: 1248 | H88: 2018-10-14 | I88: 2018-10-20 | J88: =IF(AND(H88>='A - Contractor Summary'!$C$36,I88<='A - Contractor Summary'!$C$42),"Yes","No") -> Yes | K88: =VLOOKUP($D88,'C.1 - Rate Sheets'!B:F,2,FALSE) -> 0 | L88: =VLOOKUP($D88,'C.1 - Rate Sheets'!B:F,3,FALSE) -> 200 | M88: =VLOOKUP($D88,'C.1 - Rate Sheets'!B:F,4,FALSE) -> 0 | N88: =VLOOKUP($D88,'C.1 - Rate Sheets'!B:F,5,FALSE) -> 0 | V88: 16 | W88: 16 | X88: 16 | Y88: 16 | Z88: 16 | AA88: 16 | AB88: 16 | GB88: 112 | GE88: 112 | GF88: 0 | GG88: 22400 | GH88: 0 | GI88: 0 | GJ88: 22400 | GK88: 22400 | GL88: Yes | GM88: 0 | GN88: 0 | GO88: 0
B89: 71 | D89: CLEAR CREW | E89: Vendor No.04 | F89: Clear 9 | G89: 1248 | H89: 2018-10-14 | I89: 2018-10-20 | J89: =IF(AND(H89>='A - Contractor Summary'!$C$36,I89<='A - Contractor Summary'!$C$42),"Yes","No") -> Yes | K89: =VLOOKUP($D89,'C.1 - Rate Sheets'!B:F,2,FALSE) -> 0 | L89: =VLOOKUP($D89,'C.1 - Rate Sheets'!B:F,3,FALSE) -> 200 | M89: =VLOOKUP($D89,'C.1 - Rate Sheets'!B:F,4,FALSE) -> 0 | N89: =VLOOKUP($D89,'C.1 - Rate Sheets'!B:F,5,FALSE) -> 0 | V89: 16 | W89: 16 | X89: 16 | Y89: 16 | Z89: 16 | AA89: 16 | AB89: 16 | GB89: 112 | GE89: 112 | GF89: 0 | GG89: 22400 | GH89: 0 | GI89: 0 | GJ89: 22400 | GK89: 22400 | GL89: Yes | GM89: 0 | GN89: 0 | GO89: 0
B90: 72 | D90: CLEAR CREW | E90: Vendor No.04 | F90: Clear 10 | G90: 1248 | H90: 2018-10-14 | I90: 2018-10-20 | J90: =IF(AND(H90>='A - Contractor Summary'!$C$36,I90<='A - Contractor Summary'!$C$42),"Yes","No") -> Yes | K90: =VLOOKUP($D90,'C.1 - Rate Sheets'!B:F,2,FALSE) -> 0 | L90: =VLOOKUP($D90,'C.1 - Rate Sheets'!B:F,3,FALSE) -> 200 | M90: =VLOOKUP($D90,'C.1 - Rate Sheets'!B:F,4,FALSE) -> 0 | N90: =VLOOKUP($D90,'C.1 - Rate Sheets'!B:F,5,FALSE) -> 0 | V90: 16 | W90: 16 | X90: 16 | Y90: 16 | Z90: 16 | AA90: 16 | AB90: 16 | GB90: 112 | GE90: 112 | GF90: 0 | GG90: 22400 | GH90: 0 | GI90: 0 | GJ90: 22400 | GK90: 22400 | GL90: Yes | GM90: 0 | GN90: 0 | GO90: 0
B91: 73 | D91: CLEAR CREW | E91: Vendor No.04 | F91: Clear 11 | G91: 1248 | H91: 2018-10-14 | I91: 2018-10-20 | J91: =IF(AND(H91>='A - Contractor Summary'!$C$36,I91<='A - Contractor Summary'!$C$42),"Yes","No") -> Yes | K91: =VLOOKUP($D91,'C.1 - Rate Sheets'!B:F,2,FALSE) -> 0 | L91: =VLOOKUP($D91,'C.1 - Rate Sheets'!B:F,3,FALSE) -> 200 | M91: =VLOOKUP($D91,'C.1 - Rate Sheets'!B:F,4,FALSE) -> 0 | N91: =VLOOKUP($D91,'C.1 - Rate Sheets'!B:F,5,FALSE) -> 0 | V91: 16 | W91: 16 | X91: 16 | Y91: 16 | Z91: 16 | AA91: 16 | AB91: 16 | GB91: 112 | GE91: 112 | GF91: 0 | GG91: 22400 | GH91: 0 | GI91: 0 | GJ91: 22400 | GK91: 22400 | GL91: Yes | GM91: 0 | GN91: 0 | GO91: 0
B92: 74 | D92: CLEAR CREW | E92: Vendor No.04 | F92: Clear 12 | G92: 1248 | H92: 2018-10-14 | I92: 2018-10-20 | J92: =IF(AND(H92>='A - Contractor Summary'!$C$36,I92<='A - Contractor Summary'!$C$42),"Yes","No") -> Yes | K92: =VLOOKUP($D92,'C.1 - Rate Sheets'!B:F,2,FALSE) -> 0 | L92: =VLOOKUP($D92,'C.1 - Rate Sheets'!B:F,3,FALSE) -> 200 | M92: =VLOOKUP($D92,'C.1 - Rate Sheets'!B:F,4,FALSE) -> 0 | N92: =VLOOKUP($D92,'C.1 - Rate Sheets'!B:F,5,FALSE) -> 0 | V92: 16 | W92: 16 | X92: 16 | Y92: 16 | Z92: 16 | AA92: 16 | AB92: 16 | GB92: 112 | GE92: 112 | GF92: 0 | GG92: 22400 | GH92: 0 | GI92: 0 | GJ92: 22400 | GK92: 22400 | GL92: Yes
B93: 75 | D93: CLEAR CREW | E93: Vendor No.04 | F93: Clear 13 | G93: 1248 | H93: 2018-10-14 | I93: 2018-10-20 | J93: =IF(AND(H93>='A - Contractor Summary'!$C$36,I93<='A - Contractor Summary'!$C$42),"Yes","No") -> Yes | K93: =VLOOKUP($D93,'C.1 - Rate Sheets'!B:F,2,FALSE) -> 0 | L93: =VLOOKUP($D93,'C.1 - Rate Sheets'!B:F,3,FALSE) -> 200 | M93: =VLOOKUP($D93,'C.1 - Rate Sheets'!B:F,4,FALSE) -> 0 | N93: =VLOOKUP($D93,'C.1 - Rate Sheets'!B:F,5,FALSE) -> 0 | V93: 16 | W93: 16 | X93: 16 | Y93: 16 | Z93: 16 | AA93: 16 | AB93: 16 | GB93: 112 | GE93: 112 | GF93: 0 | GG93: 22400 | GH93: 0 | GI93: 0 | GJ93: 22400 | GK93: 22400 | GL93: Yes | GM93: 0 | GN93: 0 | GO93: 0
B94: 76 | D94: CLEAR CREW | E94: Vendor No.04 | F94: Clear 14 | G94: 1248 | H94: 2018-10-14 | I94: 2018-10-20 | J94: =IF(AND(H94>='A - Contractor Summary'!$C$36,I94<='A - Contractor Summary'!$C$42),"Yes","No") -> Yes | K94: =VLOOKUP($D94,'C.1 - Rate Sheets'!B:F,2,FALSE) -> 0 | L94: =VLOOKUP($D94,'C.1 - Rate Sheets'!B:F,3,FALSE) -> 200 | M94: =VLOOKUP($D94,'C.1 - Rate Sheets'!B:F,4,FALSE) -> 0 | N94: =VLOOKUP($D94,'C.1 - Rate Sheets'!B:F,5,FALSE) -> 0 | V94: 16 | W94: 16 | X94: 16 | Y94: 16 | Z94: 16 | AA94: 16 | AB94: 16 | GB94: 112 | GE94: =SUM(GA94:GD94) -> 112 | GF94: 0 | GG94: 22400 | GH94: 0 | GI94: 0 | GJ94: 22400 | GK94: 22400 | GL94: Yes | GM94: 0 | GN94: 0 | GO94: 0
B95: 77 | D95: CLEAR CREW | E95: Vendor No.04 | F95: Clear 15 | G95: 1248 | H95: 2018-10-14 | I95: 2018-10-20 | J95: =IF(AND(H95>='A - Contractor Summary'!$C$36,I95<='A - Contractor Summary'!$C$42),"Yes","No") -> Yes | K95: =VLOOKUP($D95,'C.1 - Rate Sheets'!B:F,2,FALSE) -> 0 | L95: =VLOOKUP($D95,'C.1 - Rate Sheets'!B:F,3,FALSE) -> 200 | M95: =VLOOKUP($D95,'C.1 - Rate Sheets'!B:F,4,FALSE) -> 0 | N95: =VLOOKUP($D95,'C.1 - Rate Sheets'!B:F,5,FALSE) -> 0 | V95: 16 | W95: 16 | X95: 16 | Y95: 16 | Z95: 16 | AA95: 16 | AB95: 16 | GB95: 112 | GE95: 112 | GF95: 0 | GG95: 22400 | GH95: 0 | GI95: 0 | GJ95: 22400 | GK95: 22400 | GL95: Yes | GM95: 0 | GN95: 0 | GO95: 0
B96: 78 | D96: CLEAR CREW | E96: Vendor No.04 | F96: Clear 16 | G96: 1248 | H96: 2018-10-14 | I96: 2018-10-20 | J96: =IF(AND(H96>='A - Contractor Summary'!$C$36,I96<='A - Contractor Summary'!$C$42),"Yes","No") -> Yes | K96: =VLOOKUP($D96,'C.1 - Rate Sheets'!B:F,2,FALSE) -> 0 | L96: =VLOOKUP($D96,'C.1 - Rate Sheets'!B:F,3,FALSE) -> 200 | M96: =VLOOKUP($D96,'C.1 - Rate Sheets'!B:F,4,FALSE) -> 0 | N96: =VLOOKUP($D96,'C.1 - Rate Sheets'!B:F,5,FALSE) -> 0 | V96: 16 | W96: 16 | X96: 16 | Y96: 16 | Z96: 16 | AA96: 16 | AB96: 16 | GB96: 112 | GE96: 112 | GF96: 0 | GG96: 22400 | GH96: 0 | GI96: 0 | GJ96: 22400 | GK96: 22400 | GL96: Yes | GM96: 0 | GN96: 0 | GO96: 0
B97: 79 | D97: CLEAR CREW | E97: Vendor No.04 | F97: Clear 17 | G97: 1248 | H97: 2018-10-14 | I97: 2018-10-20 | J97: =IF(AND(H97>='A - Contractor Summary'!$C$36,I97<='A - Contractor Summary'!$C$42),"Yes","No") -> Yes | K97: =VLOOKUP($D97,'C.1 - Rate Sheets'!B:F,2,FALSE) -> 0 | L97: =VLOOKUP($D97,'C.1 - Rate Sheets'!B:F,3,FALSE) -> 200 | M97: =VLOOKUP($D97,'C.1 - Rate Sheets'!B:F,4,FALSE) -> 0 | N97: =VLOOKUP($D97,'C.1 - Rate Sheets'!B:F,5,FALSE) -> 0 | V97: 16 | W97: 16 | X97: 16 | Y97: 16 | Z97: 16 | AA97: 16 | AB97: 16 | GB97: 112 | GE97: 112 | GF97: 0 | GG97: 22400 | GH97: 0 | GI97: 0 | GJ97: 22400 | GK97: 22400 | GL97: Yes | GM97: 0 | GN97: 0 | GO97: 0
B98: 80 | D98: CLEAR CREW | E98: Vendor No.04 | F98: Clear 18 | G98: 1248 | H98: 2018-10-14 | I98: 2018-10-20 | J98: =IF(AND(H98>='A - Contractor Summary'!$C$36,I98<='A - Contractor Summary'!$C$42),"Yes","No") -> Yes | K98: =VLOOKUP($D98,'C.1 - Rate Sheets'!B:F,2,FALSE) -> 0 | L98: =VLOOKUP($D98,'C.1 - Rate Sheets'!B:F,3,FALSE) -> 200 | M98: =VLOOKUP($D98,'C.1 - Rate Sheets'!B:F,4,FALSE) -> 0 | N98: =VLOOKUP($D98,'C.1 - Rate Sheets'!B:F,5,FALSE) -> 0 | V98: 16 | W98: 16 | X98: 16 | Y98: 16 | Z98: 16 | AA98: 16 | AB98: 16 | GB98: 112 | GE98: 112 | GF98: 0 | GG98: 22400 | GH98: 0 | GI98: 0 | GJ98: 22400 | GK98: 22400 | GL98: Yes | GM98: 0 | GN98: 0 | GO98: 0
B99: 81 | D99: CLEAR CREW | E99: Vendor No.04 | F99: Clear 19 | G99: 1248 | H99: 2018-10-14 | I99: 2018-10-20 | J99: =IF(AND(H99>='A - Contractor Summary'!$C$36,I99<='A - Contractor Summary'!$C$42),"Yes","No") -> Yes | K99: =VLOOKUP($D99,'C.1 - Rate Sheets'!B:F,2,FALSE) -> 0 | L99: =VLOOKUP($D99,'C.1 - Rate Sheets'!B:F,3,FALSE) -> 200 | M99: =VLOOKUP($D99,'C.1 - Rate Sheets'!B:F,4,FALSE) -> 0 | N99: =VLOOKUP($D99,'C.1 - Rate Sheets'!B:F,5,FALSE) -> 0 | V99: 16 | W99: 16 | X99: 16 | Y99: 16 | Z99: 16 | AA99: 16 | AB99: 16 | GB99: 112 | GE99: 112 | GF99: 0 | GG99: 22400 | GH99: 0 | GI99: 0 | GJ99: 22400 | GK99: 22400 | GL99: Yes | GM99: 0 | GN99: 0 | GO99: 0
B100: 82 | D100: CLEAR CREW | E100: Vendor No.04 | F100: Clear 20 | G100: 1248 | H100: 2018-10-14 | I100: 2018-10-20 | J100: =IF(AND(H100>='A - Contractor Summary'!$C$36,I100<='A - Contractor Summary'!$C$42),"Yes","No") -> Yes | K100: =VLOOKUP($D100,'C.1 - Rate Sheets'!B:F,2,FALSE) -> 0 | L100: =VLOOKUP($D100,'C.1 - Rate Sheets'!B:F,3,FALSE) -> 200 | M100: =VLOOKUP($D100,'C.1 - Rate Sheets'!B:F,4,FALSE) -> 0 | N100: =VLOOKUP($D100,'C.1 - Rate Sheets'!B:F,5,FALSE) -> 0 | V100: 16 | W100: 16 | X100: 16 | Y100: 16 | Z100: 16 | AA100: 16 | AB100: 16 | GB100: 112 | GE100: 112 | GF100: 0 | GG100: 22400 | GH100: 0 | GI100: 0 | GJ100: 22400 | GK100: 22400 | GL100: Yes | GM100: 0 | GN100: 0 | GO100: 0
B101: 83 | D101: CLEAR CREW | E101: Vendor No.04 | F101: Clear 21 | G101: 1248 | H101: 2018-10-14 | I101: 2018-10-20 | J101: =IF(AND(H101>='A - Contractor Summary'!$C$36,I101<='A - Contractor Summary'!$C$42),"Yes","No") -> Yes | K101: =VLOOKUP($D101,'C.1 - Rate Sheets'!B:F,2,FALSE) -> 0 | L101: =VLOOKUP($D101,'C.1 - Rate Sheets'!B:F,3,FALSE) -> 200 | M101: =VLOOKUP($D101,'C.1 - Rate Sheets'!B:F,4,FALSE) -> 0 | N101: =VLOOKUP($D101,'C.1 - Rate Sheets'!B:F,5,FALSE) -> 0 | V101: 16 | W101: 16 | X101: 16 | Y101: 16 | AA101: 16 | AB101: 16 | GB101: 96 | GE101: 96 | GF101: 0 | GG101: 19200 | GH101: 0 | GI101: 0 | GJ101: 19200 | GK101: 19200 | GL101: Yes | GM101: 0 | GN101: 0 | GO101: 0
B102: 84 | D102: CLEAR CREW | E102: Vendor No.04 | F102: Clear 22 | G102: 1248 | H102: 2018-10-14 | I102: 2018-10-20 | J102: =IF(AND(H102>='A - Contractor Summary'!$C$36,I102<='A - Contractor Summary'!$C$42),"Yes","No") -> Yes | K102: =VLOOKUP($D102,'C.1 - Rate Sheets'!B:F,2,FALSE) -> 0 | L102: =VLOOKUP($D102,'C.1 - Rate Sheets'!B:F,3,FALSE) -> 200 | M102: =VLOOKUP($D102,'C.1 - Rate Sheets'!B:F,4,FALSE) -> 0 | N102: =VLOOKUP($D102,'C.1 - Rate Sheets'!B:F,5,FALSE) -> 0 | V102: 16 | W102: 16 | X102: 16 | Y102: 16 | Z102: 16 | AA102: 16 | AB102: 16 | GB102: 112 | GE102: 112 | GF102: 0 | GG102: 22400 | GH102: 0 | GI102: 0 | GJ102: 22400 | GK102: 22400 | GL102: Yes | GM102: 0 | GN102: 0 | GO102: 0
B103: 85 | D103: CLEAR CREW | E103: Vendor No.04 | F103: Clear 23 | G103: 1248 | H103: 2018-10-14 | I103: 2018-10-20 | J103: =IF(AND(H103>='A - Contractor Summary'!$C$36,I103<='A - Contractor Summary'!$C$42),"Yes","No") -> Yes | K103: =VLOOKUP($D103,'C.1 - Rate Sheets'!B:F,2,FALSE) -> 0 | L103: =VLOOKUP($D103,'C.1 - Rate Sheets'!B:F,3,FALSE) -> 200 | M103: =VLOOKUP($D103,'C.1 - Rate Sheets'!B:F,4,FALSE) -> 0 | N103: =VLOOKUP($D103,'C.1 - Rate Sheets'!B:F,5,FALSE) -> 0 | V103: 16 | W103: 16 | X103: 16 | Y103: 16 | Z103: 16 | AA103: 16 | AB103: 16 | GB103: 112 | GE103: 112 | GF103: 0 | GG103: 22400 | GH103: 0 | GI103: 0 | GJ103: 22400 | GK103: 22400 | GL103: Yes | GM103: 0 | GN103: 0 | GO103: 0
B104: 86 | D104: CLEAR CREW | E104: Vendor No.04 | F104: Clear 24 | G104: 1248 | H104: 2018-10-14 | I104: 2018-10-20 | J104: =IF(AND(H104>='A - Contractor Summary'!$C$36,I104<='A - Contractor Summary'!$C$42),"Yes","No") -> Yes | K104: =VLOOKUP($D104,'C.1 - Rate Sheets'!B:F,2,FALSE) -> 0 | L104: =VLOOKUP($D104,'C.1 - Rate Sheets'!B:F,3,FALSE) -> 200 | M104: =VLOOKUP($D104,'C.1 - Rate Sheets'!B:F,4,FALSE) -> 0 | N104: =VLOOKUP($D104,'C.1 - Rate Sheets'!B:F,5,FALSE) -> 0 | V104: 16 | W104: 16 | X104: 16 | Y104: 16 | Z104: 16 | AA104: 16 | AB104: 16 | GB104: 112 | GE104: 112 | GF104: 0 | GG104: 22400 | GH104: 0 | GI104: 0 | GJ104: 22400 | GK104: 22400 | GL104: Yes | GM104: 0 | GN104: 0 | GO104: 0
B105: 87 | D105: CLEAR CREW | E105: Vendor No.04 | F105: Clear 25 | G105: 1248 | H105: 2018-10-19 | I105: 2018-10-20 | J105: =IF(AND(H105>='A - Contractor Summary'!$C$36,I105<='A - Contractor Summary'!$C$42),"Yes","No") -> Yes | K105: =VLOOKUP($D105,'C.1 - Rate Sheets'!B:F,2,FALSE) -> 0 | L105: =VLOOKUP($D105,'C.1 - Rate Sheets'!B:F,3,FALSE) -> 200 | M105: =VLOOKUP($D105,'C.1 - Rate Sheets'!B:F,4,FALSE) -> 0 | N105: =VLOOKUP($D105,'C.1 - Rate Sheets'!B:F,5,FALSE) -> 0 | AA105: 16 | AB105: 16 | GB105: 32 | GE105: 32 | GF105: 0 | GG105: 6400 | GH105: 0 | GI105: 0 | GJ105: 6400 | GK105: 6400 | GL105: Yes | GM105: 0 | GN105: 0 | GO105: 0
B106: 88 | D106: CLEAR CREW | E106: Vendor No.04 | F106: Clear 26 | G106: 1248 | H106: 2018-10-19 | I106: 2018-10-20 | J106: =IF(AND(H106>='A - Contractor Summary'!$C$36,I106<='A - Contractor Summary'!$C$42),"Yes","No") -> Yes | K106: =VLOOKUP($D106,'C.1 - Rate Sheets'!B:F,2,FALSE) -> 0 | L106: =VLOOKUP($D106,'C.1 - Rate Sheets'!B:F,3,FALSE) -> 200 | M106: =VLOOKUP($D106,'C.1 - Rate Sheets'!B:F,4,FALSE) -> 0 | N106: =VLOOKUP($D106,'C.1 - Rate Sheets'!B:F,5,FALSE) -> 0 | AA106: 16 | AB106: 16 | GB106: 32 | GE106: 32 | GF106: 0 | GG106: 6400 | GH106: 0 | GI106: 0 | GJ106: 6400 | GK106: 6400 | GL106: Yes | GM106: 0 | GN106: 0 | GO106: 0
B107: 89 | D107: MOT CREW | E107: Vendor No.04 | F107: Mot 1 | G107: 1249 | H107: =INDEX($O$16:$BK$16,MATCH(TRUE,INDEX((O107:BK107>0),0),0)) -> 2018-10-21 | I107: =LOOKUP(2,1/(1-(O107:BK107<=0)),$O$16:$BK$16) -> 2018-10-27 | J107: =IF(AND(H107>='A - Contractor Summary'!$C$36,I107<='A - Contractor Summary'!$C$42),"Yes","No") -> Yes | K107: =VLOOKUP($D107,'C.1 - Rate Sheets'!B:F,2,FALSE) -> 0 | L107: =VLOOKUP($D107,'C.1 - Rate Sheets'!B:F,3,FALSE) -> 150 | M107: =VLOOKUP($D107,'C.1 - Rate Sheets'!B:F,4,FALSE) -> 0 | N107: =VLOOKUP($D107,'C.1 - Rate Sheets'!B:F,5,FALSE) -> 0 | AC107: 16 | AD107: 16 | AE107: 16 | AF107: 16 | AG107: 16 | AH107: 16 | AI107: 16 | GB107: 112 | GE107: 112 | GF107: 0 | GG107: 16800 | GH107: 0 | GI107: 0 | GJ107: 16800 | GK107: 16800 | GL107: Yes | GM107: 0 | GN107: 0 | GO107: 0
B108: 90 | D108: MOT CREW | E108: Vendor No.04 | F108: Mot 2 | G108: 1249 | H108: 2018-10-21 | I108: 2018-10-27 | J108: =IF(AND(H108>='A - Contractor Summary'!$C$36,I108<='A - Contractor Summary'!$C$42),"Yes","No") -> Yes | K108: =VLOOKUP($D108,'C.1 - Rate Sheets'!B:F,2,FALSE) -> 0 | L108: =VLOOKUP($D108,'C.1 - Rate Sheets'!B:F,3,FALSE) -> 150 | M108: =VLOOKUP($D108,'C.1 - Rate Sheets'!B:F,4,FALSE) -> 0 | N108: =VLOOKUP($D108,'C.1 - Rate Sheets'!B:F,5,FALSE) -> 0 | AC108: 16 | AD108: 16 | AE108: 16 | AF108: 16 | AG108: 16 | AH108: 16 | AI108: 16 | GB108: 112 | GE108: 112 | GF108: 0 | GG108: 16800 | GH108: 0 | GI108: 0 | GJ108: 16800 | GK108: 16800 | GL108: Yes | GM108: 0 | GN108: 0 | GO108: 0
B109: 91 | D109: MOT CREW | E109: Vendor No.04 | F109: Mot 3 | G109: 1249 | H109: 2018-10-21 | I109: 2018-10-27 | J109: =IF(AND(H109>='A - Contractor Summary'!$C$36,I109<='A - Contractor Summary'!$C$42),"Yes","No") -> Yes | K109: =VLOOKUP($D109,'C.1 - Rate Sheets'!B:F,2,FALSE) -> 0 | L109: =VLOOKUP($D109,'C.1 - Rate Sheets'!B:F,3,FALSE) -> 150 | M109: =VLOOKUP($D109,'C.1 - Rate Sheets'!B:F,4,FALSE) -> 0 | N109: =VLOOKUP($D109,'C.1 - Rate Sheets'!B:F,5,FALSE) -> 0 | AC109: 16 | AD109: 16 | AE109: 16 | AF109: 16 | AG109: 16 | AH109: 16 | AI109: 16 | GB109: 112 | GE109: 112 | GF109: 0 | GG109: 16800 | GH109: 0 | GI109: 0 | GJ109: 16800 | GK109: =GJ109-GM109 -> 16800 | GL109: Yes | GM109: 0 | GN109: 0 | GO109: 0
B110: 92 | D110: MOT CREW | E110: Vendor No.04 | F110: Mot 4 | G110: 1249 | H110: 2018-10-21 | I110: 2018-10-27 | J110: =IF(AND(H110>='A - Contractor Summary'!$C$36,I110<='A - Contractor Summary'!$C$42),"Yes","No") -> Yes | K110: =VLOOKUP($D110,'C.1 - Rate Sheets'!B:F,2,FALSE) -> 0 | L110: =VLOOKUP($D110,'C.1 - Rate Sheets'!B:F,3,FALSE) -> 150 | M110: =VLOOKUP($D110,'C.1 - Rate Sheets'!B:F,4,FALSE) -> 0 | N110: =VLOOKUP($D110,'C.1 - Rate Sheets'!B:F,5,FALSE) -> 0 | AC110: 16 | AD110: 16 | AE110: 16 | AF110: 16 | AG110: 16 | AH110: 16 | AI110: 16 | GB110: 112 | GE110: 112 | GF110: 0 | GG110: 16800 | GH110: 0 | GI110: 0 | GJ110: 16800 | GK110: 16800 | GL110: Yes | GM110: 0 | GN110: 0 | GO110: 0
B111: 93 | D111: MOT CREW | E111: Vendor No.04 | F111: Mot 5 | G111: 1249 | H111: 2018-10-21 | I111: 2018-10-27 | J111: =IF(AND(H111>='A - Contractor Summary'!$C$36,I111<='A - Contractor Summary'!$C$42),"Yes","No") -> Yes | K111: =VLOOKUP($D111,'C.1 - Rate Sheets'!B:F,2,FALSE) -> 0 | L111: =VLOOKUP($D111,'C.1 - Rate Sheets'!B:F,3,FALSE) -> 150 | M111: =VLOOKUP($D111,'C.1 - Rate Sheets'!B:F,4,FALSE) -> 0 | N111: =VLOOKUP($D111,'C.1 - Rate Sheets'!B:F,5,FALSE) -> 0 | AC111: 16 | AD111: 16 | AE111: 16 | AF111: 16 | AG111: 16 | AH111: 16 | AI111: 16 | GB111: 112 | GE111: 112 | GF111: 0 | GG111: 16800 | GH111: 0 | GI111: 0 | GJ111: 16800 | GK111: 16800 | GL111: Yes | GM111: 0 | GN111: 0 | GO111: 0
B112: 94 | D112: MOT CREW | E112: Vendor No.04 | F112: Mot 6 | G112: 1249 | H112: 2018-10-21 | I112: 2018-10-27 | J112: =IF(AND(H112>='A - Contractor Summary'!$C$36,I112<='A - Contractor Summary'!$C$42),"Yes","No") -> Yes | K112: =VLOOKUP($D112,'C.1 - Rate Sheets'!B:F,2,FALSE) -> 0 | L112: =VLOOKUP($D112,'C.1 - Rate Sheets'!B:F,3,FALSE) -> 150 | M112: =VLOOKUP($D112,'C.1 - Rate Sheets'!B:F,4,FALSE) -> 0 | N112: =VLOOKUP($D112,'C.1 - Rate Sheets'!B:F,5,FALSE) -> 0 | AC112: 16 | AD112: 16 | AE112: 16 | AF112: 16 | AG112: 16 | AH112: 16 | AI112: 16 | GB112: 112 | GE112: 112 | GF112: 0 | GG112: 16800 | GH112: 0 | GI112: 0 | GJ112: 16800 | GK112: 16800 | GL112: Yes | GM112: 0 | GN112: 0 | GO112: 0
B113: 95 | D113: MOT CREW | E113: Vendor No.04 | F113: Mot 7 | G113: 1249 | H113: 2018-10-21 | I113: 2018-10-27 | J113: =IF(AND(H113>='A - Contractor Summary'!$C$36,I113<='A - Contractor Summary'!$C$42),"Yes","No") -> Yes | K113: =VLOOKUP($D113,'C.1 - Rate Sheets'!B:F,2,FALSE) -> 0 | L113: =VLOOKUP($D113,'C.1 - Rate Sheets'!B:F,3,FALSE) -> 150 | M113: =VLOOKUP($D113,'C.1 - Rate Sheets'!B:F,4,FALSE) -> 0 | N113: =VLOOKUP($D113,'C.1 - Rate Sheets'!B:F,5,FALSE) -> 0 | AC113: 16 | AD113: 16 | AE113: 16 | AF113: 16 | AG113: 16 | AH113: 16 | AI113: 16 | GB113: 112 | GE113: 112 | GF113: 0 | GG113: 16800 | GH113: 0 | GI113: 0 | GJ113: 16800 | GK113: 16800 | GL113: Yes | GM113: 0 | GN113: 0 | GO113: 0
B114: 96 | D114: MOT CREW | E114: Vendor No.04 | F114: Mot 8 | G114: 1249 | H114: 2018-10-21 | I114: 2018-10-27 | J114: =IF(AND(H114>='A - Contractor Summary'!$C$36,I114<='A - Contractor Summary'!$C$42),"Yes","No") -> Yes | K114: =VLOOKUP($D114,'C.1 - Rate Sheets'!B:F,2,FALSE) -> 0 | L114: =VLOOKUP($D114,'C.1 - Rate Sheets'!B:F,3,FALSE) -> 150 | M114: =VLOOKUP($D114,'C.1 - Rate Sheets'!B:F,4,FALSE) -> 0 | N114: =VLOOKUP($D114,'C.1 - Rate Sheets'!B:F,5,FALSE) -> 0 | AC114: 16 | AD114: 16 | AE114: 16 | AF114: 16 | AG114: 16 | AH114: 16 | AI114: 16 | GB114: 112 | GE114: 112 | GF114: 0 | GG114: 16800 | GH114: 0 | GI114: 0 | GJ114: 16800 | GK114: 16800 | GL114: Yes | GM114: 0 | GN114: 0 | GO114: 0
B115: 97 | D115: MOT CREW | E115: Vendor No.04 | F115: Mot 9 | G115: 1249 | H115: 2018-10-21 | I115: 2018-10-27 | J115: =IF(AND(H115>='A - Contractor Summary'!$C$36,I115<='A - Contractor Summary'!$C$42),"Yes","No") -> Yes | K115: =VLOOKUP($D115,'C.1 - Rate Sheets'!B:F,2,FALSE) -> 0 | L115: =VLOOKUP($D115,'C.1 - Rate Sheets'!B:F,3,FALSE) -> 150 | M115: =VLOOKUP($D115,'C.1 - Rate Sheets'!B:F,4,FALSE) -> 0 | N115: =VLOOKUP($D115,'C.1 - Rate Sheets'!B:F,5,FALSE) -> 0 | AC115: 16 | AD115: 16 | AE115: 16 | AF115: 16 | AG115: 16 | AH115: 16 | AI115: 16 | GB115: 112 | GE115: 112 | GF115: 0 | GG115: 16800 | GH115: 0 | GI115: 0 | GJ115: 16800 | GK115: 16800 | GL115: Yes | GM115: 0 | GN115: 0 | GO115: 0
B116: 98 | D116: MOT CREW | E116: Vendor No.04 | F116: Mot 10 | G116: 1249 | H116: 2018-10-21 | I116: 2018-10-27 | J116: =IF(AND(H116>='A - Contractor Summary'!$C$36,I116<='A - Contractor Summary'!$C$42),"Yes","No") -> Yes | K116: =VLOOKUP($D116,'C.1 - Rate Sheets'!B:F,2,FALSE) -> 0 | L116: =VLOOKUP($D116,'C.1 - Rate Sheets'!B:F,3,FALSE) -> 150 | M116: =VLOOKUP($D116,'C.1 - Rate Sheets'!B:F,4,FALSE) -> 0 | N116: =VLOOKUP($D116,'C.1 - Rate Sheets'!B:F,5,FALSE) -> 0 | AC116: 16 | AD116: 16 | AE116: 16 | AF116: 16 | AG116: 16 | AH116: 16 | AI116: 16 | GB116: 112 | GE116: 112 | GF116: 0 | GG116: 16800 | GH116: 0 | GI116: 0 | GJ116: 16800 | GK116: 16800 | GL116: Yes | GM116: 0 | GN116: 0 | GO116: 0
B117: 99 | D117: MOT CREW | E117: Vendor No.04 | F117: Mot 11 | G117: 1249 | H117: 2018-10-21 | I117: 2018-10-27 | J117: =IF(AND(H117>='A - Contractor Summary'!$C$36,I117<='A - Contractor Summary'!$C$42),"Yes","No") -> Yes | K117: =VLOOKUP($D117,'C.1 - Rate Sheets'!B:F,2,FALSE) -> 0 | L117: =VLOOKUP($D117,'C.1 - Rate Sheets'!B:F,3,FALSE) -> 150 | M117: =VLOOKUP($D117,'C.1 - Rate Sheets'!B:F,4,FALSE) -> 0 | N117: =VLOOKUP($D117,'C.1 - Rate Sheets'!B:F,5,FALSE) -> 0 | AC117: 16 | AD117: 16 | AE117: 16 | AF117: 16 | AG117: 16 | AH117: 16 | AI117: 16 | GB117: 112 | GE117: 112 | GF117: 0 | GG117: 16800 | GH117: 0 | GI117: 0 | GJ117: 16800 | GK117: 16800 | GL117: Yes | GM117: 0 | GN117: 0 | GO117: 0
B118: 100 | D118: MOT CREW | E118: Vendor No.04 | F118: Mot 12 | G118: 1249 | H118: 2018-10-21 | I118: 2018-10-27 | J118: =IF(AND(H118>='A - Contractor Summary'!$C$36,I118<='A - Contractor Summary'!$C$42),"Yes","No") -> Yes | K118: =VLOOKUP($D118,'C.1 - Rate Sheets'!B:F,2,FALSE) -> 0 | L118: =VLOOKUP($D118,'C.1 - Rate Sheets'!B:F,3,FALSE) -> 150 | M118: =VLOOKUP($D118,'C.1 - Rate Sheets'!B:F,4,FALSE) -> 0 | N118: =VLOOKUP($D118,'C.1 - Rate Sheets'!B:F,5,FALSE) -> 0 | AC118: 16 | AD118: 16 | AE118: 16 | AF118: 16 | AG118: 16 | AH118: 16 | AI118: 16 | GB118: 112 | GE118: 112 | GF118: 0 | GG118: 16800 | GH118: 0 | GI118: 0 | GJ118: 16800 | GK118: 16800 | GL118: Yes | GM118: 0 | GN118: 0 | GO118: 0
B119: 101 | D119: MOT CREW | E119: Vendor No.04 | F119: Mot 13 | G119: 1249 | H119: 2018-10-21 | I119: 2018-10-27 | J119: =IF(AND(H119>='A - Contractor Summary'!$C$36,I119<='A - Contractor Summary'!$C$42),"Yes","No") -> Yes | K119: =VLOOKUP($D119,'C.1 - Rate Sheets'!B:F,2,FALSE) -> 0 | L119: =VLOOKUP($D119,'C.1 - Rate Sheets'!B:F,3,FALSE) -> 150 | M119: =VLOOKUP($D119,'C.1 - Rate Sheets'!B:F,4,FALSE) -> 0 | N119: =VLOOKUP($D119,'C.1 - Rate Sheets'!B:F,5,FALSE) -> 0 | AC119: 16 | AD119: 16 | AE119: 16 | AF119: 16 | AG119: 16 | AH119: 16 | AI119: 16 | GB119: 112 | GE119: 112 | GF119: 0 | GG119: 16800 | GH119: 0 | GI119: 0 | GJ119: 16800 | GK119: 16800 | GL119: Yes | GM119: 0 | GN119: 0 | GO119: 0
B120: 102 | D120: MOT CREW | E120: Vendor No.04 | F120: Mot 14 | G120: 1249 | H120: 2018-10-21 | I120: 2018-10-27 | J120: =IF(AND(H120>='A - Contractor Summary'!$C$36,I120<='A - Contractor Summary'!$C$42),"Yes","No") -> Yes | K120: =VLOOKUP($D120,'C.1 - Rate Sheets'!B:F,2,FALSE) -> 0 | L120: =VLOOKUP($D120,'C.1 - Rate Sheets'!B:F,3,FALSE) -> 150 | M120: =VLOOKUP($D120,'C.1 - Rate Sheets'!B:F,4,FALSE) -> 0 | N120: =VLOOKUP($D120,'C.1 - Rate Sheets'!B:F,5,FALSE) -> 0 | AC120: 16 | AD120: 16 | AE120: 16 | AF120: 16 | AG120: 16 | AH120: 16 | AI120: 16 | GB120: 112 | GE120: 112 | GF120: 0 | GG120: 16800 | GH120: 0 | GI120: 0 | GJ120: 16800 | GK120: 16800 | GL120: Yes | GM120: 0 | GN120: 0 | GO120: 0
B121: 103 | D121: MOT CREW | E121: Vendor No.04 | F121: Mot 15 | G121: 1249 | H121: 2018-10-21 | I121: 2018-10-27 | J121: =IF(AND(H121>='A - Contractor Summary'!$C$36,I121<='A - Contractor Summary'!$C$42),"Yes","No") -> Yes | K121: =VLOOKUP($D121,'C.1 - Rate Sheets'!B:F,2,FALSE) -> 0 | L121: =VLOOKUP($D121,'C.1 - Rate Sheets'!B:F,3,FALSE) -> 150 | M121: =VLOOKUP($D121,'C.1 - Rate Sheets'!B:F,4,FALSE) -> 0 | N121: =VLOOKUP($D121,'C.1 - Rate Sheets'!B:F,5,FALSE) -> 0 | AC121: 16 | AD121: 16 | AE121: 16 | AF121: 16 | AG121: 16 | AH121: 16 | AI121: 16 | GB121: 112 | GE121: 112 | GF121: 0 | GG121: 16800 | GH121: 0 | GI121: 0 | GJ121: 16800 | GK121: 16800 | GL121: Yes | GM121: 0 | GN121: 0 | GO121: 0
B122: 104 | D122: MOT CREW | E122: Vendor No.04 | F122: Mot 16 | G122: 1249 | H122: 2018-10-21 | I122: 2018-10-27 | J122: =IF(AND(H122>='A - Contractor Summary'!$C$36,I122<='A - Contractor Summary'!$C$42),"Yes","No") -> Yes | K122: =VLOOKUP($D122,'C.1 - Rate Sheets'!B:F,2,FALSE) -> 0 | L122: =VLOOKUP($D122,'C.1 - Rate Sheets'!B:F,3,FALSE) -> 150 | M122: =VLOOKUP($D122,'C.1 - Rate Sheets'!B:F,4,FALSE) -> 0 | N122: =VLOOKUP($D122,'C.1 - Rate Sheets'!B:F,5,FALSE) -> 0 | AC122: 16 | AD122: 16 | AE122: 16 | AF122: 16 | AG122: 16 | AH122: 16 | AI122: 16 | GB122: 112 | GE122: 112 | GF122: 0 | GG122: 16800 | GH122: 0 | GI122: 0 | GJ122: 16800 | GK122: 16800 | GL122: Yes | GM122: 0 | GN122: 0 | GO122: 0
B123: 105 | D123: MOT CREW | E123: Vendor No.04 | F123: Mot 17 | G123: 1249 | H123: 2018-10-21 | I123: 2018-10-27 | J123: =IF(AND(H123>='A - Contractor Summary'!$C$36,I123<='A - Contractor Summary'!$C$42),"Yes","No") -> Yes | K123: =VLOOKUP($D123,'C.1 - Rate Sheets'!B:F,2,FALSE) -> 0 | L123: =VLOOKUP($D123,'C.1 - Rate Sheets'!B:F,3,FALSE) -> 150 | M123: =VLOOKUP($D123,'C.1 - Rate Sheets'!B:F,4,FALSE) -> 0 | N123: =VLOOKUP($D123,'C.1 - Rate Sheets'!B:F,5,FALSE) -> 0 | AC123: 16 | AD123: 16 | AE123: 16 | AF123: 16 | AG123: 16 | AH123: 16 | AI123: 16 | GB123: 112 | GE123: 112 | GF123: 0 | GG123: 16800 | GH123: 0 | GI123: 0 | GJ123: 16800 | GK123: 16800 | GL123: Yes | GM123: 0 | GN123: 0 | GO123: 0
B124: 106 | D124: MOT CREW | E124: Vendor No.04 | F124: Mot 18 | G124: 1249 | H124: 2018-10-21 | I124: 2018-10-27 | J124: =IF(AND(H124>='A - Contractor Summary'!$C$36,I124<='A - Contractor Summary'!$C$42),"Yes","No") -> Yes | K124: =VLOOKUP($D124,'C.1 - Rate Sheets'!B:F,2,FALSE) -> 0 | L124: =VLOOKUP($D124,'C.1 - Rate Sheets'!B:F,3,FALSE) -> 150 | M124: =VLOOKUP($D124,'C.1 - Rate Sheets'!B:F,4,FALSE) -> 0 | N124: =VLOOKUP($D124,'C.1 - Rate Sheets'!B:F,5,FALSE) -> 0 | AC124: 16 | AD124: 16 | AE124: 16 | AF124: 16 | AG124: 16 | AH124: 16 | AI124: 16 | GB124: 112 | GE124: 112 | GF124: 0 | GG124: 16800 | GH124: 0 | GI124: 0 | GJ124: 16800 | GK124: 16800 | GL124: Yes | GM124: 0 | GN124: 0 | GO124: 0
B125: 107 | D125: MOT CREW | E125: Vendor No.04 | F125: Mot 19 | G125: 1249 | H125: 2018-10-21 | I125: 2018-10-27 | J125: =IF(AND(H125>='A - Contractor Summary'!$C$36,I125<='A - Contractor Summary'!$C$42),"Yes","No") -> Yes | K125: =VLOOKUP($D125,'C.1 - Rate Sheets'!B:F,2,FALSE) -> 0 | L125: =VLOOKUP($D125,'C.1 - Rate Sheets'!B:F,3,FALSE) -> 150 | M125: =VLOOKUP($D125,'C.1 - Rate Sheets'!B:F,4,FALSE) -> 0 | N125: =VLOOKUP($D125,'C.1 - Rate Sheets'!B:F,5,FALSE) -> 0 | AC125: 16 | AD125: 16 | AE125: 16 | AF125: 16 | AG125: 16 | AH125: 16 | AI125: 16 | GB125: 112 | GE125: 112 | GF125: 0 | GG125: 16800 | GH125: 0 | GI125: 0 | GJ125: 16800 | GK125: 16800 | GL125: Yes | GM125: 0 | GN125: 0 | GO125: 0
B126: 108 | D126: MOT CREW | E126: Vendor No.04 | F126: Mot 20 | G126: 1249 | H126: 2018-10-21 | I126: 2018-10-27 | J126: =IF(AND(H126>='A - Contractor Summary'!$C$36,I126<='A - Contractor Summary'!$C$42),"Yes","No") -> Yes | K126: =VLOOKUP($D126,'C.1 - Rate Sheets'!B:F,2,FALSE) -> 0 | L126: =VLOOKUP($D126,'C.1 - Rate Sheets'!B:F,3,FALSE) -> 150 | M126: =VLOOKUP($D126,'C.1 - Rate Sheets'!B:F,4,FALSE) -> 0 | N126: =VLOOKUP($D126,'C.1 - Rate Sheets'!B:F,5,FALSE) -> 0 | AC126: 16 | AD126: 16 | AE126: 16 | AF126: 16 | AG126: 16 | AH126: 16 | AI126: 16 | GB126: 112 | GE126: 112 | GF126: 0 | GG126: 16800 | GH126: 0 | GI126: 0 | GJ126: 16800 | GK126: 16800 | GL126: Yes | GM126: 0 | GN126: 0 | GO126: 0
B127: 109 | D127: MOT CREW | E127: Vendor No.04 | F127: Mot 21 | G127: 1249 | H127: 2018-10-21 | I127: 2018-10-27 | J127: =IF(AND(H127>='A - Contractor Summary'!$C$36,I127<='A - Contractor Summary'!$C$42),"Yes","No") -> Yes | K127: =VLOOKUP($D127,'C.1 - Rate Sheets'!B:F,2,FALSE) -> 0 | L127: =VLOOKUP($D127,'C.1 - Rate Sheets'!B:F,3,FALSE) -> 150 | M127: =VLOOKUP($D127,'C.1 - Rate Sheets'!B:F,4,FALSE) -> 0 | N127: =VLOOKUP($D127,'C.1 - Rate Sheets'!B:F,5,FALSE) -> 0 | AC127: 16 | AD127: 16 | AE127: 16 | AF127: 16 | AG127: 16 | AH127: 16 | AI127: 16 | GB127: 112 | GE127: 112 | GF127: 0 | GG127: 16800 | GH127: 0 | GI127: 0 | GJ127: 16800 | GK127: 16800 | GL127: Yes | GM127: 0 | GN127: 0 | GO127: 0
B128: 110 | D128: MOT CREW | E128: Vendor No.04 | F128: Mot 22 | G128: 1249 | H128: 2018-10-21 | I128: 2018-10-27 | J128: =IF(AND(H128>='A - Contractor Summary'!$C$36,I128<='A - Contractor Summary'!$C$42),"Yes","No") -> Yes | K128: =VLOOKUP($D128,'C.1 - Rate Sheets'!B:F,2,FALSE) -> 0 | L128: =VLOOKUP($D128,'C.1 - Rate Sheets'!B:F,3,FALSE) -> 150 | M128: =VLOOKUP($D128,'C.1 - Rate Sheets'!B:F,4,FALSE) -> 0 | N128: =VLOOKUP($D128,'C.1 - Rate Sheets'!B:F,5,FALSE) -> 0 | AC128: 16 | AD128: 16 | AE128: 16 | AF128: 16 | AG128: 16 | AH128: 16 | AI128: 16 | GB128: 112 | GE128: 112 | GF128: 0 | GG128: 16800 | GH128: 0 | GI128: 0 | GJ128: 16800 | GK128: 16800 | GL128: Yes | GM128: 0 | GN128: 0 | GO128: 0
B129: 111 | D129: MOT CREW | E129: Vendor No.04 | F129: Mot 23 | G129: 1249 | H129: 2018-10-21 | I129: 2018-10-27 | J129: =IF(AND(H129>='A - Contractor Summary'!$C$36,I129<='A - Contractor Summary'!$C$42),"Yes","No") -> Yes | K129: =VLOOKUP($D129,'C.1 - Rate Sheets'!B:F,2,FALSE) -> 0 | L129: =VLOOKUP($D129,'C.1 - Rate Sheets'!B:F,3,FALSE) -> 150 | M129: =VLOOKUP($D129,'C.1 - Rate Sheets'!B:F,4,FALSE) -> 0 | N129: =VLOOKUP($D129,'C.1 - Rate Sheets'!B:F,5,FALSE) -> 0 | AC129: 16 | AD129: 16 | AE129: 16 | AF129: 16 | AG129: 16 | AH129: 16 | AI129: 16 | GB129: 112 | GE129: 112 | GF129: 0 | GG129: 16800 | GH129: 0 | GI129: 0 | GJ129: 16800 | GK129: 16800 | GL129: Yes | GM129: 0 | GN129: 0 | GO129: 0
B130: 112 | D130: MOT CREW | E130: Vendor No.04 | F130: Mot 24 | G130: 1249 | H130: 2018-10-21 | I130: 2018-10-27 | J130: =IF(AND(H130>='A - Contractor Summary'!$C$36,I130<='A - Contractor Summary'!$C$42),"Yes","No") -> Yes | K130: =VLOOKUP($D130,'C.1 - Rate Sheets'!B:F,2,FALSE) -> 0 | L130: =VLOOKUP($D130,'C.1 - Rate Sheets'!B:F,3,FALSE) -> 150 | M130: =VLOOKUP($D130,'C.1 - Rate Sheets'!B:F,4,FALSE) -> 0 | N130: =VLOOKUP($D130,'C.1 - Rate Sheets'!B:F,5,FALSE) -> 0 | AC130: 16 | AD130: 16 | AE130: 16 | AF130: 16 | AG130: 16 | AH130: 16 | AI130: 16 | GB130: 112 | GE130: 112 | GF130: 0 | GG130: 16800 | GH130: 0 | GI130: 0 | GJ130: 16800 | GK130: 16800 | GL130: Yes | GM130: 0 | GN130: 0 | GO130: 0
B131: 113 | D131: MOT CREW | E131: Vendor No.04 | F131: Mot 25 | G131: 1249 | H131: 2018-10-21 | I131: 2018-10-27 | J131: =IF(AND(H131>='A - Contractor Summary'!$C$36,I131<='A - Contractor Summary'!$C$42),"Yes","No") -> Yes | K131: =VLOOKUP($D131,'C.1 - Rate Sheets'!B:F,2,FALSE) -> 0 | L131: =VLOOKUP($D131,'C.1 - Rate Sheets'!B:F,3,FALSE) -> 150 | M131: =VLOOKUP($D131,'C.1 - Rate Sheets'!B:F,4,FALSE) -> 0 | N131: =VLOOKUP($D131,'C.1 - Rate Sheets'!B:F,5,FALSE) -> 0 | AC131: 16 | AD131: 16 | AE131: 16 | AF131: 16 | AG131: 16 | AH131: 16 | AI131: 16 | GB131: 112 | GE131: 112 | GF131: 0 | GG131: 16800 | GH131: 0 | GI131: 0 | GJ131: 16800 | GK131: 16800 | GL131: Yes | GM131: 0 | GN131: 0 | GO131: 0
B132: 114 | D132: MOT CREW | E132: Vendor No.04 | F132: Mot 26 | G132: 1249 | H132: 2018-10-21 | I132: 2018-10-27 | J132: =IF(AND(H132>='A - Contractor Summary'!$C$36,I132<='A - Contractor Summary'!$C$42),"Yes","No") -> Yes | K132: =VLOOKUP($D132,'C.1 - Rate Sheets'!B:F,2,FALSE) -> 0 | L132: =VLOOKUP($D132,'C.1 - Rate Sheets'!B:F,3,FALSE) -> 150 | M132: =VLOOKUP($D132,'C.1 - Rate Sheets'!B:F,4,FALSE) -> 0 | N132: =VLOOKUP($D132,'C.1 - Rate Sheets'!B:F,5,FALSE) -> 0 | AC132: 16 | AD132: 16 | AE132: 16 | AF132: 16 | AG132: 16 | AH132: 16 | AI132: 16 | GB132: 112 | GE132: 112 | GF132: 0 | GG132: 16800 | GH132: 0 | GI132: 0 | GJ132: 16800 | GK132: 16800 | GL132: Yes | GM132: 0 | GN132: 0 | GO132: 0
B133: 115 | D133: MOT CREW | E133: Vendor No.04 | F133: Mot 27 | G133: 1249 | H133: 2018-10-21 | I133: 2018-10-27 | J133: =IF(AND(H133>='A - Contractor Summary'!$C$36,I133<='A - Contractor Summary'!$C$42),"Yes","No") -> Yes | K133: =VLOOKUP($D133,'C.1 - Rate Sheets'!B:F,2,FALSE) -> 0 | L133: =VLOOKUP($D133,'C.1 - Rate Sheets'!B:F,3,FALSE) -> 150 | M133: =VLOOKUP($D133,'C.1 - Rate Sheets'!B:F,4,FALSE) -> 0 | N133: =VLOOKUP($D133,'C.1 - Rate Sheets'!B:F,5,FALSE) -> 0 | AC133: 16 | AD133: 16 | AE133: 16 | AF133: 16 | AG133: 16 | AH133: 16 | AI133: 16 | GB133: 112 | GE133: 112 | GF133: 0 | GG133: 16800 | GH133: 0 | GI133: 0 | GJ133: 16800 | GK133: 16800 | GL133: Yes | GM133: 0 | GN133: 0 | GO133: 0
B134: 116 | D134: MOT CREW | E134: Vendor No.04 | F134: Mot 28 | G134: 1249 | H134: 2018-10-21 | I134: 2018-10-27 | J134: =IF(AND(H134>='A - Contractor Summary'!$C$36,I134<='A - Contractor Summary'!$C$42),"Yes","No") -> Yes | K134: =VLOOKUP($D134,'C.1 - Rate Sheets'!B:F,2,FALSE) -> 0 | L134: =VLOOKUP($D134,'C.1 - Rate Sheets'!B:F,3,FALSE) -> 150 | M134: =VLOOKUP($D134,'C.1 - Rate Sheets'!B:F,4,FALSE) -> 0 | N134: =VLOOKUP($D134,'C.1 - Rate Sheets'!B:F,5,FALSE) -> 0 | AC134: 16 | AD134: 16 | AE134: 16 | AF134: 16 | AG134: 16 | AH134: 16 | AI134: 16 | GB134: 112 | GE134: 112 | GF134: 0 | GG134: 16800 | GH134: 0 | GI134: 0 | GJ134: 16800 | GK134: 16800 | GL134: Yes | GM134: 0 | GN134: 0 | GO134: 0
B135: 117 | D135: MOT CREW | E135: Vendor No.04 | F135: Mot 29 | G135: 1249 | H135: 2018-10-21 | I135: 2018-10-27 | J135: =IF(AND(H135>='A - Contractor Summary'!$C$36,I135<='A - Contractor Summary'!$C$42),"Yes","No") -> Yes | K135: =VLOOKUP($D135,'C.1 - Rate Sheets'!B:F,2,FALSE) -> 0 | L135: =VLOOKUP($D135,'C.1 - Rate Sheets'!B:F,3,FALSE) -> 150 | M135: =VLOOKUP($D135,'C.1 - Rate Sheets'!B:F,4,FALSE) -> 0 | N135: =VLOOKUP($D135,'C.1 - Rate Sheets'!B:F,5,FALSE) -> 0 | AC135: 16 | AD135: 16 | AE135: 16 | AF135: 16 | AG135: 16 | AH135: 16 | AI135: 16 | GB135: 112 | GE135: 112 | GF135: 0 | GG135: 16800 | GH135: 0 | GI135: 0 | GJ135: 16800 | GK135: 16800 | GL135: Yes | GM135: 0 | GN135: 0 | GO135: 0
B136: 118 | D136: MOT CREW | E136: Vendor No.04 | F136: Mot 30 | G136: 1249 | H136: 2018-10-21 | I136: 2018-10-27 | J136: =IF(AND(H136>='A - Contractor Summary'!$C$36,I136<='A - Contractor Summary'!$C$42),"Yes","No") -> Yes | K136: =VLOOKUP($D136,'C.1 - Rate Sheets'!B:F,2,FALSE) -> 0 | L136: =VLOOKUP($D136,'C.1 - Rate Sheets'!B:F,3,FALSE) -> 150 | M136: =VLOOKUP($D136,'C.1 - Rate Sheets'!B:F,4,FALSE) -> 0 | N136: =VLOOKUP($D136,'C.1 - Rate Sheets'!B:F,5,FALSE) -> 0 | AC136: 16 | AD136: 16 | AE136: 16 | AF136: 16 | AG136: 16 | AH136: 16 | AI136: 16 | GB136: 112 | GE136: 112 | GF136: 0 | GG136: 16800 | GH136: 0 | GI136: 0 | GJ136: 16800 | GK136: 16800 | GL136: Yes | GM136: 0 | GN136: 0 | GO136: 0
B137: 119 | D137: MOT CREW | E137: Vendor No.04 | F137: Mot 31 | G137: 1249 | H137: 2018-10-21 | I137: 2018-10-27 | J137: =IF(AND(H137>='A - Contractor Summary'!$C$36,I137<='A - Contractor Summary'!$C$42),"Yes","No") -> Yes | K137: =VLOOKUP($D137,'C.1 - Rate Sheets'!B:F,2,FALSE) -> 0 | L137: =VLOOKUP($D137,'C.1 - Rate Sheets'!B:F,3,FALSE) -> 150 | M137: =VLOOKUP($D137,'C.1 - Rate Sheets'!B:F,4,FALSE) -> 0 | N137: =VLOOKUP($D137,'C.1 - Rate Sheets'!B:F,5,FALSE) -> 0 | AC137: 16 | AD137: 16 | AE137: 16 | AF137: 16 | AG137: 16 | AH137: 16 | AI137: 16 | GB137: 112 | GE137: 112 | GF137: 0 | GG137: 16800 | GH137: 0 | GI137: 0 | GJ137: 16800 | GK137: 16800 | GL137: Yes | GM137: 0 | GN137: 0 | GO137: 0
B138: 120 | D138: MOT CREW | E138: Vendor No.04 | F138: Mot 32 | G138: 1249 | H138: 2018-10-21 | I138: 2018-10-27 | J138: =IF(AND(H138>='A - Contractor Summary'!$C$36,I138<='A - Contractor Summary'!$C$42),"Yes","No") -> Yes | K138: =VLOOKUP($D138,'C.1 - Rate Sheets'!B:F,2,FALSE) -> 0 | L138: =VLOOKUP($D138,'C.1 - Rate Sheets'!B:F,3,FALSE) -> 150 | M138: =VLOOKUP($D138,'C.1 - Rate Sheets'!B:F,4,FALSE) -> 0 | N138: =VLOOKUP($D138,'C.1 - Rate Sheets'!B:F,5,FALSE) -> 0 | AC138: 16 | AD138: 16 | AE138: 16 | AF138: 16 | AG138: 16 | AH138: 16 | AI138: 16 | GB138: 112 | GE138: 112 | GF138: 0 | GG138: 16800 | GH138: 0 | GI138: 0 | GJ138: 16800 | GK138: 16800 | GL138: Yes | GM138: 0 | GN138: 0 | GO138: 0
B139: 121 | D139: MOT CREW | E139: Vendor No.04 | F139: Mot 33 | G139: 1249 | H139: 2018-10-21 | I139: 2018-10-27 | J139: =IF(AND(H139>='A - Contractor Summary'!$C$36,I139<='A - Contractor Summary'!$C$42),"Yes","No") -> Yes | K139: =VLOOKUP($D139,'C.1 - Rate Sheets'!B:F,2,FALSE) -> 0 | L139: =VLOOKUP($D139,'C.1 - Rate Sheets'!B:F,3,FALSE) -> 150 | M139: =VLOOKUP($D139,'C.1 - Rate Sheets'!B:F,4,FALSE) -> 0 | N139: =VLOOKUP($D139,'C.1 - Rate Sheets'!B:F,5,FALSE) -> 0 | AC139: 16 | AD139: 16 | AE139: 16 | AF139: 16 | AG139: 16 | AH139: 16 | AI139: 16 | GB139: 112 | GE139: 112 | GF139: 0 | GG139: 16800 | GH139: 0 | GI139: 0 | GJ139: 16800 | GK139: 16800 | GL139: Yes | GM139: 0 | GN139: 0 | GO139: 0
B140: 122 | D140: MOT CREW | E140: Vendor No.04 | F140: Mot 34 | G140: 1249 | H140: 2018-10-21 | I140: 2018-10-27 | J140: =IF(AND(H140>='A - Contractor Summary'!$C$36,I140<='A - Contractor Summary'!$C$42),"Yes","No") -> Yes | K140: =VLOOKUP($D140,'C.1 - Rate Sheets'!B:F,2,FALSE) -> 0 | L140: =VLOOKUP($D140,'C.1 - Rate Sheets'!B:F,3,FALSE) -> 150 | M140: =VLOOKUP($D140,'C.1 - Rate Sheets'!B:F,4,FALSE) -> 0 | N140: =VLOOKUP($D140,'C.1 - Rate Sheets'!B:F,5,FALSE) -> 0 | AC140: 16 | AD140: 16 | AE140: 16 | AF140: 16 | AG140: 16 | AH140: 16 | AI140: 16 | GB140: 112 | GE140: 112 | GF140: 0 | GG140: 16800 | GH140: 0 | GI140: 0 | GJ140: 16800 | GK140: 16800 | GL140: Yes | GM140: 0 | GN140: 0 | GO140: 0
B141: 123 | D141: MOT CREW | E141: Vendor No.04 | F141: Mot 35 | G141: 1249 | H141: 2018-10-21 | I141: 2018-10-27 | J141: =IF(AND(H141>='A - Contractor Summary'!$C$36,I141<='A - Contractor Summary'!$C$42),"Yes","No") -> Yes | K141: =VLOOKUP($D141,'C.1 - Rate Sheets'!B:F,2,FALSE) -> 0 | L141: =VLOOKUP($D141,'C.1 - Rate Sheets'!B:F,3,FALSE) -> 150 | M141: =VLOOKUP($D141,'C.1 - Rate Sheets'!B:F,4,FALSE) -> 0 | N141: =VLOOKUP($D141,'C.1 - Rate Sheets'!B:F,5,FALSE) -> 0 | AC141: 16 | AD141: 16 | AE141: 16 | AF141: 16 | AG141: 16 | AH141: 16 | AI141: 16 | GB141: 112 | GE141: 112 | GF141: 0 | GG141: 16800 | GH141: 0 | GI141: 0 | GJ141: 16800 | GK141: 16800 | GL141: Yes | GM141: 0 | GN141: 0 | GO141: 0
B142: 124 | D142: MOT CREW | E142: Vendor No.04 | F142: Mot 36 | G142: 1249 | H142: 2018-10-21 | I142: 2018-10-27 | J142: =IF(AND(H142>='A - Contractor Summary'!$C$36,I142<='A - Contractor Summary'!$C$42),"Yes","No") -> Yes | K142: =VLOOKUP($D142,'C.1 - Rate Sheets'!B:F,2,FALSE) -> 0 | L142: =VLOOKUP($D142,'C.1 - Rate Sheets'!B:F,3,FALSE) -> 150 | M142: =VLOOKUP($D142,'C.1 - Rate Sheets'!B:F,4,FALSE) -> 0 | N142: =VLOOKUP($D142,'C.1 - Rate Sheets'!B:F,5,FALSE) -> 0 | AC142: 16 | AD142: 16 | AE142: 16 | AF142: 16 | AG142: 16 | AH142: 16 | AI142: 16 | GB142: 112 | GE142: 112 | GF142: 0 | GG142: 16800 | GH142: 0 | GI142: 0 | GJ142: 16800 | GK142: 16800 | GL142: Yes | GM142: 0 | GN142: 0 | GO142: 0
B143: 125 | D143: MOT CREW | E143: Vendor No.04 | F143: Mot 37 | G143: 1249 | H143: 2018-10-21 | I143: 2018-10-27 | J143: =IF(AND(H143>='A - Contractor Summary'!$C$36,I143<='A - Contractor Summary'!$C$42),"Yes","No") -> Yes | K143: =VLOOKUP($D143,'C.1 - Rate Sheets'!B:F,2,FALSE) -> 0 | L143: =VLOOKUP($D143,'C.1 - Rate Sheets'!B:F,3,FALSE) -> 150 | M143: =VLOOKUP($D143,'C.1 - Rate Sheets'!B:F,4,FALSE) -> 0 | N143: =VLOOKUP($D143,'C.1 - Rate Sheets'!B:F,5,FALSE) -> 0 | AC143: 16 | AD143: 16 | AE143: 16 | AF143: 16 | AG143: 16 | AH143: 16 | AI143: 16 | GB143: 112 | GE143: 112 | GF143: 0 | GG143: 16800 | GH143: 0 | GI143: 0 | GJ143: 16800 | GK143: 16800 | GL143: Yes | GM143: 0 | GN143: 0 | GO143: 0
B144: 126 | D144: MOT CREW | E144: Vendor No.04 | F144: Mot 38 | G144: 1249 | H144: 2018-10-21 | I144: 2018-10-27 | J144: =IF(AND(H144>='A - Contractor Summary'!$C$36,I144<='A - Contractor Summary'!$C$42),"Yes","No") -> Yes | K144: =VLOOKUP($D144,'C.1 - Rate Sheets'!B:F,2,FALSE) -> 0 | L144: =VLOOKUP($D144,'C.1 - Rate Sheets'!B:F,3,FALSE) -> 150 | M144: =VLOOKUP($D144,'C.1 - Rate Sheets'!B:F,4,FALSE) -> 0 | N144: =VLOOKUP($D144,'C.1 - Rate Sheets'!B:F,5,FALSE) -> 0 | AC144: 16 | AD144: 16 | AE144: 16 | AF144: 16 | AG144: 16 | AH144: 16 | AI144: 16 | GB144: 112 | GE144: 112 | GF144: 0 | GG144: 16800 | GH144: 0 | GI144: 0 | GJ144: 16800 | GK144: 16800 | GL144: Yes | GM144: 0 | GN144: 0 | GO144: 0
B145: 127 | D145: MOT CREW | E145: Vendor No.04 | F145: Mot 39 | G145: 1249 | H145: 2018-10-21 | I145: 2018-10-27 | J145: =IF(AND(H145>='A - Contractor Summary'!$C$36,I145<='A - Contractor Summary'!$C$42),"Yes","No") -> Yes | K145: =VLOOKUP($D145,'C.1 - Rate Sheets'!B:F,2,FALSE) -> 0 | L145: =VLOOKUP($D145,'C.1 - Rate Sheets'!B:F,3,FALSE) -> 150 | M145: =VLOOKUP($D145,'C.1 - Rate Sheets'!B:F,4,FALSE) -> 0 | N145: =VLOOKUP($D145,'C.1 - Rate Sheets'!B:F,5,FALSE) -> 0 | AC145: 16 | AD145: 16 | AE145: 16 | AF145: 16 | AG145: 16 | AH145: 16 | AI145: 16 | GB145: 112 | GE145: 112 | GF145: 0 | GG145: 16800 | GH145: 0 | GI145: 0 | GJ145: 16800 | GK145: 16800 | GL145: Yes | GM145: 0 | GN145: 0 | GO145: 0
B146: 128 | D146: MOT CREW | E146: Vendor No.04 | F146: Mot 40 | G146: 1249 | H146: 2018-10-21 | I146: 2018-10-27 | J146: =IF(AND(H146>='A - Contractor Summary'!$C$36,I146<='A - Contractor Summary'!$C$42),"Yes","No") -> Yes | K146: =VLOOKUP($D146,'C.1 - Rate Sheets'!B:F,2,FALSE) -> 0 | L146: =VLOOKUP($D146,'C.1 - Rate Sheets'!B:F,3,FALSE) -> 150 | M146: =VLOOKUP($D146,'C.1 - Rate Sheets'!B:F,4,FALSE) -> 0 | N146: =VLOOKUP($D146,'C.1 - Rate Sheets'!B:F,5,FALSE) -> 0 | AC146: 16 | AD146: 16 | AE146: 16 | AF146: 16 | AG146: 16 | AH146: 16 | AI146: 16 | GB146: 112 | GE146: 112 | GF146: 0 | GG146: 16800 | GH146: 0 | GI146: 0 | GJ146: 16800 | GK146: 16800 | GL146: Yes | GM146: 0 | GN146: 0 | GO146: 0
B147: 129 | D147: MOT CREW | E147: Vendor No.04 | F147: Mot 41 | G147: 1249 | H147: 2018-10-21 | I147: 2018-10-27 | J147: =IF(AND(H147>='A - Contractor Summary'!$C$36,I147<='A - Contractor Summary'!$C$42),"Yes","No") -> Yes | K147: =VLOOKUP($D147,'C.1 - Rate Sheets'!B:F,2,FALSE) -> 0 | L147: =VLOOKUP($D147,'C.1 - Rate Sheets'!B:F,3,FALSE) -> 150 | M147: =VLOOKUP($D147,'C.1 - Rate Sheets'!B:F,4,FALSE) -> 0 | N147: =VLOOKUP($D147,'C.1 - Rate Sheets'!B:F,5,FALSE) -> 0 | AC147: 16 | AD147: 16 | AE147: 16 | AF147: 16 | AG147: 16 | AH147: 16 | AI147: 16 | GB147: =SUM(O147:FZ147) -> 112 | GE147: 112 | GF147: =GA147*K147 -> 0 | GG147: =GB147*L147 -> 16800 | GH147: =GC147*M147 -> 0 | GI147: =GD147*N147 -> 0 | GJ147: =SUM(GF147:GI147) -> 16800 | GK147: 16800 | GL147: Yes | GM147: 0 | GN147: 0 | GO147: 0
B148: 130 | D148: MOT CREW | E148: Vendor No.04 | F148: Mot 42 | G148: 1249 | H148: 2018-10-21 | I148: 2018-10-27 | J148: =IF(AND(H148>='A - Contractor Summary'!$C$36,I148<='A - Contractor Summary'!$C$42),"Yes","No") -> Yes | K148: =VLOOKUP($D148,'C.1 - Rate Sheets'!B:F,2,FALSE) -> 0 | L148: =VLOOKUP($D148,'C.1 - Rate Sheets'!B:F,3,FALSE) -> 150 | M148: =VLOOKUP($D148,'C.1 - Rate Sheets'!B:F,4,FALSE) -> 0 | N148: =VLOOKUP($D148,'C.1 - Rate Sheets'!B:F,5,FALSE) -> 0 | AC148: 16 | AD148: 16 | AE148: 16 | AF148: 16 | AG148: 16 | AH148: 16 | AI148: 16 | GB148: 112 | GE148: 112 | GF148: 0 | GG148: 16800 | GH148: 0 | GI148: 0 | GJ148: 16800 | GK148: 16800 | GL148: Yes | GM148: 0 | GN148: 0 | GO148: 0
B149: 131 | D149: MOT CREW | E149: Vendor No.04 | F149: Mot 43 | G149: 1249 | H149: 2018-10-21 | I149: 2018-10-27 | J149: =IF(AND(H149>='A - Contractor Summary'!$C$36,I149<='A - Contractor Summary'!$C$42),"Yes","No") -> Yes | K149: =VLOOKUP($D149,'C.1 - Rate Sheets'!B:F,2,FALSE) -> 0 | L149: =VLOOKUP($D149,'C.1 - Rate Sheets'!B:F,3,FALSE) -> 150 | M149: =VLOOKUP($D149,'C.1 - Rate Sheets'!B:F,4,FALSE) -> 0 | N149: =VLOOKUP($D149,'C.1 - Rate Sheets'!B:F,5,FALSE) -> 0 | AC149: 16 | AD149: 16 | AE149: 16 | AF149: 16 | AG149: 16 | AH149: 16 | AI149: 16 | GB149: 112 | GE149: 112 | GF149: 0 | GG149: 16800 | GH149: 0 | GI149: 0 | GJ149: 16800 | GK149: 16800 | GL149: Yes | GM149: 0 | GN149: 0 | GO149: 0
B150: 132 | D150: MOT CREW | E150: Vendor No.04 | F150: Mot 44 | G150: 1249 | H150: 2018-10-21 | I150: 2018-10-27 | J150: =IF(AND(H150>='A - Contractor Summary'!$C$36,I150<='A - Contractor Summary'!$C$42),"Yes","No") -> Yes | K150: =VLOOKUP($D150,'C.1 - Rate Sheets'!B:F,2,FALSE) -> 0 | L150: =VLOOKUP($D150,'C.1 - Rate Sheets'!B:F,3,FALSE) -> 150 | M150: =VLOOKUP($D150,'C.1 - Rate Sheets'!B:F,4,FALSE) -> 0 | N150: =VLOOKUP($D150,'C.1 - Rate Sheets'!B:F,5,FALSE) -> 0 | AC150: 16 | AD150: 16 | AE150: 16 | AF150: 16 | AG150: 16 | AH150: 16 | AI150: 16 | GB150: 112 | GE150: 112 | GF150: 0 | GG150: 16800 | GH150: 0 | GI150: 0 | GJ150: 16800 | GK150: 16800 | GL150: Yes | GM150: 0 | GN150: 0 | GO150: 0
B151: 133 | D151: MOT CREW | E151: Vendor No.04 | F151: Mot 45 | G151: 1249 | H151: 2018-10-21 | I151: 2018-10-27 | J151: =IF(AND(H151>='A - Contractor Summary'!$C$36,I151<='A - Contractor Summary'!$C$42),"Yes","No") -> Yes | K151: =VLOOKUP($D151,'C.1 - Rate Sheets'!B:F,2,FALSE) -> 0 | L151: =VLOOKUP($D151,'C.1 - Rate Sheets'!B:F,3,FALSE) -> 150 | M151: =VLOOKUP($D151,'C.1 - Rate Sheets'!B:F,4,FALSE) -> 0 | N151: =VLOOKUP($D151,'C.1 - Rate Sheets'!B:F,5,FALSE) -> 0 | AC151: 16 | AD151: 16 | AE151: 16 | AF151: 16 | AG151: 16 | AH151: 16 | AI151: 16 | GB151: 112 | GE151: 112 | GF151: 0 | GG151: 16800 | GH151: 0 | GI151: 0 | GJ151: 16800 | GK151: 16800 | GL151: Yes | GM151: 0 | GN151: 0 | GO151: 0
B152: 134 | D152: MOT CREW | E152: Vendor No.04 | F152: Mot 46 | G152: 1249 | H152: 2018-10-21 | I152: 2018-10-27 | J152: =IF(AND(H152>='A - Contractor Summary'!$C$36,I152<='A - Contractor Summary'!$C$42),"Yes","No") -> Yes | K152: =VLOOKUP($D152,'C.1 - Rate Sheets'!B:F,2,FALSE) -> 0 | L152: =VLOOKUP($D152,'C.1 - Rate Sheets'!B:F,3,FALSE) -> 150 | M152: =VLOOKUP($D152,'C.1 - Rate Sheets'!B:F,4,FALSE) -> 0 | N152: =VLOOKUP($D152,'C.1 - Rate Sheets'!B:F,5,FALSE) -> 0 | AC152: 16 | AD152: 16 | AE152: 16 | AF152: 16 | AG152: 16 | AH152: 16 | AI152: 16 | GB152: 112 | GE152: 112 | GF152: 0 | GG152: 16800 | GH152: 0 | GI152: 0 | GJ152: 16800 | GK152: 16800 | GL152: Yes | GM152: 0 | GN152: 0 | GO152: 0
B153: 135 | D153: MOT CREW | E153: Vendor No.04 | F153: Mot 47 | G153: 1249 | H153: 2018-10-21 | I153: 2018-10-27 | J153: =IF(AND(H153>='A - Contractor Summary'!$C$36,I153<='A - Contractor Summary'!$C$42),"Yes","No") -> Yes | K153: =VLOOKUP($D153,'C.1 - Rate Sheets'!B:F,2,FALSE) -> 0 | L153: =VLOOKUP($D153,'C.1 - Rate Sheets'!B:F,3,FALSE) -> 150 | M153: =VLOOKUP($D153,'C.1 - Rate Sheets'!B:F,4,FALSE) -> 0 | N153: =VLOOKUP($D153,'C.1 - Rate Sheets'!B:F,5,FALSE) -> 0 | AC153: 16 | AD153: 16 | AE153: 16 | AF153: 16 | AG153: 16 | AH153: 16 | AI153: 16 | GB153: 112 | GE153: 112 | GF153: 0 | GG153: 16800 | GH153: 0 | GI153: 0 | GJ153: 16800 | GK153: 16800 | GL153: Yes | GM153: 0 | GN153: 0 | GO153: 0
B154: 136 | D154: MOT CREW | E154: Vendor No.04 | F154: Mot 48 | G154: 1249 | H154: 2018-10-21 | I154: 2018-10-27 | J154: =IF(AND(H154>='A - Contractor Summary'!$C$36,I154<='A - Contractor Summary'!$C$42),"Yes","No") -> Yes | K154: =VLOOKUP($D154,'C.1 - Rate Sheets'!B:F,2,FALSE) -> 0 | L154: =VLOOKUP($D154,'C.1 - Rate Sheets'!B:F,3,FALSE) -> 150 | M154: =VLOOKUP($D154,'C.1 - Rate Sheets'!B:F,4,FALSE) -> 0 | N154: =VLOOKUP($D154,'C.1 - Rate Sheets'!B:F,5,FALSE) -> 0 | AC154: 16 | AD154: 16 | AE154: 16 | AF154: 16 | AG154: 16 | AH154: 16 | AI154: 16 | GB154: 112 | GE154: 112 | GF154: 0 | GG154: 16800 | GH154: 0 | GI154: 0 | GJ154: 16800 | GK154: 16800 | GL154: Yes | GM154: 0 | GN154: 0 | GO154: 0
B155: 137 | D155: MOT CREW | E155: Vendor No.04 | F155: Mot 49 | G155: 1249 | H155: 2018-10-21 | I155: 2018-10-27 | J155: =IF(AND(H155>='A - Contractor Summary'!$C$36,I155<='A - Contractor Summary'!$C$42),"Yes","No") -> Yes | K155: =VLOOKUP($D155,'C.1 - Rate Sheets'!B:F,2,FALSE) -> 0 | L155: =VLOOKUP($D155,'C.1 - Rate Sheets'!B:F,3,FALSE) -> 150 | M155: =VLOOKUP($D155,'C.1 - Rate Sheets'!B:F,4,FALSE) -> 0 | N155: =VLOOKUP($D155,'C.1 - Rate Sheets'!B:F,5,FALSE) -> 0 | AC155: 16 | AD155: 16 | AE155: 16 | AF155: 16 | AG155: 16 | AH155: 16 | AI155: 16 | GB155: 112 | GE155: 112 | GF155: 0 | GG155: 16800 | GH155: 0 | GI155: 0 | GJ155: 16800 | GK155: 16800 | GL155: Yes | GM155: 0 | GN155: 0 | GO155: 0
B156: 138 | D156: MOT CREW | E156: Vendor No.04 | F156: Mot 50 | G156: 1249 | H156: 2018-10-21 | I156: 2018-10-27 | J156: =IF(AND(H156>='A - Contractor Summary'!$C$36,I156<='A - Contractor Summary'!$C$42),"Yes","No") -> Yes | K156: =VLOOKUP($D156,'C.1 - Rate Sheets'!B:F,2,FALSE) -> 0 | L156: =VLOOKUP($D156,'C.1 - Rate Sheets'!B:F,3,FALSE) -> 150 | M156: =VLOOKUP($D156,'C.1 - Rate Sheets'!B:F,4,FALSE) -> 0 | N156: =VLOOKUP($D156,'C.1 - Rate Sheets'!B:F,5,FALSE) -> 0 | AC156: 16 | AD156: 16 | AE156: 16 | AF156: 16 | AG156: 16 | AH156: 16 | AI156: 16 | GB156: 112 | GE156: 112 | GF156: 0 | GG156: 16800 | GH156: 0 | GI156: 0 | GJ156: 16800 | GK156: 16800 | GL156: Yes | GM156: 0 | GN156: 0 | GO156: 0
B157: 139 | D157: MOT CREW | E157: Vendor No.04 | F157: Mot 51 | G157: 1249 | H157: 2018-10-21 | I157: 2018-10-27 | J157: =IF(AND(H157>='A - Contractor Summary'!$C$36,I157<='A - Contractor Summary'!$C$42),"Yes","No") -> Yes | K157: =VLOOKUP($D157,'C.1 - Rate Sheets'!B:F,2,FALSE) -> 0 | L157: =VLOOKUP($D157,'C.1 - Rate Sheets'!B:F,3,FALSE) -> 150 | M157: =VLOOKUP($D157,'C.1 - Rate Sheets'!B:F,4,FALSE) -> 0 | N157: =VLOOKUP($D157,'C.1 - Rate Sheets'!B:F,5,FALSE) -> 0 | AC157: 16 | AD157: 16 | AE157: 16 | AF157: 16 | AG157: 16 | AH157: 16 | AI157: 16 | GB157: 112 | GE157: 112 | GF157: 0 | GG157: 16800 | GH157: 0 | GI157: 0 | GJ157: 16800 | GK157: 16800 | GL157: Yes | GM157: 0 | GN157: 0 | GO157: 0
B158: 140 | D158: MOT CREW | E158: Vendor No.04 | F158: Mot 52 | G158: 1249 | H158: 2018-10-21 | I158: 2018-10-27 | J158: =IF(AND(H158>='A - Contractor Summary'!$C$36,I158<='A - Contractor Summary'!$C$42),"Yes","No") -> Yes | K158: =VLOOKUP($D158,'C.1 - Rate Sheets'!B:F,2,FALSE) -> 0 | L158: =VLOOKUP($D158,'C.1 - Rate Sheets'!B:F,3,FALSE) -> 150 | M158: =VLOOKUP($D158,'C.1 - Rate Sheets'!B:F,4,FALSE) -> 0 | N158: =VLOOKUP($D158,'C.1 - Rate Sheets'!B:F,5,FALSE) -> 0 | AC158: 16 | AD158: 16 | AE158: 16 | AF158: 16 | AG158: 16 | AH158: 16 | AI158: 16 | GB158: 112 | GE158: 112 | GF158: 0 | GG158: 16800 | GH158: 0 | GI158: 0 | GJ158: 16800 | GK158: 16800 | GL158: Yes | GM158: 0 | GN158: 0 | GO158: 0
B159: 141 | D159: CLEAR CREW | E159: Vendor No.04 | F159: Clear 1 | G159: 1249 | H159: 2018-10-21 | I159: 2018-10-27 | J159: =IF(AND(H159>='A - Contractor Summary'!$C$36,I159<='A - Contractor Summary'!$C$42),"Yes","No") -> Yes | K159: =VLOOKUP($D159,'C.1 - Rate Sheets'!B:F,2,FALSE) -> 0 | L159: =VLOOKUP($D159,'C.1 - Rate Sheets'!B:F,3,FALSE) -> 200 | M159: =VLOOKUP($D159,'C.1 - Rate Sheets'!B:F,4,FALSE) -> 0 | N159: =VLOOKUP($D159,'C.1 - Rate Sheets'!B:F,5,FALSE) -> 0 | AC159: 16 | AD159: 16 | AE159: 16 | AF159: 16 | AG159: 16 | AH159: 16 | AI159: 16 | GB159: 112 | GE159: 112 | GF159: 0 | GG159: 22400 | GH159: 0 | GI159: 0 | GJ159: 22400 | GK159: 22400 | GL159: Yes | GM159: 0 | GN159: 0 | GO159: 0
B160: 142 | D160: CLEAR CREW | E160: Vendor No.04 | F160: Clear 2 | G160: 1249 | H160: 2018-10-21 | I160: 2018-10-27 | J160: =IF(AND(H160>='A - Contractor Summary'!$C$36,I160<='A - Contractor Summary'!$C$42),"Yes","No") -> Yes | K160: =VLOOKUP($D160,'C.1 - Rate Sheets'!B:F,2,FALSE) -> 0 | L160: =VLOOKUP($D160,'C.1 - Rate Sheets'!B:F,3,FALSE) -> 200 | M160: =VLOOKUP($D160,'C.1 - Rate Sheets'!B:F,4,FALSE) -> 0 | N160: =VLOOKUP($D160,'C.1 - Rate Sheets'!B:F,5,FALSE) -> 0 | AC160: 16 | AD160: 16 | AE160: 16 | AF160: 16 | AG160: 16 | AH160: 16 | AI160: 16 | GB160: 112 | GE160: 112 | GF160: 0 | GG160: 22400 | GH160: 0 | GI160: 0 | GJ160: 22400 | GK160: 22400 | GL160: Yes | GM160: 0 | GN160: 0 | GO160: 0
B161: 143 | D161: CLEAR CREW | E161: Vendor No.04 | F161: Clear 3 | G161: 1249 | H161: 2018-10-21 | I161: 2018-10-27 | J161: =IF(AND(H161>='A - Contractor Summary'!$C$36,I161<='A - Contractor Summary'!$C$42),"Yes","No") -> Yes | K161: =VLOOKUP($D161,'C.1 - Rate Sheets'!B:F,2,FALSE) -> 0 | L161: =VLOOKUP($D161,'C.1 - Rate Sheets'!B:F,3,FALSE) -> 200 | M161: =VLOOKUP($D161,'C.1 - Rate Sheets'!B:F,4,FALSE) -> 0 | N161: =VLOOKUP($D161,'C.1 - Rate Sheets'!B:F,5,FALSE) -> 0 | AC161: 16 | AD161: 16 | AE161: 16 | AF161: 16 | AG161: 16 | AH161: 16 | AI161: 16 | GB161: 112 | GE161: 112 | GF161: 0 | GG161: 22400 | GH161: 0 | GI161: 0 | GJ161: 22400 | GK161: 22400 | GL161: Yes | GM161: 0 | GN161: 0 | GO161: 0
B162: 144 | D162: CLEAR CREW | E162: Vendor No.04 | F162: Clear 4 | G162: 1249 | H162: 2018-10-21 | I162: 2018-10-27 | J162: =IF(AND(H162>='A - Contractor Summary'!$C$36,I162<='A - Contractor Summary'!$C$42),"Yes","No") -> Yes | K162: =VLOOKUP($D162,'C.1 - Rate Sheets'!B:F,2,FALSE) -> 0 | L162: =VLOOKUP($D162,'C.1 - Rate Sheets'!B:F,3,FALSE) -> 200 | M162: =VLOOKUP($D162,'C.1 - Rate Sheets'!B:F,4,FALSE) -> 0 | N162: =VLOOKUP($D162,'C.1 - Rate Sheets'!B:F,5,FALSE) -> 0 | AC162: 16 | AD162: 16 | AE162: 16 | AF162: 16 | AG162: 16 | AH162: 16 | AI162: 16 | GB162: 112 | GE162: 112 | GF162: 0 | GG162: 22400 | GH162: 0 | GI162: 0 | GJ162: 22400 | GK162: 22400 | GL162: Yes | GM162: 0 | GN162: 0 | GO162: 0
B163: 145 | D163: CLEAR CREW | E163: Vendor No.04 | F163: Clear 5 | G163: 1249 | H163: 2018-10-21 | I163: 2018-10-27 | J163: =IF(AND(H163>='A - Contractor Summary'!$C$36,I163<='A - Contractor Summary'!$C$42),"Yes","No") -> Yes | K163: =VLOOKUP($D163,'C.1 - Rate Sheets'!B:F,2,FALSE) -> 0 | L163: =VLOOKUP($D163,'C.1 - Rate Sheets'!B:F,3,FALSE) -> 200 | M163: =VLOOKUP($D163,'C.1 - Rate Sheets'!B:F,4,FALSE) -> 0 | N163: =VLOOKUP($D163,'C.1 - Rate Sheets'!B:F,5,FALSE) -> 0 | AC163: 16 | AD163: 16 | AE163: 16 | AF163: 16 | AG163: 16 | AH163: 16 | AI163: 16 | GB163: 112 | GE163: 112 | GF163: 0 | GG163: 22400 | GH163: 0 | GI163: 0 | GJ163: 22400 | GK163: 22400 | GL163: Yes | GM163: 0 | GN163: 0 | GO163: 0
B164: 146 | D164: CLEAR CREW | E164: Vendor No.04 | F164: Clear 6 | G164: 1249 | H164: 2018-10-21 | I164: 2018-10-27 | J164: =IF(AND(H164>='A - Contractor Summary'!$C$36,I164<='A - Contractor Summary'!$C$42),"Yes","No") -> Yes | K164: =VLOOKUP($D164,'C.1 - Rate Sheets'!B:F,2,FALSE) -> 0 | L164: =VLOOKUP($D164,'C.1 - Rate Sheets'!B:F,3,FALSE) -> 200 | M164: =VLOOKUP($D164,'C.1 - Rate Sheets'!B:F,4,FALSE) -> 0 | N164: =VLOOKUP($D164,'C.1 - Rate Sheets'!B:F,5,FALSE) -> 0 | AC164: 16 | AD164: 16 | AE164: 16 | AF164: 16 | AG164: 16 | AH164: 16 | AI164: 16 | GB164: 112 | GE164: 112 | GF164: 0 | GG164: 22400 | GH164: 0 | GI164: 0 | GJ164: 22400 | GK164: 22400 | GL164: Yes | GM164: 0 | GN164: 0 | GO164: 0
B165: 147 | D165: CLEAR CREW | E165: Vendor No.04 | F165: Clear 7 | G165: 1249 | H165: 2018-10-21 | I165: 2018-10-27 | J165: =IF(AND(H165>='A - Contractor Summary'!$C$36,I165<='A - Contractor Summary'!$C$42),"Yes","No") -> Yes | K165: =VLOOKUP($D165,'C.1 - Rate Sheets'!B:F,2,FALSE) -> 0 | L165: =VLOOKUP($D165,'C.1 - Rate Sheets'!B:F,3,FALSE) -> 200 | M165: =VLOOKUP($D165,'C.1 - Rate Sheets'!B:F,4,FALSE) -> 0 | N165: =VLOOKUP($D165,'C.1 - Rate Sheets'!B:F,5,FALSE) -> 0 | AC165: 16 | AD165: 16 | AE165: 16 | AF165: 16 | AG165: 16 | AH165: 16 | AI165: 16 | GB165: 112 | GE165: 112 | GF165: 0 | GG165: 22400 | GH165: 0 | GI165: 0 | GJ165: 22400 | GK165: 22400 | GL165: Yes | GM165: 0 | GN165: 0 | GO165: 0
B166: 148 | D166: CLEAR CREW | E166: Vendor No.04 | F166: Clear 8 | G166: 1249 | H166: 2018-10-21 | I166: 2018-10-27 | J166: =IF(AND(H166>='A - Contractor Summary'!$C$36,I166<='A - Contractor Summary'!$C$42),"Yes","No") -> Yes | K166: =VLOOKUP($D166,'C.1 - Rate Sheets'!B:F,2,FALSE) -> 0 | L166: =VLOOKUP($D166,'C.1 - Rate Sheets'!B:F,3,FALSE) -> 200 | M166: =VLOOKUP($D166,'C.1 - Rate Sheets'!B:F,4,FALSE) -> 0 | N166: =VLOOKUP($D166,'C.1 - Rate Sheets'!B:F,5,FALSE) -> 0 | AC166: 16 | AD166: 16 | AE166: 16 | AF166: 16 | AG166: 16 | AH166: 16 | AI166: 16 | GB166: 112 | GE166: 112 | GF166: 0 | GG166: 22400 | GH166: 0 | GI166: 0 | GJ166: 22400 | GK166: 22400 | GL166: Yes | GM166: 0 | GN166: 0 | GO166: 0
B167: 149 | D167: CLEAR CREW | E167: Vendor No.04 | F167: Clear 9 | G167: 1249 | H167: 2018-10-21 | I167: 2018-10-27 | J167: =IF(AND(H167>='A - Contractor Summary'!$C$36,I167<='A - Contractor Summary'!$C$42),"Yes","No") -> Yes | K167: =VLOOKUP($D167,'C.1 - Rate Sheets'!B:F,2,FALSE) -> 0 | L167: =VLOOKUP($D167,'C.1 - Rate Sheets'!B:F,3,FALSE) -> 200 | M167: =VLOOKUP($D167,'C.1 - Rate Sheets'!B:F,4,FALSE) -> 0 | N167: =VLOOKUP($D167,'C.1 - Rate Sheets'!B:F,5,FALSE) -> 0 | AC167: 16 | AD167: 16 | AE167: 16 | AF167: 16 | AG167: 16 | AH167: 16 | AI167: 16 | GB167: 112 | GE167: 112 | GF167: 0 | GG167: 22400 | GH167: 0 | GI167: 0 | GJ167: 22400 | GK167: 22400 | GL167: Yes | GM167: 0 | GN167: 0 | GO167: 0
B168: 150 | D168: CLEAR CREW | E168: Vendor No.04 | F168: Clear 10 | G168: 1249 | H168: 2018-10-21 | I168: 2018-10-27 | J168: =IF(AND(H168>='A - Contractor Summary'!$C$36,I168<='A - Contractor Summary'!$C$42),"Yes","No") -> Yes | K168: =VLOOKUP($D168,'C.1 - Rate Sheets'!B:F,2,FALSE) -> 0 | L168: =VLOOKUP($D168,'C.1 - Rate Sheets'!B:F,3,FALSE) -> 200 | M168: =VLOOKUP($D168,'C.1 - Rate Sheets'!B:F,4,FALSE) -> 0 | N168: =VLOOKUP($D168,'C.1 - Rate Sheets'!B:F,5,FALSE) -> 0 | AC168: 16 | AD168: 16 | AE168: 16 | AF168: 16 | AG168: 16 | AH168: 16 | AI168: 16 | GB168: 112 | GE168: 112 | GF168: 0 | GG168: 22400 | GH168: 0 | GI168: 0 | GJ168: 22400 | GK168: 22400 | GL168: Yes | GM168: 0 | GN168: 0 | GO168: 0
B169: 151 | D169: CLEAR CREW | E169: Vendor No.04 | F169: Clear 11 | G169: 1249 | H169: 2018-10-21 | I169: 2018-10-27 | J169: =IF(AND(H169>='A - Contractor Summary'!$C$36,I169<='A - Contractor Summary'!$C$42),"Yes","No") -> Yes | K169: =VLOOKUP($D169,'C.1 - Rate Sheets'!B:F,2,FALSE) -> 0 | L169: =VLOOKUP($D169,'C.1 - Rate Sheets'!B:F,3,FALSE) -> 200 | M169: =VLOOKUP($D169,'C.1 - Rate Sheets'!B:F,4,FALSE) -> 0 | N169: =VLOOKUP($D169,'C.1 - Rate Sheets'!B:F,5,FALSE) -> 0 | AC169: 16 | AD169: 16 | AE169: 16 | AF169: 16 | AG169: 16 | AH169: 16 | AI169: 16 | GB169: 112 | GE169: 112 | GF169: 0 | GG169: 22400 | GH169: 0 | GI169: 0 | GJ169: 22400 | GK169: 22400 | GL169: Yes | GM169: 0 | GN169: 0 | GO169: 0
B170: 152 | D170: CLEAR CREW | E170: Vendor No.04 | F170: Clear 12 | G170: 1249 | H170: 2018-10-21 | I170: 2018-10-27 | J170: =IF(AND(H170>='A - Contractor Summary'!$C$36,I170<='A - Contractor Summary'!$C$42),"Yes","No") -> Yes | K170: =VLOOKUP($D170,'C.1 - Rate Sheets'!B:F,2,FALSE) -> 0 | L170: =VLOOKUP($D170,'C.1 - Rate Sheets'!B:F,3,FALSE) -> 200 | M170: =VLOOKUP($D170,'C.1 - Rate Sheets'!B:F,4,FALSE) -> 0 | N170: =VLOOKUP($D170,'C.1 - Rate Sheets'!B:F,5,FALSE) -> 0 | AC170: 16 | AD170: 16 | AE170: 16 | AF170: 16 | AG170: 16 | AH170: 16 | AI170: 16 | GB170: 112 | GE170: 112 | GF170: 0 | GG170: 22400 | GH170: 0 | GI170: 0 | GJ170: 22400 | GK170: 22400 | GL170: Yes | GM170: 0 | GN170: 0 | GO170: 0
B171: 153 | D171: CLEAR CREW | E171: Vendor No.04 | F171: Clear 13 | G171: 1249 | H171: =INDEX($O$16:$BK$16,MATCH(TRUE,INDEX((O171:BK171>0),0),0)) -> 2018-10-21 | I171: =LOOKUP(2,1/(1-(O171:BK171<=0)),$O$16:$BK$16) -> 2018-10-27 | J171: =IF(AND(H171>='A - Contractor Summary'!$C$36,I171<='A - Contractor Summary'!$C$42),"Yes","No") -> Yes | K171: =VLOOKUP($D171,'C.1 - Rate Sheets'!B:F,2,FALSE) -> 0 | L171: =VLOOKUP($D171,'C.1 - Rate Sheets'!B:F,3,FALSE) -> 200 | M171: =VLOOKUP($D171,'C.1 - Rate Sheets'!B:F,4,FALSE) -> 0 | N171: =VLOOKUP($D171,'C.1 - Rate Sheets'!B:F,5,FALSE) -> 0 | AC171: 16 | AD171: 16 | AE171: 16 | AF171: 16 | AG171: 16 | AH171: 16 | AI171: 16 | GB171: 112 | GE171: 112 | GF171: 0 | GG171: 22400 | GH171: 0 | GI171: 0 | GJ171: 22400 | GK171: 22400 | GL171: Yes | GM171: 0 | GN171: 0 | GO171: 0
B172: 154 | D172: CLEAR CREW | E172: Vendor No.04 | F172: Clear 14 | G172: 1249 | H172: 2018-10-21 | I172: 2018-10-27 | J172: =IF(AND(H172>='A - Contractor Summary'!$C$36,I172<='A - Contractor Summary'!$C$42),"Yes","No") -> Yes | K172: =VLOOKUP($D172,'C.1 - Rate Sheets'!B:F,2,FALSE) -> 0 | L172: =VLOOKUP($D172,'C.1 - Rate Sheets'!B:F,3,FALSE) -> 200 | M172: =VLOOKUP($D172,'C.1 - Rate Sheets'!B:F,4,FALSE) -> 0 | N172: =VLOOKUP($D172,'C.1 - Rate Sheets'!B:F,5,FALSE) -> 0 | AC172: 16 | AD172: 16 | AE172: 16 | AF172: 16 | AG172: 16 | AH172: 16 | AI172: 16 | GB172: 112 | GE172: 112 | GF172: 0 | GG172: 22400 | GH172: 0 | GI172: 0 | GJ172: 22400 | GK172: 22400 | GL172: Yes | GM172: 0 | GN172: 0 | GO172: 0
B173: 155 | D173: CLEAR CREW | E173: Vendor No.04 | F173: Clear 15 | G173: 1249 | H173: 2018-10-21 | I173: 2018-10-27 | J173: =IF(AND(H173>='A - Contractor Summary'!$C$36,I173<='A - Contractor Summary'!$C$42),"Yes","No") -> Yes | K173: =VLOOKUP($D173,'C.1 - Rate Sheets'!B:F,2,FALSE) -> 0 | L173: =VLOOKUP($D173,'C.1 - Rate Sheets'!B:F,3,FALSE) -> 200 | M173: =VLOOKUP($D173,'C.1 - Rate Sheets'!B:F,4,FALSE) -> 0 | N173: =VLOOKUP($D173,'C.1 - Rate Sheets'!B:F,5,FALSE) -> 0 | AC173: 16 | AD173: 16 | AE173: 16 | AF173: 16 | AG173: 16 | AH173: 16 | AI173: 16 | GB173: 112 | GE173: 112 | GF173: 0 | GG173: 22400 | GH173: 0 | GI173: 0 | GJ173: 22400 | GK173: =GJ173-GM173 -> 22400 | GL173: Yes | GM173: 0 | GN173: 0 | GO173: 0
B174: 156 | D174: CLEAR CREW | E174: Vendor No.04 | F174: Clear 16 | G174: 1249 | H174: 2018-10-21 | I174: 2018-10-27 | J174: =IF(AND(H174>='A - Contractor Summary'!$C$36,I174<='A - Contractor Summary'!$C$42),"Yes","No") -> Yes | K174: =VLOOKUP($D174,'C.1 - Rate Sheets'!B:F,2,FALSE) -> 0 | L174: =VLOOKUP($D174,'C.1 - Rate Sheets'!B:F,3,FALSE) -> 200 | M174: =VLOOKUP($D174,'C.1 - Rate Sheets'!B:F,4,FALSE) -> 0 | N174: =VLOOKUP($D174,'C.1 - Rate Sheets'!B:F,5,FALSE) -> 0 | AC174: 16 | AD174: 16 | AE174: 16 | AF174: 16 | AG174: 16 | AH174: 16 | AI174: 16 | GB174: 112 | GE174: 112 | GF174: 0 | GG174: 22400 | GH174: 0 | GI174: 0 | GJ174: 22400 | GK174: 22400 | GL174: Yes | GM174: 0 | GN174: 0 | GO174: 0
B175: 157 | D175: CLEAR CREW | E175: Vendor No.04 | F175: Clear 17 | G175: 1249 | H175: 2018-10-21 | I175: 2018-10-27 | J175: =IF(AND(H175>='A - Contractor Summary'!$C$36,I175<='A - Contractor Summary'!$C$42),"Yes","No") -> Yes | K175: =VLOOKUP($D175,'C.1 - Rate Sheets'!B:F,2,FALSE) -> 0 | L175: =VLOOKUP($D175,'C.1 - Rate Sheets'!B:F,3,FALSE) -> 200 | M175: =VLOOKUP($D175,'C.1 - Rate Sheets'!B:F,4,FALSE) -> 0 | N175: =VLOOKUP($D175,'C.1 - Rate Sheets'!B:F,5,FALSE) -> 0 | AC175: 16 | AD175: 16 | AE175: 16 | AF175: 16 | AG175: 16 | AH175: 16 | AI175: 16 | GB175: 112 | GE175: 112 | GF175: 0 | GG175: 22400 | GH175: 0 | GI175: 0 | GJ175: 22400 | GK175: 22400 | GL175: Yes | GM175: 0 | GN175: 0 | GO175: 0
B176: 158 | D176: CLEAR CREW | E176: Vendor No.04 | F176: Clear 18 | G176: 1249 | H176: 2018-10-21 | I176: 2018-10-27 | J176: =IF(AND(H176>='A - Contractor Summary'!$C$36,I176<='A - Contractor Summary'!$C$42),"Yes","No") -> Yes | K176: =VLOOKUP($D176,'C.1 - Rate Sheets'!B:F,2,FALSE) -> 0 | L176: =VLOOKUP($D176,'C.1 - Rate Sheets'!B:F,3,FALSE) -> 200 | M176: =VLOOKUP($D176,'C.1 - Rate Sheets'!B:F,4,FALSE) -> 0 | N176: =VLOOKUP($D176,'C.1 - Rate Sheets'!B:F,5,FALSE) -> 0 | AC176: 16 | AD176: 16 | AE176: 16 | AF176: 16 | AG176: 16 | AH176: 16 | AI176: 16 | GB176: 112 | GE176: 112 | GF176: 0 | GG176: 22400 | GH176: 0 | GI176: 0 | GJ176: 22400 | GK176: 22400 | GL176: Yes | GM176: 0 | GN176: 0 | GO176: 0
B177: 159 | D177: CLEAR CREW | E177: Vendor No.04 | F177: Clear 19 | G177: 1249 | H177: 2018-10-21 | I177: 2018-10-27 | J177: =IF(AND(H177>='A - Contractor Summary'!$C$36,I177<='A - Contractor Summary'!$C$42),"Yes","No") -> Yes | K177: =VLOOKUP($D177,'C.1 - Rate Sheets'!B:F,2,FALSE) -> 0 | L177: =VLOOKUP($D177,'C.1 - Rate Sheets'!B:F,3,FALSE) -> 200 | M177: =VLOOKUP($D177,'C.1 - Rate Sheets'!B:F,4,FALSE) -> 0 | N177: =VLOOKUP($D177,'C.1 - Rate Sheets'!B:F,5,FALSE) -> 0 | AC177: 16 | AD177: 16 | AE177: 16 | AF177: 16 | AG177: 16 | AH177: 16 | AI177: 16 | GB177: 112 | GE177: 112 | GF177: 0 | GG177: 22400 | GH177: 0 | GI177: 0 | GJ177: 22400 | GK177: 22400 | GL177: Yes | GM177: 0 | GN177: 0 | GO177: 0
B178: 160 | D178: CLEAR CREW | E178: Vendor No.04 | F178: Clear 20 | G178: 1249 | H178: 2018-10-21 | I178: 2018-10-27 | J178: =IF(AND(H178>='A - Contractor Summary'!$C$36,I178<='A - Contractor Summary'!$C$42),"Yes","No") -> Yes | K178: =VLOOKUP($D178,'C.1 - Rate Sheets'!B:F,2,FALSE) -> 0 | L178: =VLOOKUP($D178,'C.1 - Rate Sheets'!B:F,3,FALSE) -> 200 | M178: =VLOOKUP($D178,'C.1 - Rate Sheets'!B:F,4,FALSE) -> 0 | N178: =VLOOKUP($D178,'C.1 - Rate Sheets'!B:F,5,FALSE) -> 0 | AC178: 16 | AD178: 16 | AE178: 16 | AF178: 16 | AG178: 16 | AH178: 16 | AI178: 16 | GB178: 112 | GE178: 112 | GF178: 0 | GG178: 22400 | GH178: 0 | GI178: 0 | GJ178: 22400 | GK178: 22400 | GL178: Yes | GM178: 0 | GN178: 0 | GO178: 0
B179: 161 | D179: CLEAR CREW | E179: Vendor No.04 | F179: Clear 21 | G179: 1249 | H179: 2018-10-21 | I179: 2018-10-27 | J179: =IF(AND(H179>='A - Contractor Summary'!$C$36,I179<='A - Contractor Summary'!$C$42),"Yes","No") -> Yes | K179: =VLOOKUP($D179,'C.1 - Rate Sheets'!B:F,2,FALSE) -> 0 | L179: =VLOOKUP($D179,'C.1 - Rate Sheets'!B:F,3,FALSE) -> 200 | M179: =VLOOKUP($D179,'C.1 - Rate Sheets'!B:F,4,FALSE) -> 0 | N179: =VLOOKUP($D179,'C.1 - Rate Sheets'!B:F,5,FALSE) -> 0 | AC179: 16 | AD179: 16 | AE179: 16 | AF179: 16 | AG179: 16 | AH179: 16 | AI179: 16 | GB179: 112 | GE179: 112 | GF179: 0 | GG179: 22400 | GH179: 0 | GI179: 0 | GJ179: 22400 | GK179: 22400 | GL179: Yes | GM179: 0 | GN179: 0 | GO179: 0
B180: 162 | D180: CLEAR CREW | E180: Vendor No.04 | F180: Clear 22 | G180: 1249 | H180: 2018-10-21 | I180: 2018-10-27 | J180: =IF(AND(H180>='A - Contractor Summary'!$C$36,I180<='A - Contractor Summary'!$C$42),"Yes","No") -> Yes | K180: =VLOOKUP($D180,'C.1 - Rate Sheets'!B:F,2,FALSE) -> 0 | L180: =VLOOKUP($D180,'C.1 - Rate Sheets'!B:F,3,FALSE) -> 200 | M180: =VLOOKUP($D180,'C.1 - Rate Sheets'!B:F,4,FALSE) -> 0 | N180: =VLOOKUP($D180,'C.1 - Rate Sheets'!B:F,5,FALSE) -> 0 | AC180: 16 | AD180: 16 | AE180: 16 | AF180: 16 | AG180: 16 | AH180: 16 | AI180: 16 | GB180: 112 | GE180: 112 | GF180: 0 | GG180: 22400 | GH180: 0 | GI180: 0 | GJ180: 22400 | GK180: 22400 | GL180: Yes | GM180: 0 | GN180: 0 | GO180: 0
B181: 163 | D181: CLEAR CREW | E181: Vendor No.04 | F181: Clear 23 | G181: 1249 | H181: 2018-10-21 | I181: 2018-10-27 | J181: =IF(AND(H181>='A - Contractor Summary'!$C$36,I181<='A - Contractor Summary'!$C$42),"Yes","No") -> Yes | K181: =VLOOKUP($D181,'C.1 - Rate Sheets'!B:F,2,FALSE) -> 0 | L181: =VLOOKUP($D181,'C.1 - Rate Sheets'!B:F,3,FALSE) -> 200 | M181: =VLOOKUP($D181,'C.1 - Rate Sheets'!B:F,4,FALSE) -> 0 | N181: =VLOOKUP($D181,'C.1 - Rate Sheets'!B:F,5,FALSE) -> 0 | AC181: 16 | AD181: 16 | AE181: 16 | AF181: 16 | AG181: 16 | AH181: 16 | AI181: 16 | GB181: 112 | GE181: 112 | GF181: 0 | GG181: 22400 | GH181: 0 | GI181: 0 | GJ181: 22400 | GK181: 22400 | GL181: Yes | GM181: 0 | GN181: 0 | GO181: 0
B182: 164 | D182: CLEAR CREW | E182: Vendor No.04 | F182: Clear 24 | G182: 1249 | H182: 2018-10-21 | I182: 2018-10-27 | J182: =IF(AND(H182>='A - Contractor Summary'!$C$36,I182<='A - Contractor Summary'!$C$42),"Yes","No") -> Yes | K182: =VLOOKUP($D182,'C.1 - Rate Sheets'!B:F,2,FALSE) -> 0 | L182: =VLOOKUP($D182,'C.1 - Rate Sheets'!B:F,3,FALSE) -> 200 | M182: =VLOOKUP($D182,'C.1 - Rate Sheets'!B:F,4,FALSE) -> 0 | N182: =VLOOKUP($D182,'C.1 - Rate Sheets'!B:F,5,FALSE) -> 0 | AC182: 16 | AD182: 16 | AE182: 16 | AF182: 16 | AG182: 16 | AH182: 16 | AI182: 16 | GB182: 112 | GE182: 112 | GF182: 0 | GG182: 22400 | GH182: 0 | GI182: 0 | GJ182: 22400 | GK182: 22400 | GL182: Yes | GM182: 0 | GN182: 0 | GO182: 0
B183: 165 | D183: CLEAR CREW | E183: Vendor No.04 | F183: Clear 25 | G183: 1249 | H183: 2018-10-21 | I183: 2018-10-27 | J183: =IF(AND(H183>='A - Contractor Summary'!$C$36,I183<='A - Contractor Summary'!$C$42),"Yes","No") -> Yes | K183: =VLOOKUP($D183,'C.1 - Rate Sheets'!B:F,2,FALSE) -> 0 | L183: =VLOOKUP($D183,'C.1 - Rate Sheets'!B:F,3,FALSE) -> 200 | M183: =VLOOKUP($D183,'C.1 - Rate Sheets'!B:F,4,FALSE) -> 0 | N183: =VLOOKUP($D183,'C.1 - Rate Sheets'!B:F,5,FALSE) -> 0 | AC183: 16 | AD183: 16 | AE183: 16 | AF183: 16 | AG183: 16 | AH183: 16 | AI183: 16 | GB183: 112 | GE183: 112 | GF183: 0 | GG183: 22400 | GH183: 0 | GI183: 0 | GJ183: 22400 | GK183: 22400 | GL183: Yes | GM183: 0 | GN183: 0 | GO183: 0
B184: 166 | D184: CLEAR CREW | E184: Vendor No.04 | F184: Clear 26 | G184: 1249 | H184: 2018-10-21 | I184: 2018-10-27 | J184: =IF(AND(H184>='A - Contractor Summary'!$C$36,I184<='A - Contractor Summary'!$C$42),"Yes","No") -> Yes | K184: =VLOOKUP($D184,'C.1 - Rate Sheets'!B:F,2,FALSE) -> 0 | L184: =VLOOKUP($D184,'C.1 - Rate Sheets'!B:F,3,FALSE) -> 200 | M184: =VLOOKUP($D184,'C.1 - Rate Sheets'!B:F,4,FALSE) -> 0 | N184: =VLOOKUP($D184,'C.1 - Rate Sheets'!B:F,5,FALSE) -> 0 | AC184: 16 | AD184: 16 | AE184: 16 | AF184: 16 | AG184: 16 | AH184: 16 | AI184: 16 | GB184: 112 | GE184: 112 | GF184: 0 | GG184: 22400 | GH184: 0 | GI184: 0 | GJ184: 22400 | GK184: 22400 | GL184: Yes | GM184: 0 | GN184: 0 | GO184: 0
B185: 167 | D185: CLEAR CREW | E185: Vendor No.04 | F185: Clear 27 | G185: 1249 | H185: 2018-10-21 | I185: 2018-10-27 | J185: =IF(AND(H185>='A - Contractor Summary'!$C$36,I185<='A - Contractor Summary'!$C$42),"Yes","No") -> Yes | K185: =VLOOKUP($D185,'C.1 - Rate Sheets'!B:F,2,FALSE) -> 0 | L185: =VLOOKUP($D185,'C.1 - Rate Sheets'!B:F,3,FALSE) -> 200 | M185: =VLOOKUP($D185,'C.1 - Rate Sheets'!B:F,4,FALSE) -> 0 | N185: =VLOOKUP($D185,'C.1 - Rate Sheets'!B:F,5,FALSE) -> 0 | AC185: 16 | AD185: 16 | AE185: 16 | AF185: 16 | AG185: 16 | AH185: 16 | AI185: 16 | GB185: 112 | GE185: 112 | GF185: 0 | GG185: 22400 | GH185: 0 | GI185: 0 | GJ185: 22400 | GK185: 22400 | GL185: Yes | GM185: 0 | GN185: 0 | GO185: 0
B186: 168 | D186: CLEAR CREW | E186: Vendor No.04 | F186: Clear 28 | G186: 1249 | H186: 2018-10-21 | I186: 2018-10-27 | J186: =IF(AND(H186>='A - Contractor Summary'!$C$36,I186<='A - Contractor Summary'!$C$42),"Yes","No") -> Yes | K186: =VLOOKUP($D186,'C.1 - Rate Sheets'!B:F,2,FALSE) -> 0 | L186: =VLOOKUP($D186,'C.1 - Rate Sheets'!B:F,3,FALSE) -> 200 | M186: =VLOOKUP($D186,'C.1 - Rate Sheets'!B:F,4,FALSE) -> 0 | N186: =VLOOKUP($D186,'C.1 - Rate Sheets'!B:F,5,FALSE) -> 0 | AC186: 16 | AD186: 16 | AE186: 16 | AF186: 16 | AG186: 16 | AH186: 16 | AI186: 16 | GB186: 112 | GE186: 112 | GF186: 0 | GG186: 22400 | GH186: 0 | GI186: 0 | GJ186: 22400 | GK186: 22400 | GL186: Yes | GM186: 0 | GN186: 0 | GO186: 0
B187: 169 | D187: CLEAR CREW | E187: Vendor No.04 | F187: Clear 29 | G187: 1249 | H187: 2018-10-21 | I187: 2018-10-27 | J187: =IF(AND(H187>='A - Contractor Summary'!$C$36,I187<='A - Contractor Summary'!$C$42),"Yes","No") -> Yes | K187: =VLOOKUP($D187,'C.1 - Rate Sheets'!B:F,2,FALSE) -> 0 | L187: =VLOOKUP($D187,'C.1 - Rate Sheets'!B:F,3,FALSE) -> 200 | M187: =VLOOKUP($D187,'C.1 - Rate Sheets'!B:F,4,FALSE) -> 0 | N187: =VLOOKUP($D187,'C.1 - Rate Sheets'!B:F,5,FALSE) -> 0 | AC187: 16 | AD187: 16 | AE187: 16 | AF187: 16 | AG187: 16 | AH187: 16 | AI187: 16 | GB187: 112 | GE187: 112 | GF187: 0 | GG187: 22400 | GH187: 0 | GI187: 0 | GJ187: 22400 | GK187: 22400 | GL187: Yes | GM187: 0 | GN187: 0 | GO187: 0
B188: 170 | D188: CLEAR CREW | E188: Vendor No.04 | F188: Clear 30 | G188: 1249 | H188: 2018-10-21 | I188: 2018-10-27 | J188: =IF(AND(H188>='A - Contractor Summary'!$C$36,I188<='A - Contractor Summary'!$C$42),"Yes","No") -> Yes | K188: =VLOOKUP($D188,'C.1 - Rate Sheets'!B:F,2,FALSE) -> 0 | L188: =VLOOKUP($D188,'C.1 - Rate Sheets'!B:F,3,FALSE) -> 200 | M188: =VLOOKUP($D188,'C.1 - Rate Sheets'!B:F,4,FALSE) -> 0 | N188: =VLOOKUP($D188,'C.1 - Rate Sheets'!B:F,5,FALSE) -> 0 | AC188: 16 | AD188: 16 | AE188: 16 | AF188: 16 | AG188: 16 | AH188: 16 | AI188: 16 | GB188: 112 | GE188: 112 | GF188: 0 | GG188: 22400 | GH188: 0 | GI188: 0 | GJ188: 22400 | GK188: 22400 | GL188: Yes | GM188: 0 | GN188: 0 | GO188: 0
B189: 171 | D189: EXCAVATION CREW | E189: Vendor No.04 | F189: Exc 1 | G189: 1249 | H189: 2018-10-23 | I189: 2018-10-27 | J189: =IF(AND(H189>='A - Contractor Summary'!$C$36,I189<='A - Contractor Summary'!$C$42),"Yes","No") -> Yes | K189: =VLOOKUP($D189,'C.1 - Rate Sheets'!B:F,2,FALSE) -> 0 | L189: =VLOOKUP($D189,'C.1 - Rate Sheets'!B:F,3,FALSE) -> 300 | M189: =VLOOKUP($D189,'C.1 - Rate Sheets'!B:F,4,FALSE) -> 0 | N189: =VLOOKUP($D189,'C.1 - Rate Sheets'!B:F,5,FALSE) -> 0 | AE189: 16 | AF189: 16 | AG189: 16 | AH189: 16 | AI189: 16 | GB189: 80 | GE189: 80 | GF189: 0 | GG189: 24000 | GH189: 0 | GI189: 0 | GJ189: 24000 | GK189: 24000 | GL189: Yes | GM189: 0 | GN189: 0 | GO189: 0
B190: 172 | D190: EXCAVATION CREW | E190: Vendor No.04 | F190: Exc2 | G190: 1249 | H190: 2018-10-23 | I190: 2018-10-27 | J190: =IF(AND(H190>='A - Contractor Summary'!$C$36,I190<='A - Contractor Summary'!$C$42),"Yes","No") -> Yes | K190: =VLOOKUP($D190,'C.1 - Rate Sheets'!B:F,2,FALSE) -> 0 | L190: =VLOOKUP($D190,'C.1 - Rate Sheets'!B:F,3,FALSE) -> 300 | M190: =VLOOKUP($D190,'C.1 - Rate Sheets'!B:F,4,FALSE) -> 0 | N190: =VLOOKUP($D190,'C.1 - Rate Sheets'!B:F,5,FALSE) -> 0 | AE190: 16 | AF190: 16 | AG190: 16 | AH190: 16 | AI190: 16 | GB190: 80 | GE190: 80 | GF190: 0 | GG190: 24000 | GH190: 0 | GI190: 0 | GJ190: 24000 | GK190: 24000 | GL190: Yes | GM190: 0 | GN190: 0 | GO190: 0
B191: 173 | D191: EXCAVATION CREW | E191: Vendor No.04 | F191: Exc 3 | G191: 1249 | H191: 2018-10-23 | I191: 2018-10-27 | J191: =IF(AND(H191>='A - Contractor Summary'!$C$36,I191<='A - Contractor Summary'!$C$42),"Yes","No") -> Yes | K191: =VLOOKUP($D191,'C.1 - Rate Sheets'!B:F,2,FALSE) -> 0 | L191: =VLOOKUP($D191,'C.1 - Rate Sheets'!B:F,3,FALSE) -> 300 | M191: =VLOOKUP($D191,'C.1 - Rate Sheets'!B:F,4,FALSE) -> 0 | N191: =VLOOKUP($D191,'C.1 - Rate Sheets'!B:F,5,FALSE) -> 0 | AE191: 16 | AF191: 16 | AG191: 16 | AH191: 16 | AI191: 16 | GB191: 80 | GE191: 80 | GF191: 0 | GG191: 24000 | GH191: 0 | GI191: 0 | GJ191: 24000 | GK191: 24000 | GL191: Yes | GM191: 0 | GN191: 0 | GO191: 0
B192: 174 | D192: EXCAVATION CREW | E192: Vendor No.04 | F192: Exc 4 | G192: 1249 | H192: 2018-10-23 | I192: 2018-10-27 | J192: =IF(AND(H192>='A - Contractor Summary'!$C$36,I192<='A - Contractor Summary'!$C$42),"Yes","No") -> Yes | K192: =VLOOKUP($D192,'C.1 - Rate Sheets'!B:F,2,FALSE) -> 0 | L192: =VLOOKUP($D192,'C.1 - Rate Sheets'!B:F,3,FALSE) -> 300 | M192: =VLOOKUP($D192,'C.1 - Rate Sheets'!B:F,4,FALSE) -> 0 | N192: =VLOOKUP($D192,'C.1 - Rate Sheets'!B:F,5,FALSE) -> 0 | AE192: 16 | AF192: 16 | AG192: 16 | AH192: 16 | AI192: 16 | GB192: 80 | GE192: 80 | GF192: 0 | GG192: 24000 | GH192: 0 | GI192: 0 | GJ192: 24000 | GK192: 24000 | GL192: Yes | GM192: 0 | GN192: 0 | GO192: 0
B193: 175 | D193: EXCAVATION CREW | E193: Vendor No.04 | F193: Exc 5 | G193: 1249 | H193: 2018-10-23 | I193: 2018-10-27 | J193: =IF(AND(H193>='A - Contractor Summary'!$C$36,I193<='A - Contractor Summary'!$C$42),"Yes","No") -> Yes | K193: =VLOOKUP($D193,'C.1 - Rate Sheets'!B:F,2,FALSE) -> 0 | L193: =VLOOKUP($D193,'C.1 - Rate Sheets'!B:F,3,FALSE) -> 300 | M193: =VLOOKUP($D193,'C.1 - Rate Sheets'!B:F,4,FALSE) -> 0 | N193: =VLOOKUP($D193,'C.1 - Rate Sheets'!B:F,5,FALSE) -> 0 | AE193: 16 | AF193: 16 | AG193: 16 | AH193: 16 | AI193: 16 | GB193: 80 | GE193: 80 | GF193: 0 | GG193: 24000 | GH193: 0 | GI193: 0 | GJ193: 24000 | GK193: 24000 | GL193: Yes | GM193: 0 | GN193: 0 | GO193: 0
B194: 176 | D194: EXCAVATION CREW | E194: Vendor No.04 | F194: Exc 6 | G194: 1249 | H194: 2018-10-23 | I194: 2018-10-27 | J194: =IF(AND(H194>='A - Contractor Summary'!$C$36,I194<='A - Contractor Summary'!$C$42),"Yes","No") -> Yes | K194: =VLOOKUP($D194,'C.1 - Rate Sheets'!B:F,2,FALSE) -> 0 | L194: =VLOOKUP($D194,'C.1 - Rate Sheets'!B:F,3,FALSE) -> 300 | M194: =VLOOKUP($D194,'C.1 - Rate Sheets'!B:F,4,FALSE) -> 0 | N194: =VLOOKUP($D194,'C.1 - Rate Sheets'!B:F,5,FALSE) -> 0 | AE194: 16 | AF194: 16 | AG194: 16 | AH194: 16 | AI194: 16 | GB194: 80 | GE194: 80 | GF194: 0 | GG194: 24000 | GH194: 0 | GI194: 0 | GJ194: 24000 | GK194: 24000 | GL194: Yes | GM194: 0 | GN194: 0 | GO194: 0
B195: 177 | D195: EXCAVATION CREW | E195: Vendor No.04 | F195: Exc 7 | G195: 1249 | H195: 2018-10-23 | I195: 2018-10-27 | J195: =IF(AND(H195>='A - Contractor Summary'!$C$36,I195<='A - Contractor Summary'!$C$42),"Yes","No") -> Yes | K195: =VLOOKUP($D195,'C.1 - Rate Sheets'!B:F,2,FALSE) -> 0 | L195: =VLOOKUP($D195,'C.1 - Rate Sheets'!B:F,3,FALSE) -> 300 | M195: =VLOOKUP($D195,'C.1 - Rate Sheets'!B:F,4,FALSE) -> 0 | N195: =VLOOKUP($D195,'C.1 - Rate Sheets'!B:F,5,FALSE) -> 0 | AE195: 16 | AF195: 16 | AG195: 16 | AH195: 16 | AI195: 16 | GB195: 80 | GE195: 80 | GF195: 0 | GG195: 24000 | GH195: 0 | GI195: 0 | GJ195: 24000 | GK195: 24000 | GL195: Yes | GM195: 0 | GN195: 0 | GO195: 0
B196: 178 | D196: MOT CREW | E196: Vendor No.04 | F196: Mot 1 | G196: 1253 | H196: 2018-10-28 | I196: 2018-11-03 | J196: =IF(AND(H196>='A - Contractor Summary'!$C$36,I196<='A - Contractor Summary'!$C$42),"Yes","No") -> Yes | K196: =VLOOKUP($D196,'C.1 - Rate Sheets'!B:F,2,FALSE) -> 0 | L196: =VLOOKUP($D196,'C.1 - Rate Sheets'!B:F,3,FALSE) -> 150 | M196: =VLOOKUP($D196,'C.1 - Rate Sheets'!B:F,4,FALSE) -> 0 | N196: =VLOOKUP($D196,'C.1 - Rate Sheets'!B:F,5,FALSE) -> 0 | AJ196: 16 | AK196: 16 | AL196: 16 | AM196: 16 | AN196: 16 | AO196: 16 | AP196: 16 | GB196: 112 | GE196: 112 | GF196: 0 | GG196: 16800 | GH196: 0 | GI196: 0 | GJ196: 16800 | GK196: 16800 | GL196: Yes | GM196: 0 | GN196: 0 | GO196: 0
B197: 179 | D197: MOT CREW | E197: Vendor No.04 | F197: Mot 2 | G197: 1253 | H197: 2018-10-28 | I197: 2018-11-03 | J197: =IF(AND(H197>='A - Contractor Summary'!$C$36,I197<='A - Contractor Summary'!$C$42),"Yes","No") -> Yes | K197: =VLOOKUP($D197,'C.1 - Rate Sheets'!B:F,2,FALSE) -> 0 | L197: =VLOOKUP($D197,'C.1 - Rate Sheets'!B:F,3,FALSE) -> 150 | M197: =VLOOKUP($D197,'C.1 - Rate Sheets'!B:F,4,FALSE) -> 0 | N197: =VLOOKUP($D197,'C.1 - Rate Sheets'!B:F,5,FALSE) -> 0 | AJ197: 16 | AK197: 16 | AL197: 16 | AM197: 16 | AN197: 16 | AO197: 16 | AP197: 16 | GB197: 112 | GE197: 112 | GF197: 0 | GG197: 16800 | GH197: 0 | GI197: 0 | GJ197: 16800 | GK197: 16800 | GL197: Yes | GM197: 0 | GN197: 0 | GO197: 0
B198: 180 | D198: MOT CREW | E198: Vendor No.04 | F198: Mot 3 | G198: 1253 | H198: 2018-10-28 | I198: 2018-11-03 | J198: =IF(AND(H198>='A - Contractor Summary'!$C$36,I198<='A - Contractor Summary'!$C$42),"Yes","No") -> Yes | K198: =VLOOKUP($D198,'C.1 - Rate Sheets'!B:F,2,FALSE) -> 0 | L198: =VLOOKUP($D198,'C.1 - Rate Sheets'!B:F,3,FALSE) -> 150 | M198: =VLOOKUP($D198,'C.1 - Rate Sheets'!B:F,4,FALSE) -> 0 | N198: =VLOOKUP($D198,'C.1 - Rate Sheets'!B:F,5,FALSE) -> 0 | AJ198: 16 | AK198: 16 | AL198: 16 | AM198: 16 | AN198: 16 | AO198: 16 | AP198: 16 | GB198: 112 | GE198: 112 | GF198: 0 | GG198: 16800 | GH198: 0 | GI198: 0 | GJ198: 16800 | GK198: 16800 | GL198: Yes | GM198: 0 | GN198: 0 | GO198: 0
B199: 181 | D199: MOT CREW | E199: Vendor No.04 | F199: Mot 4 | G199: 1253 | H199: 2018-10-28 | I199: 2018-11-03 | J199: =IF(AND(H199>='A - Contractor Summary'!$C$36,I199<='A - Contractor Summary'!$C$42),"Yes","No") -> Yes | K199: =VLOOKUP($D199,'C.1 - Rate Sheets'!B:F,2,FALSE) -> 0 | L199: =VLOOKUP($D199,'C.1 - Rate Sheets'!B:F,3,FALSE) -> 150 | M199: =VLOOKUP($D199,'C.1 - Rate Sheets'!B:F,4,FALSE) -> 0 | N199: =VLOOKUP($D199,'C.1 - Rate Sheets'!B:F,5,FALSE) -> 0 | AJ199: 16 | AK199: 16 | AL199: 16 | AM199: 16 | AN199: 16 | AO199: 16 | AP199: 16 | GB199: 112 | GE199: 112 | GF199: 0 | GG199: 16800 | GH199: 0 | GI199: 0 | GJ199: 16800 | GK199: 16800 | GL199: Yes | GM199: 0 | GN199: 0 | GO199: 0
B200: 182 | D200: MOT CREW | E200: Vendor No.04 | F200: Mot 5 | G200: 1253 | H200: 2018-10-28 | I200: 2018-11-03 | J200: =IF(AND(H200>='A - Contractor Summary'!$C$36,I200<='A - Contractor Summary'!$C$42),"Yes","No") -> Yes | K200: =VLOOKUP($D200,'C.1 - Rate Sheets'!B:F,2,FALSE) -> 0 | L200: =VLOOKUP($D200,'C.1 - Rate Sheets'!B:F,3,FALSE) -> 150 | M200: =VLOOKUP($D200,'C.1 - Rate Sheets'!B:F,4,FALSE) -> 0 | N200: =VLOOKUP($D200,'C.1 - Rate Sheets'!B:F,5,FALSE) -> 0 | AJ200: 16 | AK200: 16 | AL200: 16 | AM200: 16 | AN200: 16 | AO200: 16 | AP200: 16 | GB200: 112 | GE200: 112 | GF200: 0 | GG200: 16800 | GH200: 0 | GI200: 0 | GJ200: 16800 | GK200: 16800 | GL200: Yes | GM200: 0 | GN200: 0 | GO200: 0
B201: 183 | D201: MOT CREW | E201: Vendor No.04 | F201: Mot 6 | G201: 1253 | H201: 2018-10-28 | I201: 2018-11-03 | J201: =IF(AND(H201>='A - Contractor Summary'!$C$36,I201<='A - Contractor Summary'!$C$42),"Yes","No") -> Yes | K201: =VLOOKUP($D201,'C.1 - Rate Sheets'!B:F,2,FALSE) -> 0 | L201: =VLOOKUP($D201,'C.1 - Rate Sheets'!B:F,3,FALSE) -> 150 | M201: =VLOOKUP($D201,'C.1 - Rate Sheets'!B:F,4,FALSE) -> 0 | N201: =VLOOKUP($D201,'C.1 - Rate Sheets'!B:F,5,FALSE) -> 0 | AJ201: 16 | AK201: 16 | AL201: 16 | AM201: 16 | AN201: 16 | AO201: 16 | AP201: 16 | GB201: 112 | GE201: 112 | GF201: 0 | GG201: 16800 | GH201: 0 | GI201: 0 | GJ201: 16800 | GK201: 16800 | GL201: Yes | GM201: 0 | GN201: 0 | GO201: 0
B202: 184 | D202: MOT CREW | E202: Vendor No.04 | F202: Mot 7 | G202: 1253 | H202: 2018-10-28 | I202: 2018-11-03 | J202: =IF(AND(H202>='A - Contractor Summary'!$C$36,I202<='A - Contractor Summary'!$C$42),"Yes","No") -> Yes | K202: =VLOOKUP($D202,'C.1 - Rate Sheets'!B:F,2,FALSE) -> 0 | L202: =VLOOKUP($D202,'C.1 - Rate Sheets'!B:F,3,FALSE) -> 150 | M202: =VLOOKUP($D202,'C.1 - Rate Sheets'!B:F,4,FALSE) -> 0 | N202: =VLOOKUP($D202,'C.1 - Rate Sheets'!B:F,5,FALSE) -> 0 | AJ202: 16 | AK202: 16 | AL202: 16 | AM202: 16 | AN202: 16 | AO202: 16 | AP202: 16 | GB202: 112 | GE202: 112 | GF202: 0 | GG202: 16800 | GH202: 0 | GI202: 0 | GJ202: 16800 | GK202: 16800 | GL202: Yes | GM202: 0 | GN202: 0 | GO202: 0
B203: 185 | D203: MOT CREW | E203: Vendor No.04 | F203: Mot 8 | G203: 1253 | H203: 2018-10-28 | I203: 2018-11-03 | J203: =IF(AND(H203>='A - Contractor Summary'!$C$36,I203<='A - Contractor Summary'!$C$42),"Yes","No") -> Yes | K203: =VLOOKUP($D203,'C.1 - Rate Sheets'!B:F,2,FALSE) -> 0 | L203: =VLOOKUP($D203,'C.1 - Rate Sheets'!B:F,3,FALSE) -> 150 | M203: =VLOOKUP($D203,'C.1 - Rate Sheets'!B:F,4,FALSE) -> 0 | N203: =VLOOKUP($D203,'C.1 - Rate Sheets'!B:F,5,FALSE) -> 0 | AJ203: 16 | AK203: 16 | AL203: 16 | AM203: 16 | AN203: 16 | AO203: 16 | AP203: 16 | GB203: 112 | GE203: 112 | GF203: 0 | GG203: 16800 | GH203: 0 | GI203: 0 | GJ203: 16800 | GK203: 16800 | GL203: Yes | GM203: 0 | GN203: 0 | GO203: 0
B204: 186 | D204: MOT CREW | E204: Vendor No.04 | F204: Mot 9 | G204: 1253 | H204: 2018-10-28 | I204: 2018-11-03 | J204: =IF(AND(H204>='A - Contractor Summary'!$C$36,I204<='A - Contractor Summary'!$C$42),"Yes","No") -> Yes | K204: =VLOOKUP($D204,'C.1 - Rate Sheets'!B:F,2,FALSE) -> 0 | L204: =VLOOKUP($D204,'C.1 - Rate Sheets'!B:F,3,FALSE) -> 150 | M204: =VLOOKUP($D204,'C.1 - Rate Sheets'!B:F,4,FALSE) -> 0 | N204: =VLOOKUP($D204,'C.1 - Rate Sheets'!B:F,5,FALSE) -> 0 | AJ204: 16 | AK204: 16 | AL204: 16 | AM204: 16 | AN204: 16 | AO204: 16 | AP204: 16 | GB204: 112 | GE204: 112 | GF204: 0 | GG204: 16800 | GH204: 0 | GI204: 0 | GJ204: 16800 | GK204: 16800 | GL204: Yes | GM204: 0 | GN204: 0 | GO204: 0
B205: 187 | D205: MOT CREW | E205: Vendor No.04 | F205: Mot 10 | G205: 1253 | H205: 2018-10-28 | I205: 2018-11-03 | J205: =IF(AND(H205>='A - Contractor Summary'!$C$36,I205<='A - Contractor Summary'!$C$42),"Yes","No") -> Yes | K205: =VLOOKUP($D205,'C.1 - Rate Sheets'!B:F,2,FALSE) -> 0 | L205: =VLOOKUP($D205,'C.1 - Rate Sheets'!B:F,3,FALSE) -> 150 | M205: =VLOOKUP($D205,'C.1 - Rate Sheets'!B:F,4,FALSE) -> 0 | N205: =VLOOKUP($D205,'C.1 - Rate Sheets'!B:F,5,FALSE) -> 0 | AJ205: 16 | AK205: 16 | AL205: 16 | AM205: 16 | AN205: 16 | AO205: 16 | AP205: 16 | GB205: 112 | GE205: 112 | GF205: 0 | GG205: 16800 | GH205: 0 | GI205: 0 | GJ205: 16800 | GK205: 16800 | GL205: Yes | GM205: 0 | GN205: 0 | GO205: 0
B206: 188 | D206: MOT CREW | E206: Vendor No.04 | F206: Mot 11 | G206: 1253 | H206: 2018-10-28 | I206: 2018-11-03 | J206: =IF(AND(H206>='A - Contractor Summary'!$C$36,I206<='A - Contractor Summary'!$C$42),"Yes","No") -> Yes | K206: =VLOOKUP($D206,'C.1 - Rate Sheets'!B:F,2,FALSE) -> 0 | L206: =VLOOKUP($D206,'C.1 - Rate Sheets'!B:F,3,FALSE) -> 150 | M206: =VLOOKUP($D206,'C.1 - Rate Sheets'!B:F,4,FALSE) -> 0 | N206: =VLOOKUP($D206,'C.1 - Rate Sheets'!B:F,5,FALSE) -> 0 | AJ206: 16 | AK206: 16 | AL206: 16 | AM206: 16 | AN206: 16 | AO206: 16 | AP206: 16 | GB206: 112 | GE206: 112 | GF206: 0 | GG206: 16800 | GH206: 0 | GI206: 0 | GJ206: 16800 | GK206: 16800 | GL206: Yes | GM206: 0 | GN206: 0 | GO206: 0
B207: 189 | D207: MOT CREW | E207: Vendor No.04 | F207: Mot 12 | G207: 1253 | H207: 2018-10-28 | I207: 2018-11-03 | J207: =IF(AND(H207>='A - Contractor Summary'!$C$36,I207<='A - Contractor Summary'!$C$42),"Yes","No") -> Yes | K207: =VLOOKUP($D207,'C.1 - Rate Sheets'!B:F,2,FALSE) -> 0 | L207: =VLOOKUP($D207,'C.1 - Rate Sheets'!B:F,3,FALSE) -> 150 | M207: =VLOOKUP($D207,'C.1 - Rate Sheets'!B:F,4,FALSE) -> 0 | N207: =VLOOKUP($D207,'C.1 - Rate Sheets'!B:F,5,FALSE) -> 0 | AJ207: 16 | AK207: 16 | AL207: 16 | AM207: 16 | AN207: 16 | AO207: 16 | AP207: 16 | GB207: 112 | GE207: 112 | GF207: 0 | GG207: 16800 | GH207: 0 | GI207: 0 | GJ207: 16800 | GK207: 16800 | GL207: Yes | GM207: 0 | GN207: 0 | GO207: 0
B208: 190 | D208: MOT CREW | E208: Vendor No.04 | F208: Mot 13 | G208: 1253 | H208: 2018-10-28 | I208: 2018-11-03 | J208: =IF(AND(H208>='A - Contractor Summary'!$C$36,I208<='A - Contractor Summary'!$C$42),"Yes","No") -> Yes | K208: =VLOOKUP($D208,'C.1 - Rate Sheets'!B:F,2,FALSE) -> 0 | L208: =VLOOKUP($D208,'C.1 - Rate Sheets'!B:F,3,FALSE) -> 150 | M208: =VLOOKUP($D208,'C.1 - Rate Sheets'!B:F,4,FALSE) -> 0 | N208: =VLOOKUP($D208,'C.1 - Rate Sheets'!B:F,5,FALSE) -> 0 | AJ208: 16 | AK208: 16 | AL208: 16 | AM208: 16 | AN208: 16 | AO208: 16 | AP208: 16 | GB208: 112 | GE208: 112 | GF208: 0 | GG208: 16800 | GH208: 0 | GI208: 0 | GJ208: 16800 | GK208: 16800 | GL208: Yes | GM208: 0 | GN208: 0 | GO208: 0
... 303 more rows

Sheet C.3 - Asset by Company
A1: Asset Tag | B1: Position | C1: Name

Sheet C.4 - Timesheets - Equipment
B2: Equipment Charges - Time Card
B4: Test Plan: | C4: Obtain the time cards. (A) Populate the equipment names and types (if provided). Find additional information regarding individual equipment charge from related invoice. (B) Enter hours worked from time card(s). (C) Confirm that the dates per the time cards fall between dates provided per 'A - Contractor Summary' tab. (D) Identify any equipment charges to be reviewed. (E) For charges which required further review, document review (include why it was determined to be allowed/disallowed via a tickmark).
B10: Rx | C10: Recalculated.
B11: a | C11: Provided from tab 'C.1 - Rate Sheets'.
B12: b | C12: Check figure should equal $0. Cell will appear yellow if discrepancies are noted.
C14: A | H14: Rx | J14: C | K14: a | L14: B | S14: B | AC14: D | AD14: E
B15: # | C15: Equipment Name | D15: Equipment ID | E15: Company | F15: Crew# | G15: Invoice | H15: Start Date | I15: End Date | J15: Dates Worked Reasonable? | K15: Rates | L15: 2018-11-17 | Z15: Total Hours | AA15: Total Equipment | AB15: Allowable Charges | AC15: To Be Reviewed | AD15: Reviewed - Allowable Charge | AE15: Reviewed - Unallowable Charge | AF15: Tickmarks
L16: Sunday | M16: Monday | N16: Tuesday | O16: Wednesday | P16: Thursday | Q16: Friday | R16: Saturday | S16: Sunday | T16: Monday | U16: Tuesday | V16: Wednesday | W16: Thursday | X16: Friday | Y16: Saturday
L17: Hours | M17: Hours | N17: Hours | O17: Hours | P17: Hours | Q17: Hours | R17: Hours | S17: Hours | T17: Hours | U17: Hours | V17: Hours | W17: Hours | X17: Hours | Y17: Hours
B18: 1 | J18: =IF(AND(H18>='A - Contractor Summary'!$C$36,I18<='A - Contractor Summary'!$C$42),"Yes","No") -> No | K18: =VLOOKUP(C18,'C.1 - Rate Sheets'!$H$15:$I$46,2,FALSE) ->  | Z18: =SUM(L18:Y18) -> 0 | AA18: =Z18*K18 ->  | AB18: =AA18-AC18 ->  | AC18: 0 | AD18: 0 | AE18: 0
B19: 2 | J19: =IF(AND(H19>='A - Contractor Summary'!$C$36,I19<='A - Contractor Summary'!$C$42),"Yes","No") -> No | K19: =VLOOKUP(C19,'C.1 - Rate Sheets'!$H$15:$I$46,2,FALSE) ->  | Z19: 0 | AB19: =AA19-AC19 ->  | AC19: 0 | AD19: 0 | AE19: 0
B20: 3 | J20: =IF(AND(H20>='A - Contractor Summary'!$C$36,I20<='A - Contractor Summary'!$C$42),"Yes","No") -> No | K20: =VLOOKUP(C20,'C.1 - Rate Sheets'!$H$15:$I$46,2,FALSE) ->  | Z20: 0 | AC20: 0 | AD20: 0 | AE20: 0
B21: 4 | J21: =IF(AND(H21>='A - Contractor Summary'!$C$36,I21<='A - Contractor Summary'!$C$42),"Yes","No") -> No | K21: =VLOOKUP(C21,'C.1 - Rate Sheets'!$H$15:$I$46,2,FALSE) ->  | Z21: 0 | AC21: 0 | AD21: 0 | AE21: 0
B22: 5 | J22: =IF(AND(H22>='A - Contractor Summary'!$C$36,I22<='A - Contractor Summary'!$C$42),"Yes","No") -> No | K22: =VLOOKUP(C22,'C.1 - Rate Sheets'!$H$15:$I$46,2,FALSE) ->  | Z22: 0 | AC22: 0 | AD22: 0 | AE22: 0
B23: 6 | J23: =IF(AND(H23>='A - Contractor Summary'!$C$36,I23<='A - Contractor Summary'!$C$42),"Yes","No") -> No | K23: =VLOOKUP(C23,'C.1 - Rate Sheets'!$H$15:$I$46,2,FALSE) ->  | Z23: 0 | AC23: 0 | AD23: 0 | AE23: 0
B24: 7 | J24: =IF(AND(H24>='A - Contractor Summary'!$C$36,I24<='A - Contractor Summary'!$C$42),"Yes","No") -> No | K24: =VLOOKUP(C24,'C.1 - Rate Sheets'!$H$15:$I$46,2,FALSE) ->  | Z24: 0 | AC24: 0 | AD24: 0 | AE24: 0
B25: 8 | J25: =IF(AND(H25>='A - Contractor Summary'!$C$36,I25<='A - Contractor Summary'!$C$42),"Yes","No") -> No | K25: =VLOOKUP(C25,'C.1 - Rate Sheets'!$H$15:$I$46,2,FALSE) ->  | Z25: 0 | AC25: 0 | AD25: 0 | AE25: 0
B26: 9 | J26: =IF(AND(H26>='A - Contractor Summary'!$C$36,I26<='A - Contractor Summary'!$C$42),"Yes","No") -> No | K26: =VLOOKUP(C26,'C.1 - Rate Sheets'!$H$15:$I$46,2,FALSE) ->  | Z26: 0 | AC26: 0 | AD26: 0 | AE26: 0
B27: 10 | J27: =IF(AND(H27>='A - Contractor Summary'!$C$36,I27<='A - Contractor Summary'!$C$42),"Yes","No") -> No | K27: =VLOOKUP(C27,'C.1 - Rate Sheets'!$H$15:$I$46,2,FALSE) ->  | Z27: 0 | AC27: 0 | AD27: 0 | AE27: 0
B28: 11 | J28: =IF(AND(H28>='A - Contractor Summary'!$C$36,I28<='A - Contractor Summary'!$C$42),"Yes","No") -> No | K28: =VLOOKUP(C28,'C.1 - Rate Sheets'!$H$15:$I$46,2,FALSE) ->  | Z28: 0 | AC28: 0 | AD28: 0 | AE28: 0
B29: 12 | J29: =IF(AND(H29>='A - Contractor Summary'!$C$36,I29<='A - Contractor Summary'!$C$42),"Yes","No") -> No | K29: =VLOOKUP(C29,'C.1 - Rate Sheets'!$H$15:$I$46,2,FALSE) ->  | Z29: 0 | AC29: 0 | AD29: 0 | AE29: 0
B30: 13 | J30: =IF(AND(H30>='A - Contractor Summary'!$C$36,I30<='A - Contractor Summary'!$C$42),"Yes","No") -> No | K30: =VLOOKUP(C30,'C.1 - Rate Sheets'!$H$15:$I$46,2,FALSE) ->  | Z30: 0 | AC30: 0 | AD30: 0 | AE30: 0
B31: 14 | J31: =IF(AND(H31>='A - Contractor Summary'!$C$36,I31<='A - Contractor Summary'!$C$42),"Yes","No") -> No | K31: =VLOOKUP(C31,'C.1 - Rate Sheets'!$H$15:$I$46,2,FALSE) ->  | Z31: 0 | AC31: 0 | AD31: 0 | AE31: 0
B32: 15 | J32: =IF(AND(H32>='A - Contractor Summary'!$C$36,I32<='A - Contractor Summary'!$C$42),"Yes","No") -> No | K32: =VLOOKUP(C32,'C.1 - Rate Sheets'!$H$15:$I$46,2,FALSE) ->  | Z32: 0 | AC32: 0 | AD32: 0 | AE32: 0
B33: 16 | J33: =IF(AND(H33>='A - Contractor Summary'!$C$36,I33<='A - Contractor Summary'!$C$42),"Yes","No") -> No | K33: =VLOOKUP(C33,'C.1 - Rate Sheets'!$H$15:$I$46,2,FALSE) ->  | Z33: 0 | AC33: 0 | AD33: 0 | AE33: 0
B34: 90 | J34: =IF(AND(H34>='A - Contractor Summary'!$C$36,I34<='A - Contractor Summary'!$C$42),"Yes","No") -> No | AC34: 0 | AD34: 0 | AE34: 0
L35: =SUM(L18:L34) -> 0 | M35: 0 | N35: 0 | O35: 0 | P35: 0 | Q35: 0 | R35: 0 | S35: 0 | T35: 0 | U35: 0 | V35: 0 | W35: 0 | X35: 0 | Y35: 0 | Z35: 0 | AC35: 0 | AD35: 0 | AE35: 0 | AF35: =AC35-AD35-AE35 -> 0 | AG35: check (b)
B39: Tickmark Explanation:

Sheet D - Lodging
B2: Lodging Charges
B4: Test Plan: (A) Obtain support of individual charges. (B) Enter Yes/No if receipt is itemized (C) Enter Yes/No if proof of payment has been provided. (D) Ensure charges fall between the dates the vendor was mobilized and the date they arrived. (E) Ensure charges are prior to the date the vendor arrived home or was released to another utility. (F) Ensure the location of stay was reasonable (G) Determine the amount(s) to be reviewed, allowed and/or disallowed. (H) For charges which required further review, document review (include why it was determined to be allowed/disallowed via a tickmark).
B8: Rx | C8: Recalculated.
B9: a | C9: Check figure should equal $0. Cell will appear yellow if discrepancies are noted.
C11: A | M11: Rx | N11: B | O11: C | P11: D | Q11: E | R11: F | S11: G | V11: H
B12: Support Reviewed | P12: Conclusion
B13: # | C13: Type of Support | D13: Support Identifier | E13: Crew | F13: Company | G13: Check In Date | H13: Person | I13: Hotel Name | J13: Location | K13: # of Nights | L13: Total Invoice | M13: $ / Night | N13: Itemized Receipt | O13: Proof of Payment | P13: Reasonable based on Mobilization date(s) | Q13: Reasonable based on Demobilization date(s) | R13: Location Reasonable | S13: Conclusion | T13: $ Allowable Charge | U13: $ To Be Reviewed | V13: Reviewed - Allowable $ | W13: Reviewed - Unallowable $ | X13: Tickmark
B14: 1 | C14: Receipt | M14: =L14/K14 ->  | P14: =IF(AND(G14>='A - Contractor Summary'!$C$36,G14<='A - Contractor Summary'!$C$38),"Yes",IF(G14<'A - Contractor Summary'!$C$36,"No",IF(G14>'A - Contractor Summary'!$C$39,"",""))) -> No | Q14: =IF(OR(P14="Yes",P14="No")*AND(G14<'A - Contractor Summary'!$C$39),"",IF(AND(G14>'A - Contractor Summary'!$C$39,G14<'A - Contractor Summary'!$C$42),"Yes",IF(G14>'A - Contractor Summary'!$C$42,"No","Needs Review"))) ->  | S14: =IF(AND(R14="YES",O14="Yes",N14="Yes")*OR(P14="Yes",Q14="Yes"),"Yes",IF(OR(N14="No",O14="No",P14="No",Q14="No",R14="No"),"No","Needs Review")) -> No | T14: =IF(S14="Yes",L14,0) -> 0 | U14: =IF(S14="Needs Review",L14,0) -> 0
B15: 2 | C15: Receipt | P15: =IF(AND(G15>='A - Contractor Summary'!$C$36,G15<='A - Contractor Summary'!$C$38),"Yes",IF(G15<'A - Contractor Summary'!$C$36,"No",IF(G15>'A - Contractor Summary'!$C$39,"",""))) -> No | Q15: =IF(OR(P15="Yes",P15="No")*AND(G15<'A - Contractor Summary'!$C$39),"",IF(AND(G15>'A - Contractor Summary'!$C$39,G15<'A - Contractor Summary'!$C$42),"Yes",IF(G15>'A - Contractor Summary'!$C$42,"No","Needs Review"))) ->  | S15: No | T15: 0 | U15: 0
B16: 3 | C16: Receipt | P16: =IF(AND(G16>='A - Contractor Summary'!$C$36,G16<='A - Contractor Summary'!$C$38),"Yes",IF(G16<'A - Contractor Summary'!$C$36,"No",IF(G16>'A - Contractor Summary'!$C$39,"",""))) -> No | Q16: =IF(OR(P16="Yes",P16="No")*AND(G16<'A - Contractor Summary'!$C$39),"",IF(AND(G16>'A - Contractor Summary'!$C$39,G16<'A - Contractor Summary'!$C$42),"Yes",IF(G16>'A - Contractor Summary'!$C$42,"No","Needs Review"))) ->  | S16: No | T16: 0 | U16: 0
B17: 4 | C17: Receipt | P17: =IF(AND(G17>='A - Contractor Summary'!$C$36,G17<='A - Contractor Summary'!$C$38),"Yes",IF(G17<'A - Contractor Summary'!$C$36,"No",IF(G17>'A - Contractor Summary'!$C$39,"",""))) -> No | Q17: =IF(OR(P17="Yes",P17="No")*AND(G17<'A - Contractor Summary'!$C$39),"",IF(AND(G17>'A - Contractor Summary'!$C$39,G17<'A - Contractor Summary'!$C$42),"Yes",IF(G17>'A - Contractor Summary'!$C$42,"No","Needs Review"))) ->  | S17: No | T17: 0 | U17: 0
B18: 5 | P18: =IF(AND(G18>='A - Contractor Summary'!$C$36,G18<='A - Contractor Summary'!$C$38),"Yes",IF(G18<'A - Contractor Summary'!$C$36,"No",IF(G18>'A - Contractor Summary'!$C$39,"",""))) -> No | Q18: =IF(OR(P18="Yes",P18="No")*AND(G18<'A - Contractor Summary'!$C$39),"",IF(AND(G18>'A - Contractor Summary'!$C$39,G18<'A - Contractor Summary'!$C$42),"Yes",IF(G18>'A - Contractor Summary'!$C$42,"No","Needs Review"))) ->  | S18: No | T18: 0 | U18: 0
B19: 6 | P19: =IF(AND(G19>='A - Contractor Summary'!$C$36,G19<='A - Contractor Summary'!$C$38),"Yes",IF(G19<'A - Contractor Summary'!$C$36,"No",IF(G19>'A - Contractor Summary'!$C$39,"",""))) -> No | Q19: =IF(OR(P19="Yes",P19="No")*AND(G19<'A - Contractor Summary'!$C$39),"",IF(AND(G19>'A - Contractor Summary'!$C$39,G19<'A - Contractor Summary'!$C$42),"Yes",IF(G19>'A - Contractor Summary'!$C$42,"No","Needs Review"))) ->  | S19: No | T19: 0 | U19: 0
B20: 7 | P20: =IF(AND(G20>='A - Contractor Summary'!$C$36,G20<='A - Contractor Summary'!$C$38),"Yes",IF(G20<'A - Contractor Summary'!$C$36,"No",IF(G20>'A - Contractor Summary'!$C$39,"",""))) -> No | Q20: =IF(OR(P20="Yes",P20="No")*AND(G20<'A - Contractor Summary'!$C$39),"",IF(AND(G20>'A - Contractor Summary'!$C$39,G20<'A - Contractor Summary'!$C$42),"Yes",IF(G20>'A - Contractor Summary'!$C$42,"No","Needs Review"))) ->  | S20: No | T20: 0 | U20: 0
B21: 8 | P21: =IF(AND(G21>='A - Contractor Summary'!$C$36,G21<='A - Contractor Summary'!$C$38),"Yes",IF(G21<'A - Contractor Summary'!$C$36,"No",IF(G21>'A - Contractor Summary'!$C$39,"",""))) -> No | Q21: =IF(OR(P21="Yes",P21="No")*AND(G21<'A - Contractor Summary'!$C$39),"",IF(AND(G21>'A - Contractor Summary'!$C$39,G21<'A - Contractor Summary'!$C$42),"Yes",IF(G21>'A - Contractor Summary'!$C$42,"No","Needs Review"))) ->  | S21: No | T21: 0 | U21: 0
B22: 9 | P22: =IF(AND(G22>='A - Contractor Summary'!$C$36,G22<='A - Contractor Summary'!$C$38),"Yes",IF(G22<'A - Contractor Summary'!$C$36,"No",IF(G22>'A - Contractor Summary'!$C$39,"",""))) -> No | Q22: =IF(OR(P22="Yes",P22="No")*AND(G22<'A - Contractor Summary'!$C$39),"",IF(AND(G22>'A - Contractor Summary'!$C$39,G22<'A - Contractor Summary'!$C$42),"Yes",IF(G22>'A - Contractor Summary'!$C$42,"No","Needs Review"))) ->  | S22: No | T22: 0 | U22: 0
B23: 10 | P23: =IF(AND(G23>='A - Contractor Summary'!$C$36,G23<='A - Contractor Summary'!$C$38),"Yes",IF(G23<'A - Contractor Summary'!$C$36,"No",IF(G23>'A - Contractor Summary'!$C$39,"",""))) -> No | Q23: =IF(OR(P23="Yes",P23="No")*AND(G23<'A - Contractor Summary'!$C$39),"",IF(AND(G23>'A - Contractor Summary'!$C$39,G23<'A - Contractor Summary'!$C$42),"Yes",IF(G23>'A - Contractor Summary'!$C$42,"No","Needs Review"))) ->  | S23: No | T23: 0 | U23: 0
B24: 11 | P24: =IF(AND(G24>='A - Contractor Summary'!$C$36,G24<='A - Contractor Summary'!$C$38),"Yes",IF(G24<'A - Contractor Summary'!$C$36,"No",IF(G24>'A - Contractor Summary'!$C$39,"",""))) -> No | Q24: =IF(OR(P24="Yes",P24="No")*AND(G24<'A - Contractor Summary'!$C$39),"",IF(AND(G24>'A - Contractor Summary'!$C$39,G24<'A - Contractor Summary'!$C$42),"Yes",IF(G24>'A - Contractor Summary'!$C$42,"No","Needs Review"))) ->  | S24: No | T24: 0 | U24: 0
B25: 12 | P25: =IF(AND(G25>='A - Contractor Summary'!$C$36,G25<='A - Contractor Summary'!$C$38),"Yes",IF(G25<'A - Contractor Summary'!$C$36,"No",IF(G25>'A - Contractor Summary'!$C$39,"",""))) -> No | Q25: =IF(OR(P25="Yes",P25="No")*AND(G25<'A - Contractor Summary'!$C$39),"",IF(AND(G25>'A - Contractor Summary'!$C$39,G25<'A - Contractor Summary'!$C$42),"Yes",IF(G25>'A - Contractor Summary'!$C$42,"No","Needs Review"))) ->  | S25: No | T25: 0 | U25: 0
B26: 13 | P26: =IF(AND(G26>='A - Contractor Summary'!$C$36,G26<='A - Contractor Summary'!$C$38),"Yes",IF(G26<'A - Contractor Summary'!$C$36,"No",IF(G26>'A - Contractor Summary'!$C$39,"",""))) -> No | Q26: =IF(OR(P26="Yes",P26="No")*AND(G26<'A - Contractor Summary'!$C$39),"",IF(AND(G26>'A - Contractor Summary'!$C$39,G26<'A - Contractor Summary'!$C$42),"Yes",IF(G26>'A - Contractor Summary'!$C$42,"No","Needs Review"))) ->  | S26: No | T26: 0 | U26: 0
B27: 14 | P27: =IF(AND(G27>='A - Contractor Summary'!$C$36,G27<='A - Contractor Summary'!$C$38),"Yes",IF(G27<'A - Contractor Summary'!$C$36,"No",IF(G27>'A - Contractor Summary'!$C$39,"",""))) -> No | Q27: =IF(OR(P27="Yes",P27="No")*AND(G27<'A - Contractor Summary'!$C$39),"",IF(AND(G27>'A - Contractor Summary'!$C$39,G27<'A - Contractor Summary'!$C$42),"Yes",IF(G27>'A - Contractor Summary'!$C$42,"No","Needs Review"))) ->  | S27: No | T27: 0 | U27: 0
B28: 15 | P28: =IF(AND(G28>='A - Contractor Summary'!$C$36,G28<='A - Contractor Summary'!$C$38),"Yes",IF(G28<'A - Contractor Summary'!$C$36,"No",IF(G28>'A - Contractor Summary'!$C$39,"",""))) -> No | Q28: =IF(OR(P28="Yes",P28="No")*AND(G28<'A - Contractor Summary'!$C$39),"",IF(AND(G28>'A - Contractor Summary'!$C$39,G28<'A - Contractor Summary'!$C$42),"Yes",IF(G28>'A - Contractor Summary'!$C$42,"No","Needs Review"))) ->  | S28: No | T28: 0 | U28: 0
B29: 16 | P29: =IF(AND(G29>='A - Contractor Summary'!$C$36,G29<='A - Contractor Summary'!$C$38),"Yes",IF(G29<'A - Contractor Summary'!$C$36,"No",IF(G29>'A - Contractor Summary'!$C$39,"",""))) -> No | Q29: =IF(OR(P29="Yes",P29="No")*AND(G29<'A - Contractor Summary'!$C$39),"",IF(AND(G29>'A - Contractor Summary'!$C$39,G29<'A - Contractor Summary'!$C$42),"Yes",IF(G29>'A - Contractor Summary'!$C$42,"No","Needs Review"))) ->  | S29: No | T29: 0 | U29: 0
B30: 17 | P30: =IF(AND(G30>='A - Contractor Summary'!$C$36,G30<='A - Contractor Summary'!$C$38),"Yes",IF(G30<'A - Contractor Summary'!$C$36,"No",IF(G30>'A - Contractor Summary'!$C$39,"",""))) -> No | Q30: =IF(OR(P30="Yes",P30="No")*AND(G30<'A - Contractor Summary'!$C$39),"",IF(AND(G30>'A - Contractor Summary'!$C$39,G30<'A - Contractor Summary'!$C$42),"Yes",IF(G30>'A - Contractor Summary'!$C$42,"No","Needs Review"))) ->  | S30: No | T30: 0 | U30: 0
B31: 18 | P31: =IF(AND(G31>='A - Contractor Summary'!$C$36,G31<='A - Contractor Summary'!$C$38),"Yes",IF(G31<'A - Contractor Summary'!$C$36,"No",IF(G31>'A - Contractor Summary'!$C$39,"",""))) -> No | Q31: =IF(OR(P31="Yes",P31="No")*AND(G31<'A - Contractor Summary'!$C$39),"",IF(AND(G31>'A - Contractor Summary'!$C$39,G31<'A - Contractor Summary'!$C$42),"Yes",IF(G31>'A - Contractor Summary'!$C$42,"No","Needs Review"))) ->  | S31: No | T31: 0 | U31: 0
B32: 19 | P32: =IF(AND(G32>='A - Contractor Summary'!$C$36,G32<='A - Contractor Summary'!$C$38),"Yes",IF(G32<'A - Contractor Summary'!$C$36,"No",IF(G32>'A - Contractor Summary'!$C$39,"",""))) -> No | Q32: =IF(OR(P32="Yes",P32="No")*AND(G32<'A - Contractor Summary'!$C$39),"",IF(AND(G32>'A - Contractor Summary'!$C$39,G32<'A - Contractor Summary'!$C$42),"Yes",IF(G32>'A - Contractor Summary'!$C$42,"No","Needs Review"))) ->  | S32: No | T32: 0 | U32: 0
B33: 20 | P33: =IF(AND(G33>='A - Contractor Summary'!$C$36,G33<='A - Contractor Summary'!$C$38),"Yes",IF(G33<'A - Contractor Summary'!$C$36,"No",IF(G33>'A - Contractor Summary'!$C$39,"",""))) -> No | Q33: =IF(OR(P33="Yes",P33="No")*AND(G33<'A - Contractor Summary'!$C$39),"",IF(AND(G33>'A - Contractor Summary'!$C$39,G33<'A - Contractor Summary'!$C$42),"Yes",IF(G33>'A - Contractor Summary'!$C$42,"No","Needs Review"))) ->  | S33: No | T33: 0 | U33: 0
B34: 21 | P34: =IF(AND(G34>='A - Contractor Summary'!$C$36,G34<='A - Contractor Summary'!$C$38),"Yes",IF(G34<'A - Contractor Summary'!$C$36,"No",IF(G34>'A - Contractor Summary'!$C$39,"",""))) -> No | Q34: =IF(OR(P34="Yes",P34="No")*AND(G34<'A - Contractor Summary'!$C$39),"",IF(AND(G34>'A - Contractor Summary'!$C$39,G34<'A - Contractor Summary'!$C$42),"Yes",IF(G34>'A - Contractor Summary'!$C$42,"No","Needs Review"))) ->  | S34: No | T34: 0 | U34: 0
B35: 22 | P35: =IF(AND(G35>='A - Contractor Summary'!$C$36,G35<='A - Contractor Summary'!$C$38),"Yes",IF(G35<'A - Contractor Summary'!$C$36,"No",IF(G35>'A - Contractor Summary'!$C$39,"",""))) -> No | Q35: =IF(OR(P35="Yes",P35="No")*AND(G35<'A - Contractor Summary'!$C$39),"",IF(AND(G35>'A - Contractor Summary'!$C$39,G35<'A - Contractor Summary'!$C$42),"Yes",IF(G35>'A - Contractor Summary'!$C$42,"No","Needs Review"))) ->  | S35: No | T35: 0 | U35: 0
B36: 23 | P36: =IF(AND(G36>='A - Contractor Summary'!$C$36,G36<='A - Contractor Summary'!$C$38),"Yes",IF(G36<'A - Contractor Summary'!$C$36,"No",IF(G36>'A - Contractor Summary'!$C$39,"",""))) -> No | Q36: =IF(OR(P36="Yes",P36="No")*AND(G36<'A - Contractor Summary'!$C$39),"",IF(AND(G36>'A - Contractor Summary'!$C$39,G36<'A - Contractor Summary'!$C$42),"Yes",IF(G36>'A - Contractor Summary'!$C$42,"No","Needs Review"))) ->  | S36: No | T36: 0 | U36: 0
B37: 24 | P37: =IF(AND(G37>='A - Contractor Summary'!$C$36,G37<='A - Contractor Summary'!$C$38),"Yes",IF(G37<'A - Contractor Summary'!$C$36,"No",IF(G37>'A - Contractor Summary'!$C$39,"",""))) -> No | Q37: =IF(OR(P37="Yes",P37="No")*AND(G37<'A - Contractor Summary'!$C$39),"",IF(AND(G37>'A - Contractor Summary'!$C$39,G37<'A - Contractor Summary'!$C$42),"Yes",IF(G37>'A - Contractor Summary'!$C$42,"No","Needs Review"))) ->  | S37: No | T37: 0 | U37: 0
B38: 25 | P38: =IF(AND(G38>='A - Contractor Summary'!$C$36,G38<='A - Contractor Summary'!$C$38),"Yes",IF(G38<'A - Contractor Summary'!$C$36,"No",IF(G38>'A - Contractor Summary'!$C$39,"",""))) -> No | Q38: =IF(OR(P38="Yes",P38="No")*AND(G38<'A - Contractor Summary'!$C$39),"",IF(AND(G38>'A - Contractor Summary'!$C$39,G38<'A - Contractor Summary'!$C$42),"Yes",IF(G38>'A - Contractor Summary'!$C$42,"No","Needs Review"))) ->  | S38: No | T38: 0 | U38: 0
B39: 26 | P39: =IF(AND(G39>='A - Contractor Summary'!$C$36,G39<='A - Contractor Summary'!$C$38),"Yes",IF(G39<'A - Contractor Summary'!$C$36,"No",IF(G39>'A - Contractor Summary'!$C$39,"",""))) -> No | Q39: =IF(OR(P39="Yes",P39="No")*AND(G39<'A - Contractor Summary'!$C$39),"",IF(AND(G39>'A - Contractor Summary'!$C$39,G39<'A - Contractor Summary'!$C$42),"Yes",IF(G39>'A - Contractor Summary'!$C$42,"No","Needs Review"))) ->  | S39: No | T39: 0 | U39: 0
B40: 27 | P40: =IF(AND(G40>='A - Contractor Summary'!$C$36,G40<='A - Contractor Summary'!$C$38),"Yes",IF(G40<'A - Contractor Summary'!$C$36,"No",IF(G40>'A - Contractor Summary'!$C$39,"",""))) -> No | Q40: =IF(OR(P40="Yes",P40="No")*AND(G40<'A - Contractor Summary'!$C$39),"",IF(AND(G40>'A - Contractor Summary'!$C$39,G40<'A - Contractor Summary'!$C$42),"Yes",IF(G40>'A - Contractor Summary'!$C$42,"No","Needs Review"))) ->  | S40: No | T40: 0 | U40: 0
B41: 28 | P41: =IF(AND(G41>='A - Contractor Summary'!$C$36,G41<='A - Contractor Summary'!$C$38),"Yes",IF(G41<'A - Contractor Summary'!$C$36,"No",IF(G41>'A - Contractor Summary'!$C$39,"",""))) -> No | Q41: =IF(OR(P41="Yes",P41="No")*AND(G41<'A - Contractor Summary'!$C$39),"",IF(AND(G41>'A - Contractor Summary'!$C$39,G41<'A - Contractor Summary'!$C$42),"Yes",IF(G41>'A - Contractor Summary'!$C$42,"No","Needs Review"))) ->  | S41: No | T41: 0 | U41: 0
B42: 29 | P42: =IF(AND(G42>='A - Contractor Summary'!$C$36,G42<='A - Contractor Summary'!$C$38),"Yes",IF(G42<'A - Contractor Summary'!$C$36,"No",IF(G42>'A - Contractor Summary'!$C$39,"",""))) -> No | Q42: =IF(OR(P42="Yes",P42="No")*AND(G42<'A - Contractor Summary'!$C$39),"",IF(AND(G42>'A - Contractor Summary'!$C$39,G42<'A - Contractor Summary'!$C$42),"Yes",IF(G42>'A - Contractor Summary'!$C$42,"No","Needs Review"))) ->  | S42: No | T42: 0 | U42: 0
B43: 30 | P43: =IF(AND(G43>='A - Contractor Summary'!$C$36,G43<='A - Contractor Summary'!$C$38),"Yes",IF(G43<'A - Contractor Summary'!$C$36,"No",IF(G43>'A - Contractor Summary'!$C$39,"",""))) -> No | Q43: =IF(OR(P43="Yes",P43="No")*AND(G43<'A - Contractor Summary'!$C$39),"",IF(AND(G43>'A - Contractor Summary'!$C$39,G43<'A - Contractor Summary'!$C$42),"Yes",IF(G43>'A - Contractor Summary'!$C$42,"No","Needs Review"))) ->  | S43: No | T43: 0 | U43: 0
B44: 31 | P44: =IF(AND(G44>='A - Contractor Summary'!$C$36,G44<='A - Contractor Summary'!$C$38),"Yes",IF(G44<'A - Contractor Summary'!$C$36,"No",IF(G44>'A - Contractor Summary'!$C$39,"",""))) -> No | Q44: =IF(OR(P44="Yes",P44="No")*AND(G44<'A - Contractor Summary'!$C$39),"",IF(AND(G44>'A - Contractor Summary'!$C$39,G44<'A - Contractor Summary'!$C$42),"Yes",IF(G44>'A - Contractor Summary'!$C$42,"No","Needs Review"))) ->  | S44: No | T44: 0 | U44: 0
B45: 32 | P45: =IF(AND(G45>='A - Contractor Summary'!$C$36,G45<='A - Contractor Summary'!$C$38),"Yes",IF(G45<'A - Contractor Summary'!$C$36,"No",IF(G45>'A - Contractor Summary'!$C$39,"",""))) -> No | Q45: =IF(OR(P45="Yes",P45="No")*AND(G45<'A - Contractor Summary'!$C$39),"",IF(AND(G45>'A - Contractor Summary'!$C$39,G45<'A - Contractor Summary'!$C$42),"Yes",IF(G45>'A - Contractor Summary'!$C$42,"No","Needs Review"))) ->  | S45: No | T45: 0 | U45: 0
B46: 33 | M46: =L46/K46 ->  | P46: =IF(AND(G46>='A - Contractor Summary'!$C$36,G46<='A - Contractor Summary'!$C$38),"Yes",IF(G46<'A - Contractor Summary'!$C$36,"No",IF(G46>'A - Contractor Summary'!$C$39,"",""))) -> No | Q46: =IF(OR(P46="Yes",P46="No")*AND(G46<'A - Contractor Summary'!$C$39),"",IF(AND(G46>'A - Contractor Summary'!$C$39,G46<'A - Contractor Summary'!$C$42),"Yes",IF(G46>'A - Contractor Summary'!$C$42,"No","Needs Review"))) ->  | S46: =IF(AND(R46="YES",O46="Yes",N46="Yes")*OR(P46="Yes",Q46="Yes"),"Yes",IF(OR(N46="No",O46="No",P46="No",Q46="No",R46="No"),"No","Needs Review")) -> No | T46: =IF(S46="Yes",L46,0) -> 0 | U46: =IF(S46="Needs Review",L46,0) -> 0
B47: 34 | P47: =IF(AND(G47>='A - Contractor Summary'!$C$36,G47<='A - Contractor Summary'!$C$38),"Yes",IF(G47<'A - Contractor Summary'!$C$36,"No",IF(G47>'A - Contractor Summary'!$C$39,"",""))) -> No | Q47: =IF(OR(P47="Yes",P47="No")*AND(G47<'A - Contractor Summary'!$C$39),"",IF(AND(G47>'A - Contractor Summary'!$C$39,G47<'A - Contractor Summary'!$C$42),"Yes",IF(G47>'A - Contractor Summary'!$C$42,"No","Needs Review"))) ->  | S47: No | T47: 0 | U47: 0
B48: 35 | P48: =IF(AND(G48>='A - Contractor Summary'!$C$36,G48<='A - Contractor Summary'!$C$38),"Yes",IF(G48<'A - Contractor Summary'!$C$36,"No",IF(G48>'A - Contractor Summary'!$C$39,"",""))) -> No | Q48: =IF(OR(P48="Yes",P48="No")*AND(G48<'A - Contractor Summary'!$C$39),"",IF(AND(G48>'A - Contractor Summary'!$C$39,G48<'A - Contractor Summary'!$C$42),"Yes",IF(G48>'A - Contractor Summary'!$C$42,"No","Needs Review"))) ->  | S48: No | T48: 0 | U48: 0
B49: 36 | P49: =IF(AND(G49>='A - Contractor Summary'!$C$36,G49<='A - Contractor Summary'!$C$38),"Yes",IF(G49<'A - Contractor Summary'!$C$36,"No",IF(G49>'A - Contractor Summary'!$C$39,"",""))) -> No | Q49: =IF(OR(P49="Yes",P49="No")*AND(G49<'A - Contractor Summary'!$C$39),"",IF(AND(G49>'A - Contractor Summary'!$C$39,G49<'A - Contractor Summary'!$C$42),"Yes",IF(G49>'A - Contractor Summary'!$C$42,"No","Needs Review"))) ->  | S49: No | T49: 0 | U49: 0
B50: 37 | P50: =IF(AND(G50>='A - Contractor Summary'!$C$36,G50<='A - Contractor Summary'!$C$38),"Yes",IF(G50<'A - Contractor Summary'!$C$36,"No",IF(G50>'A - Contractor Summary'!$C$39,"",""))) -> No | Q50: =IF(OR(P50="Yes",P50="No")*AND(G50<'A - Contractor Summary'!$C$39),"",IF(AND(G50>'A - Contractor Summary'!$C$39,G50<'A - Contractor Summary'!$C$42),"Yes",IF(G50>'A - Contractor Summary'!$C$42,"No","Needs Review"))) ->  | S50: No | T50: 0 | U50: 0
B51: 38 | P51: =IF(AND(G51>='A - Contractor Summary'!$C$36,G51<='A - Contractor Summary'!$C$38),"Yes",IF(G51<'A - Contractor Summary'!$C$36,"No",IF(G51>'A - Contractor Summary'!$C$39,"",""))) -> No | Q51: =IF(OR(P51="Yes",P51="No")*AND(G51<'A - Contractor Summary'!$C$39),"",IF(AND(G51>'A - Contractor Summary'!$C$39,G51<'A - Contractor Summary'!$C$42),"Yes",IF(G51>'A - Contractor Summary'!$C$42,"No","Needs Review"))) ->  | S51: No | T51: 0 | U51: 0
B52: 39 | P52: =IF(AND(G52>='A - Contractor Summary'!$C$36,G52<='A - Contractor Summary'!$C$38),"Yes",IF(G52<'A - Contractor Summary'!$C$36,"No",IF(G52>'A - Contractor Summary'!$C$39,"",""))) -> No | Q52: =IF(OR(P52="Yes",P52="No")*AND(G52<'A - Contractor Summary'!$C$39),"",IF(AND(G52>'A - Contractor Summary'!$C$39,G52<'A - Contractor Summary'!$C$42),"Yes",IF(G52>'A - Contractor Summary'!$C$42,"No","Needs Review"))) ->  | S52: No | T52: 0 | U52: 0
B53: 40 | P53: =IF(AND(G53>='A - Contractor Summary'!$C$36,G53<='A - Contractor Summary'!$C$38),"Yes",IF(G53<'A - Contractor Summary'!$C$36,"No",IF(G53>'A - Contractor Summary'!$C$39,"",""))) -> No | Q53: =IF(OR(P53="Yes",P53="No")*AND(G53<'A - Contractor Summary'!$C$39),"",IF(AND(G53>'A - Contractor Summary'!$C$39,G53<'A - Contractor Summary'!$C$42),"Yes",IF(G53>'A - Contractor Summary'!$C$42,"No","Needs Review"))) ->  | S53: No | T53: 0 | U53: 0
B54: 41 | P54: =IF(AND(G54>='A - Contractor Summary'!$C$36,G54<='A - Contractor Summary'!$C$38),"Yes",IF(G54<'A - Contractor Summary'!$C$36,"No",IF(G54>'A - Contractor Summary'!$C$39,"",""))) -> No | Q54: =IF(OR(P54="Yes",P54="No")*AND(G54<'A - Contractor Summary'!$C$39),"",IF(AND(G54>'A - Contractor Summary'!$C$39,G54<'A - Contractor Summary'!$C$42),"Yes",IF(G54>'A - Contractor Summary'!$C$42,"No","Needs Review"))) ->  | S54: No | T54: 0 | U54: 0
B55: 42 | P55: =IF(AND(G55>='A - Contractor Summary'!$C$36,G55<='A - Contractor Summary'!$C$38),"Yes",IF(G55<'A - Contractor Summary'!$C$36,"No",IF(G55>'A - Contractor Summary'!$C$39,"",""))) -> No | Q55: =IF(OR(P55="Yes",P55="No")*AND(G55<'A - Contractor Summary'!$C$39),"",IF(AND(G55>'A - Contractor Summary'!$C$39,G55<'A - Contractor Summary'!$C$42),"Yes",IF(G55>'A - Contractor Summary'!$C$42,"No","Needs Review"))) ->  | S55: No | T55: 0 | U55: 0
B56: 43 | P56: =IF(AND(G56>='A - Contractor Summary'!$C$36,G56<='A - Contractor Summary'!$C$38),"Yes",IF(G56<'A - Contractor Summary'!$C$36,"No",IF(G56>'A - Contractor Summary'!$C$39,"",""))) -> No | Q56: =IF(OR(P56="Yes",P56="No")*AND(G56<'A - Contractor Summary'!$C$39),"",IF(AND(G56>'A - Contractor Summary'!$C$39,G56<'A - Contractor Summary'!$C$42),"Yes",IF(G56>'A - Contractor Summary'!$C$42,"No","Needs Review"))) ->  | S56: No | T56: 0 | U56: 0
B57: 44 | P57: =IF(AND(G57>='A - Contractor Summary'!$C$36,G57<='A - Contractor Summary'!$C$38),"Yes",IF(G57<'A - Contractor Summary'!$C$36,"No",IF(G57>'A - Contractor Summary'!$C$39,"",""))) -> No | Q57: =IF(OR(P57="Yes",P57="No")*AND(G57<'A - Contractor Summary'!$C$39),"",IF(AND(G57>'A - Contractor Summary'!$C$39,G57<'A - Contractor Summary'!$C$42),"Yes",IF(G57>'A - Contractor Summary'!$C$42,"No","Needs Review"))) ->  | S57: No | T57: 0 | U57: 0
B58: 45 | P58: =IF(AND(G58>='A - Contractor Summary'!$C$36,G58<='A - Contractor Summary'!$C$38),"Yes",IF(G58<'A - Contractor Summary'!$C$36,"No",IF(G58>'A - Contractor Summary'!$C$39,"",""))) -> No | Q58: =IF(OR(P58="Yes",P58="No")*AND(G58<'A - Contractor Summary'!$C$39),"",IF(AND(G58>'A - Contractor Summary'!$C$39,G58<'A - Contractor Summary'!$C$42),"Yes",IF(G58>'A - Contractor Summary'!$C$42,"No","Needs Review"))) ->  | S58: No | T58: 0 | U58: 0
B59: 46 | P59: =IF(AND(G59>='A - Contractor Summary'!$C$36,G59<='A - Contractor Summary'!$C$38),"Yes",IF(G59<'A - Contractor Summary'!$C$36,"No",IF(G59>'A - Contractor Summary'!$C$39,"",""))) -> No | Q59: =IF(OR(P59="Yes",P59="No")*AND(G59<'A - Contractor Summary'!$C$39),"",IF(AND(G59>'A - Contractor Summary'!$C$39,G59<'A - Contractor Summary'!$C$42),"Yes",IF(G59>'A - Contractor Summary'!$C$42,"No","Needs Review"))) ->  | S59: No | T59: 0 | U59: 0
B60: 47 | P60: =IF(AND(G60>='A - Contractor Summary'!$C$36,G60<='A - Contractor Summary'!$C$38),"Yes",IF(G60<'A - Contractor Summary'!$C$36,"No",IF(G60>'A - Contractor Summary'!$C$39,"",""))) -> No | Q60: =IF(OR(P60="Yes",P60="No")*AND(G60<'A - Contractor Summary'!$C$39),"",IF(AND(G60>'A - Contractor Summary'!$C$39,G60<'A - Contractor Summary'!$C$42),"Yes",IF(G60>'A - Contractor Summary'!$C$42,"No","Needs Review"))) ->  | S60: No | T60: 0 | U60: 0
B61: 48 | P61: =IF(AND(G61>='A - Contractor Summary'!$C$36,G61<='A - Contractor Summary'!$C$38),"Yes",IF(G61<'A - Contractor Summary'!$C$36,"No",IF(G61>'A - Contractor Summary'!$C$39,"",""))) -> No | Q61: =IF(OR(P61="Yes",P61="No")*AND(G61<'A - Contractor Summary'!$C$39),"",IF(AND(G61>'A - Contractor Summary'!$C$39,G61<'A - Contractor Summary'!$C$42),"Yes",IF(G61>'A - Contractor Summary'!$C$42,"No","Needs Review"))) ->  | S61: No | T61: 0 | U61: 0
B62: 49 | P62: =IF(AND(G62>='A - Contractor Summary'!$C$36,G62<='A - Contractor Summary'!$C$38),"Yes",IF(G62<'A - Contractor Summary'!$C$36,"No",IF(G62>'A - Contractor Summary'!$C$39,"",""))) -> No | Q62: =IF(OR(P62="Yes",P62="No")*AND(G62<'A - Contractor Summary'!$C$39),"",IF(AND(G62>'A - Contractor Summary'!$C$39,G62<'A - Contractor Summary'!$C$42),"Yes",IF(G62>'A - Contractor Summary'!$C$42,"No","Needs Review"))) ->  | S62: No | T62: 0 | U62: 0
B63: 50 | P63: =IF(AND(G63>='A - Contractor Summary'!$C$36,G63<='A - Contractor Summary'!$C$38),"Yes",IF(G63<'A - Contractor Summary'!$C$36,"No",IF(G63>'A - Contractor Summary'!$C$39,"",""))) -> No | Q63: =IF(OR(P63="Yes",P63="No")*AND(G63<'A - Contractor Summary'!$C$39),"",IF(AND(G63>'A - Contractor Summary'!$C$39,G63<'A - Contractor Summary'!$C$42),"Yes",IF(G63>'A - Contractor Summary'!$C$42,"No","Needs Review"))) ->  | S63: No | T63: 0 | U63: 0
B64: 51 | P64: =IF(AND(G64>='A - Contractor Summary'!$C$36,G64<='A - Contractor Summary'!$C$38),"Yes",IF(G64<'A - Contractor Summary'!$C$36,"No",IF(G64>'A - Contractor Summary'!$C$39,"",""))) -> No | Q64: =IF(OR(P64="Yes",P64="No")*AND(G64<'A - Contractor Summary'!$C$39),"",IF(AND(G64>'A - Contractor Summary'!$C$39,G64<'A - Contractor Summary'!$C$42),"Yes",IF(G64>'A - Contractor Summary'!$C$42,"No","Needs Review"))) ->  | S64: No | T64: 0 | U64: 0
B65: 52 | P65: =IF(AND(G65>='A - Contractor Summary'!$C$36,G65<='A - Contractor Summary'!$C$38),"Yes",IF(G65<'A - Contractor Summary'!$C$36,"No",IF(G65>'A - Contractor Summary'!$C$39,"",""))) -> No | Q65: =IF(OR(P65="Yes",P65="No")*AND(G65<'A - Contractor Summary'!$C$39),"",IF(AND(G65>'A - Contractor Summary'!$C$39,G65<'A - Contractor Summary'!$C$42),"Yes",IF(G65>'A - Contractor Summary'!$C$42,"No","Needs Review"))) ->  | S65: No | T65: 0 | U65: 0
B66: 53 | P66: =IF(AND(G66>='A - Contractor Summary'!$C$36,G66<='A - Contractor Summary'!$C$38),"Yes",IF(G66<'A - Contractor Summary'!$C$36,"No",IF(G66>'A - Contractor Summary'!$C$39,"",""))) -> No | Q66: =IF(OR(P66="Yes",P66="No")*AND(G66<'A - Contractor Summary'!$C$39),"",IF(AND(G66>'A - Contractor Summary'!$C$39,G66<'A - Contractor Summary'!$C$42),"Yes",IF(G66>'A - Contractor Summary'!$C$42,"No","Needs Review"))) ->  | S66: No | T66: 0 | U66: 0
B67: 54 | P67: =IF(AND(G67>='A - Contractor Summary'!$C$36,G67<='A - Contractor Summary'!$C$38),"Yes",IF(G67<'A - Contractor Summary'!$C$36,"No",IF(G67>'A - Contractor Summary'!$C$39,"",""))) -> No | Q67: =IF(OR(P67="Yes",P67="No")*AND(G67<'A - Contractor Summary'!$C$39),"",IF(AND(G67>'A - Contractor Summary'!$C$39,G67<'A - Contractor Summary'!$C$42),"Yes",IF(G67>'A - Contractor Summary'!$C$42,"No","Needs Review"))) ->  | S67: No | T67: 0 | U67: 0
B68: 55 | P68: =IF(AND(G68>='A - Contractor Summary'!$C$36,G68<='A - Contractor Summary'!$C$38),"Yes",IF(G68<'A - Contractor Summary'!$C$36,"No",IF(G68>'A - Contractor Summary'!$C$39,"",""))) -> No | Q68: =IF(OR(P68="Yes",P68="No")*AND(G68<'A - Contractor Summary'!$C$39),"",IF(AND(G68>'A - Contractor Summary'!$C$39,G68<'A - Contractor Summary'!$C$42),"Yes",IF(G68>'A - Contractor Summary'!$C$42,"No","Needs Review"))) ->  | S68: No | T68: 0 | U68: 0
B69: 56 | P69: =IF(AND(G69>='A - Contractor Summary'!$C$36,G69<='A - Contractor Summary'!$C$38),"Yes",IF(G69<'A - Contractor Summary'!$C$36,"No",IF(G69>'A - Contractor Summary'!$C$39,"",""))) -> No | Q69: =IF(OR(P69="Yes",P69="No")*AND(G69<'A - Contractor Summary'!$C$39),"",IF(AND(G69>'A - Contractor Summary'!$C$39,G69<'A - Contractor Summary'!$C$42),"Yes",IF(G69>'A - Contractor Summary'!$C$42,"No","Needs Review"))) ->  | S69: No | T69: 0 | U69: 0
B70: 57 | P70: =IF(AND(G70>='A - Contractor Summary'!$C$36,G70<='A - Contractor Summary'!$C$38),"Yes",IF(G70<'A - Contractor Summary'!$C$36,"No",IF(G70>'A - Contractor Summary'!$C$39,"",""))) -> No | Q70: =IF(OR(P70="Yes",P70="No")*AND(G70<'A - Contractor Summary'!$C$39),"",IF(AND(G70>'A - Contractor Summary'!$C$39,G70<'A - Contractor Summary'!$C$42),"Yes",IF(G70>'A - Contractor Summary'!$C$42,"No","Needs Review"))) ->  | S70: No | T70: 0 | U70: 0
B71: 58 | P71: =IF(AND(G71>='A - Contractor Summary'!$C$36,G71<='A - Contractor Summary'!$C$38),"Yes",IF(G71<'A - Contractor Summary'!$C$36,"No",IF(G71>'A - Contractor Summary'!$C$39,"",""))) -> No | Q71: =IF(OR(P71="Yes",P71="No")*AND(G71<'A - Contractor Summary'!$C$39),"",IF(AND(G71>'A - Contractor Summary'!$C$39,G71<'A - Contractor Summary'!$C$42),"Yes",IF(G71>'A - Contractor Summary'!$C$42,"No","Needs Review"))) ->  | S71: No | T71: 0 | U71: 0
B72: 59 | P72: =IF(AND(G72>='A - Contractor Summary'!$C$36,G72<='A - Contractor Summary'!$C$38),"Yes",IF(G72<'A - Contractor Summary'!$C$36,"No",IF(G72>'A - Contractor Summary'!$C$39,"",""))) -> No | Q72: =IF(OR(P72="Yes",P72="No")*AND(G72<'A - Contractor Summary'!$C$39),"",IF(AND(G72>'A - Contractor Summary'!$C$39,G72<'A - Contractor Summary'!$C$42),"Yes",IF(G72>'A - Contractor Summary'!$C$42,"No","Needs Review"))) ->  | S72: No | T72: 0 | U72: 0
B73: 60 | P73: =IF(AND(G73>='A - Contractor Summary'!$C$36,G73<='A - Contractor Summary'!$C$38),"Yes",IF(G73<'A - Contractor Summary'!$C$36,"No",IF(G73>'A - Contractor Summary'!$C$39,"",""))) -> No | Q73: =IF(OR(P73="Yes",P73="No")*AND(G73<'A - Contractor Summary'!$C$39),"",IF(AND(G73>'A - Contractor Summary'!$C$39,G73<'A - Contractor Summary'!$C$42),"Yes",IF(G73>'A - Contractor Summary'!$C$42,"No","Needs Review"))) ->  | S73: No | T73: 0 | U73: 0
B74: 61 | P74: =IF(AND(G74>='A - Contractor Summary'!$C$36,G74<='A - Contractor Summary'!$C$38),"Yes",IF(G74<'A - Contractor Summary'!$C$36,"No",IF(G74>'A - Contractor Summary'!$C$39,"",""))) -> No | Q74: =IF(OR(P74="Yes",P74="No")*AND(G74<'A - Contractor Summary'!$C$39),"",IF(AND(G74>'A - Contractor Summary'!$C$39,G74<'A - Contractor Summary'!$C$42),"Yes",IF(G74>'A - Contractor Summary'!$C$42,"No","Needs Review"))) ->  | S74: No | T74: 0 | U74: 0
B75: 62 | P75: =IF(AND(G75>='A - Contractor Summary'!$C$36,G75<='A - Contractor Summary'!$C$38),"Yes",IF(G75<'A - Contractor Summary'!$C$36,"No",IF(G75>'A - Contractor Summary'!$C$39,"",""))) -> No | Q75: =IF(OR(P75="Yes",P75="No")*AND(G75<'A - Contractor Summary'!$C$39),"",IF(AND(G75>'A - Contractor Summary'!$C$39,G75<'A - Contractor Summary'!$C$42),"Yes",IF(G75>'A - Contractor Summary'!$C$42,"No","Needs Review"))) ->  | S75: No | T75: 0 | U75: 0
B76: 63 | P76: =IF(AND(G76>='A - Contractor Summary'!$C$36,G76<='A - Contractor Summary'!$C$38),"Yes",IF(G76<'A - Contractor Summary'!$C$36,"No",IF(G76>'A - Contractor Summary'!$C$39,"",""))) -> No | Q76: =IF(OR(P76="Yes",P76="No")*AND(G76<'A - Contractor Summary'!$C$39),"",IF(AND(G76>'A - Contractor Summary'!$C$39,G76<'A - Contractor Summary'!$C$42),"Yes",IF(G76>'A - Contractor Summary'!$C$42,"No","Needs Review"))) ->  | S76: No | T76: 0 | U76: 0 | X76: 3
B77: 64 | P77: =IF(AND(G77>='A - Contractor Summary'!$C$36,G77<='A - Contractor Summary'!$C$38),"Yes",IF(G77<'A - Contractor Summary'!$C$36,"No",IF(G77>'A - Contractor Summary'!$C$39,"",""))) -> No | Q77: =IF(OR(P77="Yes",P77="No")*AND(G77<'A - Contractor Summary'!$C$39),"",IF(AND(G77>'A - Contractor Summary'!$C$39,G77<'A - Contractor Summary'!$C$42),"Yes",IF(G77>'A - Contractor Summary'!$C$42,"No","Needs Review"))) ->  | S77: No | T77: 0 | U77: 0 | X77: 3
B78: 65 | M78: =L78/K78 ->  | P78: =IF(AND(G78>='A - Contractor Summary'!$C$36,G78<='A - Contractor Summary'!$C$38),"Yes",IF(G78<'A - Contractor Summary'!$C$36,"No",IF(G78>'A - Contractor Summary'!$C$39,"",""))) -> No | Q78: =IF(OR(P78="Yes",P78="No")*AND(G78<'A - Contractor Summary'!$C$39),"",IF(AND(G78>'A - Contractor Summary'!$C$39,G78<'A - Contractor Summary'!$C$42),"Yes",IF(G78>'A - Contractor Summary'!$C$42,"No","Needs Review"))) ->  | S78: =IF(AND(R78="YES",O78="Yes",N78="Yes")*OR(P78="Yes",Q78="Yes"),"Yes",IF(OR(N78="No",O78="No",P78="No",Q78="No",R78="No"),"No","Needs Review")) -> No | T78: =IF(S78="Yes",L78,0) -> 0 | U78: =IF(S78="Needs Review",L78,0) -> 0
B79: 66 | P79: =IF(AND(G79>='A - Contractor Summary'!$C$36,G79<='A - Contractor Summary'!$C$38),"Yes",IF(G79<'A - Contractor Summary'!$C$36,"No",IF(G79>'A - Contractor Summary'!$C$39,"",""))) -> No | Q79: =IF(OR(P79="Yes",P79="No")*AND(G79<'A - Contractor Summary'!$C$39),"",IF(AND(G79>'A - Contractor Summary'!$C$39,G79<'A - Contractor Summary'!$C$42),"Yes",IF(G79>'A - Contractor Summary'!$C$42,"No","Needs Review"))) ->  | S79: No | T79: 0 | U79: 0
B80: 67 | P80: =IF(AND(G80>='A - Contractor Summary'!$C$36,G80<='A - Contractor Summary'!$C$38),"Yes",IF(G80<'A - Contractor Summary'!$C$36,"No",IF(G80>'A - Contractor Summary'!$C$39,"",""))) -> No | Q80: =IF(OR(P80="Yes",P80="No")*AND(G80<'A - Contractor Summary'!$C$39),"",IF(AND(G80>'A - Contractor Summary'!$C$39,G80<'A - Contractor Summary'!$C$42),"Yes",IF(G80>'A - Contractor Summary'!$C$42,"No","Needs Review"))) ->  | S80: No | T80: 0 | U80: 0
B81: 68 | P81: =IF(AND(G81>='A - Contractor Summary'!$C$36,G81<='A - Contractor Summary'!$C$38),"Yes",IF(G81<'A - Contractor Summary'!$C$36,"No",IF(G81>'A - Contractor Summary'!$C$39,"",""))) -> No | Q81: =IF(OR(P81="Yes",P81="No")*AND(G81<'A - Contractor Summary'!$C$39),"",IF(AND(G81>'A - Contractor Summary'!$C$39,G81<'A - Contractor Summary'!$C$42),"Yes",IF(G81>'A - Contractor Summary'!$C$42,"No","Needs Review"))) ->  | S81: No | T81: 0 | U81: 0 | X81: 3
B82: 69 | P82: =IF(AND(G82>='A - Contractor Summary'!$C$36,G82<='A - Contractor Summary'!$C$38),"Yes",IF(G82<'A - Contractor Summary'!$C$36,"No",IF(G82>'A - Contractor Summary'!$C$39,"",""))) -> No | Q82: =IF(OR(P82="Yes",P82="No")*AND(G82<'A - Contractor Summary'!$C$39),"",IF(AND(G82>'A - Contractor Summary'!$C$39,G82<'A - Contractor Summary'!$C$42),"Yes",IF(G82>'A - Contractor Summary'!$C$42,"No","Needs Review"))) ->  | S82: No | T82: 0 | U82: 0 | X82: 3
B83: 70 | P83: =IF(AND(G83>='A - Contractor Summary'!$C$36,G83<='A - Contractor Summary'!$C$38),"Yes",IF(G83<'A - Contractor Summary'!$C$36,"No",IF(G83>'A - Contractor Summary'!$C$39,"",""))) -> No | Q83: =IF(OR(P83="Yes",P83="No")*AND(G83<'A - Contractor Summary'!$C$39),"",IF(AND(G83>'A - Contractor Summary'!$C$39,G83<'A - Contractor Summary'!$C$42),"Yes",IF(G83>'A - Contractor Summary'!$C$42,"No","Needs Review"))) ->  | S83: No | T83: 0 | U83: 0
B84: 71 | P84: =IF(AND(G84>='A - Contractor Summary'!$C$36,G84<='A - Contractor Summary'!$C$38),"Yes",IF(G84<'A - Contractor Summary'!$C$36,"No",IF(G84>'A - Contractor Summary'!$C$39,"",""))) -> No | Q84: =IF(OR(P84="Yes",P84="No")*AND(G84<'A - Contractor Summary'!$C$39),"",IF(AND(G84>'A - Contractor Summary'!$C$39,G84<'A - Contractor Summary'!$C$42),"Yes",IF(G84>'A - Contractor Summary'!$C$42,"No","Needs Review"))) ->  | S84: No | T84: 0 | U84: 0
B85: 72 | P85: =IF(AND(G85>='A - Contractor Summary'!$C$36,G85<='A - Contractor Summary'!$C$38),"Yes",IF(G85<'A - Contractor Summary'!$C$36,"No",IF(G85>'A - Contractor Summary'!$C$39,"",""))) -> No | Q85: =IF(OR(P85="Yes",P85="No")*AND(G85<'A - Contractor Summary'!$C$39),"",IF(AND(G85>'A - Contractor Summary'!$C$39,G85<'A - Contractor Summary'!$C$42),"Yes",IF(G85>'A - Contractor Summary'!$C$42,"No","Needs Review"))) ->  | S85: No | T85: 0 | U85: 0
B86: 73 | P86: =IF(AND(G86>='A - Contractor Summary'!$C$36,G86<='A - Contractor Summary'!$C$38),"Yes",IF(G86<'A - Contractor Summary'!$C$36,"No",IF(G86>'A - Contractor Summary'!$C$39,"",""))) -> No | Q86: =IF(OR(P86="Yes",P86="No")*AND(G86<'A - Contractor Summary'!$C$39),"",IF(AND(G86>'A - Contractor Summary'!$C$39,G86<'A - Contractor Summary'!$C$42),"Yes",IF(G86>'A - Contractor Summary'!$C$42,"No","Needs Review"))) ->  | S86: No | T86: 0 | U86: 0
B87: 74 | P87: =IF(AND(G87>='A - Contractor Summary'!$C$36,G87<='A - Contractor Summary'!$C$38),"Yes",IF(G87<'A - Contractor Summary'!$C$36,"No",IF(G87>'A - Contractor Summary'!$C$39,"",""))) -> No | Q87: =IF(OR(P87="Yes",P87="No")*AND(G87<'A - Contractor Summary'!$C$39),"",IF(AND(G87>'A - Contractor Summary'!$C$39,G87<'A - Contractor Summary'!$C$42),"Yes",IF(G87>'A - Contractor Summary'!$C$42,"No","Needs Review"))) ->  | S87: No | T87: 0 | U87: 0
B88: 75 | P88: =IF(AND(G88>='A - Contractor Summary'!$C$36,G88<='A - Contractor Summary'!$C$38),"Yes",IF(G88<'A - Contractor Summary'!$C$36,"No",IF(G88>'A - Contractor Summary'!$C$39,"",""))) -> No | Q88: =IF(OR(P88="Yes",P88="No")*AND(G88<'A - Contractor Summary'!$C$39),"",IF(AND(G88>'A - Contractor Summary'!$C$39,G88<'A - Contractor Summary'!$C$42),"Yes",IF(G88>'A - Contractor Summary'!$C$42,"No","Needs Review"))) ->  | S88: No | T88: 0 | U88: 71.68 | V88: =+M88 ->  | X88: 4
B89: 76 | P89: =IF(AND(G89>='A - Contractor Summary'!$C$36,G89<='A - Contractor Summary'!$C$38),"Yes",IF(G89<'A - Contractor Summary'!$C$36,"No",IF(G89>'A - Contractor Summary'!$C$39,"",""))) -> No | Q89: =IF(OR(P89="Yes",P89="No")*AND(G89<'A - Contractor Summary'!$C$39),"",IF(AND(G89>'A - Contractor Summary'!$C$39,G89<'A - Contractor Summary'!$C$42),"Yes",IF(G89>'A - Contractor Summary'!$C$42,"No","Needs Review"))) ->  | S89: No | T89: 0 | U89: 71.68 | V89: =+M89 ->  | X89: 4
B90: 77 | P90: =IF(AND(G90>='A - Contractor Summary'!$C$36,G90<='A - Contractor Summary'!$C$38),"Yes",IF(G90<'A - Contractor Summary'!$C$36,"No",IF(G90>'A - Contractor Summary'!$C$39,"",""))) -> No | Q90: =IF(OR(P90="Yes",P90="No")*AND(G90<'A - Contractor Summary'!$C$39),"",IF(AND(G90>'A - Contractor Summary'!$C$39,G90<'A - Contractor Summary'!$C$42),"Yes",IF(G90>'A - Contractor Summary'!$C$42,"No","Needs Review"))) ->  | S90: No | T90: 0 | U90: 0 | X90: 2,3
B91: 78 | P91: =IF(AND(G91>='A - Contractor Summary'!$C$36,G91<='A - Contractor Summary'!$C$38),"Yes",IF(G91<'A - Contractor Summary'!$C$36,"No",IF(G91>'A - Contractor Summary'!$C$39,"",""))) -> No | Q91: =IF(OR(P91="Yes",P91="No")*AND(G91<'A - Contractor Summary'!$C$39),"",IF(AND(G91>'A - Contractor Summary'!$C$39,G91<'A - Contractor Summary'!$C$42),"Yes",IF(G91>'A - Contractor Summary'!$C$42,"No","Needs Review"))) ->  | S91: No | T91: 0 | U91: 0 | X91: 1
B92: 79 | P92: =IF(AND(G92>='A - Contractor Summary'!$C$36,G92<='A - Contractor Summary'!$C$38),"Yes",IF(G92<'A - Contractor Summary'!$C$36,"No",IF(G92>'A - Contractor Summary'!$C$39,"",""))) -> No | Q92: =IF(OR(P92="Yes",P92="No")*AND(G92<'A - Contractor Summary'!$C$39),"",IF(AND(G92>'A - Contractor Summary'!$C$39,G92<'A - Contractor Summary'!$C$42),"Yes",IF(G92>'A - Contractor Summary'!$C$42,"No","Needs Review"))) ->  | S92: No | T92: 0 | U92: 0 | X92: 1
L93: =SUM(L14:L92) -> 0 | T93: =IFERROR(SUM(T14:T92),0) -> 0 | U93: =IFERROR(SUM(U14:U92),0) -> 143.36 | V93: 0 | W93: =IFERROR(SUM(W14:W92),0) -> 0 | X93: =U93-V93-W93 -> 143.36 | Y93: check (a)
B96: Tickmark Explanation:
B97: 1
B98: 2
B99: 3
B100: 4

Sheet E - Fuel
B2: Fuel Charges
B4: Test Plan: (A) Obtain support of individual charges. (B) Enter Yes/No if receipt is itemized (C) Enter Yes/No if proof of payment has been provided. (D) Ensure charges fall between the dates the vendor was mobilized and the date they arrived. (E) Ensure charges are prior to the date the vendor arrived home or was released to another utility. (F) Ensure the location of charge was reasonable (G) Determine the amount(s) to be reviewed, allowed and/or disallowed. (H) For charges which required further review, document review (include why it was determined to be allowed/disallowed via a tickmark).
B9: a | C9: Check figure should equal $0. Cell will appear yellow if discrepancies are noted.
C11: A | K11: B | L11: C | M11: D | N11: E | O11: F | P11: G | S11: H
B12: Support Reviewed | M12: Conclusions
B13: # | C13: Type of Support | D13: Support Identifier | E13: Company | F13: Date | G13: Person | H13: Name | I13: Location | J13: Total Charge | K13: Itemized Receipt | L13: Proof of Payment | M13: Reasonable based on Mobilization date(s) | N13: Reasonable based on Demobilization date(s) | O13: Locations Reasonable | P13: Conclusion | Q13: $ Allowable Charge | R13: $ To Be Reviewed | S13: Reviewed - Allowable Charge | T13: Reviewed - Unallowable Charge | U13: Tickmarks
B14: 1 | C14: Receipts | E14: Vendor 04 | F14: 10/13/18-11/10/18 | J14: 6185.55 | M14: =IF(AND(F14>='A - Contractor Summary'!$C$36,F14<='A - Contractor Summary'!$C$38),"Yes",IF(F14<'A - Contractor Summary'!$C$36,"No",IF(F14>'A - Contractor Summary'!$C$39,"",""))) ->  | N14: =IF(OR(M14="Yes",M14="No")*AND(F14<'A - Contractor Summary'!$C$39),"",IF(AND(F14>'A - Contractor Summary'!$C$39,F14<'A - Contractor Summary'!$C$42),"Yes",IF(F14>'A - Contractor Summary'!$C$42,"No","Needs Review"))) -> Yes | P14: =IF(AND(O14="Yes",K14="Yes",L14="Yes")*OR(N14="Yes",M14="Yes"),"Yes",IF(OR(K14="No",M14="No",N14="No",O14="No",L14="No"),"No","Needs Review")) -> Needs Review | Q14: =IF(P14="Yes",J14,0) -> 0 | R14: =IF(P14="Needs Review",J14,0) -> 6185.55 | S14: =+J14 -> 6185.55 | U14: 1
B15: 2 | M15: =IF(AND(F15>='A - Contractor Summary'!$C$36,F15<='A - Contractor Summary'!$C$38),"Yes",IF(F15<'A - Contractor Summary'!$C$36,"No",IF(F15>'A - Contractor Summary'!$C$39,"",""))) -> No | Q15: 0 | R15: 0
M16: =IF(AND(F16>='A - Contractor Summary'!$C$36,F16<='A - Contractor Summary'!$C$38),"Yes",IF(F16<'A - Contractor Summary'!$C$36,"No",IF(F16>'A - Contractor Summary'!$C$39,"",""))) -> No | Q16: =IF(P16="Yes",#REF!,0) -> 0 | R16: =IF(P16="ED Review",#REF!,0) -> 0
J17: =SUM(J14:J16) -> 6185.55 | Q17: =IFERROR(SUM(Q14:Q16),0) -> 0 | R17: =IFERROR(SUM(R14:R16),0) -> 6185.55 | S17: =SUM(S14:S16) -> 6185.55 | T17: =SUM(T14:T16) -> 0 | U17: =R17-S17-T17 -> 0 | V17: check (a)
B23: Tickmark Explanation:
C24: 1 Documentation Provided

Sheet F - Meals
B2: Meal Charges
B4: Test Plan: (A) Obtain support of individual charges. (B) Enter Yes/No if receipt is itemized. (C) Enter Yes/No if proof of payment has been provided. (D) Ensure charges fall between the dates the vendor was mobilized and the date they arrived. (E) Ensure charges are prior to the date the vendor arrived home or was released to another utility. (F) Ensure the location of charge was reasonable (G) Determine the amount(s) to be reviewed, allowed and/or disallowed. (H) For charges which required further review, document review and include why it was determined to be allowed/disallowed via a tickmark.
B9: a | C9: Check figure should equal $0. Cell will appear yellow if discrepancies are noted.
C11: A | L11: B | M11: C | N11: D | O11: E | P11: F | Q11: G | T11: H
B12: Support Reviewed | N12: Conclusions
B13: # | C13: Type of Support | D13: Support Identifier | E13: Company | F13: Crew | G13: Date | H13: Person | I13: Restaurant Name | J13: Location | K13: $ Total | L13: Itemized Receipt | M13: Proof of Payment | N13: Reasonable based on Mobilization date(s) | O13: Reasonable based on Demobilization date(s) | P13: Locations Reasonable | Q13: Conclusion | R13: $ Allowable Charge | S13: $ To Be Reviewed | T13: Reviewed - Allowable Charge | U13: Reviewed - Unallowable Charge | V13: Tickmarks
B14: 1 | N14: =IF(AND(G14>='A - Contractor Summary'!$C$36,G14<='A - Contractor Summary'!$C$38),"Yes",IF(G14<'A - Contractor Summary'!$C$36,"No",IF(G14>'A - Contractor Summary'!$C$39,"",""))) -> No | O14: =IF(OR(N14="Yes",N14="No")*AND(G14<'A - Contractor Summary'!$C$39),"",IF(AND(G14>'A - Contractor Summary'!$C$39,G14<'A - Contractor Summary'!$C$42),"Yes",IF(G14>'A - Contractor Summary'!$C$42,"No","Needs Review"))) ->  | P14: Yes | Q14: =IF(AND(P14="Yes",L14="Yes",M14="Yes")*OR(O14="Yes",N14="Yes"),"Yes",IF(OR(L14="No",N14="No",O14="No",P14="No",M14="No"),"No","Needs Review")) -> No | R14: =IF(Q14="Yes",K14,0) -> 0 | S14: =IF(Q14="Needs Review",K14,0) -> 0
B15: 2 | N15: =IF(AND(G15>='A - Contractor Summary'!$C$36,G15<='A - Contractor Summary'!$C$38),"Yes",IF(G15<'A - Contractor Summary'!$C$36,"No",IF(G15>'A - Contractor Summary'!$C$39,"",""))) -> No | O15: =IF(OR(N15="Yes",N15="No")*AND(G15<'A - Contractor Summary'!$C$39),"",IF(AND(G15>'A - Contractor Summary'!$C$39,G15<'A - Contractor Summary'!$C$42),"Yes",IF(G15>'A - Contractor Summary'!$C$42,"No","Needs Review"))) ->  | P15: Yes | Q15: No | R15: 0 | S15: 0
B16: 3 | N16: =IF(AND(G16>='A - Contractor Summary'!$C$36,G16<='A - Contractor Summary'!$C$38),"Yes",IF(G16<'A - Contractor Summary'!$C$36,"No",IF(G16>'A - Contractor Summary'!$C$39,"",""))) -> No | O16: =IF(OR(N16="Yes",N16="No")*AND(G16<'A - Contractor Summary'!$C$39),"",IF(AND(G16>'A - Contractor Summary'!$C$39,G16<'A - Contractor Summary'!$C$42),"Yes",IF(G16>'A - Contractor Summary'!$C$42,"No","Needs Review"))) ->  | P16: Yes | Q16: No | R16: 0 | S16: 0
B17: 4 | N17: =IF(AND(G17>='A - Contractor Summary'!$C$36,G17<='A - Contractor Summary'!$C$38),"Yes",IF(G17<'A - Contractor Summary'!$C$36,"No",IF(G17>'A - Contractor Summary'!$C$39,"",""))) -> No | O17: =IF(OR(N17="Yes",N17="No")*AND(G17<'A - Contractor Summary'!$C$39),"",IF(AND(G17>'A - Contractor Summary'!$C$39,G17<'A - Contractor Summary'!$C$42),"Yes",IF(G17>'A - Contractor Summary'!$C$42,"No","Needs Review"))) ->  | P17: Yes | Q17: No | R17: 0 | S17: 0
B18: 5 | N18: =IF(AND(G18>='A - Contractor Summary'!$C$36,G18<='A - Contractor Summary'!$C$38),"Yes",IF(G18<'A - Contractor Summary'!$C$36,"No",IF(G18>'A - Contractor Summary'!$C$39,"",""))) -> No | O18: =IF(OR(N18="Yes",N18="No")*AND(G18<'A - Contractor Summary'!$C$39),"",IF(AND(G18>'A - Contractor Summary'!$C$39,G18<'A - Contractor Summary'!$C$42),"Yes",IF(G18>'A - Contractor Summary'!$C$42,"No","Needs Review"))) ->  | P18: No | Q18: No | R18: 0 | S18: 0
B19: 6 | N19: =IF(AND(G19>='A - Contractor Summary'!$C$36,G19<='A - Contractor Summary'!$C$38),"Yes",IF(G19<'A - Contractor Summary'!$C$36,"No",IF(G19>'A - Contractor Summary'!$C$39,"",""))) -> No | O19: =IF(OR(N19="Yes",N19="No")*AND(G19<'A - Contractor Summary'!$C$39),"",IF(AND(G19>'A - Contractor Summary'!$C$39,G19<'A - Contractor Summary'!$C$42),"Yes",IF(G19>'A - Contractor Summary'!$C$42,"No","Needs Review"))) ->  | P19: Yes | Q19: No | R19: 0 | S19: 0
B20: 7 | N20: =IF(AND(G20>='A - Contractor Summary'!$C$36,G20<='A - Contractor Summary'!$C$38),"Yes",IF(G20<'A - Contractor Summary'!$C$36,"No",IF(G20>'A - Contractor Summary'!$C$39,"",""))) -> No | O20: =IF(OR(N20="Yes",N20="No")*AND(G20<'A - Contractor Summary'!$C$39),"",IF(AND(G20>'A - Contractor Summary'!$C$39,G20<'A - Contractor Summary'!$C$42),"Yes",IF(G20>'A - Contractor Summary'!$C$42,"No","Needs Review"))) ->  | P20: Yes | Q20: No | R20: 0 | S20: 0
B21: 8 | N21: =IF(AND(G21>='A - Contractor Summary'!$C$36,G21<='A - Contractor Summary'!$C$38),"Yes",IF(G21<'A - Contractor Summary'!$C$36,"No",IF(G21>'A - Contractor Summary'!$C$39,"",""))) -> No | O21: =IF(OR(N21="Yes",N21="No")*AND(G21<'A - Contractor Summary'!$C$39),"",IF(AND(G21>'A - Contractor Summary'!$C$39,G21<'A - Contractor Summary'!$C$42),"Yes",IF(G21>'A - Contractor Summary'!$C$42,"No","Needs Review"))) ->  | P21: Yes | Q21: No | R21: 0 | S21: 0
B22: 9 | N22: =IF(AND(G22>='A - Contractor Summary'!$C$36,G22<='A - Contractor Summary'!$C$38),"Yes",IF(G22<'A - Contractor Summary'!$C$36,"No",IF(G22>'A - Contractor Summary'!$C$39,"",""))) -> No | O22: =IF(OR(N22="Yes",N22="No")*AND(G22<'A - Contractor Summary'!$C$39),"",IF(AND(G22>'A - Contractor Summary'!$C$39,G22<'A - Contractor Summary'!$C$42),"Yes",IF(G22>'A - Contractor Summary'!$C$42,"No","Needs Review"))) ->  | P22: Yes | Q22: No | R22: 0 | S22: 0
B23: 10 | N23: =IF(AND(G23>='A - Contractor Summary'!$C$36,G23<='A - Contractor Summary'!$C$38),"Yes",IF(G23<'A - Contractor Summary'!$C$36,"No",IF(G23>'A - Contractor Summary'!$C$39,"",""))) -> No | O23: =IF(OR(N23="Yes",N23="No")*AND(G23<'A - Contractor Summary'!$C$39),"",IF(AND(G23>'A - Contractor Summary'!$C$39,G23<'A - Contractor Summary'!$C$42),"Yes",IF(G23>'A - Contractor Summary'!$C$42,"No","Needs Review"))) ->  | P23: Yes | Q23: No | R23: 0 | S23: 0
B24: 11 | N24: =IF(AND(G24>='A - Contractor Summary'!$C$36,G24<='A - Contractor Summary'!$C$38),"Yes",IF(G24<'A - Contractor Summary'!$C$36,"No",IF(G24>'A - Contractor Summary'!$C$39,"",""))) -> No | O24: =IF(OR(N24="Yes",N24="No")*AND(G24<'A - Contractor Summary'!$C$39),"",IF(AND(G24>'A - Contractor Summary'!$C$39,G24<'A - Contractor Summary'!$C$42),"Yes",IF(G24>'A - Contractor Summary'!$C$42,"No","Needs Review"))) ->  | P24: Yes | Q24: No | R24: 0 | S24: 0
B25: 12 | N25: =IF(AND(G25>='A - Contractor Summary'!$C$36,G25<='A - Contractor Summary'!$C$38),"Yes",IF(G25<'A - Contractor Summary'!$C$36,"No",IF(G25>'A - Contractor Summary'!$C$39,"",""))) -> No | O25: =IF(OR(N25="Yes",N25="No")*AND(G25<'A - Contractor Summary'!$C$39),"",IF(AND(G25>'A - Contractor Summary'!$C$39,G25<'A - Contractor Summary'!$C$42),"Yes",IF(G25>'A - Contractor Summary'!$C$42,"No","Needs Review"))) ->  | P25: Yes | Q25: No | R25: 0 | S25: 0
B26: 13 | N26: =IF(AND(G26>='A - Contractor Summary'!$C$36,G26<='A - Contractor Summary'!$C$38),"Yes",IF(G26<'A - Contractor Summary'!$C$36,"No",IF(G26>'A - Contractor Summary'!$C$39,"",""))) -> No | O26: =IF(OR(N26="Yes",N26="No")*AND(G26<'A - Contractor Summary'!$C$39),"",IF(AND(G26>'A - Contractor Summary'!$C$39,G26<'A - Contractor Summary'!$C$42),"Yes",IF(G26>'A - Contractor Summary'!$C$42,"No","Needs Review"))) ->  | P26: Yes | Q26: No | R26: 0 | S26: 0
B27: 14 | N27: =IF(AND(G27>='A - Contractor Summary'!$C$36,G27<='A - Contractor Summary'!$C$38),"Yes",IF(G27<'A - Contractor Summary'!$C$36,"No",IF(G27>'A - Contractor Summary'!$C$39,"",""))) -> No | O27: =IF(OR(N27="Yes",N27="No")*AND(G27<'A - Contractor Summary'!$C$39),"",IF(AND(G27>'A - Contractor Summary'!$C$39,G27<'A - Contractor Summary'!$C$42),"Yes",IF(G27>'A - Contractor Summary'!$C$42,"No","Needs Review"))) ->  | P27: Yes | Q27: No | R27: 0 | S27: 0
B28: 15 | N28: =IF(AND(G28>='A - Contractor Summary'!$C$36,G28<='A - Contractor Summary'!$C$38),"Yes",IF(G28<'A - Contractor Summary'!$C$36,"No",IF(G28>'A - Contractor Summary'!$C$39,"",""))) -> No | O28: =IF(OR(N28="Yes",N28="No")*AND(G28<'A - Contractor Summary'!$C$39),"",IF(AND(G28>'A - Contractor Summary'!$C$39,G28<'A - Contractor Summary'!$C$42),"Yes",IF(G28>'A - Contractor Summary'!$C$42,"No","Needs Review"))) ->  | P28: Yes | Q28: No | R28: 0 | S28: 0
B29: 16 | N29: =IF(AND(G29>='A - Contractor Summary'!$C$36,G29<='A - Contractor Summary'!$C$38),"Yes",IF(G29<'A - Contractor Summary'!$C$36,"No",IF(G29>'A - Contractor Summary'!$C$39,"",""))) -> No | O29: =IF(OR(N29="Yes",N29="No")*AND(G29<'A - Contractor Summary'!$C$39),"",IF(AND(G29>'A - Contractor Summary'!$C$39,G29<'A - Contractor Summary'!$C$42),"Yes",IF(G29>'A - Contractor Summary'!$C$42,"No","Needs Review"))) ->  | P29: No | Q29: No | R29: 0 | S29: 0
B30: 17 | N30: =IF(AND(G30>='A - Contractor Summary'!$C$36,G30<='A - Contractor Summary'!$C$38),"Yes",IF(G30<'A - Contractor Summary'!$C$36,"No",IF(G30>'A - Contractor Summary'!$C$39,"",""))) -> No | O30: =IF(OR(N30="Yes",N30="No")*AND(G30<'A - Contractor Summary'!$C$39),"",IF(AND(G30>'A - Contractor Summary'!$C$39,G30<'A - Contractor Summary'!$C$42),"Yes",IF(G30>'A - Contractor Summary'!$C$42,"No","Needs Review"))) ->  | P30: Yes | Q30: No | R30: 0 | S30: 0
B31: 18 | N31: =IF(AND(G31>='A - Contractor Summary'!$C$36,G31<='A - Contractor Summary'!$C$38),"Yes",IF(G31<'A - Contractor Summary'!$C$36,"No",IF(G31>'A - Contractor Summary'!$C$39,"",""))) -> No | O31: =IF(OR(N31="Yes",N31="No")*AND(G31<'A - Contractor Summary'!$C$39),"",IF(AND(G31>'A - Contractor Summary'!$C$39,G31<'A - Contractor Summary'!$C$42),"Yes",IF(G31>'A - Contractor Summary'!$C$42,"No","Needs Review"))) ->  | P31: Yes | Q31: No | R31: 0 | S31: 0
B32: 19 | N32: =IF(AND(G32>='A - Contractor Summary'!$C$36,G32<='A - Contractor Summary'!$C$38),"Yes",IF(G32<'A - Contractor Summary'!$C$36,"No",IF(G32>'A - Contractor Summary'!$C$39,"",""))) -> No | O32: =IF(OR(N32="Yes",N32="No")*AND(G32<'A - Contractor Summary'!$C$39),"",IF(AND(G32>'A - Contractor Summary'!$C$39,G32<'A - Contractor Summary'!$C$42),"Yes",IF(G32>'A - Contractor Summary'!$C$42,"No","Needs Review"))) ->  | P32: Yes | Q32: No | R32: 0 | S32: 0
B33: 20 | N33: =IF(AND(G33>='A - Contractor Summary'!$C$36,G33<='A - Contractor Summary'!$C$38),"Yes",IF(G33<'A - Contractor Summary'!$C$36,"No",IF(G33>'A - Contractor Summary'!$C$39,"",""))) -> No | O33: =IF(OR(N33="Yes",N33="No")*AND(G33<'A - Contractor Summary'!$C$39),"",IF(AND(G33>'A - Contractor Summary'!$C$39,G33<'A - Contractor Summary'!$C$42),"Yes",IF(G33>'A - Contractor Summary'!$C$42,"No","Needs Review"))) ->  | P33: Yes | Q33: No | R33: 0 | S33: 0
B34: 21 | N34: =IF(AND(G34>='A - Contractor Summary'!$C$36,G34<='A - Contractor Summary'!$C$38),"Yes",IF(G34<'A - Contractor Summary'!$C$36,"No",IF(G34>'A - Contractor Summary'!$C$39,"",""))) -> No | O34: =IF(OR(N34="Yes",N34="No")*AND(G34<'A - Contractor Summary'!$C$39),"",IF(AND(G34>'A - Contractor Summary'!$C$39,G34<'A - Contractor Summary'!$C$42),"Yes",IF(G34>'A - Contractor Summary'!$C$42,"No","Needs Review"))) ->  | P34: Yes | Q34: No | R34: 0 | S34: 0
B35: 22 | N35: =IF(AND(G35>='A - Contractor Summary'!$C$36,G35<='A - Contractor Summary'!$C$38),"Yes",IF(G35<'A - Contractor Summary'!$C$36,"No",IF(G35>'A - Contractor Summary'!$C$39,"",""))) -> No | O35: =IF(OR(N35="Yes",N35="No")*AND(G35<'A - Contractor Summary'!$C$39),"",IF(AND(G35>'A - Contractor Summary'!$C$39,G35<'A - Contractor Summary'!$C$42),"Yes",IF(G35>'A - Contractor Summary'!$C$42,"No","Needs Review"))) ->  | P35: Yes | Q35: No | R35: 0 | S35: 0
B36: 23 | N36: =IF(AND(G36>='A - Contractor Summary'!$C$36,G36<='A - Contractor Summary'!$C$38),"Yes",IF(G36<'A - Contractor Summary'!$C$36,"No",IF(G36>'A - Contractor Summary'!$C$39,"",""))) -> No | O36: =IF(OR(N36="Yes",N36="No")*AND(G36<'A - Contractor Summary'!$C$39),"",IF(AND(G36>'A - Contractor Summary'!$C$39,G36<'A - Contractor Summary'!$C$42),"Yes",IF(G36>'A - Contractor Summary'!$C$42,"No","Needs Review"))) ->  | P36: Yes | Q36: No | R36: 0 | S36: 0
B37: 24 | N37: =IF(AND(G37>='A - Contractor Summary'!$C$36,G37<='A - Contractor Summary'!$C$38),"Yes",IF(G37<'A - Contractor Summary'!$C$36,"No",IF(G37>'A - Contractor Summary'!$C$39,"",""))) -> No | O37: =IF(OR(N37="Yes",N37="No")*AND(G37<'A - Contractor Summary'!$C$39),"",IF(AND(G37>'A - Contractor Summary'!$C$39,G37<'A - Contractor Summary'!$C$42),"Yes",IF(G37>'A - Contractor Summary'!$C$42,"No","Needs Review"))) ->  | P37: Yes | Q37: No | R37: 0 | S37: 0
B38: 25 | N38: =IF(AND(G38>='A - Contractor Summary'!$C$36,G38<='A - Contractor Summary'!$C$38),"Yes",IF(G38<'A - Contractor Summary'!$C$36,"No",IF(G38>'A - Contractor Summary'!$C$39,"",""))) -> No | O38: =IF(OR(N38="Yes",N38="No")*AND(G38<'A - Contractor Summary'!$C$39),"",IF(AND(G38>'A - Contractor Summary'!$C$39,G38<'A - Contractor Summary'!$C$42),"Yes",IF(G38>'A - Contractor Summary'!$C$42,"No","Needs Review"))) ->  | P38: Yes | Q38: No | R38: 0 | S38: 0
B39: 26 | N39: =IF(AND(G39>='A - Contractor Summary'!$C$36,G39<='A - Contractor Summary'!$C$38),"Yes",IF(G39<'A - Contractor Summary'!$C$36,"No",IF(G39>'A - Contractor Summary'!$C$39,"",""))) -> No | O39: =IF(OR(N39="Yes",N39="No")*AND(G39<'A - Contractor Summary'!$C$39),"",IF(AND(G39>'A - Contractor Summary'!$C$39,G39<'A - Contractor Summary'!$C$42),"Yes",IF(G39>'A - Contractor Summary'!$C$42,"No","Needs Review"))) ->  | P39: Yes | Q39: No | R39: 0 | S39: 0
B40: 27 | N40: =IF(AND(G40>='A - Contractor Summary'!$C$36,G40<='A - Contractor Summary'!$C$38),"Yes",IF(G40<'A - Contractor Summary'!$C$36,"No",IF(G40>'A - Contractor Summary'!$C$39,"",""))) -> No | O40: =IF(OR(N40="Yes",N40="No")*AND(G40<'A - Contractor Summary'!$C$39),"",IF(AND(G40>'A - Contractor Summary'!$C$39,G40<'A - Contractor Summary'!$C$42),"Yes",IF(G40>'A - Contractor Summary'!$C$42,"No","Needs Review"))) ->  | P40: Yes | Q40: No | R40: 0 | S40: 0
B41: 28 | N41: =IF(AND(G41>='A - Contractor Summary'!$C$36,G41<='A - Contractor Summary'!$C$38),"Yes",IF(G41<'A - Contractor Summary'!$C$36,"No",IF(G41>'A - Contractor Summary'!$C$39,"",""))) -> No | O41: =IF(OR(N41="Yes",N41="No")*AND(G41<'A - Contractor Summary'!$C$39),"",IF(AND(G41>'A - Contractor Summary'!$C$39,G41<'A - Contractor Summary'!$C$42),"Yes",IF(G41>'A - Contractor Summary'!$C$42,"No","Needs Review"))) ->  | P41: Yes | Q41: No | R41: 0 | S41: 0
B42: 29 | N42: =IF(AND(G42>='A - Contractor Summary'!$C$36,G42<='A - Contractor Summary'!$C$38),"Yes",IF(G42<'A - Contractor Summary'!$C$36,"No",IF(G42>'A - Contractor Summary'!$C$39,"",""))) -> No | O42: =IF(OR(N42="Yes",N42="No")*AND(G42<'A - Contractor Summary'!$C$39),"",IF(AND(G42>'A - Contractor Summary'!$C$39,G42<'A - Contractor Summary'!$C$42),"Yes",IF(G42>'A - Contractor Summary'!$C$42,"No","Needs Review"))) ->  | P42: Yes | Q42: No | R42: 0 | S42: 0
B43: 30 | N43: =IF(AND(G43>='A - Contractor Summary'!$C$36,G43<='A - Contractor Summary'!$C$38),"Yes",IF(G43<'A - Contractor Summary'!$C$36,"No",IF(G43>'A - Contractor Summary'!$C$39,"",""))) -> No | O43: =IF(OR(N43="Yes",N43="No")*AND(G43<'A - Contractor Summary'!$C$39),"",IF(AND(G43>'A - Contractor Summary'!$C$39,G43<'A - Contractor Summary'!$C$42),"Yes",IF(G43>'A - Contractor Summary'!$C$42,"No","Needs Review"))) ->  | P43: Yes | Q43: No | R43: 0 | S43: 0
B44: 31 | N44: =IF(AND(G44>='A - Contractor Summary'!$C$36,G44<='A - Contractor Summary'!$C$38),"Yes",IF(G44<'A - Contractor Summary'!$C$36,"No",IF(G44>'A - Contractor Summary'!$C$39,"",""))) -> No | O44: =IF(OR(N44="Yes",N44="No")*AND(G44<'A - Contractor Summary'!$C$39),"",IF(AND(G44>'A - Contractor Summary'!$C$39,G44<'A - Contractor Summary'!$C$42),"Yes",IF(G44>'A - Contractor Summary'!$C$42,"No","Needs Review"))) ->  | P44: Yes | Q44: No | R44: 0 | S44: 0
B45: 32 | N45: =IF(AND(G45>='A - Contractor Summary'!$C$36,G45<='A - Contractor Summary'!$C$38),"Yes",IF(G45<'A - Contractor Summary'!$C$36,"No",IF(G45>'A - Contractor Summary'!$C$39,"",""))) -> No | O45: =IF(OR(N45="Yes",N45="No")*AND(G45<'A - Contractor Summary'!$C$39),"",IF(AND(G45>'A - Contractor Summary'!$C$39,G45<'A - Contractor Summary'!$C$42),"Yes",IF(G45>'A - Contractor Summary'!$C$42,"No","Needs Review"))) ->  | P45: Yes | Q45: No | R45: 0 | S45: 0
B46: 33 | N46: =IF(AND(G46>='A - Contractor Summary'!$C$36,G46<='A - Contractor Summary'!$C$38),"Yes",IF(G46<'A - Contractor Summary'!$C$36,"No",IF(G46>'A - Contractor Summary'!$C$39,"",""))) -> No | O46: =IF(OR(N46="Yes",N46="No")*AND(G46<'A - Contractor Summary'!$C$39),"",IF(AND(G46>'A - Contractor Summary'!$C$39,G46<'A - Contractor Summary'!$C$42),"Yes",IF(G46>'A - Contractor Summary'!$C$42,"No","Needs Review"))) ->  | P46: Yes | Q46: =IF(AND(P46="Yes",L46="Yes",M46="Yes")*OR(O46="Yes",N46="Yes"),"Yes",IF(OR(L46="No",N46="No",O46="No",P46="No",M46="No"),"No","Needs Review")) -> No | R46: =IF(Q46="Yes",K46,0) -> 0 | S46: =IF(Q46="Needs Review",K46,0) -> 0
B47: 34 | N47: =IF(AND(G47>='A - Contractor Summary'!$C$36,G47<='A - Contractor Summary'!$C$38),"Yes",IF(G47<'A - Contractor Summary'!$C$36,"No",IF(G47>'A - Contractor Summary'!$C$39,"",""))) -> No | O47: =IF(OR(N47="Yes",N47="No")*AND(G47<'A - Contractor Summary'!$C$39),"",IF(AND(G47>'A - Contractor Summary'!$C$39,G47<'A - Contractor Summary'!$C$42),"Yes",IF(G47>'A - Contractor Summary'!$C$42,"No","Needs Review"))) ->  | P47: Yes | Q47: No | R47: 0 | S47: 0
B48: 35 | N48: =IF(AND(G48>='A - Contractor Summary'!$C$36,G48<='A - Contractor Summary'!$C$38),"Yes",IF(G48<'A - Contractor Summary'!$C$36,"No",IF(G48>'A - Contractor Summary'!$C$39,"",""))) -> No | O48: =IF(OR(N48="Yes",N48="No")*AND(G48<'A - Contractor Summary'!$C$39),"",IF(AND(G48>'A - Contractor Summary'!$C$39,G48<'A - Contractor Summary'!$C$42),"Yes",IF(G48>'A - Contractor Summary'!$C$42,"No","Needs Review"))) ->  | P48: Yes | Q48: No | R48: 0 | S48: 0
B49: 36 | N49: =IF(AND(G49>='A - Contractor Summary'!$C$36,G49<='A - Contractor Summary'!$C$38),"Yes",IF(G49<'A - Contractor Summary'!$C$36,"No",IF(G49>'A - Contractor Summary'!$C$39,"",""))) -> No | O49: =IF(OR(N49="Yes",N49="No")*AND(G49<'A - Contractor Summary'!$C$39),"",IF(AND(G49>'A - Contractor Summary'!$C$39,G49<'A - Contractor Summary'!$C$42),"Yes",IF(G49>'A - Contractor Summary'!$C$42,"No","Needs Review"))) ->  | P49: Yes | Q49: No | R49: 0 | S49: 0
B50: 37 | N50: =IF(AND(G50>='A - Contractor Summary'!$C$36,G50<='A - Contractor Summary'!$C$38),"Yes",IF(G50<'A - Contractor Summary'!$C$36,"No",IF(G50>'A - Contractor Summary'!$C$39,"",""))) -> No | O50: =IF(OR(N50="Yes",N50="No")*AND(G50<'A - Contractor Summary'!$C$39),"",IF(AND(G50>'A - Contractor Summary'!$C$39,G50<'A - Contractor Summary'!$C$42),"Yes",IF(G50>'A - Contractor Summary'!$C$42,"No","Needs Review"))) ->  | P50: Yes | Q50: No | R50: 0 | S50: 0
B51: 38 | N51: =IF(AND(G51>='A - Contractor Summary'!$C$36,G51<='A - Contractor Summary'!$C$38),"Yes",IF(G51<'A - Contractor Summary'!$C$36,"No",IF(G51>'A - Contractor Summary'!$C$39,"",""))) -> No | O51: =IF(OR(N51="Yes",N51="No")*AND(G51<'A - Contractor Summary'!$C$39),"",IF(AND(G51>'A - Contractor Summary'!$C$39,G51<'A - Contractor Summary'!$C$42),"Yes",IF(G51>'A - Contractor Summary'!$C$42,"No","Needs Review"))) ->  | P51: Yes | Q51: No | R51: 0 | S51: 0
B52: 39 | N52: =IF(AND(G52>='A - Contractor Summary'!$C$36,G52<='A - Contractor Summary'!$C$38),"Yes",IF(G52<'A - Contractor Summary'!$C$36,"No",IF(G52>'A - Contractor Summary'!$C$39,"",""))) -> No | O52: =IF(OR(N52="Yes",N52="No")*AND(G52<'A - Contractor Summary'!$C$39),"",IF(AND(G52>'A - Contractor Summary'!$C$39,G52<'A - Contractor Summary'!$C$42),"Yes",IF(G52>'A - Contractor Summary'!$C$42,"No","Needs Review"))) ->  | P52: Yes | Q52: No | R52: 0 | S52: 0
B53: 40 | N53: =IF(AND(G53>='A - Contractor Summary'!$C$36,G53<='A - Contractor Summary'!$C$38),"Yes",IF(G53<'A - Contractor Summary'!$C$36,"No",IF(G53>'A - Contractor Summary'!$C$39,"",""))) -> No | O53: =IF(OR(N53="Yes",N53="No")*AND(G53<'A - Contractor Summary'!$C$39),"",IF(AND(G53>'A - Contractor Summary'!$C$39,G53<'A - Contractor Summary'!$C$42),"Yes",IF(G53>'A - Contractor Summary'!$C$42,"No","Needs Review"))) ->  | P53: Yes | Q53: No | R53: 0 | S53: 0
B54: 41 | N54: =IF(AND(G54>='A - Contractor Summary'!$C$36,G54<='A - Contractor Summary'!$C$38),"Yes",IF(G54<'A - Contractor Summary'!$C$36,"No",IF(G54>'A - Contractor Summary'!$C$39,"",""))) -> No | O54: =IF(OR(N54="Yes",N54="No")*AND(G54<'A - Contractor Summary'!$C$39),"",IF(AND(G54>'A - Contractor Summary'!$C$39,G54<'A - Contractor Summary'!$C$42),"Yes",IF(G54>'A - Contractor Summary'!$C$42,"No","Needs Review"))) ->  | P54: Yes | Q54: No | R54: 0 | S54: 0
B55: 42 | N55: =IF(AND(G55>='A - Contractor Summary'!$C$36,G55<='A - Contractor Summary'!$C$38),"Yes",IF(G55<'A - Contractor Summary'!$C$36,"No",IF(G55>'A - Contractor Summary'!$C$39,"",""))) -> No | O55: =IF(OR(N55="Yes",N55="No")*AND(G55<'A - Contractor Summary'!$C$39),"",IF(AND(G55>'A - Contractor Summary'!$C$39,G55<'A - Contractor Summary'!$C$42),"Yes",IF(G55>'A - Contractor Summary'!$C$42,"No","Needs Review"))) ->  | P55: No | Q55: No | R55: 0 | S55: 0
B56: 43 | N56: =IF(AND(G56>='A - Contractor Summary'!$C$36,G56<='A - Contractor Summary'!$C$38),"Yes",IF(G56<'A - Contractor Summary'!$C$36,"No",IF(G56>'A - Contractor Summary'!$C$39,"",""))) -> No | O56: =IF(OR(N56="Yes",N56="No")*AND(G56<'A - Contractor Summary'!$C$39),"",IF(AND(G56>'A - Contractor Summary'!$C$39,G56<'A - Contractor Summary'!$C$42),"Yes",IF(G56>'A - Contractor Summary'!$C$42,"No","Needs Review"))) ->  | P56: Yes | Q56: No | R56: 0 | S56: 0
B57: 44 | N57: =IF(AND(G57>='A - Contractor Summary'!$C$36,G57<='A - Contractor Summary'!$C$38),"Yes",IF(G57<'A - Contractor Summary'!$C$36,"No",IF(G57>'A - Contractor Summary'!$C$39,"",""))) -> No | O57: =IF(OR(N57="Yes",N57="No")*AND(G57<'A - Contractor Summary'!$C$39),"",IF(AND(G57>'A - Contractor Summary'!$C$39,G57<'A - Contractor Summary'!$C$42),"Yes",IF(G57>'A - Contractor Summary'!$C$42,"No","Needs Review"))) ->  | P57: Yes | Q57: No | R57: 0 | S57: 0
B58: 46 | N58: =IF(AND(G58>='A - Contractor Summary'!$C$36,G58<='A - Contractor Summary'!$C$38),"Yes",IF(G58<'A - Contractor Summary'!$C$36,"No",IF(G58>'A - Contractor Summary'!$C$39,"",""))) -> No | O58: =IF(OR(N58="Yes",N58="No")*AND(G58<'A - Contractor Summary'!$C$39),"",IF(AND(G58>'A - Contractor Summary'!$C$39,G58<'A - Contractor Summary'!$C$42),"Yes",IF(G58>'A - Contractor Summary'!$C$42,"No","Needs Review"))) ->  | P58: Yes | Q58: No | R58: 0 | S58: 0
B59: 47 | N59: =IF(AND(G59>='A - Contractor Summary'!$C$36,G59<='A - Contractor Summary'!$C$38),"Yes",IF(G59<'A - Contractor Summary'!$C$36,"No",IF(G59>'A - Contractor Summary'!$C$39,"",""))) -> No | O59: =IF(OR(N59="Yes",N59="No")*AND(G59<'A - Contractor Summary'!$C$39),"",IF(AND(G59>'A - Contractor Summary'!$C$39,G59<'A - Contractor Summary'!$C$42),"Yes",IF(G59>'A - Contractor Summary'!$C$42,"No","Needs Review"))) ->  | P59: Yes | Q59: No | R59: 0 | S59: 0
B60: 48 | N60: =IF(AND(G60>='A - Contractor Summary'!$C$36,G60<='A - Contractor Summary'!$C$38),"Yes",IF(G60<'A - Contractor Summary'!$C$36,"No",IF(G60>'A - Contractor Summary'!$C$39,"",""))) -> No | O60: =IF(OR(N60="Yes",N60="No")*AND(G60<'A - Contractor Summary'!$C$39),"",IF(AND(G60>'A - Contractor Summary'!$C$39,G60<'A - Contractor Summary'!$C$42),"Yes",IF(G60>'A - Contractor Summary'!$C$42,"No","Needs Review"))) ->  | P60: Yes | Q60: No | R60: 0 | S60: 0
B61: 49 | N61: =IF(AND(G61>='A - Contractor Summary'!$C$36,G61<='A - Contractor Summary'!$C$38),"Yes",IF(G61<'A - Contractor Summary'!$C$36,"No",IF(G61>'A - Contractor Summary'!$C$39,"",""))) -> No | O61: =IF(OR(N61="Yes",N61="No")*AND(G61<'A - Contractor Summary'!$C$39),"",IF(AND(G61>'A - Contractor Summary'!$C$39,G61<'A - Contractor Summary'!$C$42),"Yes",IF(G61>'A - Contractor Summary'!$C$42,"No","Needs Review"))) ->  | P61: Yes | Q61: No | R61: 0 | S61: 0
B62: 50 | N62: =IF(AND(G62>='A - Contractor Summary'!$C$36,G62<='A - Contractor Summary'!$C$38),"Yes",IF(G62<'A - Contractor Summary'!$C$36,"No",IF(G62>'A - Contractor Summary'!$C$39,"",""))) -> No | O62: =IF(OR(N62="Yes",N62="No")*AND(G62<'A - Contractor Summary'!$C$39),"",IF(AND(G62>'A - Contractor Summary'!$C$39,G62<'A - Contractor Summary'!$C$42),"Yes",IF(G62>'A - Contractor Summary'!$C$42,"No","Needs Review"))) ->  | P62: Yes | Q62: No | R62: 0 | S62: 0
B63: 51 | N63: =IF(AND(G63>='A - Contractor Summary'!$C$36,G63<='A - Contractor Summary'!$C$38),"Yes",IF(G63<'A - Contractor Summary'!$C$36,"No",IF(G63>'A - Contractor Summary'!$C$39,"",""))) -> No | O63: =IF(OR(N63="Yes",N63="No")*AND(G63<'A - Contractor Summary'!$C$39),"",IF(AND(G63>'A - Contractor Summary'!$C$39,G63<'A - Contractor Summary'!$C$42),"Yes",IF(G63>'A - Contractor Summary'!$C$42,"No","Needs Review"))) ->  | P63: Yes | Q63: No | R63: 0 | S63: 0
B64: 52 | N64: =IF(AND(G64>='A - Contractor Summary'!$C$36,G64<='A - Contractor Summary'!$C$38),"Yes",IF(G64<'A - Contractor Summary'!$C$36,"No",IF(G64>'A - Contractor Summary'!$C$39,"",""))) -> No | O64: =IF(OR(N64="Yes",N64="No")*AND(G64<'A - Contractor Summary'!$C$39),"",IF(AND(G64>'A - Contractor Summary'!$C$39,G64<'A - Contractor Summary'!$C$42),"Yes",IF(G64>'A - Contractor Summary'!$C$42,"No","Needs Review"))) ->  | P64: Yes | Q64: No | R64: 0 | S64: 0
B65: 53 | N65: =IF(AND(G65>='A - Contractor Summary'!$C$36,G65<='A - Contractor Summary'!$C$38),"Yes",IF(G65<'A - Contractor Summary'!$C$36,"No",IF(G65>'A - Contractor Summary'!$C$39,"",""))) -> No | O65: =IF(OR(N65="Yes",N65="No")*AND(G65<'A - Contractor Summary'!$C$39),"",IF(AND(G65>'A - Contractor Summary'!$C$39,G65<'A - Contractor Summary'!$C$42),"Yes",IF(G65>'A - Contractor Summary'!$C$42,"No","Needs Review"))) ->  | P65: Yes | Q65: No | R65: 0 | S65: 0
B66: 54 | N66: =IF(AND(G66>='A - Contractor Summary'!$C$36,G66<='A - Contractor Summary'!$C$38),"Yes",IF(G66<'A - Contractor Summary'!$C$36,"No",IF(G66>'A - Contractor Summary'!$C$39,"",""))) -> No | O66: =IF(OR(N66="Yes",N66="No")*AND(G66<'A - Contractor Summary'!$C$39),"",IF(AND(G66>'A - Contractor Summary'!$C$39,G66<'A - Contractor Summary'!$C$42),"Yes",IF(G66>'A - Contractor Summary'!$C$42,"No","Needs Review"))) ->  | P66: Yes | Q66: No | R66: 0 | S66: 0
B67: 55 | N67: =IF(AND(G67>='A - Contractor Summary'!$C$36,G67<='A - Contractor Summary'!$C$38),"Yes",IF(G67<'A - Contractor Summary'!$C$36,"No",IF(G67>'A - Contractor Summary'!$C$39,"",""))) -> No | O67: =IF(OR(N67="Yes",N67="No")*AND(G67<'A - Contractor Summary'!$C$39),"",IF(AND(G67>'A - Contractor Summary'!$C$39,G67<'A - Contractor Summary'!$C$42),"Yes",IF(G67>'A - Contractor Summary'!$C$42,"No","Needs Review"))) ->  | P67: Yes | Q67: No | R67: 0 | S67: 0
B68: 56 | N68: =IF(AND(G68>='A - Contractor Summary'!$C$36,G68<='A - Contractor Summary'!$C$38),"Yes",IF(G68<'A - Contractor Summary'!$C$36,"No",IF(G68>'A - Contractor Summary'!$C$39,"",""))) -> No | O68: =IF(OR(N68="Yes",N68="No")*AND(G68<'A - Contractor Summary'!$C$39),"",IF(AND(G68>'A - Contractor Summary'!$C$39,G68<'A - Contractor Summary'!$C$42),"Yes",IF(G68>'A - Contractor Summary'!$C$42,"No","Needs Review"))) ->  | P68: Yes | Q68: No | R68: 0 | S68: 0
B69: 57 | N69: =IF(AND(G69>='A - Contractor Summary'!$C$36,G69<='A - Contractor Summary'!$C$38),"Yes",IF(G69<'A - Contractor Summary'!$C$36,"No",IF(G69>'A - Contractor Summary'!$C$39,"",""))) -> No | O69: =IF(OR(N69="Yes",N69="No")*AND(G69<'A - Contractor Summary'!$C$39),"",IF(AND(G69>'A - Contractor Summary'!$C$39,G69<'A - Contractor Summary'!$C$42),"Yes",IF(G69>'A - Contractor Summary'!$C$42,"No","Needs Review"))) ->  | P69: Yes | Q69: No | R69: 0 | S69: 0
B70: 58 | N70: =IF(AND(G70>='A - Contractor Summary'!$C$36,G70<='A - Contractor Summary'!$C$38),"Yes",IF(G70<'A - Contractor Summary'!$C$36,"No",IF(G70>'A - Contractor Summary'!$C$39,"",""))) -> No | O70: =IF(OR(N70="Yes",N70="No")*AND(G70<'A - Contractor Summary'!$C$39),"",IF(AND(G70>'A - Contractor Summary'!$C$39,G70<'A - Contractor Summary'!$C$42),"Yes",IF(G70>'A - Contractor Summary'!$C$42,"No","Needs Review"))) ->  | P70: No | Q70: Needs Review | R70: 0 | S70: 0
B71: 59 | N71: =IF(AND(G71>='A - Contractor Summary'!$C$36,G71<='A - Contractor Summary'!$C$38),"Yes",IF(G71<'A - Contractor Summary'!$C$36,"No",IF(G71>'A - Contractor Summary'!$C$39,"",""))) -> No | O71: =IF(OR(N71="Yes",N71="No")*AND(G71<'A - Contractor Summary'!$C$39),"",IF(AND(G71>'A - Contractor Summary'!$C$39,G71<'A - Contractor Summary'!$C$42),"Yes",IF(G71>'A - Contractor Summary'!$C$42,"No","Needs Review"))) ->  | P71: Yes | Q71: No | R71: 0 | S71: 0
B72: 61 | N72: =IF(AND(G72>='A - Contractor Summary'!$C$36,G72<='A - Contractor Summary'!$C$38),"Yes",IF(G72<'A - Contractor Summary'!$C$36,"No",IF(G72>'A - Contractor Summary'!$C$39,"",""))) -> No | O72: =IF(OR(N72="Yes",N72="No")*AND(G72<'A - Contractor Summary'!$C$39),"",IF(AND(G72>'A - Contractor Summary'!$C$39,G72<'A - Contractor Summary'!$C$42),"Yes",IF(G72>'A - Contractor Summary'!$C$42,"No","Needs Review"))) ->  | P72: Yes | Q72: No | R72: 0 | S72: 0
B73: 62 | N73: =IF(AND(G73>='A - Contractor Summary'!$C$36,G73<='A - Contractor Summary'!$C$38),"Yes",IF(G73<'A - Contractor Summary'!$C$36,"No",IF(G73>'A - Contractor Summary'!$C$39,"",""))) -> No | O73: =IF(OR(N73="Yes",N73="No")*AND(G73<'A - Contractor Summary'!$C$39),"",IF(AND(G73>'A - Contractor Summary'!$C$39,G73<'A - Contractor Summary'!$C$42),"Yes",IF(G73>'A - Contractor Summary'!$C$42,"No","Needs Review"))) ->  | P73: Yes | Q73: No | R73: 0 | S73: 0
B74: 63 | N74: =IF(AND(G74>='A - Contractor Summary'!$C$36,G74<='A - Contractor Summary'!$C$38),"Yes",IF(G74<'A - Contractor Summary'!$C$36,"No",IF(G74>'A - Contractor Summary'!$C$39,"",""))) -> No | O74: =IF(OR(N74="Yes",N74="No")*AND(G74<'A - Contractor Summary'!$C$39),"",IF(AND(G74>'A - Contractor Summary'!$C$39,G74<'A - Contractor Summary'!$C$42),"Yes",IF(G74>'A - Contractor Summary'!$C$42,"No","Needs Review"))) ->  | P74: Yes | Q74: No | R74: 0 | S74: 0
B75: 64 | N75: =IF(AND(G75>='A - Contractor Summary'!$C$36,G75<='A - Contractor Summary'!$C$38),"Yes",IF(G75<'A - Contractor Summary'!$C$36,"No",IF(G75>'A - Contractor Summary'!$C$39,"",""))) -> No | O75: =IF(OR(N75="Yes",N75="No")*AND(G75<'A - Contractor Summary'!$C$39),"",IF(AND(G75>'A - Contractor Summary'!$C$39,G75<'A - Contractor Summary'!$C$42),"Yes",IF(G75>'A - Contractor Summary'!$C$42,"No","Needs Review"))) ->  | P75: Yes | Q75: No | R75: 0 | S75: 0
B76: 65 | N76: =IF(AND(G76>='A - Contractor Summary'!$C$36,G76<='A - Contractor Summary'!$C$38),"Yes",IF(G76<'A - Contractor Summary'!$C$36,"No",IF(G76>'A - Contractor Summary'!$C$39,"",""))) -> No | O76: =IF(OR(N76="Yes",N76="No")*AND(G76<'A - Contractor Summary'!$C$39),"",IF(AND(G76>'A - Contractor Summary'!$C$39,G76<'A - Contractor Summary'!$C$42),"Yes",IF(G76>'A - Contractor Summary'!$C$42,"No","Needs Review"))) ->  | P76: No | Q76: No | R76: 0 | S76: 0
B77: 66 | N77: =IF(AND(G77>='A - Contractor Summary'!$C$36,G77<='A - Contractor Summary'!$C$38),"Yes",IF(G77<'A - Contractor Summary'!$C$36,"No",IF(G77>'A - Contractor Summary'!$C$39,"",""))) -> No | O77: =IF(OR(N77="Yes",N77="No")*AND(G77<'A - Contractor Summary'!$C$39),"",IF(AND(G77>'A - Contractor Summary'!$C$39,G77<'A - Contractor Summary'!$C$42),"Yes",IF(G77>'A - Contractor Summary'!$C$42,"No","Needs Review"))) ->  | P77: Yes | Q77: No | R77: 0 | S77: 0
B78: 67 | N78: =IF(AND(G78>='A - Contractor Summary'!$C$36,G78<='A - Contractor Summary'!$C$38),"Yes",IF(G78<'A - Contractor Summary'!$C$36,"No",IF(G78>'A - Contractor Summary'!$C$39,"",""))) -> No | O78: =IF(OR(N78="Yes",N78="No")*AND(G78<'A - Contractor Summary'!$C$39),"",IF(AND(G78>'A - Contractor Summary'!$C$39,G78<'A - Contractor Summary'!$C$42),"Yes",IF(G78>'A - Contractor Summary'!$C$42,"No","Needs Review"))) ->  | P78: No | Q78: Needs Review | R78: =IF(Q78="Yes",K78,0) -> 0 | S78: =IF(Q78="Needs Review",K78,0) -> 0
B79: 68 | N79: =IF(AND(G79>='A - Contractor Summary'!$C$36,G79<='A - Contractor Summary'!$C$38),"Yes",IF(G79<'A - Contractor Summary'!$C$36,"No",IF(G79>'A - Contractor Summary'!$C$39,"",""))) -> No | O79: =IF(OR(N79="Yes",N79="No")*AND(G79<'A - Contractor Summary'!$C$39),"",IF(AND(G79>'A - Contractor Summary'!$C$39,G79<'A - Contractor Summary'!$C$42),"Yes",IF(G79>'A - Contractor Summary'!$C$42,"No","Needs Review"))) ->  | P79: Yes | Q79: =IF(AND(P79="Yes",L79="Yes",M79="Yes")*OR(O79="Yes",N79="Yes"),"Yes",IF(OR(L79="No",N79="No",O79="No",P79="No",M79="No"),"No","Needs Review")) -> No | R79: 0 | S79: 0
B80: 69 | N80: =IF(AND(G80>='A - Contractor Summary'!$C$36,G80<='A - Contractor Summary'!$C$38),"Yes",IF(G80<'A - Contractor Summary'!$C$36,"No",IF(G80>'A - Contractor Summary'!$C$39,"",""))) -> No | O80: =IF(OR(N80="Yes",N80="No")*AND(G80<'A - Contractor Summary'!$C$39),"",IF(AND(G80>'A - Contractor Summary'!$C$39,G80<'A - Contractor Summary'!$C$42),"Yes",IF(G80>'A - Contractor Summary'!$C$42,"No","Needs Review"))) ->  | P80: Yes | Q80: No | R80: 0 | S80: 0
B81: 70 | N81: =IF(AND(G81>='A - Contractor Summary'!$C$36,G81<='A - Contractor Summary'!$C$38),"Yes",IF(G81<'A - Contractor Summary'!$C$36,"No",IF(G81>'A - Contractor Summary'!$C$39,"",""))) -> No | O81: =IF(OR(N81="Yes",N81="No")*AND(G81<'A - Contractor Summary'!$C$39),"",IF(AND(G81>'A - Contractor Summary'!$C$39,G81<'A - Contractor Summary'!$C$42),"Yes",IF(G81>'A - Contractor Summary'!$C$42,"No","Needs Review"))) ->  | P81: Yes | Q81: No | R81: 0 | S81: 0
B82: 71 | N82: =IF(AND(G82>='A - Contractor Summary'!$C$36,G82<='A - Contractor Summary'!$C$38),"Yes",IF(G82<'A - Contractor Summary'!$C$36,"No",IF(G82>'A - Contractor Summary'!$C$39,"",""))) -> No | O82: =IF(OR(N82="Yes",N82="No")*AND(G82<'A - Contractor Summary'!$C$39),"",IF(AND(G82>'A - Contractor Summary'!$C$39,G82<'A - Contractor Summary'!$C$42),"Yes",IF(G82>'A - Contractor Summary'!$C$42,"No","Needs Review"))) ->  | P82: Yes | Q82: No | R82: 0 | S82: 0
B83: 72 | N83: =IF(AND(G83>='A - Contractor Summary'!$C$36,G83<='A - Contractor Summary'!$C$38),"Yes",IF(G83<'A - Contractor Summary'!$C$36,"No",IF(G83>'A - Contractor Summary'!$C$39,"",""))) -> No | O83: =IF(OR(N83="Yes",N83="No")*AND(G83<'A - Contractor Summary'!$C$39),"",IF(AND(G83>'A - Contractor Summary'!$C$39,G83<'A - Contractor Summary'!$C$42),"Yes",IF(G83>'A - Contractor Summary'!$C$42,"No","Needs Review"))) ->  | P83: Yes | Q83: No | R83: 0 | S83: 0
B84: 73 | N84: =IF(AND(G84>='A - Contractor Summary'!$C$36,G84<='A - Contractor Summary'!$C$38),"Yes",IF(G84<'A - Contractor Summary'!$C$36,"No",IF(G84>'A - Contractor Summary'!$C$39,"",""))) -> No | O84: =IF(OR(N84="Yes",N84="No")*AND(G84<'A - Contractor Summary'!$C$39),"",IF(AND(G84>'A - Contractor Summary'!$C$39,G84<'A - Contractor Summary'!$C$42),"Yes",IF(G84>'A - Contractor Summary'!$C$42,"No","Needs Review"))) ->  | P84: No | Q84: Needs Review | R84: 0 | S84: 0
B85: 74 | N85: =IF(AND(G85>='A - Contractor Summary'!$C$36,G85<='A - Contractor Summary'!$C$38),"Yes",IF(G85<'A - Contractor Summary'!$C$36,"No",IF(G85>'A - Contractor Summary'!$C$39,"",""))) -> No | O85: =IF(OR(N85="Yes",N85="No")*AND(G85<'A - Contractor Summary'!$C$39),"",IF(AND(G85>'A - Contractor Summary'!$C$39,G85<'A - Contractor Summary'!$C$42),"Yes",IF(G85>'A - Contractor Summary'!$C$42,"No","Needs Review"))) ->  | P85: No | Q85: No | R85: 0 | S85: 0
B86: 75 | N86: =IF(AND(G86>='A - Contractor Summary'!$C$36,G86<='A - Contractor Summary'!$C$38),"Yes",IF(G86<'A - Contractor Summary'!$C$36,"No",IF(G86>'A - Contractor Summary'!$C$39,"",""))) -> No | O86: =IF(OR(N86="Yes",N86="No")*AND(G86<'A - Contractor Summary'!$C$39),"",IF(AND(G86>'A - Contractor Summary'!$C$39,G86<'A - Contractor Summary'!$C$42),"Yes",IF(G86>'A - Contractor Summary'!$C$42,"No","Needs Review"))) ->  | P86: Yes | Q86: No | R86: 0 | S86: 0
B87: 76 | N87: =IF(AND(G87>='A - Contractor Summary'!$C$36,G87<='A - Contractor Summary'!$C$38),"Yes",IF(G87<'A - Contractor Summary'!$C$36,"No",IF(G87>'A - Contractor Summary'!$C$39,"",""))) -> No | O87: =IF(OR(N87="Yes",N87="No")*AND(G87<'A - Contractor Summary'!$C$39),"",IF(AND(G87>'A - Contractor Summary'!$C$39,G87<'A - Contractor Summary'!$C$42),"Yes",IF(G87>'A - Contractor Summary'!$C$42,"No","Needs Review"))) ->  | P87: Yes | Q87: No | R87: 0 | S87: 0
B88: 77 | N88: =IF(AND(G88>='A - Contractor Summary'!$C$36,G88<='A - Contractor Summary'!$C$38),"Yes",IF(G88<'A - Contractor Summary'!$C$36,"No",IF(G88>'A - Contractor Summary'!$C$39,"",""))) -> No | O88: =IF(OR(N88="Yes",N88="No")*AND(G88<'A - Contractor Summary'!$C$39),"",IF(AND(G88>'A - Contractor Summary'!$C$39,G88<'A - Contractor Summary'!$C$42),"Yes",IF(G88>'A - Contractor Summary'!$C$42,"No","Needs Review"))) ->  | P88: Yes | Q88: No | R88: 0 | S88: 0
B89: 78 | N89: =IF(AND(G89>='A - Contractor Summary'!$C$36,G89<='A - Contractor Summary'!$C$38),"Yes",IF(G89<'A - Contractor Summary'!$C$36,"No",IF(G89>'A - Contractor Summary'!$C$39,"",""))) -> No | O89: =IF(OR(N89="Yes",N89="No")*AND(G89<'A - Contractor Summary'!$C$39),"",IF(AND(G89>'A - Contractor Summary'!$C$39,G89<'A - Contractor Summary'!$C$42),"Yes",IF(G89>'A - Contractor Summary'!$C$42,"No","Needs Review"))) ->  | P89: Yes | Q89: No | R89: 0 | S89: 0
B90: 79 | N90: =IF(AND(G90>='A - Contractor Summary'!$C$36,G90<='A - Contractor Summary'!$C$38),"Yes",IF(G90<'A - Contractor Summary'!$C$36,"No",IF(G90>'A - Contractor Summary'!$C$39,"",""))) -> No | O90: =IF(OR(N90="Yes",N90="No")*AND(G90<'A - Contractor Summary'!$C$39),"",IF(AND(G90>'A - Contractor Summary'!$C$39,G90<'A - Contractor Summary'!$C$42),"Yes",IF(G90>'A - Contractor Summary'!$C$42,"No","Needs Review"))) ->  | P90: Yes | Q90: No | R90: 0 | S90: 0
B91: 80 | N91: =IF(AND(G91>='A - Contractor Summary'!$C$36,G91<='A - Contractor Summary'!$C$38),"Yes",IF(G91<'A - Contractor Summary'!$C$36,"No",IF(G91>'A - Contractor Summary'!$C$39,"",""))) -> No | O91: =IF(OR(N91="Yes",N91="No")*AND(G91<'A - Contractor Summary'!$C$39),"",IF(AND(G91>'A - Contractor Summary'!$C$39,G91<'A - Contractor Summary'!$C$42),"Yes",IF(G91>'A - Contractor Summary'!$C$42,"No","Needs Review"))) ->  | P91: No | Q91: No | R91: 0 | S91: 0
B92: 81 | N92: =IF(AND(G92>='A - Contractor Summary'!$C$36,G92<='A - Contractor Summary'!$C$38),"Yes",IF(G92<'A - Contractor Summary'!$C$36,"No",IF(G92>'A - Contractor Summary'!$C$39,"",""))) -> No | O92: =IF(OR(N92="Yes",N92="No")*AND(G92<'A - Contractor Summary'!$C$39),"",IF(AND(G92>'A - Contractor Summary'!$C$39,G92<'A - Contractor Summary'!$C$42),"Yes",IF(G92>'A - Contractor Summary'!$C$42,"No","Needs Review"))) ->  | P92: No | Q92: No | R92: 0 | S92: 0
B93: 82 | N93: =IF(AND(G93>='A - Contractor Summary'!$C$36,G93<='A - Contractor Summary'!$C$38),"Yes",IF(G93<'A - Contractor Summary'!$C$36,"No",IF(G93>'A - Contractor Summary'!$C$39,"",""))) -> No | O93: =IF(OR(N93="Yes",N93="No")*AND(G93<'A - Contractor Summary'!$C$39),"",IF(AND(G93>'A - Contractor Summary'!$C$39,G93<'A - Contractor Summary'!$C$42),"Yes",IF(G93>'A - Contractor Summary'!$C$42,"No","Needs Review"))) ->  | P93: No | Q93: No | R93: 0 | S93: 0
B94: 83 | N94: =IF(AND(G94>='A - Contractor Summary'!$C$36,G94<='A - Contractor Summary'!$C$38),"Yes",IF(G94<'A - Contractor Summary'!$C$36,"No",IF(G94>'A - Contractor Summary'!$C$39,"",""))) -> No | O94: =IF(OR(N94="Yes",N94="No")*AND(G94<'A - Contractor Summary'!$C$39),"",IF(AND(G94>'A - Contractor Summary'!$C$39,G94<'A - Contractor Summary'!$C$42),"Yes",IF(G94>'A - Contractor Summary'!$C$42,"No","Needs Review"))) ->  | P94: No | Q94: =IF(AND(P94="Yes",L94="Yes",M94="Yes")*OR(O94="Yes",N94="Yes"),"Yes",IF(OR(L94="No",N94="No",O94="No",P94="No",M94="No"),"No","Needs Review")) -> No | R94: =IF(Q94="Yes",K94,0) -> 0 | S94: =IF(Q94="Needs Review",K94,0) -> 0
B95: 84 | N95: =IF(AND(G95>='A - Contractor Summary'!$C$36,G95<='A - Contractor Summary'!$C$38),"Yes",IF(G95<'A - Contractor Summary'!$C$36,"No",IF(G95>'A - Contractor Summary'!$C$39,"",""))) -> No | O95: =IF(OR(N95="Yes",N95="No")*AND(G95<'A - Contractor Summary'!$C$39),"",IF(AND(G95>'A - Contractor Summary'!$C$39,G95<'A - Contractor Summary'!$C$42),"Yes",IF(G95>'A - Contractor Summary'!$C$42,"No","Needs Review"))) ->  | P95: No | Q95: No | R95: 0 | S95: 0
B96: 85 | N96: =IF(AND(G96>='A - Contractor Summary'!$C$36,G96<='A - Contractor Summary'!$C$38),"Yes",IF(G96<'A - Contractor Summary'!$C$36,"No",IF(G96>'A - Contractor Summary'!$C$39,"",""))) -> No | O96: =IF(OR(N96="Yes",N96="No")*AND(G96<'A - Contractor Summary'!$C$39),"",IF(AND(G96>'A - Contractor Summary'!$C$39,G96<'A - Contractor Summary'!$C$42),"Yes",IF(G96>'A - Contractor Summary'!$C$42,"No","Needs Review"))) ->  | P96: No | Q96: No | R96: 0 | S96: 0
B97: 86 | N97: =IF(AND(G97>='A - Contractor Summary'!$C$36,G97<='A - Contractor Summary'!$C$38),"Yes",IF(G97<'A - Contractor Summary'!$C$36,"No",IF(G97>'A - Contractor Summary'!$C$39,"",""))) -> No | O97: =IF(OR(N97="Yes",N97="No")*AND(G97<'A - Contractor Summary'!$C$39),"",IF(AND(G97>'A - Contractor Summary'!$C$39,G97<'A - Contractor Summary'!$C$42),"Yes",IF(G97>'A - Contractor Summary'!$C$42,"No","Needs Review"))) ->  | P97: Yes | Q97: No | R97: 0 | S97: 0
B98: 87 | N98: =IF(AND(G98>='A - Contractor Summary'!$C$36,G98<='A - Contractor Summary'!$C$38),"Yes",IF(G98<'A - Contractor Summary'!$C$36,"No",IF(G98>'A - Contractor Summary'!$C$39,"",""))) -> No | O98: =IF(OR(N98="Yes",N98="No")*AND(G98<'A - Contractor Summary'!$C$39),"",IF(AND(G98>'A - Contractor Summary'!$C$39,G98<'A - Contractor Summary'!$C$42),"Yes",IF(G98>'A - Contractor Summary'!$C$42,"No","Needs Review"))) ->  | P98: Yes | Q98: No | R98: 0 | S98: 0
B99: 88 | N99: =IF(AND(G99>='A - Contractor Summary'!$C$36,G99<='A - Contractor Summary'!$C$38),"Yes",IF(G99<'A - Contractor Summary'!$C$36,"No",IF(G99>'A - Contractor Summary'!$C$39,"",""))) -> No | O99: =IF(OR(N99="Yes",N99="No")*AND(G99<'A - Contractor Summary'!$C$39),"",IF(AND(G99>'A - Contractor Summary'!$C$39,G99<'A - Contractor Summary'!$C$42),"Yes",IF(G99>'A - Contractor Summary'!$C$42,"No","Needs Review"))) ->  | P99: Yes | Q99: No | R99: 0 | S99: 0
B100: 89 | N100: =IF(AND(G100>='A - Contractor Summary'!$C$36,G100<='A - Contractor Summary'!$C$38),"Yes",IF(G100<'A - Contractor Summary'!$C$36,"No",IF(G100>'A - Contractor Summary'!$C$39,"",""))) -> No | O100: =IF(OR(N100="Yes",N100="No")*AND(G100<'A - Contractor Summary'!$C$39),"",IF(AND(G100>'A - Contractor Summary'!$C$39,G100<'A - Contractor Summary'!$C$42),"Yes",IF(G100>'A - Contractor Summary'!$C$42,"No","Needs Review"))) ->  | P100: Yes | Q100: No | R100: 0 | S100: 0
B101: 90 | N101: =IF(AND(G101>='A - Contractor Summary'!$C$36,G101<='A - Contractor Summary'!$C$38),"Yes",IF(G101<'A - Contractor Summary'!$C$36,"No",IF(G101>'A - Contractor Summary'!$C$39,"",""))) -> No | O101: =IF(OR(N101="Yes",N101="No")*AND(G101<'A - Contractor Summary'!$C$39),"",IF(AND(G101>'A - Contractor Summary'!$C$39,G101<'A - Contractor Summary'!$C$42),"Yes",IF(G101>'A - Contractor Summary'!$C$42,"No","Needs Review"))) ->  | P101: Yes | Q101: No | R101: 0 | S101: 0
B102: 91 | N102: =IF(AND(G102>='A - Contractor Summary'!$C$36,G102<='A - Contractor Summary'!$C$38),"Yes",IF(G102<'A - Contractor Summary'!$C$36,"No",IF(G102>'A - Contractor Summary'!$C$39,"",""))) -> No | O102: =IF(OR(N102="Yes",N102="No")*AND(G102<'A - Contractor Summary'!$C$39),"",IF(AND(G102>'A - Contractor Summary'!$C$39,G102<'A - Contractor Summary'!$C$42),"Yes",IF(G102>'A - Contractor Summary'!$C$42,"No","Needs Review"))) ->  | P102: Yes | Q102: No | R102: 0 | S102: 0
B103: 92 | N103: =IF(AND(G103>='A - Contractor Summary'!$C$36,G103<='A - Contractor Summary'!$C$38),"Yes",IF(G103<'A - Contractor Summary'!$C$36,"No",IF(G103>'A - Contractor Summary'!$C$39,"",""))) -> No | O103: =IF(OR(N103="Yes",N103="No")*AND(G103<'A - Contractor Summary'!$C$39),"",IF(AND(G103>'A - Contractor Summary'!$C$39,G103<'A - Contractor Summary'!$C$42),"Yes",IF(G103>'A - Contractor Summary'!$C$42,"No","Needs Review"))) ->  | P103: Yes | Q103: No | R103: 0 | S103: 0
B104: 93 | N104: =IF(AND(G104>='A - Contractor Summary'!$C$36,G104<='A - Contractor Summary'!$C$38),"Yes",IF(G104<'A - Contractor Summary'!$C$36,"No",IF(G104>'A - Contractor Summary'!$C$39,"",""))) -> No | O104: =IF(OR(N104="Yes",N104="No")*AND(G104<'A - Contractor Summary'!$C$39),"",IF(AND(G104>'A - Contractor Summary'!$C$39,G104<'A - Contractor Summary'!$C$42),"Yes",IF(G104>'A - Contractor Summary'!$C$42,"No","Needs Review"))) ->  | P104: Yes | Q104: No | R104: 0 | S104: 0
B105: 94 | N105: =IF(AND(G105>='A - Contractor Summary'!$C$36,G105<='A - Contractor Summary'!$C$38),"Yes",IF(G105<'A - Contractor Summary'!$C$36,"No",IF(G105>'A - Contractor Summary'!$C$39,"",""))) -> No | O105: =IF(OR(N105="Yes",N105="No")*AND(G105<'A - Contractor Summary'!$C$39),"",IF(AND(G105>'A - Contractor Summary'!$C$39,G105<'A - Contractor Summary'!$C$42),"Yes",IF(G105>'A - Contractor Summary'!$C$42,"No","Needs Review"))) ->  | P105: Yes | Q105: No | R105: 0 | S105: 0
B106: 95 | N106: =IF(AND(G106>='A - Contractor Summary'!$C$36,G106<='A - Contractor Summary'!$C$38),"Yes",IF(G106<'A - Contractor Summary'!$C$36,"No",IF(G106>'A - Contractor Summary'!$C$39,"",""))) -> No | O106: =IF(OR(N106="Yes",N106="No")*AND(G106<'A - Contractor Summary'!$C$39),"",IF(AND(G106>'A - Contractor Summary'!$C$39,G106<'A - Contractor Summary'!$C$42),"Yes",IF(G106>'A - Contractor Summary'!$C$42,"No","Needs Review"))) ->  | P106: Yes | Q106: No | R106: 0 | S106: 0
B107: 96 | N107: =IF(AND(G107>='A - Contractor Summary'!$C$36,G107<='A - Contractor Summary'!$C$38),"Yes",IF(G107<'A - Contractor Summary'!$C$36,"No",IF(G107>'A - Contractor Summary'!$C$39,"",""))) -> No | O107: =IF(OR(N107="Yes",N107="No")*AND(G107<'A - Contractor Summary'!$C$39),"",IF(AND(G107>'A - Contractor Summary'!$C$39,G107<'A - Contractor Summary'!$C$42),"Yes",IF(G107>'A - Contractor Summary'!$C$42,"No","Needs Review"))) ->  | P107: Yes | Q107: No | R107: 0 | S107: 0
B108: 97 | N108: =IF(AND(G108>='A - Contractor Summary'!$C$36,G108<='A - Contractor Summary'!$C$38),"Yes",IF(G108<'A - Contractor Summary'!$C$36,"No",IF(G108>'A - Contractor Summary'!$C$39,"",""))) -> No | O108: =IF(OR(N108="Yes",N108="No")*AND(G108<'A - Contractor Summary'!$C$39),"",IF(AND(G108>'A - Contractor Summary'!$C$39,G108<'A - Contractor Summary'!$C$42),"Yes",IF(G108>'A - Contractor Summary'!$C$42,"No","Needs Review"))) ->  | P108: Yes | Q108: No | R108: 0 | S108: 0
B109: 98 | N109: =IF(AND(G109>='A - Contractor Summary'!$C$36,G109<='A - Contractor Summary'!$C$38),"Yes",IF(G109<'A - Contractor Summary'!$C$36,"No",IF(G109>'A - Contractor Summary'!$C$39,"",""))) -> No | O109: =IF(OR(N109="Yes",N109="No")*AND(G109<'A - Contractor Summary'!$C$39),"",IF(AND(G109>'A - Contractor Summary'!$C$39,G109<'A - Contractor Summary'!$C$42),"Yes",IF(G109>'A - Contractor Summary'!$C$42,"No","Needs Review"))) ->  | P109: Yes | Q109: No | R109: 0 | S109: 0
B110: 99 | N110: =IF(AND(G110>='A - Contractor Summary'!$C$36,G110<='A - Contractor Summary'!$C$38),"Yes",IF(G110<'A - Contractor Summary'!$C$36,"No",IF(G110>'A - Contractor Summary'!$C$39,"",""))) -> No | O110: =IF(OR(N110="Yes",N110="No")*AND(G110<'A - Contractor Summary'!$C$39),"",IF(AND(G110>'A - Contractor Summary'!$C$39,G110<'A - Contractor Summary'!$C$42),"Yes",IF(G110>'A - Contractor Summary'!$C$42,"No","Needs Review"))) ->  | P110: Yes | Q110: No | R110: 0 | S110: 0
B111: 100 | N111: =IF(AND(G111>='A - Contractor Summary'!$C$36,G111<='A - Contractor Summary'!$C$38),"Yes",IF(G111<'A - Contractor Summary'!$C$36,"No",IF(G111>'A - Contractor Summary'!$C$39,"",""))) -> No | O111: =IF(OR(N111="Yes",N111="No")*AND(G111<'A - Contractor Summary'!$C$39),"",IF(AND(G111>'A - Contractor Summary'!$C$39,G111<'A - Contractor Summary'!$C$42),"Yes",IF(G111>'A - Contractor Summary'!$C$42,"No","Needs Review"))) ->  | P111: Yes | Q111: No | R111: 0 | S111: 0
B112: 101 | N112: =IF(AND(G112>='A - Contractor Summary'!$C$36,G112<='A - Contractor Summary'!$C$38),"Yes",IF(G112<'A - Contractor Summary'!$C$36,"No",IF(G112>'A - Contractor Summary'!$C$39,"",""))) -> No | O112: =IF(OR(N112="Yes",N112="No")*AND(G112<'A - Contractor Summary'!$C$39),"",IF(AND(G112>'A - Contractor Summary'!$C$39,G112<'A - Contractor Summary'!$C$42),"Yes",IF(G112>'A - Contractor Summary'!$C$42,"No","Needs Review"))) ->  | P112: Yes | Q112: No | R112: 0 | S112: 0
B113: 102 | N113: =IF(AND(G113>='A - Contractor Summary'!$C$36,G113<='A - Contractor Summary'!$C$38),"Yes",IF(G113<'A - Contractor Summary'!$C$36,"No",IF(G113>'A - Contractor Summary'!$C$39,"",""))) -> No | O113: =IF(OR(N113="Yes",N113="No")*AND(G113<'A - Contractor Summary'!$C$39),"",IF(AND(G113>'A - Contractor Summary'!$C$39,G113<'A - Contractor Summary'!$C$42),"Yes",IF(G113>'A - Contractor Summary'!$C$42,"No","Needs Review"))) ->  | P113: Yes | Q113: No | R113: 0 | S113: 0
B114: 103 | N114: =IF(AND(G114>='A - Contractor Summary'!$C$36,G114<='A - Contractor Summary'!$C$38),"Yes",IF(G114<'A - Contractor Summary'!$C$36,"No",IF(G114>'A - Contractor Summary'!$C$39,"",""))) -> No | O114: =IF(OR(N114="Yes",N114="No")*AND(G114<'A - Contractor Summary'!$C$39),"",IF(AND(G114>'A - Contractor Summary'!$C$39,G114<'A - Contractor Summary'!$C$42),"Yes",IF(G114>'A - Contractor Summary'!$C$42,"No","Needs Review"))) ->  | P114: Yes | Q114: No | R114: 0 | S114: 0
B115: 104 | N115: =IF(AND(G115>='A - Contractor Summary'!$C$36,G115<='A - Contractor Summary'!$C$38),"Yes",IF(G115<'A - Contractor Summary'!$C$36,"No",IF(G115>'A - Contractor Summary'!$C$39,"",""))) -> No | O115: =IF(OR(N115="Yes",N115="No")*AND(G115<'A - Contractor Summary'!$C$39),"",IF(AND(G115>'A - Contractor Summary'!$C$39,G115<'A - Contractor Summary'!$C$42),"Yes",IF(G115>'A - Contractor Summary'!$C$42,"No","Needs Review"))) ->  | P115: Yes | Q115: No | R115: 0 | S115: 0
B116: 105 | N116: =IF(AND(G116>='A - Contractor Summary'!$C$36,G116<='A - Contractor Summary'!$C$38),"Yes",IF(G116<'A - Contractor Summary'!$C$36,"No",IF(G116>'A - Contractor Summary'!$C$39,"",""))) -> No | O116: =IF(OR(N116="Yes",N116="No")*AND(G116<'A - Contractor Summary'!$C$39),"",IF(AND(G116>'A - Contractor Summary'!$C$39,G116<'A - Contractor Summary'!$C$42),"Yes",IF(G116>'A - Contractor Summary'!$C$42,"No","Needs Review"))) ->  | P116: Yes | Q116: No | R116: 0 | S116: 0
B117: 106 | N117: =IF(AND(G117>='A - Contractor Summary'!$C$36,G117<='A - Contractor Summary'!$C$38),"Yes",IF(G117<'A - Contractor Summary'!$C$36,"No",IF(G117>'A - Contractor Summary'!$C$39,"",""))) -> No | O117: =IF(OR(N117="Yes",N117="No")*AND(G117<'A - Contractor Summary'!$C$39),"",IF(AND(G117>'A - Contractor Summary'!$C$39,G117<'A - Contractor Summary'!$C$42),"Yes",IF(G117>'A - Contractor Summary'!$C$42,"No","Needs Review"))) ->  | P117: Yes | Q117: No | R117: 0 | S117: 0
B118: 107 | N118: =IF(AND(G118>='A - Contractor Summary'!$C$36,G118<='A - Contractor Summary'!$C$38),"Yes",IF(G118<'A - Contractor Summary'!$C$36,"No",IF(G118>'A - Contractor Summary'!$C$39,"",""))) -> No | O118: =IF(OR(N118="Yes",N118="No")*AND(G118<'A - Contractor Summary'!$C$39),"",IF(AND(G118>'A - Contractor Summary'!$C$39,G118<'A - Contractor Summary'!$C$42),"Yes",IF(G118>'A - Contractor Summary'!$C$42,"No","Needs Review"))) ->  | P118: Yes | Q118: No | R118: 0 | S118: 0
B119: 108 | N119: =IF(AND(G119>='A - Contractor Summary'!$C$36,G119<='A - Contractor Summary'!$C$38),"Yes",IF(G119<'A - Contractor Summary'!$C$36,"No",IF(G119>'A - Contractor Summary'!$C$39,"",""))) -> No | O119: =IF(OR(N119="Yes",N119="No")*AND(G119<'A - Contractor Summary'!$C$39),"",IF(AND(G119>'A - Contractor Summary'!$C$39,G119<'A - Contractor Summary'!$C$42),"Yes",IF(G119>'A - Contractor Summary'!$C$42,"No","Needs Review"))) ->  | P119: Yes | Q119: No | R119: 0 | S119: 0
B120: 109 | N120: =IF(AND(G120>='A - Contractor Summary'!$C$36,G120<='A - Contractor Summary'!$C$38),"Yes",IF(G120<'A - Contractor Summary'!$C$36,"No",IF(G120>'A - Contractor Summary'!$C$39,"",""))) -> No | O120: =IF(OR(N120="Yes",N120="No")*AND(G120<'A - Contractor Summary'!$C$39),"",IF(AND(G120>'A - Contractor Summary'!$C$39,G120<'A - Contractor Summary'!$C$42),"Yes",IF(G120>'A - Contractor Summary'!$C$42,"No","Needs Review"))) ->  | P120: Yes | Q120: No | R120: 0 | S120: 0
B121: 110 | N121: =IF(AND(G121>='A - Contractor Summary'!$C$36,G121<='A - Contractor Summary'!$C$38),"Yes",IF(G121<'A - Contractor Summary'!$C$36,"No",IF(G121>'A - Contractor Summary'!$C$39,"",""))) -> No | O121: =IF(OR(N121="Yes",N121="No")*AND(G121<'A - Contractor Summary'!$C$39),"",IF(AND(G121>'A - Contractor Summary'!$C$39,G121<'A - Contractor Summary'!$C$42),"Yes",IF(G121>'A - Contractor Summary'!$C$42,"No","Needs Review"))) ->  | P121: Yes | Q121: No | R121: 0 | S121: 0
B122: 111 | N122: =IF(AND(G122>='A - Contractor Summary'!$C$36,G122<='A - Contractor Summary'!$C$38),"Yes",IF(G122<'A - Contractor Summary'!$C$36,"No",IF(G122>'A - Contractor Summary'!$C$39,"",""))) -> No | O122: =IF(OR(N122="Yes",N122="No")*AND(G122<'A - Contractor Summary'!$C$39),"",IF(AND(G122>'A - Contractor Summary'!$C$39,G122<'A - Contractor Summary'!$C$42),"Yes",IF(G122>'A - Contractor Summary'!$C$42,"No","Needs Review"))) ->  | P122: Yes | Q122: No | R122: 0 | S122: 0
B123: 112 | N123: =IF(AND(G123>='A - Contractor Summary'!$C$36,G123<='A - Contractor Summary'!$C$38),"Yes",IF(G123<'A - Contractor Summary'!$C$36,"No",IF(G123>'A - Contractor Summary'!$C$39,"",""))) -> No | O123: =IF(OR(N123="Yes",N123="No")*AND(G123<'A - Contractor Summary'!$C$39),"",IF(AND(G123>'A - Contractor Summary'!$C$39,G123<'A - Contractor Summary'!$C$42),"Yes",IF(G123>'A - Contractor Summary'!$C$42,"No","Needs Review"))) ->  | P123: Yes | Q123: No | R123: 0 | S123: 0
B124: 113 | N124: =IF(AND(G124>='A - Contractor Summary'!$C$36,G124<='A - Contractor Summary'!$C$38),"Yes",IF(G124<'A - Contractor Summary'!$C$36,"No",IF(G124>'A - Contractor Summary'!$C$39,"",""))) -> No | O124: =IF(OR(N124="Yes",N124="No")*AND(G124<'A - Contractor Summary'!$C$39),"",IF(AND(G124>'A - Contractor Summary'!$C$39,G124<'A - Contractor Summary'!$C$42),"Yes",IF(G124>'A - Contractor Summary'!$C$42,"No","Needs Review"))) ->  | P124: Yes | Q124: No | R124: 0 | S124: 0
B125: 114 | N125: =IF(AND(G125>='A - Contractor Summary'!$C$36,G125<='A - Contractor Summary'!$C$38),"Yes",IF(G125<'A - Contractor Summary'!$C$36,"No",IF(G125>'A - Contractor Summary'!$C$39,"",""))) -> No | O125: =IF(OR(N125="Yes",N125="No")*AND(G125<'A - Contractor Summary'!$C$39),"",IF(AND(G125>'A - Contractor Summary'!$C$39,G125<'A - Contractor Summary'!$C$42),"Yes",IF(G125>'A - Contractor Summary'!$C$42,"No","Needs Review"))) ->  | P125: Yes | Q125: No | R125: 0 | S125: 0
B126: 115 | N126: =IF(AND(G126>='A - Contractor Summary'!$C$36,G126<='A - Contractor Summary'!$C$38),"Yes",IF(G126<'A - Contractor Summary'!$C$36,"No",IF(G126>'A - Contractor Summary'!$C$39,"",""))) -> No | O126: =IF(OR(N126="Yes",N126="No")*AND(G126<'A - Contractor Summary'!$C$39),"",IF(AND(G126>'A - Contractor Summary'!$C$39,G126<'A - Contractor Summary'!$C$42),"Yes",IF(G126>'A - Contractor Summary'!$C$42,"No","Needs Review"))) ->  | P126: Yes | Q126: No | R126: 0 | S126: 0
B127: 116 | N127: =IF(AND(G127>='A - Contractor Summary'!$C$36,G127<='A - Contractor Summary'!$C$38),"Yes",IF(G127<'A - Contractor Summary'!$C$36,"No",IF(G127>'A - Contractor Summary'!$C$39,"",""))) -> No | O127: =IF(OR(N127="Yes",N127="No")*AND(G127<'A - Contractor Summary'!$C$39),"",IF(AND(G127>'A - Contractor Summary'!$C$39,G127<'A - Contractor Summary'!$C$42),"Yes",IF(G127>'A - Contractor Summary'!$C$42,"No","Needs Review"))) ->  | P127: Yes | Q127: No | R127: 0 | S127: 0
B128: 117 | N128: =IF(AND(G128>='A - Contractor Summary'!$C$36,G128<='A - Contractor Summary'!$C$38),"Yes",IF(G128<'A - Contractor Summary'!$C$36,"No",IF(G128>'A - Contractor Summary'!$C$39,"",""))) -> No | O128: =IF(OR(N128="Yes",N128="No")*AND(G128<'A - Contractor Summary'!$C$39),"",IF(AND(G128>'A - Contractor Summary'!$C$39,G128<'A - Contractor Summary'!$C$42),"Yes",IF(G128>'A - Contractor Summary'!$C$42,"No","Needs Review"))) ->  | P128: Yes | Q128: No | R128: 0 | S128: 0
B129: 118 | N129: =IF(AND(G129>='A - Contractor Summary'!$C$36,G129<='A - Contractor Summary'!$C$38),"Yes",IF(G129<'A - Contractor Summary'!$C$36,"No",IF(G129>'A - Contractor Summary'!$C$39,"",""))) -> No | O129: =IF(OR(N129="Yes",N129="No")*AND(G129<'A - Contractor Summary'!$C$39),"",IF(AND(G129>'A - Contractor Summary'!$C$39,G129<'A - Contractor Summary'!$C$42),"Yes",IF(G129>'A - Contractor Summary'!$C$42,"No","Needs Review"))) ->  | P129: Yes | Q129: No | R129: 0 | S129: 0
B130: 119 | N130: =IF(AND(G130>='A - Contractor Summary'!$C$36,G130<='A - Contractor Summary'!$C$38),"Yes",IF(G130<'A - Contractor Summary'!$C$36,"No",IF(G130>'A - Contractor Summary'!$C$39,"",""))) -> No | O130: =IF(OR(N130="Yes",N130="No")*AND(G130<'A - Contractor Summary'!$C$39),"",IF(AND(G130>'A - Contractor Summary'!$C$39,G130<'A - Contractor Summary'!$C$42),"Yes",IF(G130>'A - Contractor Summary'!$C$42,"No","Needs Review"))) ->  | P130: Yes | Q130: No | R130: 0 | S130: 0
B131: 120 | N131: =IF(AND(G131>='A - Contractor Summary'!$C$36,G131<='A - Contractor Summary'!$C$38),"Yes",IF(G131<'A - Contractor Summary'!$C$36,"No",IF(G131>'A - Contractor Summary'!$C$39,"",""))) -> No | O131: =IF(OR(N131="Yes",N131="No")*AND(G131<'A - Contractor Summary'!$C$39),"",IF(AND(G131>'A - Contractor Summary'!$C$39,G131<'A - Contractor Summary'!$C$42),"Yes",IF(G131>'A - Contractor Summary'!$C$42,"No","Needs Review"))) ->  | P131: Yes | Q131: No | R131: 0 | S131: 0
B132: 121 | N132: =IF(AND(G132>='A - Contractor Summary'!$C$36,G132<='A - Contractor Summary'!$C$38),"Yes",IF(G132<'A - Contractor Summary'!$C$36,"No",IF(G132>'A - Contractor Summary'!$C$39,"",""))) -> No | O132: =IF(OR(N132="Yes",N132="No")*AND(G132<'A - Contractor Summary'!$C$39),"",IF(AND(G132>'A - Contractor Summary'!$C$39,G132<'A - Contractor Summary'!$C$42),"Yes",IF(G132>'A - Contractor Summary'!$C$42,"No","Needs Review"))) ->  | P132: Yes | Q132: No | R132: 0 | S132: 0
B133: 122 | N133: =IF(AND(G133>='A - Contractor Summary'!$C$36,G133<='A - Contractor Summary'!$C$38),"Yes",IF(G133<'A - Contractor Summary'!$C$36,"No",IF(G133>'A - Contractor Summary'!$C$39,"",""))) -> No | O133: =IF(OR(N133="Yes",N133="No")*AND(G133<'A - Contractor Summary'!$C$39),"",IF(AND(G133>'A - Contractor Summary'!$C$39,G133<'A - Contractor Summary'!$C$42),"Yes",IF(G133>'A - Contractor Summary'!$C$42,"No","Needs Review"))) ->  | P133: Yes | Q133: No | R133: 0 | S133: 0
B134: 123 | N134: =IF(AND(G134>='A - Contractor Summary'!$C$36,G134<='A - Contractor Summary'!$C$38),"Yes",IF(G134<'A - Contractor Summary'!$C$36,"No",IF(G134>'A - Contractor Summary'!$C$39,"",""))) -> No | O134: =IF(OR(N134="Yes",N134="No")*AND(G134<'A - Contractor Summary'!$C$39),"",IF(AND(G134>'A - Contractor Summary'!$C$39,G134<'A - Contractor Summary'!$C$42),"Yes",IF(G134>'A - Contractor Summary'!$C$42,"No","Needs Review"))) ->  | P134: Yes | Q134: No | R134: 0 | S134: 0
B135: 124 | N135: =IF(AND(G135>='A - Contractor Summary'!$C$36,G135<='A - Contractor Summary'!$C$38),"Yes",IF(G135<'A - Contractor Summary'!$C$36,"No",IF(G135>'A - Contractor Summary'!$C$39,"",""))) -> No | O135: =IF(OR(N135="Yes",N135="No")*AND(G135<'A - Contractor Summary'!$C$39),"",IF(AND(G135>'A - Contractor Summary'!$C$39,G135<'A - Contractor Summary'!$C$42),"Yes",IF(G135>'A - Contractor Summary'!$C$42,"No","Needs Review"))) ->  | P135: Yes | Q135: No | R135: 0 | S135: 0
B136: 125 | N136: =IF(AND(G136>='A - Contractor Summary'!$C$36,G136<='A - Contractor Summary'!$C$38),"Yes",IF(G136<'A - Contractor Summary'!$C$36,"No",IF(G136>'A - Contractor Summary'!$C$39,"",""))) -> No | O136: =IF(OR(N136="Yes",N136="No")*AND(G136<'A - Contractor Summary'!$C$39),"",IF(AND(G136>'A - Contractor Summary'!$C$39,G136<'A - Contractor Summary'!$C$42),"Yes",IF(G136>'A - Contractor Summary'!$C$42,"No","Needs Review"))) ->  | P136: Yes | Q136: No | R136: 0 | S136: 0
B137: 126 | N137: =IF(AND(G137>='A - Contractor Summary'!$C$36,G137<='A - Contractor Summary'!$C$38),"Yes",IF(G137<'A - Contractor Summary'!$C$36,"No",IF(G137>'A - Contractor Summary'!$C$39,"",""))) -> No | O137: =IF(OR(N137="Yes",N137="No")*AND(G137<'A - Contractor Summary'!$C$39),"",IF(AND(G137>'A - Contractor Summary'!$C$39,G137<'A - Contractor Summary'!$C$42),"Yes",IF(G137>'A - Contractor Summary'!$C$42,"No","Needs Review"))) ->  | P137: Yes | Q137: No | R137: 0 | S137: 0
B138: 127 | N138: =IF(AND(G138>='A - Contractor Summary'!$C$36,G138<='A - Contractor Summary'!$C$38),"Yes",IF(G138<'A - Contractor Summary'!$C$36,"No",IF(G138>'A - Contractor Summary'!$C$39,"",""))) -> No | O138: =IF(OR(N138="Yes",N138="No")*AND(G138<'A - Contractor Summary'!$C$39),"",IF(AND(G138>'A - Contractor Summary'!$C$39,G138<'A - Contractor Summary'!$C$42),"Yes",IF(G138>'A - Contractor Summary'!$C$42,"No","Needs Review"))) ->  | P138: Yes | Q138: No | R138: 0 | S138: 0
B139: 128 | N139: =IF(AND(G139>='A - Contractor Summary'!$C$36,G139<='A - Contractor Summary'!$C$38),"Yes",IF(G139<'A - Contractor Summary'!$C$36,"No",IF(G139>'A - Contractor Summary'!$C$39,"",""))) -> No | O139: =IF(OR(N139="Yes",N139="No")*AND(G139<'A - Contractor Summary'!$C$39),"",IF(AND(G139>'A - Contractor Summary'!$C$39,G139<'A - Contractor Summary'!$C$42),"Yes",IF(G139>'A - Contractor Summary'!$C$42,"No","Needs Review"))) ->  | P139: Yes | Q139: No | R139: 0 | S139: 0
B140: 129 | N140: =IF(AND(G140>='A - Contractor Summary'!$C$36,G140<='A - Contractor Summary'!$C$38),"Yes",IF(G140<'A - Contractor Summary'!$C$36,"No",IF(G140>'A - Contractor Summary'!$C$39,"",""))) -> No | O140: =IF(OR(N140="Yes",N140="No")*AND(G140<'A - Contractor Summary'!$C$39),"",IF(AND(G140>'A - Contractor Summary'!$C$39,G140<'A - Contractor Summary'!$C$42),"Yes",IF(G140>'A - Contractor Summary'!$C$42,"No","Needs Review"))) ->  | P140: Yes | Q140: =IF(AND(P140="Yes",L140="Yes",M140="Yes")*OR(O140="Yes",N140="Yes"),"Yes",IF(OR(L140="No",N140="No",O140="No",P140="No",M140="No"),"No","Needs Review")) -> No | R140: =IF(Q140="Yes",K140,0) -> 0 | S140: =IF(Q140="Needs Review",K140,0) -> 0
K141: =SUM(K14:K140) -> 0 | R141: =IFERROR(SUM(R14:R140),0) -> 0 | S141: =IFERROR(SUM(S14:S140),0) -> 0 | T141: =SUM(T14:T140) -> 0 | U141: =SUM(U14:U140) -> 0 | V141: =S141-T141-U141 -> 0 | W141: check (a)
B145: Tickmark Explanation:
C146: 1
C147: 2
C148: 3
C149: 4
C150: 5
C151: 6
C152: 7

Sheet I - Other
B2: Other Charges
B4: Test Plan: (A) Obtain support of individual charges. (B) Enter Yes/No if receipt is itemized. (C) Enter Yes/No if proof of payment has been provided. (D) Ensure charges fall between the dates the vendor was mobilized and the date they arrived. (E) Ensure charges are prior to the date the vendor arrived home or was released to another utility. (F) Ensure the expense type is reasonable (G) Determine the amount(s) to be reviewed, allowed and/or disallowed. (H) For charges which required further review, document review and include why it was determined to be allowed/disallowed via a tickmark.
B9: a | C9: Check figure should equal $0. Cell will appear yellow if discrepancies are noted.
C12: A | L12: B | M12: C | N12: D | O12: E | P12: F | Q12: G | T12: H
B13: Support Reviewed | N13: Conclusions
B14: # | C14: Type of Support | D14: Support Identifier | E14: Company | F14: Crew | G14: Date | H14: Person | I14: Vendor Name | J14: Location | K14: $ Total | L14: Itemized Receipt | M14: Proof of Payment | N14: Reasonable based on Mobilization date(s) | O14: Reasonable based on Demobilization date(s) | P14: Expense Type Appropriate | Q14: Conclusion | R14: $ Allowable Charge | S14: $ To Be Reviewed | T14: Reviewed - Allowable Charge | U14: Reviewed - Unallowable Charge | V14: Tickmarks
C15: Invoice | D15: INV#1267 | E15: Vendor 04 | G15: 2018-11-17 | I15: Sun Belt Rentals | K15: 18504.33 | T15: =+K15 -> 18504.33 | V15: 1
C16: Invoice | D16: INV#1389 | E16: Vendor 04 | G16: 2019-01-09 | I16: J Curry Farms | K16: 2145 | T16: =+K16 -> 2145 | V16: 1
C17: Invoice | D17: INV#1389 | E17: Vendor 04 | G17: 2019-01-14 | I17: J Curry Farms | K17: 1155 | T17: 1155 | V17: 1
C18: Invoice | D18: INV#1389 | E18: Vendor 04 | G18: 2019-02-14 | I18: Acme Barricades | K18: 220.8 | T18: 220.8 | V18: 1
C19: Invoice | D19: INV#1419 | E19: Vendor 04 | G19: 2019-02-08 | I19: J Curry Farms | K19: 7535 | T19: 7535 | V19: 1
C20: Invoice | D20: INV#1267 | E20: Vendor 04 | G20: 2019-02-11 | I20: J Curry Farms | K20: 5720 | T20: 5720 | V20: 1
C21: Invoice | D21: INV#1438 | E21: Vendor 04 | G21: 2019-02-19 | I21: J Curry Farms | K21: 6875 | T21: 6875 | V21: 1
C22: Invoice | D22: INV#1463 | E22: Vendor 04 | G22: 2019-02-19 | I22: J Curry Farms | K22: 3740 | T22: 3740 | V22: 1
C23: Invoice | D23: INV#1503 | E23: Vendor 04 | G23: 2019-02-22 | K23: 12621.53 | T23: 12621.53 | V23: 1
N30: =IF(AND(G30>='A - Contractor Summary'!$C$36,G30<='A - Contractor Summary'!$C$38),"Yes",IF(G30<'A - Contractor Summary'!$C$36,"No",IF(G30>'A - Contractor Summary'!$C$39,"",""))) -> No | O30: =IF(OR(N30="Yes",N30="No")*AND(G30<'A - Contractor Summary'!$C$39),"",IF(AND(G30>'A - Contractor Summary'!$C$39,G30<'A - Contractor Summary'!$C$42),"Yes",IF(G30>'A - Contractor Summary'!$C$42,"No","Needs Review"))) ->  | P30: Needs Reviewed | Q30: =IF(AND(P30="YES",L30="Yes",M30="yes")*OR(N30="Yes",O30="Yes"),"Yes",IF(OR(O30="No",P30="No",N30="No",M30="No"),"No","Needs Review")) -> No | R30: =IF(Q30="Yes",K30,0) -> 0 | S30: =IF(Q30="Needs Review",K30,0) -> 0 | V30: 1
K31: =SUM(K15:K30) -> 58516.66 | R31: =IFERROR(SUM(R30:R30),0) -> 0 | S31: =IFERROR(SUM(S30:S30),0) -> 0 | T31: =SUM(T15:T30) -> 58516.66 | U31: =SUM(U15:U30) -> 0 | V31: =S31-T31-U31 -> -58516.66 | W31: check (a)
B35: Tickmark Explanation:
C36: 1 Documentation Provided

Sheet G - Per Diem
B2: Per Diem Charges
B4: Test Plan: (A) Enter per diem charges per invoice. (B) Enter number of crew worked per timecard. (C) Enter the Per Diem Rate charged per person per meal (D) Ensure the number of crew members being charged is appropriate (This is comparing the submitted timecards and the per diem charges invoiced). (E) Ensure charges fall between the dates the vendor was mobilized and the date they arrived. (F) Ensure charges are prior to the date the vendor arrived home or was released to another utility. (G) Determine the amount(s) to be reviewed, allowed and/or disallowed. (H) For charges which required further review, document review and include why it was determined to be allowed/disallowed via a tickmark.
B10: Rx | C10: Recalculated.
B11: a | C11: Check figure should equal $0. Cell will appear yellow if discrepancies are noted.
B14: A | F14: B | G14: Rx | H14: C | I14: Rx | J14: D | K14: E | L14: F | M14: G | P14: H
B15: Support Reviewed | J15: Conclusion
B16: Dates | C16: Company | D16: Per Diem Type | E16: # Crew Worked (per invoice) | F16: # Crew Worked (per timecards) | G16: Difference | H16: Per Diem Rate | I16: Total Per Diem | J16: # Crew Reasonable | K16: Reasonable based on Mobilization date(s) | L16: Reasonable based on Demobilization date(s) | M16: Conclusion | N16: $ Allowable Charge | O16: $ To Be Reviewed | P16: Reviewed - Allowable Charge | Q16: Reviewed - Unallowable Charge | R16: Tickmarks
B17: 2018-10-11 | C17: Vendor No. 04 | D17: Hotel | E17: 52 | G17: =E17-F17 -> 52 | H17: 50 | I17: =E17*H17 -> 2600 | J17: =IF(G17>0,"No",IF(F17=0,"N/A","Yes")) -> No | K17: =IF(AND(B17>='A - Contractor Summary'!$C$36,B17<='A - Contractor Summary'!$C$38),"Yes",IF(B17<'A - Contractor Summary'!$C$36,"No",IF(B17>'A - Contractor Summary'!$C$39,"",""))) -> Yes | L17: =IF(OR(K17="Yes",K17="No")*AND(B17<'A - Contractor Summary'!$C$39),"",IF(AND(B17>'A - Contractor Summary'!$C$39,B17<'A - Contractor Summary'!$C$42),"Yes",IF(B17>'A - Contractor Summary'!$C$42,"No","Needs Review"))) ->  | M17: =IF(AND(J17="Yes")*OR(K17="Yes",L17="Yes"),"Yes",IF(OR(K17="No",J17="No",L17="No"),"No","Needs Review")) -> No | N17: =IF(M17="Yes",I17,0) -> 0 | O17: =IF(M17="Needs Review",I17,0) -> 0 | P17: =+I17 -> 2600 | R17: 1
B18: 2018-10-12 | C18: Vendor No. 04 | D18: Hotel | E18: 52 | G18: 52 | H18: 50 | I18: =E18*H18 -> 2600 | J18: =IF(G18>0,"No",IF(F18=0,"N/A","Yes")) -> No | K18: =IF(AND(B18>='A - Contractor Summary'!$C$36,B18<='A - Contractor Summary'!$C$38),"Yes",IF(B18<'A - Contractor Summary'!$C$36,"No",IF(B18>'A - Contractor Summary'!$C$39,"",""))) ->  | L18: =IF(OR(K18="Yes",K18="No")*AND(B18<'A - Contractor Summary'!$C$39),"",IF(AND(B18>'A - Contractor Summary'!$C$39,B18<'A - Contractor Summary'!$C$42),"Yes",IF(B18>'A - Contractor Summary'!$C$42,"No","Needs Review"))) -> Needs Review | M18: =IF(AND(J18="Yes")*OR(K18="Yes",L18="Yes"),"Yes",IF(OR(K18="No",J18="No",L18="No"),"No","Needs Review")) -> No | N18: =IF(M18="Yes",I18,0) -> 0 | O18: =IF(M18="Needs Review",I18,0) -> 0 | P18: =+I18 -> 2600 | R18: 1
B19: 2018-10-13 | C19: Vendor No. 04 | D19: Hotel | E19: 52 | G19: 52 | H19: 50 | I19: =E19*H19 -> 2600 | J19: =IF(G19>0,"No",IF(F19=0,"N/A","Yes")) -> No | K19: =IF(AND(B19>='A - Contractor Summary'!$C$36,B19<='A - Contractor Summary'!$C$38),"Yes",IF(B19<'A - Contractor Summary'!$C$36,"No",IF(B19>'A - Contractor Summary'!$C$39,"",""))) ->  | L19: =IF(OR(K19="Yes",K19="No")*AND(B19<'A - Contractor Summary'!$C$39),"",IF(AND(B19>'A - Contractor Summary'!$C$39,B19<'A - Contractor Summary'!$C$42),"Yes",IF(B19>'A - Contractor Summary'!$C$42,"No","Needs Review"))) -> Needs Review | M19: No | N19: 0 | O19: 0 | P19: 2600 | R19: 1
B20: 2018-10-14 | C20: Vendor No. 04 | D20: Hotel | E20: 79 | G20: 79 | H20: 50 | I20: 3950 | J20: No | K20: =IF(AND(B20>='A - Contractor Summary'!$C$36,B20<='A - Contractor Summary'!$C$38),"Yes",IF(B20<'A - Contractor Summary'!$C$36,"No",IF(B20>'A - Contractor Summary'!$C$39,"",""))) ->  | L20: =IF(OR(K20="Yes",K20="No")*AND(B20<'A - Contractor Summary'!$C$39),"",IF(AND(B20>'A - Contractor Summary'!$C$39,B20<'A - Contractor Summary'!$C$42),"Yes",IF(B20>'A - Contractor Summary'!$C$42,"No","Needs Review"))) -> Needs Review | M20: No | N20: 0 | O20: 0 | P20: 3950 | R20: 1
B21: 2018-10-15 | C21: Vendor No. 04 | D21: Hotel | E21: 79 | G21: 79 | H21: 50 | I21: 3950 | J21: No | K21: =IF(AND(B21>='A - Contractor Summary'!$C$36,B21<='A - Contractor Summary'!$C$38),"Yes",IF(B21<'A - Contractor Summary'!$C$36,"No",IF(B21>'A - Contractor Summary'!$C$39,"",""))) ->  | L21: =IF(OR(K21="Yes",K21="No")*AND(B21<'A - Contractor Summary'!$C$39),"",IF(AND(B21>'A - Contractor Summary'!$C$39,B21<'A - Contractor Summary'!$C$42),"Yes",IF(B21>'A - Contractor Summary'!$C$42,"No","Needs Review"))) -> Needs Review | M21: No | N21: 0 | O21: 0 | P21: 3950 | R21: 1
B22: 2018-10-16 | C22: Vendor No. 04 | D22: Hotel | E22: 81 | G22: 81 | H22: 50 | I22: 4050 | J22: No | K22: =IF(AND(B22>='A - Contractor Summary'!$C$36,B22<='A - Contractor Summary'!$C$38),"Yes",IF(B22<'A - Contractor Summary'!$C$36,"No",IF(B22>'A - Contractor Summary'!$C$39,"",""))) ->  | L22: =IF(OR(K22="Yes",K22="No")*AND(B22<'A - Contractor Summary'!$C$39),"",IF(AND(B22>'A - Contractor Summary'!$C$39,B22<'A - Contractor Summary'!$C$42),"Yes",IF(B22>'A - Contractor Summary'!$C$42,"No","Needs Review"))) -> Needs Review | M22: No | N22: 0 | O22: 0 | P22: 4050 | R22: 1
B23: 2018-10-17 | C23: Vendor No. 04 | D23: Hotel | E23: 87 | G23: 87 | H23: 50 | I23: 4350 | J23: No | K23: =IF(AND(B23>='A - Contractor Summary'!$C$36,B23<='A - Contractor Summary'!$C$38),"Yes",IF(B23<'A - Contractor Summary'!$C$36,"No",IF(B23>'A - Contractor Summary'!$C$39,"",""))) ->  | L23: =IF(OR(K23="Yes",K23="No")*AND(B23<'A - Contractor Summary'!$C$39),"",IF(AND(B23>'A - Contractor Summary'!$C$39,B23<'A - Contractor Summary'!$C$42),"Yes",IF(B23>'A - Contractor Summary'!$C$42,"No","Needs Review"))) -> Needs Review | M23: No | N23: 0 | O23: 0 | P23: 4350 | R23: 1
B24: 2018-10-18 | C24: Vendor No. 04 | D24: Hotel | E24: 87 | G24: 87 | H24: 50 | I24: 4350 | J24: No | K24: =IF(AND(B24>='A - Contractor Summary'!$C$36,B24<='A - Contractor Summary'!$C$38),"Yes",IF(B24<'A - Contractor Summary'!$C$36,"No",IF(B24>'A - Contractor Summary'!$C$39,"",""))) ->  | L24: =IF(OR(K24="Yes",K24="No")*AND(B24<'A - Contractor Summary'!$C$39),"",IF(AND(B24>'A - Contractor Summary'!$C$39,B24<'A - Contractor Summary'!$C$42),"Yes",IF(B24>'A - Contractor Summary'!$C$42,"No","Needs Review"))) -> Needs Review | M24: No | N24: 0 | O24: 0 | P24: 4350 | R24: 1
B25: 2018-10-19 | C25: Vendor No. 04 | D25: Hotel | E25: 105 | G25: 105 | H25: 50 | I25: 5250 | J25: No | K25: =IF(AND(B25>='A - Contractor Summary'!$C$36,B25<='A - Contractor Summary'!$C$38),"Yes",IF(B25<'A - Contractor Summary'!$C$36,"No",IF(B25>'A - Contractor Summary'!$C$39,"",""))) ->  | L25: =IF(OR(K25="Yes",K25="No")*AND(B25<'A - Contractor Summary'!$C$39),"",IF(AND(B25>'A - Contractor Summary'!$C$39,B25<'A - Contractor Summary'!$C$42),"Yes",IF(B25>'A - Contractor Summary'!$C$42,"No","Needs Review"))) -> Needs Review | M25: No | N25: 0 | O25: 0 | P25: 5250 | R25: 1
B26: 2018-10-20 | C26: Vendor No. 04 | D26: Hotel | E26: 122 | G26: 122 | H26: 50 | I26: 6100 | J26: No | K26: =IF(AND(B26>='A - Contractor Summary'!$C$36,B26<='A - Contractor Summary'!$C$38),"Yes",IF(B26<'A - Contractor Summary'!$C$36,"No",IF(B26>'A - Contractor Summary'!$C$39,"",""))) ->  | L26: =IF(OR(K26="Yes",K26="No")*AND(B26<'A - Contractor Summary'!$C$39),"",IF(AND(B26>'A - Contractor Summary'!$C$39,B26<'A - Contractor Summary'!$C$42),"Yes",IF(B26>'A - Contractor Summary'!$C$42,"No","Needs Review"))) -> Needs Review | M26: No | N26: 0 | O26: 0 | P26: 6100 | R26: 1
B27: 2018-10-21 | C27: Vendor No. 04 | D27: Hotel | E27: 150 | G27: 150 | H27: 50 | I27: 7500 | J27: No | K27: =IF(AND(B27>='A - Contractor Summary'!$C$36,B27<='A - Contractor Summary'!$C$38),"Yes",IF(B27<'A - Contractor Summary'!$C$36,"No",IF(B27>'A - Contractor Summary'!$C$39,"",""))) ->  | L27: =IF(OR(K27="Yes",K27="No")*AND(B27<'A - Contractor Summary'!$C$39),"",IF(AND(B27>'A - Contractor Summary'!$C$39,B27<'A - Contractor Summary'!$C$42),"Yes",IF(B27>'A - Contractor Summary'!$C$42,"No","Needs Review"))) -> Needs Review | M27: No | N27: 0 | O27: 0 | P27: 7500 | R27: 1
B28: 2018-10-22 | C28: Vendor No. 04 | D28: Hotel | E28: 150 | G28: 150 | H28: 50 | I28: 7500 | J28: No | K28: =IF(AND(B28>='A - Contractor Summary'!$C$36,B28<='A - Contractor Summary'!$C$38),"Yes",IF(B28<'A - Contractor Summary'!$C$36,"No",IF(B28>'A - Contractor Summary'!$C$39,"",""))) ->  | L28: =IF(OR(K28="Yes",K28="No")*AND(B28<'A - Contractor Summary'!$C$39),"",IF(AND(B28>'A - Contractor Summary'!$C$39,B28<'A - Contractor Summary'!$C$42),"Yes",IF(B28>'A - Contractor Summary'!$C$42,"No","Needs Review"))) -> Needs Review | M28: No | N28: 0 | O28: 0 | P28: 7500 | R28: 1
B29: 2018-10-23 | C29: Vendor No. 04 | D29: Hotel | E29: 150 | G29: 150 | H29: 50 | I29: 7500 | J29: No | K29: =IF(AND(B29>='A - Contractor Summary'!$C$36,B29<='A - Contractor Summary'!$C$38),"Yes",IF(B29<'A - Contractor Summary'!$C$36,"No",IF(B29>'A - Contractor Summary'!$C$39,"",""))) ->  | L29: =IF(OR(K29="Yes",K29="No")*AND(B29<'A - Contractor Summary'!$C$39),"",IF(AND(B29>'A - Contractor Summary'!$C$39,B29<'A - Contractor Summary'!$C$42),"Yes",IF(B29>'A - Contractor Summary'!$C$42,"No","Needs Review"))) -> Needs Review | M29: No | N29: 0 | O29: 0 | P29: 7500 | R29: 1
B30: 2018-10-24 | C30: Vendor No. 04 | D30: Hotel | E30: 150 | G30: 150 | H30: 50 | I30: 7500 | J30: No | K30: =IF(AND(B30>='A - Contractor Summary'!$C$36,B30<='A - Contractor Summary'!$C$38),"Yes",IF(B30<'A - Contractor Summary'!$C$36,"No",IF(B30>'A - Contractor Summary'!$C$39,"",""))) ->  | L30: =IF(OR(K30="Yes",K30="No")*AND(B30<'A - Contractor Summary'!$C$39),"",IF(AND(B30>'A - Contractor Summary'!$C$39,B30<'A - Contractor Summary'!$C$42),"Yes",IF(B30>'A - Contractor Summary'!$C$42,"No","Needs Review"))) -> Needs Review | M30: No | N30: 0 | O30: 0 | P30: 7500 | R30: 1
B31: 2018-10-25 | C31: Vendor No. 04 | D31: Hotel | E31: 150 | G31: 150 | H31: 50 | I31: 7500 | J31: No | K31: =IF(AND(B31>='A - Contractor Summary'!$C$36,B31<='A - Contractor Summary'!$C$38),"Yes",IF(B31<'A - Contractor Summary'!$C$36,"No",IF(B31>'A - Contractor Summary'!$C$39,"",""))) ->  | L31: =IF(OR(K31="Yes",K31="No")*AND(B31<'A - Contractor Summary'!$C$39),"",IF(AND(B31>'A - Contractor Summary'!$C$39,B31<'A - Contractor Summary'!$C$42),"Yes",IF(B31>'A - Contractor Summary'!$C$42,"No","Needs Review"))) -> Needs Review | M31: No | N31: 0 | O31: 0 | P31: 7500 | R31: 1
B32: 2018-10-26 | C32: Vendor No. 04 | D32: Hotel | E32: 150 | G32: 150 | H32: 50 | I32: 7500 | J32: No | K32: =IF(AND(B32>='A - Contractor Summary'!$C$36,B32<='A - Contractor Summary'!$C$38),"Yes",IF(B32<'A - Contractor Summary'!$C$36,"No",IF(B32>'A - Contractor Summary'!$C$39,"",""))) ->  | L32: =IF(OR(K32="Yes",K32="No")*AND(B32<'A - Contractor Summary'!$C$39),"",IF(AND(B32>'A - Contractor Summary'!$C$39,B32<'A - Contractor Summary'!$C$42),"Yes",IF(B32>'A - Contractor Summary'!$C$42,"No","Needs Review"))) -> Needs Review | M32: No | N32: 0 | O32: 0 | P32: 7500 | R32: 1
B33: 2018-10-27 | C33: Vendor No. 04 | D33: Hotel | E33: 150 | G33: 150 | H33: 50 | I33: 7500 | J33: No | K33: =IF(AND(B33>='A - Contractor Summary'!$C$36,B33<='A - Contractor Summary'!$C$38),"Yes",IF(B33<'A - Contractor Summary'!$C$36,"No",IF(B33>'A - Contractor Summary'!$C$39,"",""))) ->  | L33: =IF(OR(K33="Yes",K33="No")*AND(B33<'A - Contractor Summary'!$C$39),"",IF(AND(B33>'A - Contractor Summary'!$C$39,B33<'A - Contractor Summary'!$C$42),"Yes",IF(B33>'A - Contractor Summary'!$C$42,"No","Needs Review"))) -> Needs Review | M33: No | N33: 0 | O33: 0 | P33: 7500 | R33: 1
B34: 2018-10-28 | C34: Vendor No. 04 | D34: Hotel | E34: 175 | G34: =E34-F34 -> 175 | H34: 50 | I34: =E34*H34 -> 8750 | J34: =IF(G34>0,"No",IF(F34=0,"N/A","Yes")) -> No | L34: =IF(OR(K34="Yes",K34="No")*AND(B34<'A - Contractor Summary'!$C$39),"",IF(AND(B34>'A - Contractor Summary'!$C$39,B34<'A - Contractor Summary'!$C$42),"Yes",IF(B34>'A - Contractor Summary'!$C$42,"No","Needs Review"))) -> Needs Review | M34: =IF(AND(J34="Yes")*OR(K34="Yes",L34="Yes"),"Yes",IF(OR(K34="No",J34="No",L34="No"),"No","Needs Review")) -> No | N34: =IF(M34="Yes",I34,0) -> 0 | O34: =IF(M34="Needs Review",I34,0) -> 0 | P34: 8750 | R34: 1
B35: 2018-10-29 | C35: Vendor No. 04 | D35: Hotel | E35: 175 | G35: 175 | H35: 50 | I35: 8750 | J35: No | L35: =IF(OR(K35="Yes",K35="No")*AND(B35<'A - Contractor Summary'!$C$39),"",IF(AND(B35>'A - Contractor Summary'!$C$39,B35<'A - Contractor Summary'!$C$42),"Yes",IF(B35>'A - Contractor Summary'!$C$42,"No","Needs Review"))) -> Needs Review | M35: No | N35: 0 | O35: 0 | P35: 8750 | R35: 1
B36: 2018-10-30 | C36: Vendor No. 04 | D36: Hotel | E36: 175 | G36: 175 | H36: 50 | I36: 8750 | J36: No | L36: =IF(OR(K36="Yes",K36="No")*AND(B36<'A - Contractor Summary'!$C$39),"",IF(AND(B36>'A - Contractor Summary'!$C$39,B36<'A - Contractor Summary'!$C$42),"Yes",IF(B36>'A - Contractor Summary'!$C$42,"No","Needs Review"))) -> Needs Review | M36: No | N36: 0 | O36: 0 | P36: 8750 | R36: 1
B37: 2018-10-31 | C37: Vendor No. 04 | D37: Hotel | E37: 175 | G37: 175 | H37: 50 | I37: 8750 | J37: No | L37: =IF(OR(K37="Yes",K37="No")*AND(B37<'A - Contractor Summary'!$C$39),"",IF(AND(B37>'A - Contractor Summary'!$C$39,B37<'A - Contractor Summary'!$C$42),"Yes",IF(B37>'A - Contractor Summary'!$C$42,"No","Needs Review"))) -> Needs Review | M37: No | N37: 0 | O37: 0 | P37: 8750 | R37: 1
B38: 2018-11-01 | C38: Vendor No. 04 | D38: Hotel | E38: 40 | G38: 40 | H38: 50 | I38: 2000 | J38: No | L38: =IF(OR(K38="Yes",K38="No")*AND(B38<'A - Contractor Summary'!$C$39),"",IF(AND(B38>'A - Contractor Summary'!$C$39,B38<'A - Contractor Summary'!$C$42),"Yes",IF(B38>'A - Contractor Summary'!$C$42,"No","Needs Review"))) -> Needs Review | M38: No | N38: 0 | O38: 0 | P38: 2000 | R38: 1
B39: 2018-11-02 | C39: Vendor No. 04 | D39: Hotel | E39: 40 | G39: 40 | H39: 50 | I39: 2000 | J39: No | L39: =IF(OR(K39="Yes",K39="No")*AND(B39<'A - Contractor Summary'!$C$39),"",IF(AND(B39>'A - Contractor Summary'!$C$39,B39<'A - Contractor Summary'!$C$42),"Yes",IF(B39>'A - Contractor Summary'!$C$42,"No","Needs Review"))) -> Needs Review | M39: No | N39: 0 | O39: 0 | P39: 2000 | R39: 1
B40: 2018-11-03 | C40: Vendor No. 04 | D40: Hotel | E40: 40 | G40: 40 | H40: 50 | I40: 2000 | J40: No | L40: =IF(OR(K40="Yes",K40="No")*AND(B40<'A - Contractor Summary'!$C$39),"",IF(AND(B40>'A - Contractor Summary'!$C$39,B40<'A - Contractor Summary'!$C$42),"Yes",IF(B40>'A - Contractor Summary'!$C$42,"No","Needs Review"))) -> Needs Review | M40: No | N40: 0 | O40: 0 | P40: 2000 | R40: 1
B41: 2018-11-04 | C41: Vendor No. 04 | D41: Hotel | E41: 32 | G41: 32 | H41: 50 | I41: 1600 | J41: No | L41: =IF(OR(K41="Yes",K41="No")*AND(B41<'A - Contractor Summary'!$C$39),"",IF(AND(B41>'A - Contractor Summary'!$C$39,B41<'A - Contractor Summary'!$C$42),"Yes",IF(B41>'A - Contractor Summary'!$C$42,"No","Needs Review"))) -> Needs Review | M41: No | N41: 0 | O41: 0 | P41: 1600 | R41: 1
B42: 2018-11-05 | C42: Vendor No. 04 | D42: Hotel | E42: 28 | G42: 28 | H42: 50 | I42: 1400 | J42: No | L42: =IF(OR(K42="Yes",K42="No")*AND(B42<'A - Contractor Summary'!$C$39),"",IF(AND(B42>'A - Contractor Summary'!$C$39,B42<'A - Contractor Summary'!$C$42),"Yes",IF(B42>'A - Contractor Summary'!$C$42,"No","Needs Review"))) -> Needs Review | M42: No | N42: 0 | O42: 0 | P42: 1400 | R42: 1
B43: 2018-11-06 | C43: Vendor No. 04 | D43: Hotel | E43: 28 | G43: 28 | H43: 50 | I43: 1400 | J43: No | L43: =IF(OR(K43="Yes",K43="No")*AND(B43<'A - Contractor Summary'!$C$39),"",IF(AND(B43>'A - Contractor Summary'!$C$39,B43<'A - Contractor Summary'!$C$42),"Yes",IF(B43>'A - Contractor Summary'!$C$42,"No","Needs Review"))) -> Needs Review | M43: No | N43: 0 | O43: 0 | P43: 1400 | R43: 1
B44: 2018-11-07 | C44: Vendor No. 04 | D44: Hotel | E44: 28 | G44: 28 | H44: 50 | I44: 1400 | J44: No | L44: =IF(OR(K44="Yes",K44="No")*AND(B44<'A - Contractor Summary'!$C$39),"",IF(AND(B44>'A - Contractor Summary'!$C$39,B44<'A - Contractor Summary'!$C$42),"Yes",IF(B44>'A - Contractor Summary'!$C$42,"No","Needs Review"))) -> Needs Review | M44: No | N44: 0 | O44: 0 | P44: 1400 | R44: 1
B45: 2018-11-08 | C45: Vendor No. 04 | D45: Hotel | E45: 16 | G45: 16 | H45: 50 | I45: 800 | J45: No | L45: =IF(OR(K45="Yes",K45="No")*AND(B45<'A - Contractor Summary'!$C$39),"",IF(AND(B45>'A - Contractor Summary'!$C$39,B45<'A - Contractor Summary'!$C$42),"Yes",IF(B45>'A - Contractor Summary'!$C$42,"No","Needs Review"))) -> Needs Review | M45: No | N45: 0 | O45: 0 | P45: 800 | R45: 1
B46: 2018-11-09 | C46: Vendor No. 04 | D46: Hotel | E46: 16 | G46: 16 | H46: 50 | I46: 800 | J46: No | L46: =IF(OR(K46="Yes",K46="No")*AND(B46<'A - Contractor Summary'!$C$39),"",IF(AND(B46>'A - Contractor Summary'!$C$39,B46<'A - Contractor Summary'!$C$42),"Yes",IF(B46>'A - Contractor Summary'!$C$42,"No","Needs Review"))) -> Needs Review | M46: No | N46: 0 | O46: 0 | P46: 800 | R46: 1
C47: Vendor No. 04 | G47: 0 | H47: 50 | I47: 0 | J47: N/A | L47: =IF(OR(K47="Yes",K47="No")*AND(B47<'A - Contractor Summary'!$C$39),"",IF(AND(B47>'A - Contractor Summary'!$C$39,B47<'A - Contractor Summary'!$C$42),"Yes",IF(B47>'A - Contractor Summary'!$C$42,"No","Needs Review"))) -> Needs Review | M47: Needs Review | N47: 0 | O47: 0 | P47: 0
G48: 0 | I48: 0 | J48: N/A | K48: =IF(AND(B48>='A - Contractor Summary'!$C$36,B48<='A - Contractor Summary'!$C$38),"Yes",IF(B48<'A - Contractor Summary'!$C$36,"No",IF(B48>'A - Contractor Summary'!$C$39,"",""))) -> No | L48: =IF(OR(K48="Yes",K48="No")*AND(B48<'A - Contractor Summary'!$C$39),"",IF(AND(B48>'A - Contractor Summary'!$C$39,B48<'A - Contractor Summary'!$C$42),"Yes",IF(B48>'A - Contractor Summary'!$C$42,"No","Needs Review"))) ->  | M48: No | N48: 0 | O48: 0 | P48: 0
G49: =SUM(G17:G48) -> 2814 | I49: =SUM(I17:I48) -> 140700 | N49: =IFERROR(SUM(N17:N48),0) -> 0 | O49: =IFERROR(SUM(O17:O48),0) -> 0 | P49: =SUM(P17:P48) -> 140700 | Q49: =SUM(Q17:Q48) -> 0 | R49: =O49-P49-Q49 -> -140700 | S49: check (a)
B52: Tickmark Explanation:
B54: 1 Documentation Provided

Sheet H - Mileage
B2: Mileage Charges
B4: Test Plan: (A) Obtain support of individual mileage charged (Typically a rate and mileage included on invoice). (B) Ensure charges fall between the dates the vendor was mobilized and the date they arrived. (C) Ensure charges are prior to the date the vendor arrived home or was released to another utility. (D) Ensure number of miles charged deemed reasonable based on vendor location (recalculated per 'A - Contractor Summary' tab). (E) Ensure the location of charge was reasonable (If mobilizing, charges should be related to travelling to TECO Service area, and home, if demobilizing). (F) Determine the amount(s) to be reviewed, allowed and/or disallowed. (G) For charges which required further review, document review and include why it was determined to be allowed/disallowed via a tickmark.
B10: Rx | C10: Recalculated.
B11: a | C11: Check figure should equal $0. Cell will appear yellow if discrepancies are noted.
C13: A | L13: Rx | M13: B | N13: C | O13: D | P13: E | Q13: F | T13: G
B14: Support Reviewed | M14: Conclusions
B15: # | C15: Type of Support | D15: Company | E15: Equipment Name | F15: Equipment ID | G15: Crew | H15: Date | I15: Location | J15: Miles Charged | K15: $ / Mile (Rate) | L15: Total Charge | M15: Reasonable based on Mobilization date(s) | N15: Reasonable based on Demobilization date(s) | O15: Number of Miles Charged Reasonable | P15: Locations Reasonable | Q15: Conclusion | R15: $ Allowable Charge | S15: $ To Be Reviewed | T15: Reviewed - Allowable Charge | U15: Reviewed - Unallowable Charge | V15: Tickmarks
B16: 1 | L16: =J16*K16 -> 0 | M16: =IF(AND(H16>='A - Contractor Summary'!$C$36,H16<='A - Contractor Summary'!$C$38),"Yes",IF(H16<'A - Contractor Summary'!$C$36,"No",IF(H16>'A - Contractor Summary'!$C$39,"",""))) -> No | N16: =IF(OR(M16="Yes",M16="No")*AND(H16<'A - Contractor Summary'!$C$39),"",IF(AND(H16>'A - Contractor Summary'!$C$39,H16<'A - Contractor Summary'!$C$42),"Yes",IF(H16>'A - Contractor Summary'!$C$42,"No","Needs Review"))) ->  | O16: =IF(AND(J16>PRODUCT('A - Contractor Summary'!$C$29,0.85),J16<PRODUCT('A - Contractor Summary'!$C$29,1.15)),"Yes","No") -> No | Q16: =IF(AND(P16="Yes",O16="Yes")*OR(N16="Yes",M16="Yes"),"Yes",IF(OR(M16="No",N16="No",P16="No",O16="No"),"No","Needs Review")) -> No | R16: =IF(Q16="Yes",L16,0) -> 0 | S16: =IF(Q16="Needs Review",L16,0) -> 0
B17: 2 | L17: 0 | M17: =IF(AND(H17>='A - Contractor Summary'!$C$36,H17<='A - Contractor Summary'!$C$38),"Yes",IF(H17<'A - Contractor Summary'!$C$36,"No",IF(H17>'A - Contractor Summary'!$C$39,"",""))) -> No | N17: =IF(OR(M17="Yes",M17="No")*AND(H17<'A - Contractor Summary'!$C$39),"",IF(AND(H17>'A - Contractor Summary'!$C$39,H17<'A - Contractor Summary'!$C$42),"Yes",IF(H17>'A - Contractor Summary'!$C$42,"No","Needs Review"))) ->  | O17: =IF(AND(J17>PRODUCT('A - Contractor Summary'!$C$29,0.85),J17<PRODUCT('A - Contractor Summary'!$C$29,1.15)),"Yes","No") -> No | Q17: No | R17: 0 | S17: 0
B18: 3 | L18: 0 | M18: =IF(AND(H18>='A - Contractor Summary'!$C$36,H18<='A - Contractor Summary'!$C$38),"Yes",IF(H18<'A - Contractor Summary'!$C$36,"No",IF(H18>'A - Contractor Summary'!$C$39,"",""))) -> No | N18: =IF(OR(M18="Yes",M18="No")*AND(H18<'A - Contractor Summary'!$C$39),"",IF(AND(H18>'A - Contractor Summary'!$C$39,H18<'A - Contractor Summary'!$C$42),"Yes",IF(H18>'A - Contractor Summary'!$C$42,"No","Needs Review"))) ->  | O18: =IF(AND(J18>PRODUCT('A - Contractor Summary'!$C$29,0.85),J18<PRODUCT('A - Contractor Summary'!$C$29,1.15)),"Yes","No") -> No | Q18: No | R18: 0 | S18: 0
B19: 4 | L19: 0 | M19: =IF(AND(H19>='A - Contractor Summary'!$C$36,H19<='A - Contractor Summary'!$C$38),"Yes",IF(H19<'A - Contractor Summary'!$C$36,"No",IF(H19>'A - Contractor Summary'!$C$39,"",""))) -> No | N19: =IF(OR(M19="Yes",M19="No")*AND(H19<'A - Contractor Summary'!$C$39),"",IF(AND(H19>'A - Contractor Summary'!$C$39,H19<'A - Contractor Summary'!$C$42),"Yes",IF(H19>'A - Contractor Summary'!$C$42,"No","Needs Review"))) ->  | O19: =IF(AND(J19>PRODUCT('A - Contractor Summary'!$C$29,0.85),J19<PRODUCT('A - Contractor Summary'!$C$29,1.15)),"Yes","No") -> No | Q19: No | R19: 0 | S19: 0
B20: 5 | L20: 0 | M20: =IF(AND(H20>='A - Contractor Summary'!$C$36,H20<='A - Contractor Summary'!$C$38),"Yes",IF(H20<'A - Contractor Summary'!$C$36,"No",IF(H20>'A - Contractor Summary'!$C$39,"",""))) -> No | N20: =IF(OR(M20="Yes",M20="No")*AND(H20<'A - Contractor Summary'!$C$39),"",IF(AND(H20>'A - Contractor Summary'!$C$39,H20<'A - Contractor Summary'!$C$42),"Yes",IF(H20>'A - Contractor Summary'!$C$42,"No","Needs Review"))) ->  | O20: =IF(AND(J20>PRODUCT('A - Contractor Summary'!$C$29,0.85),J20<PRODUCT('A - Contractor Summary'!$C$29,1.15)),"Yes","No") -> No | Q20: No | R20: 0 | S20: 0
B21: 6 | L21: 0 | M21: =IF(AND(H21>='A - Contractor Summary'!$C$36,H21<='A - Contractor Summary'!$C$38),"Yes",IF(H21<'A - Contractor Summary'!$C$36,"No",IF(H21>'A - Contractor Summary'!$C$39,"",""))) -> No | N21: =IF(OR(M21="Yes",M21="No")*AND(H21<'A - Contractor Summary'!$C$39),"",IF(AND(H21>'A - Contractor Summary'!$C$39,H21<'A - Contractor Summary'!$C$42),"Yes",IF(H21>'A - Contractor Summary'!$C$42,"No","Needs Review"))) ->  | O21: =IF(AND(J21>PRODUCT('A - Contractor Summary'!$C$29,0.85),J21<PRODUCT('A - Contractor Summary'!$C$29,1.15)),"Yes","No") -> No | Q21: No | R21: 0 | S21: 0
B22: 7 | L22: 0 | M22: =IF(AND(H22>='A - Contractor Summary'!$C$36,H22<='A - Contractor Summary'!$C$38),"Yes",IF(H22<'A - Contractor Summary'!$C$36,"No",IF(H22>'A - Contractor Summary'!$C$39,"",""))) -> No | N22: =IF(OR(M22="Yes",M22="No")*AND(H22<'A - Contractor Summary'!$C$39),"",IF(AND(H22>'A - Contractor Summary'!$C$39,H22<'A - Contractor Summary'!$C$42),"Yes",IF(H22>'A - Contractor Summary'!$C$42,"No","Needs Review"))) ->  | O22: =IF(AND(J22>PRODUCT('A - Contractor Summary'!$C$29,0.85),J22<PRODUCT('A - Contractor Summary'!$C$29,1.15)),"Yes","No") -> No | Q22: No | R22: 0 | S22: 0
B23: 8 | L23: 0 | M23: =IF(AND(H23>='A - Contractor Summary'!$C$36,H23<='A - Contractor Summary'!$C$38),"Yes",IF(H23<'A - Contractor Summary'!$C$36,"No",IF(H23>'A - Contractor Summary'!$C$39,"",""))) -> No | N23: =IF(OR(M23="Yes",M23="No")*AND(H23<'A - Contractor Summary'!$C$39),"",IF(AND(H23>'A - Contractor Summary'!$C$39,H23<'A - Contractor Summary'!$C$42),"Yes",IF(H23>'A - Contractor Summary'!$C$42,"No","Needs Review"))) ->  | O23: =IF(AND(J23>PRODUCT('A - Contractor Summary'!$C$29,0.85),J23<PRODUCT('A - Contractor Summary'!$C$29,1.15)),"Yes","No") -> No | Q23: No | R23: 0 | S23: 0
B24: 9 | L24: 0 | M24: =IF(AND(H24>='A - Contractor Summary'!$C$36,H24<='A - Contractor Summary'!$C$38),"Yes",IF(H24<'A - Contractor Summary'!$C$36,"No",IF(H24>'A - Contractor Summary'!$C$39,"",""))) -> No | N24: =IF(OR(M24="Yes",M24="No")*AND(H24<'A - Contractor Summary'!$C$39),"",IF(AND(H24>'A - Contractor Summary'!$C$39,H24<'A - Contractor Summary'!$C$42),"Yes",IF(H24>'A - Contractor Summary'!$C$42,"No","Needs Review"))) ->  | O24: =IF(AND(J24>PRODUCT('A - Contractor Summary'!$C$29,0.85),J24<PRODUCT('A - Contractor Summary'!$C$29,1.15)),"Yes","No") -> No | Q24: No | R24: 0 | S24: 0
B25: 10 | L25: 0 | M25: =IF(AND(H25>='A - Contractor Summary'!$C$36,H25<='A - Contractor Summary'!$C$38),"Yes",IF(H25<'A - Contractor Summary'!$C$36,"No",IF(H25>'A - Contractor Summary'!$C$39,"",""))) -> No | N25: =IF(OR(M25="Yes",M25="No")*AND(H25<'A - Contractor Summary'!$C$39),"",IF(AND(H25>'A - Contractor Summary'!$C$39,H25<'A - Contractor Summary'!$C$42),"Yes",IF(H25>'A - Contractor Summary'!$C$42,"No","Needs Review"))) ->  | O25: =IF(AND(J25>PRODUCT('A - Contractor Summary'!$C$29,0.85),J25<PRODUCT('A - Contractor Summary'!$C$29,1.15)),"Yes","No") -> No | Q25: No | R25: 0 | S25: 0
B26: 11 | L26: 0 | M26: =IF(AND(H26>='A - Contractor Summary'!$C$36,H26<='A - Contractor Summary'!$C$38),"Yes",IF(H26<'A - Contractor Summary'!$C$36,"No",IF(H26>'A - Contractor Summary'!$C$39,"",""))) -> No | N26: =IF(OR(M26="Yes",M26="No")*AND(H26<'A - Contractor Summary'!$C$39),"",IF(AND(H26>'A - Contractor Summary'!$C$39,H26<'A - Contractor Summary'!$C$42),"Yes",IF(H26>'A - Contractor Summary'!$C$42,"No","Needs Review"))) ->  | O26: =IF(AND(J26>PRODUCT('A - Contractor Summary'!$C$29,0.85),J26<PRODUCT('A - Contractor Summary'!$C$29,1.15)),"Yes","No") -> No | Q26: No | R26: 0 | S26: 0
B27: 12 | L27: 0 | M27: =IF(AND(H27>='A - Contractor Summary'!$C$36,H27<='A - Contractor Summary'!$C$38),"Yes",IF(H27<'A - Contractor Summary'!$C$36,"No",IF(H27>'A - Contractor Summary'!$C$39,"",""))) -> No | N27: =IF(OR(M27="Yes",M27="No")*AND(H27<'A - Contractor Summary'!$C$39),"",IF(AND(H27>'A - Contractor Summary'!$C$39,H27<'A - Contractor Summary'!$C$42),"Yes",IF(H27>'A - Contractor Summary'!$C$42,"No","Needs Review"))) ->  | O27: =IF(AND(J27>PRODUCT('A - Contractor Summary'!$C$29,0.85),J27<PRODUCT('A - Contractor Summary'!$C$29,1.15)),"Yes","No") -> No | Q27: No | R27: 0 | S27: 0
B28: 13 | L28: 0 | M28: =IF(AND(H28>='A - Contractor Summary'!$C$36,H28<='A - Contractor Summary'!$C$38),"Yes",IF(H28<'A - Contractor Summary'!$C$36,"No",IF(H28>'A - Contractor Summary'!$C$39,"",""))) -> No | N28: =IF(OR(M28="Yes",M28="No")*AND(H28<'A - Contractor Summary'!$C$39),"",IF(AND(H28>'A - Contractor Summary'!$C$39,H28<'A - Contractor Summary'!$C$42),"Yes",IF(H28>'A - Contractor Summary'!$C$42,"No","Needs Review"))) ->  | O28: =IF(AND(J28>PRODUCT('A - Contractor Summary'!$C$29,0.85),J28<PRODUCT('A - Contractor Summary'!$C$29,1.15)),"Yes","No") -> No | Q28: No | R28: 0 | S28: 0
B29: 14 | L29: 0 | M29: =IF(AND(H29>='A - Contractor Summary'!$C$36,H29<='A - Contractor Summary'!$C$38),"Yes",IF(H29<'A - Contractor Summary'!$C$36,"No",IF(H29>'A - Contractor Summary'!$C$39,"",""))) -> No | N29: =IF(OR(M29="Yes",M29="No")*AND(H29<'A - Contractor Summary'!$C$39),"",IF(AND(H29>'A - Contractor Summary'!$C$39,H29<'A - Contractor Summary'!$C$42),"Yes",IF(H29>'A - Contractor Summary'!$C$42,"No","Needs Review"))) ->  | O29: =IF(AND(J29>PRODUCT('A - Contractor Summary'!$C$29,0.85),J29<PRODUCT('A - Contractor Summary'!$C$29,1.15)),"Yes","No") -> No | Q29: No | R29: 0 | S29: 0
B30: 15 | L30: 0 | M30: =IF(AND(H30>='A - Contractor Summary'!$C$36,H30<='A - Contractor Summary'!$C$38),"Yes",IF(H30<'A - Contractor Summary'!$C$36,"No",IF(H30>'A - Contractor Summary'!$C$39,"",""))) -> No | N30: =IF(OR(M30="Yes",M30="No")*AND(H30<'A - Contractor Summary'!$C$39),"",IF(AND(H30>'A - Contractor Summary'!$C$39,H30<'A - Contractor Summary'!$C$42),"Yes",IF(H30>'A - Contractor Summary'!$C$42,"No","Needs Review"))) ->  | O30: =IF(AND(J30>PRODUCT('A - Contractor Summary'!$C$29,0.85),J30<PRODUCT('A - Contractor Summary'!$C$29,1.15)),"Yes","No") -> No | Q30: No | R30: 0 | S30: 0
B31: 16 | L31: 0 | M31: =IF(AND(H31>='A - Contractor Summary'!$C$36,H31<='A - Contractor Summary'!$C$38),"Yes",IF(H31<'A - Contractor Summary'!$C$36,"No",IF(H31>'A - Contractor Summary'!$C$39,"",""))) -> No | N31: =IF(OR(M31="Yes",M31="No")*AND(H31<'A - Contractor Summary'!$C$39),"",IF(AND(H31>'A - Contractor Summary'!$C$39,H31<'A - Contractor Summary'!$C$42),"Yes",IF(H31>'A - Contractor Summary'!$C$42,"No","Needs Review"))) ->  | O31: =IF(AND(J31>PRODUCT('A - Contractor Summary'!$C$29,0.85),J31<PRODUCT('A - Contractor Summary'!$C$29,1.15)),"Yes","No") -> No | Q31: No | R31: 0 | S31: 0
B32: 17 | L32: 0 | M32: =IF(AND(H32>='A - Contractor Summary'!$C$36,H32<='A - Contractor Summary'!$C$38),"Yes",IF(H32<'A - Contractor Summary'!$C$36,"No",IF(H32>'A - Contractor Summary'!$C$39,"",""))) -> No | N32: =IF(OR(M32="Yes",M32="No")*AND(H32<'A - Contractor Summary'!$C$39),"",IF(AND(H32>'A - Contractor Summary'!$C$39,H32<'A - Contractor Summary'!$C$42),"Yes",IF(H32>'A - Contractor Summary'!$C$42,"No","Needs Review"))) ->  | O32: =IF(AND(J32>PRODUCT('A - Contractor Summary'!$C$29,0.85),J32<PRODUCT('A - Contractor Summary'!$C$29,1.15)),"Yes","No") -> No | Q32: No | R32: 0 | S32: 0
B33: 18 | L33: 0 | M33: =IF(AND(H33>='A - Contractor Summary'!$C$36,H33<='A - Contractor Summary'!$C$38),"Yes",IF(H33<'A - Contractor Summary'!$C$36,"No",IF(H33>'A - Contractor Summary'!$C$39,"",""))) -> No | N33: =IF(OR(M33="Yes",M33="No")*AND(H33<'A - Contractor Summary'!$C$39),"",IF(AND(H33>'A - Contractor Summary'!$C$39,H33<'A - Contractor Summary'!$C$42),"Yes",IF(H33>'A - Contractor Summary'!$C$42,"No","Needs Review"))) ->  | O33: =IF(AND(J33>PRODUCT('A - Contractor Summary'!$C$29,0.85),J33<PRODUCT('A - Contractor Summary'!$C$29,1.15)),"Yes","No") -> No | Q33: No | R33: =IF(Q33="Yes",#REF!,0) -> 0 | S33: 0
B34: 19 | L34: 0 | M34: =IF(AND(H34>='A - Contractor Summary'!$C$36,H34<='A - Contractor Summary'!$C$38),"Yes",IF(H34<'A - Contractor Summary'!$C$36,"No",IF(H34>'A - Contractor Summary'!$C$39,"",""))) -> No | N34: =IF(OR(M34="Yes",M34="No")*AND(H34<'A - Contractor Summary'!$C$39),"",IF(AND(H34>'A - Contractor Summary'!$C$39,H34<'A - Contractor Summary'!$C$42),"Yes",IF(H34>'A - Contractor Summary'!$C$42,"No","Needs Review"))) ->  | O34: =IF(AND(J34>PRODUCT('A - Contractor Summary'!$C$29,0.85),J34<PRODUCT('A - Contractor Summary'!$C$29,1.15)),"Yes","No") -> No | Q34: No | R34: =IF(Q34="Yes",#REF!,0) -> 0 | S34: 0
B35: 20 | L35: 0 | M35: =IF(AND(H35>='A - Contractor Summary'!$C$36,H35<='A - Contractor Summary'!$C$38),"Yes",IF(H35<'A - Contractor Summary'!$C$36,"No",IF(H35>'A - Contractor Summary'!$C$39,"",""))) -> No | N35: =IF(OR(M35="Yes",M35="No")*AND(H35<'A - Contractor Summary'!$C$39),"",IF(AND(H35>'A - Contractor Summary'!$C$39,H35<'A - Contractor Summary'!$C$42),"Yes",IF(H35>'A - Contractor Summary'!$C$42,"No","Needs Review"))) ->  | O35: =IF(AND(J35>PRODUCT('A - Contractor Summary'!$C$29,0.85),J35<PRODUCT('A - Contractor Summary'!$C$29,1.15)),"Yes","No") -> No | Q35: No | R35: =IF(Q35="Yes",#REF!,0) -> 0 | S35: =IF(Q35="ED Review",#REF!,0) -> 0
L36: =SUM(L16:L35) -> 0 | R36: =IFERROR(SUM(R16:R35),0) -> 0 | S36: =IFERROR(SUM(S16:S35),0) -> 0 | T36: =SUM(T16:T35) -> 0 | U36: =SUM(U16:U35) -> 0 | V36: =S36-T36-U36 -> 0 | W36: check (a)
B42: Tickmark Explanation:
